Workbook

Sheet CF (hidden)
B2: CONDITIONAL FORMATTING MAP
F3: =INDEX(dms_CF_3.6.1, MATCH(dms_TradingName,dms_CF_TradingName))="Y" -> FALSE | G3: =INDEX(dms_CF_3.6.5, MATCH(dms_TradingName,dms_CF_TradingName))="Y" | H3: =INDEX(dms_CF_3.6.6, MATCH(dms_TradingName,dms_CF_TradingName))="Y" -> FALSE | I3: =INDEX(dms_CF_3.6.7.1, MATCH(dms_TradingName,dms_CF_TradingName))="Y" | J3: =INDEX(dms_CF_3.6.7.2, MATCH(dms_TradingName,dms_CF_TradingName))="Y" | K3: =INDEX(dms_CF_3.6.7.3, MATCH(dms_TradingName,dms_CF_TradingName))="Y" | L3: =INDEX(dms_CF_3.6.7.4, MATCH(dms_TradingName,dms_CF_TradingName))="Y" | M3: =INDEX(dms_CF_4.1, MATCH(dms_TradingName,dms_CF_TradingName))="Y" | N3: =INDEX(dms_CF_6.6.1, MATCH(dms_TradingName,dms_CF_TradingName))="Y" | O3: =INDEX(dms_CF_6.8, MATCH(dms_TradingName,dms_CF_TradingName))="Y" | P3: =INDEX(dms_CF_7.12, MATCH(dms_TradingName,dms_CF_TradingName))="Y" | Q3: =INDEX(dms_CF_8.1_A, MATCH(dms_TradingName,dms_CF_TradingName))="Y" | R3: =INDEX(dms_CF_8.1_B, MATCH(dms_TradingName,dms_CF_TradingName))="Y" | S3: =INDEX(dms_CF_8.1_Neg, MATCH(dms_TradingName,dms_CF_TradingName))="Y"
B4: dms_CF_TradingName | C4: JurisdictionList | D4: Sector | E4: Segment | F4: dms_CF_3.6.1 | G4: dms_CF_3.6.5 | H4: dms_CF_3.6.6 | I4: dms_CF_3.6.7.1 | J4: dms_CF_3.6.7.2 | K4: dms_CF_3.6.7.3 | L4: dms_CF_3.6.7.4 | M4: dms_CF_4.1 | N4: dms_CF_6.6.1 | O4: dms_CF_6.8 | P4: dms_CF_7.12 | Q4: dms_CF_8.1_A | R4: dms_CF_8.1_B | S4: dms_CF_8.1_Neg | T4: dms_CF_4.4.1 | U4: Spare2
B5: ActewAGL Distribution | C5: ACT | D5: Electricity | E5: Distribution | G5: Y | I5: Y | J5: Y | K5: N | L5: Y | M5: Y | N5: N | O5: Y | P5: Y | Q5: N | R5: Y | S5: Y | T5: N | U5: N
B6: Ausgrid | C6: NSW | D6: Electricity | E6: Distribution | G6: Y | I6: N | J6: N | K6: N | L6: Y | M6: Y | N6: N | O6: Y | P6: Y | Q6: N | R6: Y | S6: Y | T6: N | U6: N
B7: AusNet (D) | C7: Vic | D7: Electricity | E7: Distribution | G7: N | I7: N | J7: N | K7: N | L7: N | M7: Y | N7: N | O7: Y | P7: N | Q7: N | R7: N | S7: Y | T7: N | U7: N
B8: AusNet (T) | C8: Vic | D8: Electricity | E8: Transmission | G8: N | I8: N | J8: N | K8: N | L8: N | M8: Y | N8: N | O8: Y | P8: N | Q8: N | R8: N | S8: Y | T8: N | U8: N
B9: CitiPower | C9: Vic | D9: Electricity | E9: Distribution | G9: N | I9: N | J9: N | K9: N | L9: N | M9: Y | N9: N | O9: Y | P9: N | Q9: N | R9: N | S9: Y | T9: N | U9: N
B10: Directlink | C10: Qld | D10: Electricity | E10: Transmission | G10: N | I10: N | J10: N | K10: N | L10: N | M10: Y | N10: N | O10: Y | P10: N | Q10: N | R10: Y | S10: Y | T10: N | U10: N
B11: ElectraNet | C11: SA | D11: Electricity | E11: Transmission | G11: N | I11: N | J11: N | K11: N | L11: N | M11: Y | N11: N | O11: Y | P11: N | Q11: N | R11: Y | S11: Y | T11: N | U11: N
B12: Endeavour Energy | C12: NSW | D12: Electricity | E12: Distribution | G12: Y | I12: N | J12: N | K12: N | L12: Y | M12: Y | N12: N | O12: Y | P12: Y | Q12: N | R12: Y | S12: Y | T12: N | U12: N
B13: Energex | C13: Qld | D13: Electricity | E13: Distribution | G13: Y | I13: N | J13: N | K13: N | L13: N | M13: Y | N13: N | O13: Y | P13: Y | Q13: N | R13: Y | S13: Y | T13: Y | U13: N
B14: Ergon Energy | C14: Qld | D14: Electricity | E14: Distribution | G14: Y | I14: N | J14: N | K14: N | L14: N | M14: Y | N14: N | O14: Y | P14: Y | Q14: N | R14: Y | S14: Y | T14: Y | U14: N
B15: Essential Energy | C15: NSW | D15: Electricity | E15: Distribution | G15: Y | I15: N | J15: N | K15: N | L15: Y | M15: Y | N15: N | O15: Y | P15: Y | Q15: N | R15: Y | S15: Y | T15: N | U15: N
B16: Jemena Electricity | C16: Vic | D16: Electricity | E16: Distribution | G16: N | I16: N | J16: N | K16: N | L16: N | M16: Y | N16: N | O16: Y | P16: N | Q16: N | R16: N | S16: Y | T16: N | U16: N
B17: Murraylink | C17: SA | D17: Electricity | E17: Transmission | G17: N | I17: N | J17: N | K17: N | L17: N | M17: Y | N17: N | O17: Y | P17: N | Q17: N | R17: Y | S17: Y | T17: N | U17: N
B18: Power and Water | C18: NT | D18: Electricity | E18: Distribution | G18: N | I18: N | J18: Y | K18: N | L18: N | M18: Y | N18: Y | O18: Y | P18: Y | Q18: N | R18: Y | S18: Y | T18: N | U18: N
B19: Powercor Australia | C19: Vic | D19: Electricity | E19: Distribution | G19: N | I19: N | J19: N | K19: N | L19: N | M19: Y | N19: N | O19: Y | P19: N | Q19: N | R19: N | S19: Y | T19: N | U19: N
B20: Powerlink | C20: Qld | D20: Electricity | E20: Transmission | G20: N | I20: N | J20: N | K20: N | L20: N | M20: Y | N20: N | O20: Y | P20: N | Q20: N | R20: Y | S20: Y | T20: N | U20: N
B21: SA Power Networks | C21: SA | D21: Electricity | E21: Distribution | G21: Y | I21: N | J21: N | K21: N | L21: N | M21: Y | N21: N | O21: Y | P21: Y | Q21: Y | R21: Y | S21: N | T21: N | U21: N
B22: TasNetworks (D) | C22: Tas | D22: Electricity | E22: Distribution | G22: Y | I22: N | J22: N | K22: N | L22: N | M22: Y | N22: N | O22: Y | P22: Y | Q22: N | R22: Y | S22: Y | T22: N | U22: N
B23: TasNetworks (T) | C23: Tas | D23: Electricity | E23: Transmission | G23: N | I23: N | J23: N | K23: N | L23: N | M23: Y | N23: N | O23: Y | P23: N | Q23: N | R23: Y | S23: Y | T23: N | U23: N
B24: TransGrid | C24: NSW | D24: Electricity | E24: Transmission | G24: N | I24: N | J24: N | K24: N | L24: N | M24: Y | N24: N | O24: Y | P24: N | Q24: N | R24: Y | S24: Y | T24: N | U24: N
B25: United Energy | C25: Vic | D25: Electricity | E25: Distribution | G25: N | I25: N | J25: N | K25: N | L25: N | M25: Y | N25: N | O25: Y | P25: N | Q25: N | R25: N | S25: Y | T25: N | U25: N
C124: 0
C125: =IFERROR(IF(dms_Model="ARR",(MAX(0,dms_0608_LastRow-dms_0608_OffsetRows)),"not an ARR"),"0") -> not an ARR

Sheet AER only (hidden)
B1: Data in these columns used for data validation and database purposes.
B2: Date last modified: | C2: 2017-01-16 | D2: added (Albury and Victora) for AGN
C3: 2016-10-17 | D3: updated TransGrid's correct legal name, corrected TasNetworks (T) to June financial year
C4: 2017-02-01 | D4: inserted Power and Water, added NRs (dms_FeederCat_1 and dms_FeederCat_2)
C5: 2017-03-03 | D5: inserted AEMO as a business | AB5: FOR ELECTRICITY BUSINESSES ONLY
C6: 2018-03-28 | D6: major changes to accommodate STPIS
C7: Template Version | D7: 5 | AB7: Feeder Types | AF7: TasNetworks (D) | AG7: MAIFI flag | AH7: Feeder Names
AB9: CBD | AC9: Urban | AD9: Short rural | AE9: long rural | AF9: EXTRA
B10: dms_TradingName_List | C10: dms_TradingNameFull_List | D10: dms_ABN_List | E10: dms_JurisdictionList | F10: dms_Sector_List | G10: dms_Segment_List | H10: dms_FormControl_List | I10: dms_RPT_List | J10: dms_RPTMonth_List | K10: dms_CRCPlength_List | L10: dms_FRCPlength_List | M10: dms_663_List | N10: dms_DeterminationRef_List | O10: dms_Addr1_List | P10: dms_Addr2_List | Q10: dms_Suburb_List | R10: dms_State_List | S10: dms_PostCode_List | T10: dms_PAddr1_List | U10: dms_PAddr2_List | V10: dms_PSuburb_List | W10: dms_PState_List | X10: dms_PPostCode_List | Y10: dms_ContactName1_List | Z10: dms_ContactPh1_List | AA10: dms_ContactEmail_List | AB10: dms_CBD_flag | AC10: dms_Urban_flag | AD10: dms_ShortRural_flag | AE10: dms_LongRural_flag | AF10: dms_FeederType_5_flag | AG10: dms_MAIFI_flag_List | AH10: dms_FeederName_1 | AI10: dms_FeederName_2 | AJ10: dms_FeederName_3 | AK10: dms_FeederName_4 | AL10: dms_FeederName_5 | AM10: dms_Public_Lighting_List | AN10: Column1
B11: ActewAGL Distribution | C11: ActewAGL Distribution | D11: 76670568688 | E11: ACT | F11: Electricity | G11: Distribution | H11: Revenue cap | I11: Financial | J11: June | K11: 5 | L11: 5 | M11: 5 | N11: 2014-19 Distribution Determination | O11: 40 Bunda Street | Q11: CANBERRA | R11: ACT | S11: 2600 | T11: GPO BOX 366 | V11: CANBERRA | W11: ACT | X11: 2601 | Y11: Robert Walker | Z11: 02 6248 3847 | AA11: robert.walker@actewagle.com.au | AB11: NO | AC11: YES | AD11: YES | AE11: NO | AF11: NO | AH11: CBD | AI11: Urban | AJ11: Short rural | AK11: Long rural | AM11: NO | AN11: ActewAGL Distribution
B12: ActewAGL Distribution (Tx Assets) | C12: ActewAGL Distribution (Tx Assets) | D12: 76670568688 | E12: ACT | F12: Electricity | G12: Distribution | H12: Revenue cap | I12: Financial | J12: June | K12: 5 | L12: 5 | M12: 5 | N12: distribution determination | O12: 40 Bunda Street | Q12: CANBERRA | R12: ACT | S12: 2600 | T12: GPO BOX 366 | V12: CANBERRA | W12: ACT | X12: 2601 | Y12: Robert Walker | Z12: 02 6248 3847 | AA12: robert.walker@actewagle.com.au | AB12: NO | AC12: YES | AD12: YES | AE12: NO | AF12: NO | AH12: CBD | AI12: Urban | AJ12: Short rural | AK12: Long rural | AM12: NO | AN12: ActewAGL Distribution (Tx Assets)
B13: ActewAGL Gas | C13: ActewAGL Gas | D13: 76670568688 | E13: ACT | F13: Gas | G13: Distribution | H13: Weighted average price cap | I13: Financial | J13: June | K13: 5 | L13: 5 | M13: x | O13: 40 Bunda Street | Q13: CANBERRA | R13: ACT | S13: 2600 | T13: GPO BOX 366 | V13: CANBERRA | W13: ACT | X13: 2601 | Y13: Philip Deamer | Z13: 02 6248 3438 | AA13: GasAAReview@actewagl.com.au | AB13: NO | AC13: NO | AD13: NO | AE13: NO | AF13: NO | AH13: CBD | AI13: Urban | AJ13: Short rural | AK13: Long rural | AM13: NO | AN13: ActewAGL Gas
B14: AEMO | C14: Australian Energy Market Operator Ltd | D14: 94072010327 | E14: Vic | F14: Electricity | G14: Transmission | H14: - | I14: Financial | J14: March | K14: 5 | L14: 5 | M14: x | N14: - | O14: Level 22 | P14: 530 Collins Street | Q14: MELBOURNE | R14: VIC | S14: 3000 | T14: GPO Box 2008 | V14: MELBOURNE | W14: VIC | X14: 3001 | AB14: NO | AC14: NO | AD14: NO | AE14: NO | AF14: NO | AH14: CBD | AI14: Urban | AJ14: Short rural | AK14: Long rural | AM14: NO | AN14: AEMO
B15: AGN (Albury and Victoria) | C15: Australian Gas Networks Limited (reporting data for Albury and Victoria) | D15: 19078551685 | E15: Vic | F15: Gas | G15: Distribution | H15: Weighted average price cap | I15: Calendar | J15: December | K15: 5 | L15: 5 | M15: x | O15: Level 6 | P15: 400 King William Street | Q15: ADELAIDE | R15: SA | S15: 5000 | T15: PO Box 6468 | U15: Halifax Street | V15: ADELAIDE | W15: SA | X15: 5000 | Y15: Craig de Laine | Z15: 08 8418 1129 | AA15: craig.delaine@agn.com.au | AB15: NO | AC15: NO | AD15: NO | AE15: NO | AF15: NO | AH15: CBD | AI15: Urban | AJ15: Short rural | AK15: Long rural | AM15: NO | AN15: AGN (Albury)
B16: AGN (Albury) | C16: Australian Gas Networks Limited (reporting data for Albury) | D16: 19078551685 | E16: Vic | F16: Gas | G16: Distribution | H16: Weighted average price cap | I16: Calendar | J16: December | K16: 5 | L16: 5 | M16: x | O16: Level 6 | P16: 400 King William Street | Q16: ADELAIDE | R16: SA | S16: 5000 | T16: PO Box 6468 | U16: Halifax Street | V16: ADELAIDE | W16: SA | X16: 5000 | Y16: Craig de Laine | Z16: 08 8418 1129 | AA16: craig.delaine@agn.com.au | AB16: NO | AC16: NO | AD16: NO | AE16: NO | AF16: NO | AH16: CBD | AI16: Urban | AJ16: Short rural | AK16: Long rural | AM16: NO
B17: AGN (SA) | C17: Australian Gas Networks Limited (reporting data for SA) | D17: 19078551685 | E17: SA | F17: Gas | G17: Distribution | H17: Weighted average price cap | I17: Financial | J17: June | K17: 5 | L17: 5 | M17: 5 | N17: distribution determination | O17: Level 6 | P17: 400 King William Street | Q17: ADELAIDE | R17: SA | S17: 5000 | T17: PO Box 6468 | U17: Halifax Street | V17: ADELAIDE | W17: SA | X17: 5000 | Y17: Craig de Laine | Z17: 08 8418 1129 | AA17: craig.delaine@agn.com.au | AB17: NO | AC17: NO | AD17: NO | AE17: NO | AF17: NO | AH17: CBD | AI17: Urban | AJ17: Short rural | AK17: Long rural | AM17: NO | AN17: AGN (SA)
B18: AGN (Victoria) | C18: Australian Gas Networks Limited (reporting data for Victoria) | D18: 19078551685 | E18: Vic | F18: Gas | G18: Distribution | H18: Weighted average price cap | I18: Calendar | J18: December | K18: 5 | L18: 5 | M18: x | O18: Level 6 | P18: 400 King William Street | Q18: ADELAIDE | R18: SA | S18: 5000 | T18: PO Box 6468 | U18: Halifax Street | V18: ADELAIDE | W18: SA | X18: 5000 | Y18: Craig de Laine | Z18: 08 8418 1129 | AA18: craig.delaine@agn.com.au | AB18: NO | AC18: NO | AD18: NO | AE18: NO | AF18: NO | AH18: CBD | AI18: Urban | AJ18: Short rural | AK18: Long rural | AM18: NO | AN18: AGN (Victoria)
B19: Amadeus | C19: APT Pipelines (NT) Pty Ltd | D19: 39009737393 | E19: NT | F19: Gas | G19: Transmission | H19: Weighted average price cap | I19: Financial | J19: June | K19: 5 | L19: 5 | M19: x | N19: n/a | O19: Level 19, HSBC Building | P19: 580 George Street | Q19: SYDNEY | R19: NSW | S19: 2000 | T19: Level 19, HSBC Building | U19: 580 George Street | V19: SYDNEY | W19: NSW | X19: 2000 | Y19: Alexandra Curran | Z19: 02 9275 0020 | AA19: alexandra.curran@apa.com.au | AB19: NO | AC19: NO | AD19: NO | AE19: NO | AF19: NO | AH19: CBD | AI19: Urban | AJ19: Short rural | AK19: Long rural | AM19: NO | AN19: Amadeus
B20: APA GasNet | C20: APA GasNet Australia (Operations) Pty Ltd | D20: 065083009 | E20: Vic | F20: Gas | G20: Transmission | H20: Weighted average price cap | I20: Calendar | J20: December | K20: 5 | L20: 5 | M20: x | O20: Level 19, HSBC Building | P20: 580 George Street | Q20: SYDNEY | R20: NSW | S20: 2000 | T20: PO Box R41 | V20: ROYAL EXCHANGE | W20: NSW | X20: 1225 | Y20: Alexandra Curran | Z20: 02 9275 0020 | AA20: alexandra.curran@apa.com.au | AB20: NO | AC20: NO | AD20: NO | AE20: NO | AF20: NO | AH20: CBD | AI20: Urban | AJ20: Short rural | AK20: Long rural | AM20: NO | AN20: APA GasNet
B21: Ausgrid | C21: Ausgrid | D21: 78508211731 | E21: NSW | F21: Electricity | G21: Distribution | H21: Revenue cap | I21: Financial | J21: June | K21: 5 | L21: 5 | M21: 5 | N21: 2014-19 Distribution Determination | O21: 570 George St | Q21: SYDNEY | R21: NSW | S21: 2000 | T21: GPO Box 4009 | V21: SYDNEY | W21: NSW | X21: 2001 | Y21: John Thomson | Z21: 02 9269 2312 | AA21: john.thomson@ausgrid.com.au | AB21: YES | AC21: YES | AD21: YES | AE21: YES | AF21: NO | AH21: CBD | AI21: Urban | AJ21: Short rural | AK21: Long rural | AM21: YES | AN21: Ausgrid
B22: Ausgrid (Tx Assets) | C22: Ausgrid (Tx Assets) | D22: 67505337385 | E22: NSW | F22: Electricity | G22: Distribution | H22: Revenue cap | I22: Financial | J22: June | K22: 5 | L22: 5 | M22: 5 | N22: distribution determination | O22: 570 George St | Q22: SYDNEY | R22: NSW | S22: 2000 | T22: GPO Box 4009 | V22: SYDNEY | W22: NSW | X22: 2001 | Y22: John Thomson | Z22: 02 9269 2312 | AA22: john.thomson@ausgrid.com.au | AB22: YES | AC22: YES | AD22: YES | AE22: YES | AF22: NO | AH22: CBD | AI22: Urban | AJ22: Short rural | AK22: Long rural | AM22: NO | AN22: Ausgrid (Tx Assets)
B23: AusNet (D) | C23: AusNet Electricity Services Pty Ltd | D23: 91064651118 | E23: Vic | F23: Electricity | G23: Distribution | H23: Revenue cap | I23: Calendar | J23: December | K23: 5 | L23: 5 | M23: 2 | N23: 2016-20 Distribution Determination | O23: Level 32 | P23: 2 Southbank Boulevard | Q23: SOUTHBANK | R23: Vic | S23: 3006 | T23: Locked Bag 14051 | V23: MELBOURNE CITY MAIL CENTRE | W23: VIC | X23: 8001 | Y23: please provide contact details | AB23: NO | AC23: YES | AD23: YES | AE23: YES | AF23: NO | AH23: CBD | AI23: Urban | AJ23: Short rural | AK23: Long rural | AM23: YES | AN23: AusNet (D)
B24: AusNet (Gas) | C24: AusNet Gas Services | D24: 086015036 | E24: Vic | F24: Gas | G24: Distribution | H24: Weighted average price cap | I24: Calendar | J24: December | K24: 5 | L24: 5 | M24: X | O24: Level 19, HSBC Building | P24: 580 George Street | Q24: SYDNEY | R24: NSW | S24: 2000 | T24: PO Box R41 | V24: ROYAL EXCHANGE | W24: NSW | X24: 1225 | Y24: Alexandra Curran | Z24: 02 9275 0020 | AA24: alexandra.curran@apa.com.au | AB24: NO | AC24: NO | AD24: NO | AE24: NO | AF24: NO | AH24: CBD | AI24: Urban | AJ24: Short rural | AK24: Long rural | AM24: NO | AN24: AusNet (Gas)
B25: AusNet (T) | C25: Ausnet Services (Transmission) Ltd | D25: 48116124362 | E25: Vic | F25: Electricity | G25: Transmission | H25: Revenue cap | I25: Financial | J25: March | K25: 5 | L25: 5 | M25: 2 | N25: transmission determination | O25: Level 32 | P25: 2 Southbank Boulevard | Q25: SOUTHBANK | R25: Vic | S25: 3006 | T25: Locked Bag 14051 | V25: MELBOURNE CITY MAIL CENTRE | W25: Vic | X25: 8001 | Y25: Clare Thompson | Z25: 03 9695 6670 | AA25: clare.e.thompson@ausnetservices.com.au | AB25: NO | AC25: NO | AD25: NO | AE25: NO | AF25: NO | AH25: CBD | AI25: Urban | AJ25: Short rural | AK25: Long rural | AM25: NO | AN25: AusNet (T)
B26: Australian Distribution Co. | C26: Australian Distribution Co. | D26: 11222333444 | E26: - | F26: Electricity | G26: Distribution | H26: Revenue cap | I26: Financial | J26: June | K26: 5 | L26: 5 | M26: 2 | N26: distribution determination | O26: 123 Straight Street | Q26: SYDNEY | R26: NSW | S26: 2000 | T26: PO Box 123 | V26: SYDNEY | W26: NSW | X26: 2000 | Y26: Bob Smith | Z26: 02 1234 5678 | AA26: bob@auselec.net.au | AB26: YES | AC26: YES | AD26: YES | AE26: YES | AF26: NO | AH26: CBD | AI26: Urban | AJ26: Short rural | AK26: Long rural | AM26: YES | AN26: Australian Distribution Co.
B27: Australian Distribution Co. (Gas) | C27: Australian Gas Distribution Co. | D27: 11222333444 | E27: NSW | F27: Gas | G27: Distribution | H27: Weighted average price cap | I27: Financial | J27: June | K27: 5 | L27: 5 | O27: 123 Straight Street | Q27: SYDNEY | R27: NSW | S27: 2000 | T27: PO Box 123 | V27: SYDNEY | W27: NSW | X27: 2000 | Y27: Bob Smith | Z27: 02 1234 5678 | AA27: bob@auselec.net.au | AB27: NO | AC27: NO | AD27: NO | AE27: NO | AF27: NO | AH27: CBD | AI27: Urban | AJ27: Short rural | AK27: Long rural | AM27: NO | AN27: Australian Distribution Co. (Vic)
B28: Australian Distribution Co. (Vic) | C28: Australian Distribution Co. (Victoria) | D28: 11222333444 | E28: Vic | F28: Electricity | G28: Distribution | H28: Revenue cap | I28: Calendar | J28: December | K28: 5 | L28: 5 | M28: 2 | N28: distribution determination | O28: 123 Straight Street | Q28: MELBOURNE | R28: Vic | S28: 3000 | T28: PO Box 123 | V28: MELBOURNE | W28: VIC | X28: 3000 | Y28: Bob Smith | Z28: 02 1234 5678 | AA28: bob@auselec.net.au | AB28: NO | AC28: NO | AD28: NO | AE28: NO | AF28: NO | AH28: CBD | AI28: Urban | AJ28: Short rural | AK28: Long rural | AM28: YES | AN28: Australian Distribution Co. (Vic)
B29: Australian Transmission Co. | C29: Australian Transmission Co. | D29: 11222333444 | E29: - | F29: Electricity | G29: Transmission | H29: Revenue cap | I29: Financial | J29: June | K29: 5 | L29: 5 | M29: 5 | N29: transmission determination | O29: 123 Straight Street | Q29: SYDNEY | R29: NSW | S29: 2000 | T29: PO Box 123 | V29: SYDNEY | W29: NSW | X29: 2000 | Y29: Bob Smith | Z29: 02 1234 5678 | AA29: bob@auselec.net.au | AB29: NO | AC29: NO | AD29: NO | AE29: NO | AF29: NO | AH29: CBD | AI29: Urban | AJ29: Short rural | AK29: Long rural | AM29: NO | AN29: Australian Transmission Co.
B30: Central Ranges Pipeline (D) | C30: Central Ranges Pipeline Pty Ltd | D30: 108218355 | E30: NSW | F30: Gas | G30: Distribution | H30: Weighted average price cap | I30: Financial | J30: June | K30: 15 | L30: 5 | M30: 5 | N30: distribution determination | O30: Level 19 | P30: 580 George Street | Q30: SYDNEY | R30: NSW | S30: 2000 | T30: PO Box R41 | V30: ROYAL EXCHANGE | W30: NSW | X30: 1225 | Y30: Scott Young | Z30: 02 9275 0031 | AA30: scott.young@apa.com.au | AB30: NO | AC30: NO | AD30: NO | AE30: NO | AF30: NO | AH30: CBD | AI30: Urban | AJ30: Short rural | AK30: Long rural | AM30: NO
B31: Central Ranges Pipeline (T) | C31: Central Ranges Pipeline Pty Ltd | D31: 108218355 | E31: NSW | F31: Gas | G31: Distribution | H31: Weighted average price cap | I31: Financial | J31: June | K31: 14 | L31: 5 | M31: 5 | N31: transmission determination | O31: Level 19 | P31: 580 George Street | Q31: SYDNEY | R31: NSW | S31: 2000 | T31: PO Box R41 | V31: ROYAL EXCHANGE | W31: NSW | X31: 1225 | Y31: Scott Young | Z31: 02 9275 0031 | AA31: scott.young@apa.com.au | AB31: NO | AC31: NO | AD31: NO | AE31: NO | AF31: NO | AH31: CBD | AI31: Urban | AJ31: Short rural | AK31: Long rural | AM31: NO
B32: CitiPower | C32: CitiPower | D32: 76064651056 | E32: Vic | F32: Electricity | G32: Distribution | H32: Revenue cap | I32: Calendar | J32: December | K32: 5 | L32: 5 | M32: 2 | N32: 2016-20 Distribution Determination | O32: 40 Market Street | Q32: MELBOURNE | R32: Vic | S32: 3000 | T32: Locked Bag 14090 | V32: MELBOURNE | W32: VIC | X32: 8001 | Y32: Hannah Williams | Z32: 03 9683 4088 | AA32: hwilliams@powercor.com.au | AB32: YES | AC32: YES | AD32: NO | AE32: NO | AF32: NO | AH32: CBD | AI32: Urban | AJ32: Short rural | AK32: Long rural | AM32: YES | AN32: CitiPower
B33: Directlink | C33: Directlink | D33: 16779340889 | E33: Qld | F33: Electricity | G33: Transmission | H33: Revenue cap | I33: Financial | J33: June | K33: 9 | L33: 5 | M33: 5 | N33: transmission determination | O33: Level 19, HSBC Building | P33: 580 George Street | Q33: SYDNEY | R33: NSW | S33: 2000 | T33: PO Box R41 | V33: ROYAL EXCHANGE | W33: NSW | X33: 1225 | Y33: Scott Young | Z33: 02 9275 0031 | AA33: scott.young@apa.com.au | AB33: NO | AC33: NO | AD33: NO | AE33: NO | AF33: NO | AH33: CBD | AI33: Urban | AJ33: Short rural | AK33: Long rural | AM33: NO | AN33: Directlink
B34: ElectraNet | C34: ElectraNet | D34: 41094482416 | E34: SA | F34: Electricity | G34: Transmission | H34: Revenue cap | I34: Financial | J34: June | K34: 5 | L34: 5 | M34: 5 | N34: transmission determination | O34: 52-55 East Terrace | P34: Rymill Park | Q34: ADELAIDE | R34: SA | S34: 5000 | T34: PO Box 7096 | U34: Hutt Street Post Office | V34: ADELAIDE | W34: SA | X34: 5000 | Y34: Bill Jackson | Z34: 08 8404 7969 | AA34: jackson.bill@electranet.com.au | AB34: NO | AC34: NO | AD34: NO | AE34: NO | AF34: NO | AH34: CBD | AI34: Urban | AJ34: Short rural | AK34: Long rural | AM34: NO | AN34: ElectraNet
B35: Endeavour Energy | C35: Endeavour Energy | D35: 11247365823 | E35: NSW | F35: Electricity | G35: Distribution | H35: Revenue cap | I35: Financial | J35: June | K35: 5 | L35: 5 | M35: 5 | N35: 2014-19 Distribution Determination | O35: 51 Huntingwood Drive | Q35: HUNTINGWOOD | R35: NSW | S35: 2148 | T35: PO Box 811 | V35: SEVEN HILLS | W35: NSW | X35: 1730 | Y35: Jon Hocking | Z35: 02 9853 4386 / 0407 348 156 | AA35: Jon.Hocking@Endeavourenergy.com.au | AB35: NO | AC35: YES | AD35: YES | AE35: YES | AF35: NO | AH35: CBD | AI35: Urban | AJ35: Short rural | AK35: Long rural | AM35: YES | AN35: Endeavour Energy
B36: Energex | C36: Energex | D36: 40078849055 | E36: Qld | F36: Electricity | G36: Distribution | H36: Revenue cap | I36: Financial | J36: June | K36: 5 | L36: 5 | M36: 5 | N36: 2015-20 Distribution Determination | O36: 26 Reddacliff Street | Q36: NEWSTEAD | R36: Qld | S36: 4006 | T36: 26 Reddacliff Street | V36: NEWSTEAD | W36: QLD | X36: 4006 | Y36: Jenny Doyle, General Manager Regulation and Pricing | Z36: (07) 3851 6416 | AA36: jenny.doyle@energyq.com.au | AB36: YES | AC36: YES | AD36: YES | AE36: NO | AF36: NO | AH36: CBD | AI36: Urban | AJ36: Short rural | AK36: Long rural | AM36: YES | AN36: Energex
B37: Ergon Energy | C37: Ergon Energy | D37: 50087646062 | E37: Qld | F37: Electricity | G37: Distribution | H37: Revenue cap | I37: Financial | J37: June | K37: 5 | L37: 5 | M37: 5 | N37: 2015-20 Distribution Determination | O37: 22 Walker Street | Q37: TOWNSVILLE | R37: Qld | S37: 4810 | T37: Po Box 264 | V37: FORTITUDE VALLEY | W37: QLD | X37: 4006 | Y37: Jenny Doyle, General Manager Regulation and Pricing | Z37: (07) 3851 6416 | AA37: jenny.doyle@energyq.com.au | AB37: NO | AC37: YES | AD37: YES | AE37: YES | AF37: NO | AH37: CBD | AI37: Urban | AJ37: Short rural | AK37: Long rural | AM37: YES | AN37: Ergon Energy
B38: Essential Energy | C38: Essential Energy | D38: 37428185226 | E38: NSW | F38: Electricity | G38: Distribution | H38: Revenue cap | I38: Financial | J38: June | K38: 5 | L38: 5 | M38: 5 | N38: 2014-19 Distribution Determination | O38: 8 Buller Street | Q38: PORT MACQUARIE | R38: NSW | S38: 2444 | T38: PO Box 5730 | V38: PORT MACQUARIE | W38: NSW | X38: 2444 | Y38: Catherine Waddell | Z38: 02 6338 3553 | AA38: catherine.waddell@essentialenergy.com.au | AB38: NO | AC38: NO | AD38: YES | AE38: YES | AF38: NO | AH38: CBD | AI38: Urban | AJ38: Short rural | AK38: Long rural | AM38: YES | AN38: Essential Energy
B39: Jemena Electricity | C39: Jemena Electricity | D39: 82064651083 | E39: Vic | F39: Electricity | G39: Distribution | H39: Revenue cap | I39: Calendar | J39: December | K39: 5 | L39: 5 | M39: 2 | N39: 2016-20 Distribution Determination | O39: Level 16 | P39: 567 Collins Street | Q39: MELBOURNE | R39: VIC | S39: 3000 | T39: PO Box 16182 | V39: MELBOURNE | W39: VIC | X39: 8001 | Y39: Matthew Serpell | Z39: 03 9173 8231 | AA39: matthew.serpell@jemena.com.au | AB39: NO | AC39: YES | AD39: YES | AE39: NO | AF39: NO | AH39: CBD | AI39: Urban | AJ39: Short rural | AK39: Long rural | AM39: YES | AN39: Jemena Electricity
B40: JGN | C40: Jemena Gas Networks (NSW) Ltd | D40: 003 004 322 | E40: NSW | F40: Gas | G40: Distribution | H40: Weighted average price cap | I40: Financial | J40: June | K40: 5 | L40: 5 | Y40: please provide contact details | AB40: NO | AC40: NO | AD40: NO | AE40: NO | AF40: NO | AH40: CBD | AI40: Urban | AJ40: Short rural | AK40: Long rural | AM40: NO | AN40: JGN
B41: Multinet Gas | C41: Multinet Gas (DB No.1) Pty Ltd (ACN 086 026 986), Multinet Gas (DB No.2) Pty Ltd (ACN 086 230 122) | D41: 086026986 | E41: Vic | F41: Gas | G41: Distribution | H41: Weighted average price cap | I41: Calendar | J41: December | K41: 5 | L41: 5 | M41: x | O41: 43-45 Centreway | Q41: MT WAVERLEY | R41: Vic | S41: 3149 | Y41: Andrew Schille | Z41: 03 8846 9860 | AA41: andrew.schille@ue.com.au | AB41: NO | AC41: NO | AD41: NO | AE41: NO | AF41: NO | AH41: CBD | AI41: Urban | AJ41: Short rural | AK41: Long rural | AM41: NO | AN41: Multinet Gas
B42: Murraylink | C42: Murraylink | D42: 79181207909 | E42: SA | F42: Electricity | G42: Transmission | H42: Revenue cap | I42: Financial | J42: June | K42: 5 | L42: 5 | M42: 5 | N42: transmission determination | O42: Level 19 | P42: 580 George Street | Q42: SYDNEY | R42: NSW | S42: 2000 | T42: PO Box R41 | V42: ROYAL EXCHANGE | W42: NSW | X42: 1225 | Y42: Scott Young | Z42: 02 9275 0031 | AA42: scott.young@apa.com.au | AB42: NO | AC42: NO | AD42: NO | AE42: NO | AF42: NO | AH42: CBD | AI42: Urban | AJ42: Short rural | AK42: Long rural | AM42: NO | AN42: Murraylink
B43: Power and Water | C43: Power and Water Corporation | D43: 15947352360 | E43: NT | F43: Electricity | G43: Distribution | H43: Revenue cap | I43: Financial | J43: June | K43: 5 | L43: 5 | M43: x | N43: distribution determination | O43: GPO Box 1921 | Q43: DARWIN | R43: NT | S43: 801 | T43: GPO Box 1921 | V43: DARWIN | W43: NT | X43: 801 | Y43: Lucy Moon | Z43: 08 8924 5822 | AA43: Lucy.Moon@powerwater.com.au | AB43: YES | AC43: YES | AD43: YES | AE43: YES | AF43: NO | AH43: CBD | AI43: Urban | AJ43: Short rural | AK43: Long rural | AM43: NO | AN43: Power and Water
B44: Powercor Australia | C44: Powercor Australia | D44: 89064651109 | E44: Vic | F44: Electricity | G44: Distribution | H44: Revenue cap | I44: Calendar | J44: December | K44: 5 | L44: 5 | M44: 2 | N44: 2016-20 Distribution Determination | O44: 40 Market Street | Q44: MELBOURNE | R44: Vic | S44: 3000 | T44: Locked bag 14090 | V44: MELBOURNE | W44: VIC | X44: 8001 | Y44: Hannah Williams | Z44: 03 9683 4088 | AA44: hwilliams@powercor.com.au | AB44: NO | AC44: NO | AD44: YES | AE44: YES | AF44: NO | AH44: CBD | AI44: Urban | AJ44: Short rural | AK44: Long rural | AM44: YES | AN44: Powercor Australia
B45: Powerlink | C45: Queensland Electricity Transmission Corporation Limited trading as Powerlink Queensland | D45: 82078849233 | E45: Qld | F45: Electricity | G45: Transmission | H45: Revenue cap | I45: Financial | J45: June | K45: 5 | L45: 5 | M45: 5 | N45: transmission determination | O45: 33 Harold St | Q45: VIRGINIA | R45: Qld | S45: 4014 | T45: PO Box 1193 | V45: VIRGINIA | W45: QLD | X45: 4014 | Y45: Jennifer Harris | Z45: 07 3860 2667 | AA45: jharris@powerlink.com.au | AB45: NO | AC45: NO | AD45: NO | AE45: NO | AF45: NO | AH45: CBD | AI45: Urban | AJ45: Short rural | AK45: Long rural | AM45: NO | AN45: Powerlink
B46: Roma to Brisbane Pipeline | C46: APT Petroleum Pipelines Limited t/a Roma to Brisbane Pipeline | D46: 009 737 393 | E46: Qld | F46: Gas | G46: Transmission | H46: Weighted average price cap | I46: Financial | J46: June | K46: 5 | L46: 5 | M46: x | N46: n/a | O46: 580 George Street | Q46: SYDNEY | R46: NSW | S46: 2000 | T46: PO Box R41 | V46: ROYAL EXCHANGE | W46: NSW | X46: 1225 | Y46: Mark Allen | Z46: 02 9275 0010 | AA46: mark.allen@apa.com.au | AB46: NO | AC46: NO | AD46: NO | AE46: NO | AF46: NO | AH46: CBD | AI46: Urban | AJ46: Short rural | AK46: Long rural | AM46: NO | AN46: Roma to Brisbane Pipeline
B47: SA Power Networks | C47: SA Power Networks | D47: 13332330749 | E47: SA | F47: Electricity | G47: Distribution | H47: Revenue cap | I47: Financial | J47: June | K47: 5 | L47: 5 | M47: 5 | N47: 2015-20 Distribution Determination | O47: 1 Anzac Highway | Q47: KESWICK | R47: SA | S47: 5035 | T47: GPO Box 77 | V47: ADELAIDE | W47: SA | X47: 5000 | Y47: Richard Sibly | Z47: 08 8404 5613 | AA47: richard.sibly@sapowernetworks.com.au | AB47: NO | AC47: NO | AD47: YES | AE47: YES | AF47: NO | AH47: CBD | AI47: Urban | AJ47: Short rural | AK47: Long rural | AM47: NO | AN47: SA Power Networks
B48: TasNetworks (D) | C48: TasNetworks (D) | D48: 24167357299 | E48: Tas | F48: Electricity | G48: Distribution | H48: Revenue cap | I48: Financial | J48: June | K48: 5 | L48: 5 | M48: 5 | N48: distribution determination | O48: 1-7 Maria Street | Q48: LENAH VALLEY | R48: Tas | S48: 7008 | T48: PO Box 606 | V48: MOONAH | W48: Tas | X48: 7009 | Y48: John Sayers | Z48: 03 6271 6469 | AA48: john.sayers@tasnetworks.com.au | AB48: YES | AC48: YES | AD48: YES | AE48: YES | AF48: YES | AH48: Critical Infrastructure | AI48: High density commercial | AJ48: Urban | AK48: High density rural | AL48: Low density rural | AM48: YES | AN48: TasNetworks (D)
B49: TasNetworks (T) | C49: TasNetworks (T) | D49: 24167357299 | E49: Tas | F49: Electricity | G49: Transmission | H49: Revenue cap | I49: Financial | J49: June | K49: 5 | L49: 5 | M49: 5 | N49: transmission determination | O49: 1-7 Maria Street | Q49: LENAH VALLEY | R49: Tas | S49: 7008 | T49: PO Box 606 | V49: MOONAH | W49: Tas | X49: 7009 | Y49: John Sayers | Z49: 03 6271 6469 | AA49: john.sayers@tasnetworks.com.au | AB49: NO | AC49: NO | AD49: NO | AE49: NO | AF49: NO | AH49: CBD | AI49: Urban | AJ49: Short rural | AK49: Long rural | AM49: NO | AN49: TasNetworks (T)
B50: TransGrid | C50: NSW Electricity Networks Operations Pty Ltd trading as TransGrid | D50: 70 250 995 390 | E50: NSW | F50: Electricity | G50: Transmission | H50: Revenue cap | I50: Financial | J50: June | K50: 4 | L50: 5 | M50: 5 | N50: transmission determination | O50: 180 Thomas Street | Q50: SYDNEY | R50: NSW | S50: 2000 | T50: PO Box A1000 | V50: SYDNEY SOUTH | W50: NSW | X50: 1235 | Y50: Garrie Chubb | Z50: 0408 210 221 | AA50: garrie.chubb@transgrid.com.au | AB50: NO | AC50: NO | AD50: NO | AE50: NO | AF50: NO | AH50: CBD | AI50: Urban | AJ50: Short rural | AK50: Long rural | AM50: NO | AN50: TransGrid
B51: United Energy | C51: United Energy | D51: 70064651029 | E51: Vic | F51: Electricity | G51: Distribution | H51: Revenue cap | I51: Calendar | J51: December | K51: 5 | L51: 5 | M51: 2 | N51: 2016-20 Distribution Determination | O51: Level 3 | P51: 6 Nexus Court | Q51: MULGRAVE | R51: Vic | S51: 3149 | T51: PO Box 449 | V51: MOUNT WAVERLEY | W51: VIC | X51: 3170 | Y51: Mathew Abraham | Z51: 03 8846 9758 | AA51: mathew.abraham@ue.com.au | AB51: NO | AC51: NO | AD51: YES | AE51: NO | AF51: NO | AH51: CBD | AI51: Urban | AJ51: Short rural | AK51: Long rural | AM51: YES | AN51: United Energy
Z54: For EB & Reset RINs only | AE54: For AARs only
B55: The Reg Year Ending (dms_RYE) must be set to the last year of the regulatory period. For forecast data is is usually (FRCP_y5) for actual it is a single year (CRY). For historical actual data the RYE will need to be set manually in the business details sheet by setting the dms_Multiyear_flag to 1 and putting the correct value in 'dms_Specified_FinalYear. See cells C67:C68 | N55: Drop down selector box for CA & Reset RINs. | O55: For CA & Reset RINs only | Z55: for DNSP only | AE55: For DNSPs only
B56: dms_Model_List | C56: dms_Worksheet_List | E56: dms_RYE_Formula_Result | N56: dms_0203_ProjectType | O56: dms_020303_01_UOM | P56: dms_020501_01_UOM | Q56: dms_020501_02_UOM | R56: dms_020501_03_UOM | S56: dms_020501_04_UOM | T56: dms_020603_01_UOM | U56: dms_020701_01_UOM | V56: dms_020701_02_UOM | W56: dms_020701_01_Rows | X56: dms_040102_01_UOM | Y56: dms_040102_04_UOM | Z56: dms_030601_01_UOM | AA56: dms_030601_02_UOM | AB56: dms_030701_01_UOM | AC56: dms_030702_01_UOM | AD56: dms_030703_01_UOM | AE56: dms_030605_UOM | AF56: dms_03060703_UOM
B57: ARR | C57: ANNUAL REPORTING STATEMENT | E57: =LEFT(dms_SingleYear_FinalYear_Result,2)&RIGHT(dms_SingleYear_FinalYear_Result,2) -> noIN | F57: =LEFT(dms_SingleYear_FinalYear_Result,2)&RIGHT(dms_SingleYear_FinalYear_Result,2) | H57: Formula errors are OK | N57: New line on new route - single circuit | O57: Circuit line length in km | P57: 0's | Q57: 0's | R57: 0's | S57: 0's | T57: 0's | U57: km | V57: km | W57: Route line length within zone | X57: 0's | Y57: days | Z57: minutes/customer | AA57: minutes/customer | AB57: Customer / km | AC57: % | AD57: km | AE57: number | AF57: number
B58: CA | C58: CATEGORY ANALYSIS | E58: =LEFT(dms_SingleYear_FinalYear_Result,2)&RIGHT(dms_SingleYear_FinalYear_Result,2) -> noIN | F58: =LEFT(dms_SingleYear_FinalYear_Result,2)&RIGHT(dms_SingleYear_FinalYear_Result,2) | H58: Formula errors are OK | N58: New line on new route - dual circuit | O58: Circuit line length in km | P58: 0's | Q58: 0's | R58: 0's | S58: 0's | T58: 0's | U58: 0's | V58: 0's | W58: Number of maintenance spans | X58: 0's | Y58: 0's | Z58: minutes/customer | AA58: minutes/customer | AB58: MWh/customer | AC58: Number of spans | AE58: number | AF58: number
B59: CPI | C59: CPI | N59: New line on new route - other | O59: Circuit line length in km | P59: MVA added | Q59: MVA added | R59: MVA added | S59: MVA added | T59: 0's | U59: km | V59: km | W59: Total length of maintenance spans | X59: 0's | Y59: $0s | Z59: interruptions/customer | AA59: interruptions/customer | AB59: kVA / customer | AC59: Number of spans | AE59: number | AF59: number
B60: EB | C60: ECONOMIC BENCHMARKING | E60: =LEFT(dms_SingleYear_FinalYear_Result,2)&RIGHT(dms_SingleYear_FinalYear_Result,2) -> noIN | F60: =LEFT(dms_SingleYear_FinalYear_Result,2)&RIGHT(dms_SingleYear_FinalYear_Result,2) | H60: Formula errors are OK | N60: Line rebuild over existing route - single circuit | O60: Circuit line length in km | P60: 0's | Q60: 0's | R60: 0's | S60: 0's | T60: 0's | U60: km | V60: km | W60: Length of vegetation corridors | X60: $0s | Y60: 0's | Z60: interruptions/customer | AA60: interruptions/customer | AC60: Number of spans | AE60: number | AF60: number
B61: PTRM | C61: POST TAX REVENUE MODEL | E61: =LEFT(dms_MultiYear_FinalYear_Result,2)&RIGHT(dms_MultiYear_FinalYear_Result,2) -> 2025 | F61: =LEFT(dms_MultiYear_FinalYear_Result,2)&RIGHT(dms_MultiYear_FinalYear_Result,2) | N61: Line rebuild over existing route - dual circuit | O61: Number | P61: total spend $0s | Q61: total spend $0s | R61: total spend $0s | S61: total spend $0s | T61: (per cent) | U61: 0's | V61: 0's | W61: Average number of trees per maintenance span | AC61: Number of spans | AE61: number | AF61: (per cent)
B62: Reset | C62: REGULATORY REPORTING STATEMENT | E62: =LEFT(dms_MultiYear_FinalYear_Result,2)&RIGHT(dms_MultiYear_FinalYear_Result,2) -> 2025 | F62: =LEFT(dms_MultiYear_FinalYear_Result,2)&RIGHT(dms_MultiYear_FinalYear_Result,2) | H62: Formula errors are OK | N62: Reconductor - Single circuit | O62: Number | P62: net circuit km added | Q62: net circuit km added | R62: net circuit km added | S62: net circuit km added | U62: years | V62: years | W62: Average frequency of cutting cycle | AC62: Years | AE62: number
B63: RFM | C63: ROLL FORWARD MODEL | E63: =LEFT(dms_CRCP_FinalYear_Result,2)&RIGHT(dms_CRCP_FinalYear_Result,2) -> 2020 | F63: =LEFT(dms_CRCP_FinalYear_Result,2)&RIGHT(dms_CRCP_FinalYear_Result,2) | N63: Reconductor - Dual circuit | O63: Number | P63: total spend $0s | Q63: total spend $0s | R63: total spend $0s | S63: total spend $0s | AC63: Years | AE63: number
B64: WACC | C64: WEIGHTED AVERAGE COST OF CAPITAL | E64: =LEFT(dms_MultiYear_FinalYear_Result,2)&RIGHT(dms_MultiYear_FinalYear_Result,2) -> 2025 | F64: =LEFT(dms_MultiYear_FinalYear_Result,2)&RIGHT(dms_MultiYear_FinalYear_Result,2) | N64: Other | P64: net circuit km added | Q64: net circuit km added | R64: net circuit km added | S64: net circuit km added | AC64: Trees | AE64: number
P65: total spend $0s | Q65: total spend $0s | R65: total spend $0s | S65: total spend $0s | AC65: Trees | AE65: number
B66: dms_DataQuality_List | P66: 0's | R66: $0s | AC66: Defects | AE66: number
B67: Actual | P67: 0's | AC67: Defects | AE67: number
B68: Estimate | P68: 0's | AC68: Spans | AE68: number
B69: Consolidated | P69: $0s | AC69: km | AE69: (per cent)
B70: Recast | AC70: Spans | AE70: (per cent)
B71: Public
B73: For all files either AER or business needs to be able to specify the type of submission | C73: For PTRM & RFM templates we must provide a choice in case they change their form of control - otherwise it is drawn from the business specific lookup table above. | O73: For PTRM files - this field set the text for the named range "DMS_Xfactor" which in all cases is simply the text "x factors" - this saves putting in each old gas PTRM file | Z73: for TNSP only
B74: dms_SourceList | C74: dms_FormControl_Choices | O74: DMS_Xfactor | Z74: dms_030601_01_UOM | AB74: dms_030701_01_UOM | AC74: dms_030702_01_UOM
B75: After appeal | C75: Revenue cap | O75: x factors | Z75: % | AB75: Number of spans | AC75: km
B76: Draft decision | C76: Revenue yield | Z76: number | AB76: Years | AC76: %
B77: Final decision | C77: Weighted average price cap | Z77: number | AB77: Trees | AC77: km
B78: PTRM update 1 | Z78: % | AB78: Defects | AC78: number
B79: PTRM update 2 | Z79: number | AB79: Number of spans
B80: PTRM update 3 | Z80: number | AB80: km
B81: PTRM update 4 | Z81: % | AB81: km
B82: PTRM update 5 | Z82: number | AB82: Number of spans
B83: PTRM update 6 | Z83: number
B84: PTRM update 7 | Z84: %
B85: Regulatory proposal | Z85: number
B86: Reporting | Z86: %
B87: Revised regulatory proposal | Z87: number
Z88: %
Z89: number
B93: Reason for interruption | C93: dms_Reason_Interruption_Detailed | D93: dms_Reason_Interruption | E93: dms_STPIS_Exclusion_List | F93: dms_020301_ProjectType_List | G93: dms_020302_ProjectType_List
B94: Animal | C94: Animal impact | D94: Animal | E94: Weather | F94: New substation establishment | G94: New line on new route - single circuit
C95: Animal nesting/burrowing, etc and other | D95: Asset failure | E95: Equipment failure | F95: Capacity upgrade | G95: New line on new route - dual circuit
C96: Other | D96: Other | E96: Operational error | F96: Voltage upgrade | G96: New line on new route - other
B97: Asset failure | C97: LV | D97: Overloads | E97: Vegetation | F97: Other | G97: Line rebuild over existing route - single circuit
C98: Distribution substation | D98: Planned | E98: Animals | G98: Line rebuild over existing route - dual circuit
C99: HV | D99: Network business | E99: Third party impacts | G99: Reconductor - Single circuit
C100: Zone substation | D100: Third party | E100: Transmission failure | G100: Reconductor - Dual circuit
C101: Subtransmission | D101: Unknown | E101: Load shedding | G101: Reconductor - Other
B102: Other | C102: insert description of 'other' | D102: Vegetation | E102: Inter-distributor connection failure | G102: Line upgrade - raising/retensoring
B103: Overloads | C103: - | D103: Weather | E103: Other | G103: Line upgrade - voltage upgrade
B104: Planned | C104: - | D104: 2 - STPIS Exclusion (3.3)(a) | G104: Line upgrade - capacity
B105: Network business | C105: Network error | D105: 3 - STPIS Exclusion (3.3)(a) | G105: String spare circuit
C106: Switching and protection error | D106: 4 - STPIS Exclusion (3.3)(a) | G106: Other
B107: Third party | C107: Fire | D107: 5 - STPIS Exclusion (3.3)(a)
C108: Other | D108: 6 - STPIS Exclusion (3.3)(a)
C109: Dig-in | D109: 7 - STPIS Exclusion (3.3)(a)
C110: Unauthorised access
C111: Vehicle impact
B112: Unknown | C112: Unknown
B113: Vegetation | C113: Blow-in/Fall-in - NSP responsibility
C114: Grow-in - NSP responsibility
C115: Blow-in/Fall-in - Other responsible party
C116: Grow-in - Other responsible party
B117: Weather
B118: 2 - STPIS Exclusion (3.3)(a)
B119: 3 - STPIS Exclusion (3.3)(a)
B120: 4 - STPIS Exclusion (3.3)(a)
B121: 5 - STPIS Exclusion (3.3)(a)
B122: 6 - STPIS Exclusion (3.3)(a)
B123: 7 - STPIS Exclusion (3.3)(a)
B131: These are indeces and lookup values for various dates. All step from the value placed in FRCP_y1 on the business and other details worksheet | C131: =IF(dms_FifthFeeder_flag_NSP="NO","This NSP has only 4 feeder categories","This NSP has 5 feeder categories") -> This NSP has only 4 feeder categories | O131: These date tables are currently used in the Recast templates to provide column headings and conditional formatting
B132: dms_FRCPlength_Num_List | C132: dms_FinalYear_List | D132: dms_CRCPlength_Num_List | E132: dms_CFinalYear_List | F132: dms_FRCP_years | H132: dms_CRCP_years | J132: dms_CRCP_index | L132: These are static values for cut / paste purposes only | O132: CRY from input cell on business sheet | P132: CRY - financial | Q132: dms_FinYears | R132: CRY calendar | S132: dms_CalYears
B133: 1 | C133: dms_FRCP_y1 | D133: 1 | E133: CRCP_y1 | F133: =FRCP_y1 -> 2020-21 | G133: dms_FRCP_y1 | H133: =IF(dms_RPT="financial",VALUE(LEFT(dms_FRCP_y1,4)-1)&"-"&TEXT(VALUE(MID(dms_FRCP_y1,3,2)),"00"),VALUE(LEFT(dms_FRCP_y1,4)-1)) -> 2019-20 | I133: dms_CRCP_yZ | J133: 1 | L133: 2005-06 | M133: 2006 | O133: ='Business & other details'!C48 -> 2018-19 | P133: =VALUE(LEFT(CRY,4))&"-"&TEXT(MID(CRY,3,2)+1,"00") -> 2018-19 | Q133: dms_CRYf_y1 | R133: =VALUE(LEFT(CRY,4)+1) -> 2019 | S133: dms_CRYc_y1
B134: 2 | C134: dms_FRCP_y2 | D134: 2 | E134: CRCP_y2 | F134: =IF(dms_RPT="financial",VALUE(LEFT(dms_FRCP_y1,4)+1)&"-"&TEXT(VALUE(RIGHT(dms_FRCP_y1,2)+1),"00"),VALUE(LEFT(dms_FRCP_y1,4)+1)) -> 2021-22 | G134: dms_FRCP_y2 | H134: =IF(dms_RPT="financial",VALUE(LEFT(dms_CRCP_yZ,4)-1)&"-"&TEXT(VALUE(MID(dms_CRCP_yZ,3,2)),"00"),VALUE(LEFT(dms_CRCP_yZ,4)-1)) -> 2018-19 | I134: dms_CRCP_yY | J134: 2 | L134: 2006-07 | M134: 2007 | P134: =VALUE(LEFT(dms_CRYf_y1,4)+1)&"-"&TEXT(MID(dms_CRYf_y1,3,2)+2,"00") -> 2019-20 | Q134: dms_CRYf_y2 | R134: =VALUE(LEFT(dms_CRYc_y1,4)+1) -> 2020 | S134: dms_CRYc_y2
B135: 3 | C135: dms_FRCP_y3 | D135: 3 | E135: CRCP_y3 | F135: =IF(dms_RPT="financial",VALUE(LEFT(dms_FRCP_y2,4)+1)&"-"&TEXT(VALUE(RIGHT(dms_FRCP_y2,2)+1),"00"),VALUE(LEFT(dms_FRCP_y2,4)+1)) -> 2022-23 | G135: dms_FRCP_y3 | H135: =IF(dms_RPT="financial",VALUE(LEFT(dms_CRCP_yY,4)-1)&"-"&TEXT(VALUE(MID(dms_CRCP_yY,3,2)),"00"),VALUE(LEFT(dms_CRCP_yY,4)-1)) -> 2017-18 | I135: dms_CRCP_yX | J135: 3 | L135: 2007-08 | M135: 2008 | P135: =VALUE(LEFT(dms_CRYf_y2,4)+1)&"-"&TEXT(MID(dms_CRYf_y2,3,2)+2,"00") -> 2020-21 | Q135: dms_CRYf_y3 | R135: =VALUE(LEFT(dms_CRYc_y2,4)+1) -> 2021 | S135: dms_CRYc_y3
B136: 4 | C136: dms_FRCP_y4 | D136: 4 | E136: CRCP_y4 | F136: =IF(dms_RPT="financial",VALUE(LEFT(dms_FRCP_y3,4)+1)&"-"&TEXT(VALUE(RIGHT(dms_FRCP_y3,2)+1),"00"),VALUE(LEFT(dms_FRCP_y3,4)+1)) -> 2023-24 | G136: dms_FRCP_y4 | H136: =IF(dms_RPT="financial",VALUE(LEFT(dms_CRCP_yX,4)-1)&"-"&TEXT(VALUE(MID(dms_CRCP_yX,3,2)),"00"),VALUE(LEFT(dms_CRCP_yX,4)-1)) -> 2016-17 | I136: dms_CRCP_yW | J136: 4 | L136: 2008-09 | M136: 2009 | P136: =VALUE(LEFT(dms_CRYf_y3,4)+1)&"-"&TEXT(MID(dms_CRYf_y3,3,2)+2,"00") -> 2021-22 | Q136: dms_CRYf_y4 | R136: =VALUE(LEFT(dms_CRYc_y3,4)+1) -> 2022 | S136: dms_CRYc_y4
B137: 5 | C137: dms_FRCP_y5 | D137: 5 | E137: CRCP_y5 | F137: =IF(dms_RPT="financial",VALUE(LEFT(dms_FRCP_y4,4)+1)&"-"&TEXT(VALUE(RIGHT(dms_FRCP_y4,2)+1),"00"),VALUE(LEFT(dms_FRCP_y4,4)+1)) -> 2024-25 | G137: dms_FRCP_y5 | H137: =IF(dms_RPT="financial",VALUE(LEFT(dms_CRCP_yW,4)-1)&"-"&TEXT(VALUE(MID(dms_CRCP_yW,3,2)),"00"),VALUE(LEFT(dms_CRCP_yW,4)-1)) -> 2015-16 | I137: dms_CRCP_yV | J137: 5 | L137: 2009-10 | M137: 2010 | P137: =VALUE(LEFT(dms_CRYf_y4,4)+1)&"-"&TEXT(MID(dms_CRYf_y4,3,2)+2,"00") -> 2022-23 | Q137: dms_CRYf_y5 | R137: =VALUE(LEFT(dms_CRYc_y4,4)+1) -> 2023 | S137: dms_CRYc_y5
B138: 6 | C138: dms_FRCP_y6 | D138: 6 | E138: CRCP_y6 | F138: =IF(dms_RPT="financial",VALUE(LEFT(dms_FRCP_y5,4)+1)&"-"&TEXT(VALUE(RIGHT(dms_FRCP_y5,2)+1),"00"),VALUE(LEFT(dms_FRCP_y5,4)+1)) -> 2025-26 | G138: dms_FRCP_y6 | H138: =IF(dms_RPT="financial",VALUE(LEFT(dms_CRCP_yV,4)-1)&"-"&TEXT(VALUE(MID(dms_CRCP_yV,3,2)),"00"),VALUE(LEFT(dms_CRCP_yV,4)-1)) -> 2014-15 | I138: dms_CRCP_yU | J138: 6 | L138: 2010-11 | M138: 2011 | P138: =VALUE(LEFT(dms_CRYf_y5,4)+1)&"-"&TEXT(MID(dms_CRYf_y5,3,2)+2,"00") -> 2023-24 | Q138: dms_CRYf_y6 | R138: =VALUE(LEFT(dms_CRYc_y5,4)+1) -> 2024 | S138: dms_CRYc_y6
B139: 7 | C139: dms_FRCP_y7 | D139: 7 | E139: CRCP_y7 | F139: =IF(dms_RPT="financial",VALUE(LEFT(dms_FRCP_y6,4)+1)&"-"&TEXT(VALUE(RIGHT(dms_FRCP_y6,2)+1),"00"),VALUE(LEFT(dms_FRCP_y6,4)+1)) -> 2026-27 | G139: dms_FRCP_y7 | H139: =IF(dms_RPT="financial",VALUE(LEFT(dms_CRCP_yU,4)-1)&"-"&TEXT(VALUE(MID(dms_CRCP_yU,3,2)),"00"),VALUE(LEFT(dms_CRCP_yU,4)-1)) -> 2013-14 | I139: dms_CRCP_yT | J139: 7 | L139: 2011-12 | M139: 2012 | P139: =VALUE(LEFT(dms_CRYf_y6,4)+1)&"-"&TEXT(MID(dms_CRYf_y6,3,2)+2,"00") -> 2024-25 | Q139: dms_CRYf_y7 | R139: =VALUE(LEFT(dms_CRYc_y6,4)+1) -> 2025 | S139: dms_CRYc_y7
B140: 8 | C140: dms_FRCP_y8 | D140: 8 | E140: CRCP_y8 | F140: =IF(dms_RPT="financial",VALUE(LEFT(dms_FRCP_y7,4)+1)&"-"&TEXT(VALUE(RIGHT(dms_FRCP_y7,2)+1),"00"),VALUE(LEFT(dms_FRCP_y7,4)+1)) -> 2027-28 | G140: dms_FRCP_y8 | H140: =IF(dms_RPT="financial",VALUE(LEFT(dms_CRCP_yT,4)-1)&"-"&TEXT(VALUE(MID(dms_CRCP_yT,3,2)),"00"),VALUE(LEFT(dms_CRCP_yT,4)-1)) -> 2012-13 | I140: dms_CRCP_yS | J140: 8 | L140: 2012-13 | M140: 2013 | P140: =VALUE(LEFT(dms_CRYf_y7,4)+1)&"-"&TEXT(MID(dms_CRYf_y7,3,2)+2,"00") -> 2025-26 | Q140: dms_CRYf_y8 | R140: =VALUE(LEFT(dms_CRYc_y7,4)+1) -> 2026 | S140: dms_CRYc_y8
B141: 9 | C141: dms_FRCP_y9 | D141: 9 | E141: CRCP_y9 | F141: =IF(dms_RPT="financial",VALUE(LEFT(dms_FRCP_y8,4)+1)&"-"&TEXT(VALUE(RIGHT(dms_FRCP_y8,2)+1),"00"),VALUE(LEFT(dms_FRCP_y8,4)+1)) -> 2028-29 | G141: dms_FRCP_y9 | H141: =IF(dms_RPT="financial",VALUE(LEFT(dms_CRCP_yS,4)-1)&"-"&TEXT(VALUE(MID(dms_CRCP_yS,3,2)),"00"),VALUE(LEFT(dms_CRCP_yS,4)-1)) -> 2011-12 | I141: dms_CRCP_yR | J141: 9 | L141: 2013-14 | M141: 2014 | P141: =VALUE(LEFT(dms_CRYf_y8,4)+1)&"-"&TEXT(MID(dms_CRYf_y8,3,2)+2,"00") -> 2026-27 | Q141: dms_CRYf_y9 | R141: =VALUE(LEFT(dms_CRYc_y8,4)+1) -> 2027 | S141: dms_CRYc_y9
B142: 10 | C142: dms_FRCP_y10 | D142: 10 | E142: CRCP_y10 | F142: =IF(dms_RPT="financial",VALUE(LEFT(dms_FRCP_y9,4)+1)&"-"&TEXT(VALUE(RIGHT(dms_FRCP_y9,2)+1),"00"),VALUE(LEFT(dms_FRCP_y9,4)+1)) -> 2029-30 | G142: dms_FRCP_y10 | H142: =IF(dms_RPT="financial",VALUE(LEFT(dms_CRCP_yR,4)-1)&"-"&TEXT(VALUE(MID(dms_CRCP_yR,3,2)),"00"),VALUE(LEFT(dms_CRCP_yR,4)-1)) -> 2010-11 | I142: dms_CRCP_yQ | J142: 10 | L142: 2014-15 | M142: 2015 | P142: =VALUE(LEFT(dms_CRYf_y9,4)+1)&"-"&TEXT(MID(dms_CRYf_y9,3,2)+2,"00") -> 2027-28 | Q142: dms_CRYf_y10 | R142: =VALUE(LEFT(dms_CRYc_y9,4)+1) -> 2028 | S142: dms_CRYc_y10
B143: 11 | C143: dms_FRCP_y11 | D143: 11 | E143: CRCP_y11 | F143: =IF(dms_RPT="financial",VALUE(LEFT(dms_FRCP_y10,4)+1)&"-"&TEXT(VALUE(RIGHT(dms_FRCP_y10,2)+1),"00"),VALUE(LEFT(dms_FRCP_y10,4)+1)) -> 2030-31 | G143: dms_FRCP_y11 | H143: =IF(dms_RPT="financial",VALUE(LEFT(dms_CRCP_yQ,4)-1)&"-"&TEXT(VALUE(MID(dms_CRCP_yQ,3,2)),"00"),VALUE(LEFT(dms_CRCP_yQ,4)-1)) -> 2009-10 | I143: dms_CRCP_yP | J143: 11 | L143: 2015-16 | M143: 2016 | P143: =VALUE(LEFT(dms_CRYf_y10,4)+1)&"-"&TEXT(MID(dms_CRYf_y10,3,2)+2,"00") -> 2028-29 | Q143: dms_CRYf_y11 | R143: =VALUE(LEFT(dms_CRYc_y10,4)+1) -> 2029 | S143: dms_CRYc_y11
B144: 12 | C144: dms_FRCP_y12 | D144: 12 | E144: CRCP_y12 | F144: =IF(dms_RPT="financial",VALUE(LEFT(dms_FRCP_y11,4)+1)&"-"&TEXT(VALUE(RIGHT(dms_FRCP_y11,2)+1),"00"),VALUE(LEFT(dms_FRCP_y11,4)+1)) -> 2031-32 | G144: dms_FRCP_y12 | H144: =IF(dms_RPT="financial",VALUE(LEFT(dms_CRCP_yP,4)-1)&"-"&TEXT(VALUE(MID(dms_CRCP_yP,3,2)),"00"),VALUE(LEFT(dms_CRCP_yP,4)-1)) -> 2008-09 | I144: dms_CRCP_yO | J144: 12 | L144: 2016-17 | M144: 2017 | P144: =VALUE(LEFT(dms_CRYf_y11,4)+1)&"-"&TEXT(MID(dms_CRYf_y11,3,2)+2,"00") -> 2029-30 | Q144: dms_CRYf_y12 | R144: =VALUE(LEFT(dms_CRYc_y11,4)+1) -> 2030 | S144: dms_CRYc_y12
B145: 13 | C145: dms_FRCP_y13 | D145: 13 | E145: CRCP_y13 | F145: =IF(dms_RPT="financial",VALUE(LEFT(dms_FRCP_y12,4)+1)&"-"&TEXT(VALUE(RIGHT(dms_FRCP_y12,2)+1),"00"),VALUE(LEFT(dms_FRCP_y12,4)+1)) -> 2032-33 | G145: dms_FRCP_y13 | H145: =IF(dms_RPT="financial",VALUE(LEFT(dms_CRCP_yO,4)-1)&"-"&TEXT(VALUE(MID(dms_CRCP_yO,3,2)),"00"),VALUE(LEFT(dms_CRCP_yO,4)-1)) -> 2007-08 | I145: dms_CRCP_yN | J145: 13 | L145: 2017-18 | M145: 2018 | P145: =VALUE(LEFT(dms_CRYf_y12,4)+1)&"-"&TEXT(MID(dms_CRYf_y12,3,2)+2,"00") -> 2030-31 | Q145: dms_CRYf_y13 | R145: =VALUE(LEFT(dms_CRYc_y12,4)+1) -> 2031 | S145: dms_CRYc_y13
B146: 14 | C146: dms_FRCP_y14 | D146: 14 | E146: CRCP_y14 | F146: =IF(dms_RPT="financial",VALUE(LEFT(dms_FRCP_y13,4)+1)&"-"&TEXT(VALUE(RIGHT(dms_FRCP_y13,2)+1),"00"),VALUE(LEFT(dms_FRCP_y13,4)+1)) -> 2033-34 | G146: dms_FRCP_y14 | H146: =IF(dms_RPT="financial",VALUE(LEFT(dms_CRCP_yN,4)-1)&"-"&TEXT(VALUE(MID(dms_CRCP_yN,3,2)),"00"),VALUE(LEFT(dms_CRCP_yN,4)-1)) -> 2006-07 | I146: dms_CRCP_yM | J146: 14 | L146: 2018-19 | M146: 2019 | P146: =VALUE(LEFT(dms_CRYf_y13,4)+1)&"-"&TEXT(MID(dms_CRYf_y13,3,2)+2,"00") -> 2031-32 | Q146: dms_CRYf_y14 | R146: =VALUE(LEFT(dms_CRYc_y13,4)+1) -> 2032 | S146: dms_CRYc_y14
B147: 15 | C147: dms_FRCP_y15 | D147: 15 | E147: CRCP_y15 | F147: =IF(dms_RPT="financial",VALUE(LEFT(dms_FRCP_y14,4)+1)&"-"&TEXT(VALUE(RIGHT(dms_FRCP_y14,2)+1),"00"),VALUE(LEFT(dms_FRCP_y14,4)+1)) -> 2034-35 | G147: dms_FRCP_y15 | H147: =IF(dms_RPT="financial",VALUE(LEFT(dms_CRCP_yM,4)-1)&"-"&TEXT(VALUE(MID(dms_CRCP_yM,3,2)),"00"),VALUE(LEFT(dms_CRCP_yM,4)-1)) -> 2005-06 | I147: dms_CRCP_yL | J147: 15 | L147: 2019-20 | M147: 2020 | P147: =VALUE(LEFT(dms_CRYf_y14,4)+1)&"-"&TEXT(MID(dms_CRYf_y14,3,2)+2,"00") -> 2032-33 | Q147: dms_CRYf_y15 | R147: =VALUE(LEFT(dms_CRYc_y14,4)+1) -> 2033 | S147: dms_CRYc_y15
L148: 2020-21 | M148: 2021 | P148: =VALUE(LEFT(dms_CRYf_y15,4)+1)&"-"&TEXT(MID(dms_CRYf_y15,3,2)+2,"00") -> 2033-34 | Q148: dms_CRYf_y16 | R148: =VALUE(LEFT(dms_CRYc_y15,4)+1) -> 2034 | S148: dms_CRYc_y16
B149: These are drop down lists for businesses to select the correct FRCP_y1 on the business and other details worksheet. This also populates the column headings in the worksheets | L149: 2021-22 | M149: 2022 | P149: =VALUE(LEFT(dms_CRYf_y16,4)+1)&"-"&TEXT(MID(dms_CRYf_y16,3,2)+2,"00") -> 2034-35 | Q149: dms_CRYf_y17 | R149: =VALUE(LEFT(dms_CRYc_y16,4)+1) -> 2035 | S149: dms_CRYc_y17
B150: dms_RCP_fyear_list | C150: dms_CRY_ListF | D150: dms_CRY_ListC | E150: dms_RCP_cyear_list | F150: dms_FRCP_fyear_list | G150: dms_FRCP_ListF | H150: dms_FRCP_ListC | I150: dms_FRCP_cyear_list | L150: 2022-23 | M150: 2023 | P150: =VALUE(LEFT(dms_CRYf_y17,4)+1)&"-"&TEXT(MID(dms_CRYf_y17,3,2)+2,"00") -> 2035-36 | Q150: dms_CRYf_y18 | R150: =VALUE(LEFT(dms_CRYc_y17,4)+1) -> 2036 | S150: dms_CRYc_y18
B151: dms_fy1 | C151: 2005-06 | D151: 2006 | E151: dms_cy1 | F151: dms_frcp_fy1 | G151: 2010-11 | H151: 2011 | I151: dms_crcp_cy1 | L151: 2023-24 | M151: 2024 | P151: =VALUE(LEFT(dms_CRYf_y18,4)+1)&"-"&TEXT(MID(dms_CRYf_y18,3,2)+2,"00") -> 2036-37 | Q151: dms_CRYf_y19 | R151: =VALUE(LEFT(dms_CRYc_y18,4)+1) -> 2037 | S151: dms_CRYc_y19
B152: dms_fy2 | C152: 2006-07 | D152: 2007 | E152: dms_cy2 | F152: dms_frcp_fy2 | G152: 2011-12 | H152: 2012 | I152: dms_crcp_cy2 | L152: 2024-25 | M152: 2025 | P152: =VALUE(LEFT(dms_CRYf_y19,4)+1)&"-"&TEXT(MID(dms_CRYf_y19,3,2)+2,"00") -> 2037-38 | Q152: dms_CRYf_y20 | R152: =VALUE(LEFT(dms_CRYc_y19,4)+1) -> 2038 | S152: dms_CRYc_y20
B153: dms_fy3 | C153: 2007-08 | D153: 2008 | E153: dms_cy3 | F153: dms_frcp_fy3 | G153: 2012-13 | H153: 2013 | I153: dms_crcp_cy3 | L153: 2025-26 | M153: 2026
B154: dms_fy4 | C154: 2008-09 | D154: 2009 | E154: dms_cy4 | F154: dms_frcp_fy4 | G154: 2013-14 | H154: 2014 | I154: dms_crcp_cy4 | L154: 2026-27 | M154: 2027
B155: dms_fy5 | C155: 2009-10 | D155: 2010 | E155: dms_cy5 | F155: dms_frcp_fy5 | G155: 2014-15 | H155: 2015 | I155: dms_crcp_cy5 | L155: 2027-28 | M155: 2028
B156: dms_fy6 | C156: 2010-11 | D156: 2011 | E156: dms_cy6 | F156: dms_frcp_fy6 | G156: 2015-16 | H156: 2016 | I156: dms_crcp_cy6 | L156: 2028-29 | M156: 2029
B157: dms_fy7 | C157: 2011-12 | D157: 2012 | E157: dms_cy7 | F157: dms_frcp_fy7 | G157: 2016-17 | H157: 2017 | I157: dms_crcp_cy7 | L157: 2029-30 | M157: 2030
B158: dms_fy8 | C158: 2012-13 | D158: 2013 | E158: dms_cy8 | F158: dms_frcp_fy8 | G158: 2017-18 | H158: 2018 | I158: dms_crcp_cy8 | L158: 2030-31 | M158: 2031
B159: dms_fy9 | C159: 2013-14 | D159: 2014 | E159: dms_cy9 | F159: dms_frcp_fy9 | G159: 2018-19 | H159: 2019 | I159: dms_crcp_cy9 | L159: 2031-32 | M159: 2032
B160: dms_fy10 | C160: 2014-15 | D160: 2015 | E160: dms_cy10 | F160: dms_frcp_fy10 | G160: 2019-20 | H160: 2020 | I160: dms_crcp_cy10 | L160: 2032-33 | M160: 2033
B161: dms_fy11 | C161: 2015-16 | D161: 2016 | E161: dms_cy11 | F161: dms_frcp_fy11 | G161: 2020-21 | H161: 2021 | I161: dms_crcp_cy11 | L161: 2033-34 | M161: 2034
B162: dms_fy12 | C162: 2016-17 | D162: 2017 | E162: dms_cy12 | F162: dms_frcp_fy12 | G162: 2021-22 | H162: 2022 | I162: dms_crcp_cy12 | L162: 2034-35 | M162: 2035
B163: dms_fy13 | C163: 2017-18 | D163: 2018 | E163: dms_cy13 | F163: dms_frcp_fy13 | G163: 2022-23 | H163: 2023 | I163: dms_crcp_cy13 | L163: 2035-36 | M163: 2036
B164: dms_fy14 | C164: 2018-19 | D164: 2019 | E164: dms_cy14 | F164: dms_frcp_fy14 | G164: 2023-24 | H164: 2024 | I164: dms_crcp_cy14
B165: dms_fy15 | C165: 2019-20 | D165: 2020 | E165: dms_cy15 | F165: dms_frcp_fy15 | G165: 2024-25 | H165: 2025 | I165: dms_crcp_cy15
B166: dms_fy16 | C166: 2020-21 | D166: 2021 | E166: dms_cy16
B167: dms_fy17 | C167: 2021-22 | D167: 2022 | E167: dms_cy17
B168: dms_fy18 | C168: 2022-23 | D168: 2023 | E168: dms_cy18
B169: dms_fy19 | C169: 2023-24 | D169: 2024 | E169: dms_cy19
B170: dms_fy20 | C170: 2024-25 | D170: 2025 | E170: dms_cy20
B176: These "row descriptions" are the column headings in the various templates but become row descriptions in the ETL process
C177: Table 6.3 sustained interruptions - row descriptions
C178: dms_060301_CustNo_Affected_Row | D178: dms_060301_Avg_Duration_Sustained_Int_Row | E178: dms_060301_Effect_unplanned_SAIDI_Row | F178: dms_060301_Effect_unplanned_SAIFI_Row
C179: Number of customers affected by the interruption | D179: Average duration of sustained customer interruption | E179: Effect on unplanned SAIDI | F179: Effect on unplanned SAIFI
C183: Table 6.1 telephone answering - row descriptions and start date
C184: dms_060101_Rows | D184: dms_060102_Rows | E184: dms_060101_StartDateTxt
C185: Total number of calls (after removing excluded events) | D185: Number of calls answered within 30 seconds (after excluding excluded events) | E185: =dms_060701_StartDateTxt -> 1-Jul-2018
H189: dms_0603_FeederList | I189: =INDEX(dms_FeederName_1,MATCH(dms_TradingName,dms_TradingName_List)) -> CBD | J189: =INDEX(dms_FeederName_2,MATCH(dms_TradingName,dms_TradingName_List)) -> Urban | K189: =INDEX(dms_FeederName_3,MATCH(dms_TradingName,dms_TradingName_List)) -> Short rural | L189: =INDEX(dms_FeederName_4,MATCH(dms_TradingName,dms_TradingName_List)) -> Long rural
C190: Table 6.7.1 - daily performance data - unplanned - MAIFI -- row descriptions and header named range values
C191: These headings (Lists) are determined from the INDEX/MATCH function on the NSP selected on the Business & other details sheet
B192: dms_060701_Feeder_Header_Lvl4 | C192: =INDEX(dms_FeederName_1,MATCH(dms_TradingName,dms_TradingName_List)) -> CBD | D192: =INDEX(dms_FeederName_1,MATCH(dms_TradingName,dms_TradingName_List)) -> CBD | E192: =INDEX(dms_FeederName_2,MATCH(dms_TradingName,dms_TradingName_List)) -> Urban | F192: =INDEX(dms_FeederName_2,MATCH(dms_TradingName,dms_TradingName_List)) -> Urban | G192: =INDEX(dms_FeederName_3,MATCH(dms_TradingName,dms_TradingName_List)) -> Short rural | H192: =INDEX(dms_FeederName_3,MATCH(dms_TradingName,dms_TradingName_List)) -> Short rural | I192: =INDEX(dms_FeederName_4,MATCH(dms_TradingName,dms_TradingName_List)) -> Long rural | J192: =INDEX(dms_FeederName_4,MATCH(dms_TradingName,dms_TradingName_List)) -> Long rural | K192: =IF((INDEX(dms_FeederName_5,MATCH(dms_TradingName,dms_TradingName_List))=0),"Network",(INDEX(dms_FeederName_5,MATCH(dms_TradingName,dms_TradingName_List)))) -> Network | L192: =IF((INDEX(dms_FeederName_5,MATCH(dms_TradingName,dms_TradingName_List))=0),"Network",(INDEX(dms_FeederName_5,MATCH(dms_TradingName,dms_TradingName_List)))) -> Network | M192: Network | N192: Network
B194: dms_060701_Rows | C194: All events | D194: After removing excluded events | E194: All events | F194: After removing excluded events | G194: All events | H194: After removing excluded events | I194: All events | J194: After removing excluded events | K194: All events | L194: After removing excluded events | M194: All events | N194: After removing excluded events
C195: the number of column headings changes from 10 to 12 depending on the number of feeder categories for the NSP
C200: Table 6.8.1 - row descriptions
C201: dms_060801_01_Rows | D201: dms_060801_02_Rows | E201: dms_060801_03_Rows | F201: dms_060801_04_Rows
C202: Number of interruptions | D202: Duration of interruptions | E202: Total unplanned minutes off supply | F202: Effect on unplanned MAIFI
C207: Table 7.9.4 - market impact component - row descriptions
B208: dms_070904_01_Rows | C208: without exclusions | D208: with exclusions
C214: Use this to add to existing files
C215: ARRs 6.7 STPIS daily performance
C216: dms_060101_Values | D216: dms_060102_Values | E216: dms_060701_Values
C218: ARR's 6.8 STPIS exclusions
C219: dms_060801_Event_Date | D219: dms_060801_OutageID | E219: dms_060801_FeederID | F219: dms_060801_FeederClass | G219: dms_060801_CauseID | H219: dms_060801_01_Values | I219: dms_060801_02_Values | J219: dms_060801_03_Values | K219: dms_060801_Excl_Cat | L219: dms_060801_04_Values
C220: dms_060801_StartCell
C222: CA 6.3 sustained interruptions
C223: dms_060301_Event_Date | D223: dms_060301_Event_Time | E223: dms_060301_AssetID | F223: dms_060301_FeederClass | G223: dms_060301_Reason | H223: dms_060301_DetailedReason | I223: dms_060301_CustNo_Affected_Values | J223: dms_060301_Avg_Duration_Sustained_Int_Values | K223: dms_060301_Effect_unplanned_SAIDI_Values | L223: dms_060301_Effect_unplanned_SAIFI_Values | M223: dms_060301_MED

Sheet Contents
B1: =SheetHeader -> REGULATORY REPORTING STATEMENT
B2: =dms_TradingName -> SA Power Networks
B3: =CONCATENATE(FRCP_y1," to ",FRCP_y5) -> 2020-21 to 2024-25
B4: CONTENTS
E7: 1. Business and other details | L7: 2. Expenditure | S7: 3. Economic benchmarking
E27: 4. Alternative control services | L27: 5. Network information | S27: 6. Service & quality
E34: 7. Other templates

Sheet Instructions
B2: =CONCATENATE(dms_Segment," Network Service Provider") -> Distribution Network Service Provider
B3: =IF(dms_Model="Reset","Regulatory Proposal RIN Template","Annual Reporting RIN") -> Regulatory Proposal RIN Template
C4: =CONCATENATE("This template is to be used by ",dms_TradingName," to fulfil its reporting obligations to the AER.") -> This template is to be used by SA Power Networks to fulfil its reporting obligations to the AER.
C5: INSTRUCTIONS
C6: Complete the Business & other details worksheet before entering data or values in any other worksheets. The Business & other details worksheet is linked to other worksheets within the workbook and automatically generates certain column headings and conditional formatting.
C8: Identifying CONFIDENTIAL INFORMATION: Please use the macro at the top of each worksheet to identify confidential information. See Returning completed responses below, for how to deal with confidential and public information.
C9: -Do this by selecting the cell or cells that contain confidential information and then run the Mark selected cells as CONFIDENTIAL macro. This will format the cells a specific colour that is identified by the AER's database which in turn marks that information as confidential. -To reverse this, select the cell or cells and run the Return cells to NON-CONFIDENTIAL macro.
C11: UNITS OF MEASURE All amounts are to be unrounded and reported on a one for one basis: that is 1000 is to be entered as '1000'. Applicable units of measure may be identified in the table column headings or row descriptors.
C13: COLOUR CODING OF INPUT / NON-INPUT CELLS:
D14: Yellow = Input cell (mandatory)
D15: Darker yellow = input cell (mandatory)
D16: Orange = input cell (if data available)
D17: Grey = Not applicable/No inputs required
D18: PLEASE DO NOT ENTER TEXT into cells that are to contain numeric data.
C21: WORKSHEET NAVIGATION Many tables in the worksheets have been "grouped" to allow for easy navigation. To ungroup or group data use the outline symbols in the left margin (for Row groupings) or above the columns (for column groupings).
C23: RETURNING COMPLETED RESPONSES Please return two (2) files to the AER: 1. A confidential version which must contain a complete set of all responses with confidential information marked using the Mark selection CONFIDENTIAL macro and which has been completed using the locked template file provided by the AER. 2. A public version with confidential information either removed completely or aggregated in some form together with writtten consent to disclose the public version of the response. Use the drop down box on the Business and other details worksheet to identify the file as either confidential ('consolidated') or public.
C25: SUBMITTING AMENDED DATA TO THE AER If an NSP wishes to correct data previously submitted to the AER it should resubmit that data using the original completed submission as the starting point. Please make any necessary changes to the data. Data that is not being amended should be left unchanged. NSPs must identify the reason for the amendments in the Amendment Reason box on the Business and other details worksheet. NSPs may provide further details regarding any amendments in the Amendments worksheet. .
C26: NSP may use Amended Data macro to highlight cells that contain amended data. NB: if data is also CONFIDENTIAL, re-apply the Confidentiality macro after applying the Amended macro
C27: Please resubmit two (2) files - a confidential version and a public version of the amended submission to the AER

Sheet Business & other details
B1: =IF(dms_DataQuality="backcast",INDEX(dms_Worksheet_List,MATCH(dms_Model,dms_Model_List))&" BACKCAST",INDEX(dms_Worksheet_List,MATCH(dms_Model,dms_Model_List))) -> REGULATORY REPORTING STATEMENT
B2: =INDEX(dms_TradingNameFull_List,MATCH(dms_TradingName,dms_TradingName_List)) -> SA Power Networks
B3: =IF(SUM(dms_SingleYear_Model)>0,CONCATENATE(CRY),CONCATENATE(FRCP_y1," to ",dms_MultiYear_FinalYear_Result)) -> 2020-21 to 2024-25
B4: BUSINESS & OTHER DETAILS
B7: Instructions
B8: Complete the following business details regulatory template before entering data or values in any other regulatory template. This regulatory template is linked to other cells within the spreadsheet and automatically generates column headings and conditional formatting to distinguish business specific input and non-input cells.
B10: SUBMISSION PARTICULARS INPUT SHEETS
B12: ENTITY DETAILS
B14: Short name | C14: SA Power Networks | F14: Select business name from drop down list first
B15: ACN / ABN | C15: =INDEX(dms_ABN_List,MATCH(dms_TradingName,dms_TradingName_List)) -> 13332330749
B18: Business address | C18: Address 1 | E18: =INDEX(dms_Addr1_List,MATCH(dms_TradingName,dms_TradingName_List)) -> 1 Anzac Highway
D19: Address 2 | E19: =IF(ISBLANK(INDEX(dms_Addr2_List,MATCH(dms_TradingName,dms_TradingName_List))),"",(INDEX(dms_Addr2_List,MATCH(dms_TradingName,dms_TradingName_List)))) -> 
C20: Suburb | E20: =INDEX(dms_Suburb_List,MATCH(dms_TradingName,dms_TradingName_List)) -> KESWICK
D21: State | E21: =INDEX(dms_State_List,MATCH(dms_TradingName,dms_TradingName_List)) -> SA | F21: p/code | G21: =INDEX(dms_PostCode_List,MATCH(dms_TradingName,dms_TradingName_List)) -> 5035
B23: Postal address | C23: Address 1 | E23: =INDEX(dms_PAddr1_List,MATCH(dms_TradingName,dms_TradingName_List)) -> GPO Box 77
D24: Address 2 | E24: =IF(ISBLANK(INDEX(dms_PAddr2_List,MATCH(dms_TradingName,dms_TradingName_List))),"",(INDEX(dms_PAddr2_List,MATCH(dms_TradingName,dms_TradingName_List)))) -> 
C25: Suburb | E25: =INDEX(dms_PSuburb_List,MATCH(dms_TradingName,dms_TradingName_List)) -> ADELAIDE
D26: State | E26: =INDEX(dms_PState_List,MATCH(dms_TradingName,dms_TradingName_List)) -> SA | F26: p/code | G26: =INDEX(dms_PPostCode_List,MATCH(dms_TradingName,dms_TradingName_List)) -> 5000
B29: Contact name/s | C29: =INDEX(dms_ContactName1_List,MATCH(dms_TradingName,dms_TradingName_List)) -> Richard Sibly
B30: Contact phone/s | C30: =INDEX(dms_ContactPh1_List,MATCH(dms_TradingName,dms_TradingName_List)) -> 08 8404 5613
B31: Contact email address/s | C31: =INDEX(dms_ContactEmail_List,MATCH(dms_TradingName,dms_TradingName_List)) -> richard.sibly@sapowernetworks.com.au
B33: REGULATORY CONTROL PERIODS
B35: Forthcoming regulatory control period | C35: 2020-21 | D35: =dms_FRCP_y2 -> 2021-22 | E35: =dms_FRCP_y3 -> 2022-23 | F35: =dms_FRCP_y4 -> 2023-24 | G35: =dms_FRCP_y5 -> 2024-25
C36: =dms_FRCP_y6 -> 2025-26 | D36: =dms_FRCP_y7 -> 2026-27 | E36: 0 | F36: =dms_FRCP_y9 -> 2028-29 | G36: =dms_FRCP_y10 -> 2029-30
B39: Current regulatory control period | C39: =dms_CRCP_FirstYear_Result -> 2015-16 | D39: =IF(dms_RPT="financial",VALUE(LEFT(CRCP_y1,4)+1)&"-"&TEXT(MID(CRCP_y1,3,2)+2,"00"),VALUE(LEFT(CRCP_y1,4)+1)) -> 2016-17 | E39: =IF(dms_RPT="financial",VALUE(LEFT(CRCP_y1,4)+2)&"-"&TEXT(VALUE(MID(CRCP_y1,3,2)+3),"00"),VALUE(LEFT(CRCP_y1,4)+2)) -> 2017-18 | F39: =IF(dms_RPT="financial",VALUE(LEFT(CRCP_y1,4)+3)&"-"&TEXT(MID(CRCP_y1,3,2)+4,"00"),VALUE(LEFT(CRCP_y1,4)+3)) -> 2018-19 | G39: =IF(dms_RPT="financial",VALUE(LEFT(CRCP_y1,4)+4)&"-"&TEXT(MID(CRCP_y1,3,2)+5,"00"),VALUE(LEFT(CRCP_y1,4)+4)) -> 2019-20
C40: =IF(dms_RPT="financial",VALUE(LEFT(CRCP_y1,4)+5)&"-"&TEXT(MID(CRCP_y1,3,2)+6,"00"),VALUE(LEFT(CRCP_y1,4)+5)) -> 2020-21 | D40: =IF(dms_RPT="financial",VALUE(LEFT(CRCP_y1,4)+6)&"-"&TEXT(MID(CRCP_y1,3,2)+7,"00"),VALUE(LEFT(CRCP_y1,4)+6)) -> 2021-22 | E40: =IF(dms_RPT="financial",VALUE(LEFT(CRCP_y1,4)+7)&"-"&TEXT(MID(CRCP_y1,3,2)+8,"00"),VALUE(LEFT(CRCP_y1,4)+7)) -> 2022-23 | F40: =IF(dms_RPT="financial",VALUE(LEFT(CRCP_y1,4)+8)&"-"&TEXT(MID(CRCP_y1,3,2)+9,"00"),VALUE(LEFT(CRCP_y1,4)+8)) -> 2023-24 | G40: =IF(dms_RPT="financial",VALUE(LEFT(CRCP_y1,4)+9)&"-"&TEXT(MID(CRCP_y1,3,2)+10,"00"),VALUE(LEFT(CRCP_y1,4)+9)) -> 2024-25
C41: =IF(dms_RPT="financial",VALUE(LEFT(CRCP_y1,4)+10)&"-"&TEXT(MID(CRCP_y1,3,2)+11,"00"),VALUE(LEFT(CRCP_y1,4)+10)) -> 2025-26 | D41: =IF(dms_RPT="financial",VALUE(LEFT(CRCP_y1,4)+11)&"-"&TEXT(MID(CRCP_y1,3,2)+12,"00"),VALUE(LEFT(CRCP_y1,4)+11)) -> 2026-27 | E41: =IF(dms_RPT="financial",VALUE(LEFT(CRCP_y1,4)+12)&"-"&TEXT(MID(CRCP_y1,3,2)+13,"00"),VALUE(LEFT(CRCP_y1,4)+12)) -> 2027-28 | F41: =IF(dms_RPT="financial",VALUE(LEFT(CRCP_y1,4)+13)&"-"&TEXT(MID(CRCP_y1,3,2)+14,"00"),VALUE(LEFT(CRCP_y1,4)+13)) -> 2028-29 | G41: =IF(dms_RPT="financial",VALUE(LEFT(CRCP_y1,4)+14)&"-"&TEXT(MID(CRCP_y1,3,2)+15,"00"),VALUE(LEFT(CRCP_y1,4)+14)) -> 2029-30
B44: Previous regulatory control period | C44: =IF(dms_RPT="financial",VALUE(LEFT(PRCP_y2,4)-1)&"-"&TEXT(VALUE(MID(PRCP_y2,3,2)),"00"),VALUE(LEFT(PRCP_y2,4)-1)) -> 2010-11 | D44: =IF(dms_RPT="financial",VALUE(LEFT(PRCP_y3,4)-1)&"-"&TEXT(VALUE(MID(PRCP_y3,3,2)),"00"),VALUE(LEFT(PRCP_y3,4)-1)) -> 2011-12 | E44: =IF(dms_RPT="financial",VALUE(LEFT(PRCP_y4,4)-1)&"-"&TEXT(VALUE(MID(PRCP_y4,3,2)),"00"),VALUE(LEFT(PRCP_y4,4)-1)) -> 2012-13 | F44: =IF(dms_RPT="financial",VALUE(LEFT(PRCP_y5,4)-1)&"-"&TEXT(VALUE(RIGHT(PRCP_y5,2)-1),"00"),VALUE(LEFT(PRCP_y5,4)-1)) -> 2013-14 | G44: =IF(dms_RPT="financial",VALUE(LEFT(CRCP_y1,4)-1)&"-"&TEXT(VALUE(RIGHT(CRCP_y1,2)-1),"00"),VALUE(LEFT(CRCP_y1,4)-1)) -> 2014-15
B48: Commencing regulatory year | C48: 2018-19 | D48: CRY
B50: Last completed regulatory year | C50: 2024-25 | D50: dms_FinalYear
C54: IF THIS IS AN ABC RIN - make sure the the named range CRY is applied and the named range dms_dollar_nom_UOM is applied
C55: IF THIS IS A RESET RIN - make sure the named ranges CRY and dms_dollar_nom_UOM are NOT present in the workbook
C56: FOR ABC RINS THAT SPAN MULTIPLE YEARS - make sure MultiYear Flag is set and final year entered as required
B58: Source | C58: Regulatory proposal | E58: Please select the correct submission type from the dropdown list.
B59: Data quality (actual, estimate, public, consolidated) | C59: Public | E59: Use Consolidated for Consolidated Confidential version Use Public for Consolidated Public version
B60: Amended RIN submission - amendment reason | C60: .
B61: Submission Date | C61: 31/01/2019 | D61: dms_SubmissionDate | E61: Please enter date this file submitted to AER (dd/mm/yyyy)
B62: EBSS - First application of scheme in forthcoming period? | C62: No
B63: Sector | C63: =INDEX(dms_Sector_List,MATCH(dms_TradingName,dms_TradingName_List)) -> Electricity | D63: dms_Sector | E63: =INDEX(dms_Sector_List,MATCH(dms_TradingName,dms_TradingName_List))
B64: Segment | C64: =INDEX(dms_Segment_List,MATCH(dms_TradingName,dms_TradingName_List)) -> Distribution | D64: dms_Segment | E64: =INDEX(dms_Segment_List,MATCH(dms_TradingName,dms_TradingName_List))
B65: Regulatory Year Ending | C65: =IF(dms_MultiYear_Flag=1,LEFT(dms_Specified_FinalYear,2)&RIGHT(dms_Specified_FinalYear,2),INDEX(dms_RYE_Formula_Result,MATCH(dms_Model,dms_Model_List))) -> 2025 | D65: dms_RYE | E65: =IF(dms_MultiYear_Flag=1,LEFT(dms_Specified_FinalYear,2)&RIGHT(dms_Specified_FinalYear,2),INDEX(dms_RYE_Formula_Result,MATCH(dms_Model,dms_Model_List)))
B66: Reporting Period Type | C66: =INDEX(dms_RPT_List,MATCH(dms_TradingName,dms_TradingName_List)) -> Financial | D66: dms_RPT | E66: =INDEX(dms_RPT_List,MATCH(dms_TradingName,dms_TradingName_List))
B67: Model or RIN Type | C67: Reset | D67: dms_Model | E67: Drop down selection
B68: EB/CA Unit of Measure for Monetary Values | C68: $0s | D68: dms_dollar_nom_UOM | E68: If the cover sheet is attached to an ABC RIN apply the NAMED RANGE to the cell
B69: Security Classification | C69: Public | D69: dms_Classification | E69: Always Public
B70: Jurisdiction | C70: =INDEX(dms_JurisdictionList,MATCH(dms_TradingName,dms_TradingName_List)) -> SA | D70: dms_Jurisdiction | E70: =INDEX(dms_JurisdictionList,MATCH(dms_TradingName,dms_TradingName_List))
B71: FORECAST and MultiYear RINS
B72: CRY-1 (last full calendar year before CRY) | C72: =IF(dms_RPT="financial",VALUE(LEFT(dms_SingleYear_FinalYear_Result,4)),VALUE(LEFT(dms_SingleYear_FinalYear_Result,4)-1)) ->  | D72: dms_Cal_Year_B4_CRY | E72: '=IF(dms_RPT="financial",VALUE(LEFT(dms_SingleYear_FinalYear_Result,4)),VALUE(LEFT(dms_SingleYear_FinalYear_Result,4)-1))
B73: Dollar $ real month | C73: =INDEX(dms_RPTMonth_List,MATCH(dms_TradingName,dms_TradingName_List)) -> June | D73: dms_RPTMonth | E73: =INDEX(dms_RPTMonth_List,MATCH(dms_TradingName,dms_TradingName_List))
B74: Dollar $ real (the last month before the FRCP_y1) | C74: =IF(SUM(dms_SingleYear_Model)>0,CONCATENATE(dms_RPTMonth)&" "&VALUE((LEFT(CRY,2))&RIGHT(CRY,2)),CONCATENATE(dms_RPTMonth)&" "&VALUE((LEFT(dms_CRCP_FinalYear_Result,2)&RIGHT(dms_CRCP_FinalYear_Result,2)))) -> June 2020 | D74: dms_DollarReal | E74: =IF(SUM(dms_SingleYear_Model)>0,CONCATENATE(dms_RPTMonth)&" "&VALUE((LEFT(CRY,2))&RIGHT(CRY,2)),CONCATENATE(dms_RPTMonth)&" "&VALUE((LEFT(dms_CRCP_FinalYear_Result,2)&RIGHT(dms_CRCP_FinalYear_Result,2))))
B75: Dollar $ real previous year (PRCP_y5) | C75: =IF(SUM(dms_SingleYear_Model)>0,CONCATENATE(dms_RPTMonth)&" "&VALUE(((LEFT(CRY,2))&RIGHT(CRY,2))-1),CONCATENATE(dms_RPTMonth)&" "&VALUE(((LEFT(dms_CRCP_FirstYear_Result,2)&RIGHT(dms_CRCP_FirstYear_Result,2))))-1) -> June 2015 | D75: dms_DollarReal_Prev | E75: =IF(SUM(dms_SingleYear_Model)>0,CONCATENATE(dms_RPTMonth)&" "&VALUE(((LEFT(CRY,2))&RIGHT(CRY,2))-1),CONCATENATE(dms_RPTMonth)&" "&VALUE(((LEFT(dms_CRCP_FirstYear_Result,2)&RIGHT(dms_CRCP_FirstYear_Result,2))))-1)
B76: This block works out the various RYE's for ALL RIN types and MODELS
B77: Single Year Model T/F | C77: =IF(dms_Model="EB",1,0) -> 0 | D77: dms_EB
C78: =IF(dms_Model="CA",1,0) -> 0 | D78: dms_CA | E78: =dms_SingleYear_Model
C79: =IF(dms_Model="ARR",1,0) -> 0 | D79: dms_ARR
B80: Is this a single Year RIN? | C80: =IF(SUM(dms_SingleYear_Model)=1,"yes","no") -> no | E80: =IF(SUM(dms_SingleYear_Model)=1,"yes","no")
B81: Single Year Final Year Reference | C81: CRY | D81: dms_SingleYear_FinalYear_Ref | E81: This is the reference for EB, CA & ARR RINs
B82: Single Year Final Year Result | C82: =IFERROR(IF(SUM(dms_SingleYear_Model)<>0,(INDIRECT(dms_SingleYear_FinalYear_Ref)),"not a single year RIN"),"CRY not present") -> not a single year RIN | D82: dms_SingleYear_FinalYear_Result | E82: =IFERROR(IF(SUM(dms_SingleYear_Model)<>0,(INDIRECT(dms_SingleYear_FinalYear_Ref)),"not a single year RIN"),"CRY not present")
B83: FRCP length in years | C83: =INDEX(dms_FRCPlength_List,MATCH(dms_TradingName,dms_TradingName_List)) -> 5 | D83: dms_FRCPlength_Num | E83: =INDEX(dms_FRCPlength_List,MATCH(dms_TradingName,dms_TradingName_List))
B84: Multi Year Final Year Reference | C84: =INDEX(dms_FinalYear_List,MATCH(dms_FRCPlength_Num,dms_FRCPlength_Num_List)) -> dms_FRCP_y5 | D84: dms_MultiYear_FinalYear_Ref | E84: =INDEX(dms_FinalYear_List,MATCH(dms_FRCPlength_Num,dms_FRCPlength_Num_List))
B85: Multi Year Final Year Result | C85: =IF(dms_MultiYear_Flag=0,INDIRECT(dms_MultiYear_FinalYear_Ref),dms_Specified_FinalYear) -> 2024-25 | D85: dms_MultiYear_FinalYear_Result | E85: =IF(dms_MultiYear_Flag=0,INDIRECT(dms_MultiYear_FinalYear_Ref),dms_Specified_FinalYear) | I85: Formula errors OK
B86: CRCP length in years | C86: =INDEX(dms_CRCPlength_List,MATCH(dms_TradingName,dms_TradingName_List)) -> 5 | D86: dms_CRCPlength_Num | E86: =INDEX(dms_CRCPlength_List,MATCH(dms_TradingName,dms_TradingName_List))
B87: CRCP Final Year Reference | C87: =INDEX(dms_CFinalYear_List,MATCH(dms_CRCPlength_Num,dms_CRCPlength_Num_List)) -> CRCP_y5 | D87: dms_CRCP_FinalYear_Ref | E87: =INDEX(dms_CFinalYear_List,MATCH(dms_CRCPlength_Num,dms_CRCPlength_Num_List))
B88: CRCP First Year Result | C88: =INDEX(dms_CRCP_years,MATCH(dms_CRCPlength_Num,dms_CRCP_index)) -> 2015-16 | D88: dms_CRCP_FirstYear_Result | E88: =INDEX(dms_CRCP_years,MATCH(dms_CRCPlength_Num,dms_CRCP_index))
B89: CRCP Final Year Result | C89: =IF(dms_MultiYear_Flag=0,(IF(SUM(dms_SingleYear_Model)>0,CRY,dms_CRCP_yZ)),dms_Specified_FinalYear) -> 2019-20 | D89: dms_CRCP_FinalYear_Result | E89: =IF(dms_MultiYear_Flag=0,(IF(SUM(dms_SingleYear_Model)>0,CRY,dms_CRCP_yZ)),dms_Specified_FinalYear)
B90: PTRM/ RFMs
B91: Form of control | C91: =INDEX(dms_FormControl_List,MATCH(dms_TradingName,dms_TradingName_List)) -> Revenue cap | D91: dms_FormControl | E91: =INDEX(dms_FormControl_List,MATCH(dms_TradingName,dms_TradingName_List))
B92: ABC RINS THAT SPAN MULTIPLE YEARS
B93: Is this a multi year ABC RIN? | C93: No
B94: Multiyear EB, CA or ARR? | C94: =IF(dms_MultiYear_ResponseFlag="No",0,1) -> 0 | D94: dms_MultiYear_Flag | E94: This is set from the answer provided above
C95: =IF(dms_MultiYear_Flag=1,FRY,"not a Multiple year submission") -> not a Multiple year submission | D95: dms_Specified_FinalYear | E95: The result here is returned to dms_CRCP_FinalYear_Result if response to Q in C73 is "yes" and dms_MultiYear_Flag is set to 1
B96: Start year for 5.2 in Multi year RINS | C96: =IF(dms_MultiYear_Flag=1,FRY,CRY) -> 2018-19 | D96: dms_0502_Inst_Year | E96: =IF(dms_MultiYear_Flag=1,FRY,CRY) | G96: For single year RINS this is CRY - multi year RINS need to start a the end of the span of years (ie. FRY)
B97: EB RINS
B98: Calendar Year for table 3.6 data | C98: =IF(dms_RPT="financial",VALUE(LEFT(dms_SingleYear_FinalYear_Result,4)),VALUE(LEFT(dms_SingleYear_FinalYear_Result,4)-1)) ->  | D98: dms_0306_Year | E98: =IF(dms_RPT="financial",VALUE(LEFT(dms_SingleYear_FinalYear_Result,4)),VALUE(LEFT(dms_SingleYear_FinalYear_Result,4)-1))
B99: CA RINS
B100: Find how many rows in tables 6.3 sustained interruptions? | E100: dms_060301_MaxRows only returns a valid value when cover sheet is attached to a CA file
C101: =IF(dms_Model<>"CA","not a CA","Is a CA") -> not a CA | E101: =IF(dms_Model<>"CA","not a CA","Is a CA")
B102: dms_060301_Avg_Duration_Sustained_Int_Values present? | C102: =IFERROR(IF(INDEX(dms_060301_Avg_Duration_Sustained_Int_Values,1,1)<>"","yes","no"),"no") -> no | D102: dms_060301_checkvalue | E102: =IFERROR(IF(INDEX(dms_060301_Avg_Duration_Sustained_Int_Values,1,1)<>"","yes","no"),"no")
C103: =IF(AND(dms_Model="CA",(dms_060301_checkvalue="no")),"error - NR not present","no errors") -> no errors | E103: =IF(AND(dms_Model="CA",(dms_060301_checkvalue="no")),"error - NR not present","no errors")
B104: Table 6.3.1 - last row reference | C104: =IFERROR(IF(dms_Model="CA",LOOKUP(2,1/(dms_060301_Avg_Duration_Sustained_Int_Values<>""),(ROW(dms_060301_Avg_Duration_Sustained_Int_Values))),"not a CA"),"6.3 not present") -> not a CA | D104: dms_060301_LastRow | E104: =IFERROR(IF(dms_Model="CA",LOOKUP(2,1/(dms_060301_Avg_Duration_Sustained_Int_Values<>""),(ROW(dms_060301_Avg_Duration_Sustained_Int_Values))),"not a CA"),"6.3 not present")
B105: Table 6.3.1 - max number rows | C105: =IFERROR(IF(dms_Model="CA",(dms_060301_LastRow-15),"not a CA"),"error") -> not a CA | D105: dms_060301_MaxRows | E105: =IFERROR(IF(dms_Model="CA",(dms_060301_LastRow-15),"not a CA"),"error")
B106: Table 6.6.3 - Public lighting repair - no. business days | C106: =INDEX(dms_663_List,MATCH(dms_TradingName,dms_TradingName_List)) -> 5 | D106: dms_663 | E106: =INDEX(dms_663_List,MATCH(dms_TradingName,dms_TradingName_List))
B107: ARR or RESET RINS
B108: How many rows in tables 6.1 or 6.7? (leap year?) | C108: insert dms_LeapYear NR if required | E108: 'dms_LeapYear is used to determine dms_060701_Max_Rows BUT it is only found on worksheet 6.1 or 6.7 and the date value in the cell is used to determine whether it is a leap year
B109: Is dms_LeapYear named range present? | C109: =IFERROR(IF(dms_LeapYear,"yes"),"no") -> no
B110: Table 6.7.1 - includes a leap year? | C110: =IFERROR(IF(MONTH(DATE(YEAR(dms_LeapYear),2,29))=2,"is a leap year","not a leap year"), "dms_LeapYear not present") -> dms_LeapYear not present | D110: dms_LeapYear_Result | E110: =IFERROR(IF(MONTH(DATE(YEAR(dms_LeapYear),2,29))=2,"is a leap year","not a leap year"),"dms_LeapYear not present")
B111: MaxRows if Reset and leap year | C111: =IF(dms_LeapYear_Result="is a leap year",1827,1826) -> 1826 | D111: dms_060701_Reset_MaxRows | E111: =IF(dms_LeapYear_Result="is a leap year",1827,1826) | H111: number of days present in Reset RIN table
B112: MaxRows if ARR and leap year | C112: =IF(dms_LeapYear_Result="is a leap year",366,365) -> 365 | D112: dms_060701_ARR_MaxRows | E112: =IF(dms_LeapYear_Result="is a leap year",366,365) | H112: number of days present in ARR RIN table
B113: Table 6.7.1 - Max Rows (leap year/ non leap year) | C113: =IF(dms_Model="ARR",dms_060701_ARR_MaxRows,IF(dms_Model="Reset",dms_060701_Reset_MaxRows,"not a relevant RIN type")) -> 1826 | D113: dms_060701_MaxRows | E113: =IF(dms_Model="ARR",dms_060701_ARR_MaxRows,IF(dms_Model="Reset",dms_060701_Reset_MaxRows,"not a relevant RIN type"))
B114: How many columns in 6.7? (4 or 5 feeder categories) | C114: =IF(dms_FifthFeeder_flag_NSP="NO","This NSP has only 4 feeder categories","This NSP has 5 feeder categories") -> This NSP has only 4 feeder categories
B115: Table 6.7.1 - Last column (# of feeder categories > 4) | C115: =IF(dms_FifthFeeder_flag_NSP="NO",10,12) -> 10 | D115: dms_060701_MaxCols | E115: =IF(dms_FifthFeeder_flag_NSP="NO",8,10)
B116: Table 6.7.1 - Number of offset rows | C116: =IF(dms_Model="ARR",15,9) -> 9 | D116: dms_060701_OffsetRows | E116: =IF(dms_Model="ARR",15,9)
B117: Start date for telephone answering in 6.1 or 6.7? | E117: Using 060101 as naming standard not 060701 for start dates
B118: Table 6.1.1 and 6.7.1 - Start Date as Text | C118: =IF(SUM(dms_SingleYear_Model)>0,(CONCATENATE(IF(LEN(CRY)=4,"1-Jan-","1-Jul-"),LEFT(CRY,4))),(CONCATENATE(IF(LEN(CRCP_y4)=4,"1-Jan-","1-Jul-"),LEFT(CRCP_y4,4)))) -> 1-Jul-2018 | D118: dms_060101_StartDateTxt | E118: =IF(SUM(dms_SingleYear_Model)>1,(CONCATENATE(IF(LEN(CRY)=4,"1-Jan-","1-Jul-"),LEFT(CRY,4))),(CONCATENATE(IF(LEN(CRCP_y4)=4,"1-Jan-","1-Jul-"),LEFT(CRCP_y4,4))))
B119: Table 6.1.1 and 6.7.1 - Start Date as Date Value | C119: =DATEVALUE(dms_060701_StartDateTxt) -> 43282 | D119: dms_060101_StartDateVal | E119: =DATEVALUE(dms_060701_StartDateTxt)
B120: ARRs
B121: How many rows in table 6.8? | C121: insert dms_060801_StartCell NR if required | E121: dms_060801_StartCell is only found on worksheet 6.8 and is used to determine the starting date for the date range
B122: Is dms_060801_StartCell named range present? | C122: yes | E122: =IFERROR(IF((ROW(dms_060801_StartCell)-1)=1,"yes","yes"),"no")
B123: Table 6.8 - Number of offset rows | C123: 12 | D123: dms_0608_OffsetRows | E123: =IFERROR(IF(dms_Model="ARR",(ROW(dms_060801_StartCell)-1),"not an ARR"),"6.8 error")
B124: Table 6.8 - Last row | C124: 6.8 not present | D124: dms_0608_LastRow | E124: =IFERROR(IF(dms_060801_StartCell<>"",IF(dms_Model="ARR",(LOOKUP(2,1/(dms_060801_01_Values<>""),(ROW(dms_060801_01_Values)))),"not an ARR"),0),"6.8 not present")
B125: Table 6.8 - MaxRows | C125: =IFERROR(IF(dms_Model="ARR",(MAX(0,dms_0608_LastRow-dms_0608_OffsetRows)),"not an ARR"),"6.8 not present") -> not an ARR | D125: dms_060801_MaxRows | E125: =IFERROR(IF(dms_Model="ARR",(MAX(0,dms_0608_LastRow-dms_0608_OffsetRows)),"not an ARR"),"6.8 not present")
B126: TNSP RESET RINS
B127: Table 7.9.4 only appears in TNSPs Reset RIN
B128: Table 7.9.4 - first year | C128: =LEFT(PRCP_y3,4) -> 2012 | D128: dms_070904_Start_Year | E128: =LEFT(PRCP_y3,4)
B129: SUBSET FILES
B130: Is this Submission File a Subset File | C130: NO | D130: dms_Partial
B131: MISC
B132: Distribution Determination Reference | C132: =INDEX(dms_DeterminationRef_List,MATCH(dms_TradingName,dms_TradingName_List)) -> 2015-20 Distribution Determination | D132: dms_DeterminationRef
B133: Public lighting NSP? | C133: =INDEX(dms_Public_Lighting_List,MATCH(dms_TradingName,dms_TradingName_List)) -> NO | D133: dms_Public_Lighting | E133: =INDEX(dms_Public_Lighting_List,MATCH(dms_TradingName,dms_TradingName_List))
B134: CBD Feeder for this business | C134: =INDEX(dms_CBD_flag,MATCH(dms_TradingName,dms_TradingName_List)) -> NO | D134: dms_CBD_flag_NSP
B135: Urban Feeder for this business | C135: =INDEX(dms_Urban_flag,MATCH(dms_TradingName,dms_TradingName_List)) -> NO | D135: dms_Urban_flag_NSP
B136: Short rural Feeder for this business | C136: =INDEX(dms_ShortRural_flag,MATCH(dms_TradingName,dms_TradingName_List)) -> YES | D136: dms_ShortRural_flag_NSP
B137: Long rural Feeder for this business | C137: =INDEX(dms_LongRural_flag,MATCH(dms_TradingName,dms_TradingName_List)) -> YES | D137: dms_LongRural_flag_NSP
B138: Fifth Feeder Category (eg. TasNetworks (D)) | C138: =INDEX(dms_FeederType_5_flag,MATCH(dms_TradingName,dms_TradingName_List)) -> NO | D138: dms_FifthFeeder_flag_NSP | E138: =INDEX(dms_FeederType_5_flag,MATCH(dms_TradingName,dms_TradingName_List))
B140: DISCARD FILES
B141: discard this record? | C141: NO | D141: dms_DISCARD | E141: If record is to be discarded from DB set this flag to YES
B143: USES NAMED RANGES FLAG | C143: yes | D143: dms_Defined_Names_Used
B145: REGULATORY YEARS FOR MULTI RYE SUBMISSIONS
B146: Multiple RYE flag | C146: NO | D146: dms_Multi_RYE_flag
C147: Manually specify RYE | D147: Named ranges to apply
C148: 2013 | D148: dms_RYE_01
C149: 2014 | D149: dms_RYE_02
C150: 2015 | D150: dms_RYE_03
C151: 2016 | D151: dms_RYE_04
C152: 2017 | D152: dms_RYE_05
C153: 2018 | D153: dms_RYE_06
C154: 2019 | D154: dms_RYE_07
C155: 2020 | D155: dms_RYE_08
C156: 2021 | D156: dms_RYE_09

Sheet CPI series
B1: =SheetHeader -> REGULATORY REPORTING STATEMENT
B2: =dms_TradingName -> SA Power Networks
B3: =dms_Reg_Year_Span -> 2020-21 to 2024-25
B4: CPI SERIES
B8: NOMINATED CPI SERIES
B10: Name of CPI series | C10: 2015/16 to 2017/18: All groups weighted average of 8 capital cities CPI movement from December to December 2018/19 and 2019/20: Reserve Bank of Australian forecast per Statement on Monetary Policy, November 2018. 2020/21 to 2024/25: Mid-point of RBA target range
C12: =CRCP_y1 -> 2015-16 | D12: =CRCP_y2 -> 2016-17 | E12: =CRCP_y3 -> 2017-18 | F12: =CRCP_y4 -> 2018-19 | G12: =CRCP_y5 -> 2019-20 | H12: =FRCP_y1 -> 2020-21 | I12: =FRCP_y2 -> 2021-22 | J12: =FRCP_y3 -> 2022-23 | K12: =FRCP_y4 -> 2023-24 | L12: =FRCP_y5 -> 2024-25
B13: Series data | C13: 0.01688555347 | D13: 0.0147601476 | E13: 0.01909090909 | F13: 0.02 | G13: 0.0225 | H13: 0.025 | I13: 0.025 | J13: 0.025 | K13: 0.025 | L13: 0.025

Sheet 2.1 Expenditure summary
B1: =SheetHeader -> REGULATORY REPORTING STATEMENT
B2: =dms_TradingName -> SA Power Networks
B3: =dms_Reg_Year_Span -> 2020-21 to 2024-25
B4: 2.1 EXPENDITURE SUMMARY & RECONCILIATION
B8: 2.1.1 - STANDARD CONTROL SERVICES CAPEX
C9: =CONCATENATE("Forecast ($0's, real ", dms_DollarReal, ")") -> Forecast ($0's, real June 2020)
C10: =CRCP_y4 -> 2018-19 | D10: =CRCP_y5 -> 2019-20 | E10: =FRCP_y1 -> 2020-21 | F10: =FRCP_y2 -> 2021-22 | G10: =FRCP_y3 -> 2022-23 | H10: =FRCP_y4 -> 2023-24 | I10: =FRCP_y5 -> 2024-25
B11: Replacement expenditure | C11: 147112951 | D11: 148926610.5 | E11: 122753636.3 | F11: 129282607.7 | G11: 131249141.2 | H11: 128579545.7 | I11: 125310498.2
B12: Connections | C12: =75860628.5534858+26893483.78 -> 102754112.3 | D12: =67543811.9280951+26301695.63 -> 93845507.56 | E12: =81915063.5706786+27452246.32 -> 109367309.9 | F12: =83693552.2761814+27452246.32 -> 111145798.6 | G12: =84874477.065914+27452246.32 -> 112326723.4 | H12: =84465056.5725603+27452246.32 -> 111917302.9 | I12: =80744048.870547+27452246.32 -> 108196295.2
B13: Augmentation Expenditure | C13: 96204386.3 | D13: 93274257.17 | E13: 80826309.2 | F13: 79022747.64 | G13: 69903224.44 | H13: 70582202.35 | I13: 71714786.55
B14: Non-network | C14: 106253451.7 | D14: 114477633.8 | E14: 113683411.4 | F14: 120205812.3 | G14: 91472492.81 | H14: 92212312.67 | I14: 87270612.7
B15: Public lighting
B16: Metering
B17: Capitalised network overheads | C17: 14391040.05 | D17: 14153119.16 | E17: 12505684.28 | F17: 12744409.75 | G17: 12424946.78 | H17: 12415356.6 | I17: 12332388.02
B18: Capitalised corporate overheads | C18: -10552454.99 | D18: -10648557.63 | E18: -7498424.151 | F18: -7578441.363 | G18: -7670285.9 | H18: -7753980.21 | I18: -7828688.833
B19: capcons (included in the above) | C19: =35488265.8274336+26893483.78 -> 62381749.61 | D19: =30745099.61415+26301695.63 -> 57046795.24 | E19: =43181108.4629098+27452246.32 -> 70633354.78 | F19: =42801189.3120298+27452246.32 -> 70253435.63 | G19: =43332570.1165832+27452246.32 -> 70784816.44 | H19: =43186020.0485091+27452246.32 -> 70638266.37 | I19: =40300755.5816824+27452246.32 -> 67753001.9
B20: Total | C20: =SUM(C11:C18) -> 456163486.4 | D20: =SUM(D11:D18) -> 454028570.6 | E20: =SUM(E11:E18) -> 431637927 | F20: 444822934.6 | G20: 409706242.7 | H20: 407952740 | I20: 396995891.9
B23: 2.1.2 - STANDARD CONTROL SERVICES OPEX BY CATEGORY
C24: =CONCATENATE("Forecast ($0's, real ", dms_DollarReal, ")") -> Forecast ($0's, real June 2020)
C25: =CRCP_y4 -> 2018-19 | D25: =CRCP_y5 -> 2019-20
B26: Vegetation management | C26: 38711177.7 | D26: 39162260.49
B27: Maintenance | C27: 27621020.37 | D27: 28102124.58
B28: Emergency response | C28: 35967788.13 | D28: 36673588.43
B29: Non-network | C29: 28202266.14 | D29: 27757942.99
B30: Metering | C30: 0 | D30: 0
B31: Network overheads | C31: 96385185.09 | D31: 97987310.31
B32: Corporate overheads | C32: 49304845.99 | D32: 50109044.76
B33: Total | C33: =SUM(C26:C32) -> 276192283.4 | D33: =SUM(D26:D32) -> 279792271.6
B36: 2.1.3 - ALTERNATIVE CONTROL SERVICES CAPEX
C37: =CONCATENATE("Forecast ($0's, real ", dms_DollarReal, ")") -> Forecast ($0's, real June 2020)
C38: =CRCP_y4 -> 2018-19 | D38: =CRCP_y5 -> 2019-20 | E38: =FRCP_y1 -> 2020-21 | F38: =FRCP_y2 -> 2021-22 | G38: =FRCP_y3 -> 2022-23 | H38: =FRCP_y4 -> 2023-24 | I38: =FRCP_y5 -> 2024-25
B39: Connections | C39: 0 | D39: 0 | E39: 0 | F39: 0 | G39: 0 | H39: 0 | I39: 0
B40: Metering | C40: 0 | D40: 0 | E40: 0 | F40: 0 | G40: 0 | H40: 0 | I40: 0
B41: Public lighting | C41: 21504134.26 | D41: 27072774.32 | E41: 16299635.2 | F41: 9500874.187 | G41: 10107399.27 | H41: 2432784.511 | I41: 2314423.858
B42: Fee and quoted | C42: 0 | D42: 0 | E42: 0 | F42: 0 | G42: 0 | H42: 0 | I42: 0
B43: Network overheads | C43: 1225735.653 | D43: 1543148.136 | E43: 929079.2063 | F43: 541549.8287 | G43: 576121.7582 | H43: 138668.7171 | I43: 131922.1599
B44: Corporate overheads | C44: 0 | D44: 0 | E44: 0 | F44: 0 | G44: 0 | H44: 0 | I44: 0
B45: Total | C45: =SUM(C39:C44) -> 22729869.91 | D45: 28615922.45 | E45: 17228714.4 | F45: 10042424.02 | G45: 10683521.03 | H45: 2571453.228 | I45: 2446346.018
B48: 2.1.4 - ALTERNATIVE CONTROL SERVICES OPEX
C49: =CONCATENATE("Forecast ($0's, real ", dms_DollarReal, ")") -> Forecast ($0's, real June 2020)
C50: =CRCP_y4 -> 2018-19 | D50: =CRCP_y5 -> 2019-20 | E50: =FRCP_y1 -> 2020-21 | F50: =FRCP_y2 -> 2021-22 | G50: =FRCP_y3 -> 2022-23 | H50: =FRCP_y4 -> 2023-24 | I50: =FRCP_y5 -> 2024-25
B51: Connections | C51: 0 | D51: 0 | E51: 0 | F51: 0 | G51: 0 | H51: 0 | I51: 0
B52: Metering | C52: 5597191.89 | D52: 5317316.785 | E52: 5061697.204 | F52: 4806077.622 | G52: 4550458.041 | H52: 4294838.459 | I52: 4039218.878
B53: Public lighting | C53: 8967725.872 | D53: 7766707.013 | E53: 6786781.362 | F53: 6852600.53 | G53: 7091131.327 | H53: 7334984.307 | I53: 6817008.934
B54: Fee and quoted | C54: 39990952 | D54: 39540516 | E54: 39134496 | F54: 38767587 | G54: 38436798 | H54: 38138548 | I54: 37869477
B55: Network overheads | C55: 6203562.219 | D55: 6127794.214 | E55: 6056505.556 | F55: 6047590.45 | G55: 6050248.15 | H55: 6054487.412 | I55: 6016311.545
B56: Corporate overheads | C56: 9651583.9 | D56: 9696397.461 | E56: 10339077.67 | F56: 10502691.99 | G56: 10690886.97 | H56: 10821969.95 | I56: 10947153.46
B57: Total | C57: =SUM(C51:C56) -> 70411015.88 | D57: 68448731.47 | E57: 67378557.79 | F57: 66976547.59 | G57: 66819522.49 | H57: 66644828.13 | I57: 65689169.81
B60: 2.1.5 - DUAL FUNCTION ASSETS CAPEX
C61: =CONCATENATE("Forecast ($0's, real ", dms_DollarReal, ")") -> Forecast ($0's, real June 2020)
C62: =CRCP_y4 -> 2018-19 | D62: =CRCP_y5 -> 2019-20 | E62: =FRCP_y1 -> 2020-21 | F62: =FRCP_y2 -> 2021-22 | G62: =FRCP_y3 -> 2022-23 | H62: =FRCP_y4 -> 2023-24 | I62: =FRCP_y5 -> 2024-25
B63: Replacement expenditure | C63: 0 | D63: 0 | E63: 0 | F63: 0 | G63: 0 | H63: 0 | I63: 0
B64: Connections | C64: 0 | D64: 0 | E64: 0 | F64: 0 | G64: 0 | H64: 0 | I64: 0
B65: Augmentation expenditure | C65: 0 | D65: 0 | E65: 0 | F65: 0 | G65: 0 | H65: 0 | I65: 0
B66: Non-network | C66: 0 | D66: 0 | E66: 0 | F66: 0 | G66: 0 | H66: 0 | I66: 0
B67: Capitalised network overheads | C67: 0 | D67: 0 | E67: 0 | F67: 0 | G67: 0 | H67: 0 | I67: 0
B68: Capitalised corporate overheads | C68: 0 | D68: 0 | E68: 0 | F68: 0 | G68: 0 | H68: 0 | I68: 0
B69: capcons (included in the above) | C69: 0 | D69: 0 | E69: 0 | F69: 0 | G69: 0 | H69: 0 | I69: 0
B70: Total | C70: =SUM(C63:C68) -> 0 | D70: =SUM(D63:D68) -> 0 | E70: 0 | F70: 0 | G70: 0 | H70: 0 | I70: 0
B73: 2.1.6 - DUAL FUNCTION ASSETS OPEX BY CATEGORY
C74: =CONCATENATE("Forecast ($0's, real ", dms_DollarReal, ")") -> Forecast ($0's, real June 2020)
C75: =CRCP_y4 -> 2018-19 | D75: =CRCP_y5 -> 2019-20
B76: Vegetation management | C76: 0 | D76: 0
B77: Maintenance | C77: 0 | D77: 0
B78: Emergency response | C78: 0 | D78: 0
B79: Non-network | C79: 0 | D79: 0
B80: Metering | C80: 0 | D80: 0
B81: Network overheads | C81: 0 | D81: 0
B82: Corporate overheads | C82: 0 | D82: 0
B97: Total | C97: =SUM(C76:C96) -> 0 | D97: =SUM(D76:D96) -> 0
B100: 2.1.7 - STANDARD CONTROL SERVICES CAPCONS
C101: =CONCATENATE("Forecast ($0's, real ", dms_DollarReal, ")") -> Forecast ($0's, real June 2020)
C102: =CRCP_y4 -> 2018-19 | D102: =CRCP_y5 -> 2019-20 | E102: =FRCP_y1 -> 2020-21 | F102: =FRCP_y2 -> 2021-22 | G102: =FRCP_y3 -> 2022-23 | H102: =FRCP_y4 -> 2023-24 | I102: =FRCP_y5 -> 2024-25
B103: Replacement expenditure | C103: 3249262.473 | D103: 3249262.473 | E103: 3249262.473 | F103: 3249262.473 | G103: 3249262.473 | H103: 3249262.473 | I103: 3249262.473
B104: Connections | C104: =28434756.4638823+26893483.78 -> 55328240.24 | D104: =23876829.4613128+26301695.63 -> 50178525.09 | E104: =35827163.4760079+27452246.32 -> 63279409.8 | F104: =35462081.6554004+27452246.32 -> 62914327.98 | G104: =35972709.9591141+27452246.32 -> 63424956.28 | H104: =35831883.24496+27452246.32 -> 63284129.56 | I104: =33059299.651732+27452246.32 -> 60511545.97
B105: Augmentation Expenditure | C105: 2418291.169 | D105: 2418291.169 | E105: 2418291.169 | F105: 2418291.169 | G105: 2418291.169 | H105: 2418291.169 | I105: 2418291.169
B106: Non-network | C106: 0 | D106: 0 | E106: 0 | F106: 0 | G106: 0 | H106: 0 | I106: 0
B107: Capitalised network overheads | C107: 1385955.722 | D107: 1200716.511 | E107: 1686391.345 | F107: 1671554.015 | G107: 1692306.515 | H107: 1686583.162 | I107: 1573902.288
B108: Capitalised corporate overheads | C108: 0 | D108: 0 | E108: 0 | F108: 0 | G108: 0 | H108: 0 | I108: 0
B109: Total | C109: =SUM(C103:C108) -> 62381749.61 | D109: =SUM(D103:D108) -> 57046795.24 | E109: 70633354.78 | F109: 70253435.63 | G109: 70784816.44 | H109: 70638266.37 | I109: 67753001.9
B112: 2.1.8 - STANDARD CONTROL SERVICES CAPITALISED OVERHEADS
C113: =CONCATENATE("Forecast ($0's, real ", dms_DollarReal, ")") -> Forecast ($0's, real June 2020)
C114: =CRCP_y4 -> 2018-19 | D114: =CRCP_y5 -> 2019-20 | E114: =FRCP_y1 -> 2020-21 | F114: =FRCP_y2 -> 2021-22 | G114: =FRCP_y3 -> 2022-23 | H114: =FRCP_y4 -> 2023-24 | I114: =FRCP_y5 -> 2024-25
B115: Replacement expenditure | C115: 1097761.525 | D115: 983192.0948 | E115: 1549643.251 | F115: 1601720.158 | G115: 1461139.903 | H115: 1428076.006 | I115: 1373442.091
B116: Connections | C116: 559043.6398 | D116: 484097.746 | E116: 891727.9638 | F116: 924079.29 | G116: 832479.8579 | H116: 810075.223 | I116: 773935.9144
B117: Augmentation Expenditure | C117: 2563338.755 | D117: 2455244.556 | E117: 2633517.476 | F117: 2699121.279 | G117: 2563014.369 | H117: 2539269.998 | I117: 2491569.249
B118: Non-network | C118: -381558.8632 | D118: -417972.86 | E118: -67628.559 | F118: -58952.34143 | G118: -101973.2537 | H118: -116044.8351 | I118: -135248.0647
B119: capcons (included in the above) | C119: 1385955.722 | D119: 1200716.511 | E119: 1686391.345 | F119: 1671554.015 | G119: 1692306.515 | H119: 1686583.162 | I119: 1573902.288
B120: Total | C120: =SUM(C115:C118) -> 3838585.057 | D120: =SUM(D115:D118) -> 3504561.537 | E120: 5007260.132 | F120: 5165968.385 | G120: 4754660.876 | H120: 4661376.391 | I120: 4503699.19

Sheet 2.2 Repex
B1: =SheetHeader -> REGULATORY REPORTING STATEMENT
B2: =dms_TradingName -> SA Power Networks
B3: =dms_Reg_Year_Span -> 2020-21 to 2024-25
B4: 2.2 REPEX
B6: There is ONE table on this worksheet. The table has been sub-grouped for easy navigation. See the Instructions sheet on how to group or ungroup tables.
B8: 2.2.1 - REPLACEMENT EXPENDITURE, VOLUMES AND ASSET FAILURES BY ASSET CATEGORY
B9: EXPENDITURE
E10: =CONCATENATE("EXPENDITURE ($0's, real ", dms_DollarReal,")") -> EXPENDITURE ($0's, real June 2020)
B11: ASSET GROUP | C11: ASSET CATEGORY | E11: =CRCP_y4 -> 2018-19 | F11: =CRCP_y5 -> 2019-20 | G11: =FRCP_y1 -> 2020-21 | H11: =FRCP_y2 -> 2021-22 | I11: =FRCP_y3 -> 2022-23 | J11: =FRCP_y4 -> 2023-24 | K11: =FRCP_y5 -> 2024-25
B12: POLES BY: HIGHEST OPERATING VOLTAGE ; MATERIAL TYPE | C12: Staking of a wooden pole | E12: 0 | F12: 0 | G12: 0 | H12: 0 | I12: 0 | J12: 0 | K12: 0
C13: ˂ = 1 kV; Wood | E13: 0 | F13: 0 | G13: 0 | H13: 0 | I13: 0 | J13: 0 | K13: 0
C14: > 1 kV & < = 11 kV; Wood | E14: 0 | F14: 0 | G14: 0 | H14: 0 | I14: 0 | J14: 0 | K14: 0
C15: ˃ 11 kV & < = 22 kV; Wood | E15: 0 | F15: 0 | G15: 0 | H15: 0 | I15: 0 | J15: 0 | K15: 0
C16: > 22 kV & < = 66 kV; Wood | E16: 0 | F16: 0 | G16: 0 | H16: 0 | I16: 0 | J16: 0 | K16: 0
C17: > 66 kV & < = 132 kV; Wood | E17: 0 | F17: 0 | G17: 0 | H17: 0 | I17: 0 | J17: 0 | K17: 0
C18: > 132 kV; Wood | E18: 0 | F18: 0 | G18: 0 | H18: 0 | I18: 0 | J18: 0 | K18: 0
C19: ˂ = 1 kV; Concrete | E19: 0 | F19: 0 | G19: 0 | H19: 0 | I19: 0 | J19: 0 | K19: 0
C20: > 1 kV & < = 11 kV; Concrete | E20: 0 | F20: 0 | G20: 0 | H20: 0 | I20: 0 | J20: 0 | K20: 0
C21: ˃ 11 kV & < = 22 kV; Concrete | E21: 0 | F21: 0 | G21: 0 | H21: 0 | I21: 0 | J21: 0 | K21: 0
C22: > 22 kV & < = 66 kV; Concrete | E22: 0 | F22: 0 | G22: 0 | H22: 0 | I22: 0 | J22: 0 | K22: 0
C23: > 66 kV & < = 132 kV; Concrete | E23: 0 | F23: 0 | G23: 0 | H23: 0 | I23: 0 | J23: 0 | K23: 0
C24: > 132 kV; Concrete | E24: 0 | F24: 0 | G24: 0 | H24: 0 | I24: 0 | J24: 0 | K24: 0
C25: ˂ = 1 kV; Steel | E25: 0 | F25: 0 | G25: 0 | H25: 0 | I25: 0 | J25: 0 | K25: 0
C26: > 1 kV & < = 11 kV; Steel | E26: 0 | F26: 0 | G26: 0 | H26: 0 | I26: 0 | J26: 0 | K26: 0
C27: ˃ 11 kV & < = 22 kV; Steel | E27: 0 | F27: 0 | G27: 0 | H27: 0 | I27: 0 | J27: 0 | K27: 0
C28: > 22 kV & < = 66 kV; Steel | E28: 0 | F28: 0 | G28: 0 | H28: 0 | I28: 0 | J28: 0 | K28: 0
C29: > 66 kV & < = 132 kV; Steel | E29: 0 | F29: 0 | G29: 0 | H29: 0 | I29: 0 | J29: 0 | K29: 0
C30: > 132 kV; Steel | E30: 0 | F30: 0 | G30: 0 | H30: 0 | I30: 0 | J30: 0 | K30: 0
C31: Other | E31: 0 | F31: 0 | G31: 0 | H31: 0 | I31: 0 | J31: 0 | K31: 0
B32: POLE TOP STRUCTURES BY: HIGHEST OPERATING VOLTAGE | C32: ˂ = 1 kV | E32: 7663438.14 | F32: 6927816.78 | G32: 5633399.24 | H32: 5882167.95 | I32: 5928502.56 | J32: 5964837.53 | K32: 5994381.39
C33: > 1 kV & < = 11 kV | E33: 14267974.97 | F33: 12898377.28 | G33: 10488399.32 | H33: 10951562.94 | I33: 11037829.84 | J33: 11105479.17 | K33: 11160484.64
C34: ˃ 11 kV & < = 22 kV | E34: 4863022.56 | F34: 4396215.99 | G34: 3574811.6 | H34: 3732673.89 | I34: 3762076.65 | J34: 3785133.9 | K34: 3803881.68
C35: > 22 kV & < = 66 kV | E35: 3501782.91 | F35: 3165643.14 | G35: 2574163.3 | H35: 2687837.34 | I35: 2709009.79 | J35: 2725612.93 | K35: 2739112.9
C36: > 66 kV & < = 132 kV | E36: 5538.02 | F36: 5006.42 | G36: 4071.01 | H36: 4250.78 | I36: 4284.26 | J36: 4310.52 | K36: 4331.87
C37: > 132 kV | E37: 0 | F37: 0 | G37: 0 | H37: 0 | I37: 0 | J37: 0 | K37: 0
C38: Other | E38: 0 | F38: 0 | G38: 0 | H38: 0 | I38: 0 | J38: 0 | K38: 0
B39: STAKING WOODEN POLES BY: HIGHEST OPERATING VOLTAGE | C39: ˂ = 1 Kv | D39: for year wooden pole staked | E39: 0 | F39: 0 | G39: 0 | H39: 0 | I39: 0 | J39: 0 | K39: 0
C40: > 1 kV & < = 11 kV | D40: for year wooden pole staked | E40: 0 | F40: 0 | G40: 0 | H40: 0 | I40: 0 | J40: 0 | K40: 0
C41: ˃ 11 kV & < = 22 kV | D41: for year wooden pole staked | E41: 0 | F41: 0 | G41: 0 | H41: 0 | I41: 0 | J41: 0 | K41: 0
C42: > 22 kV & < = 66 kV | D42: for year wooden pole staked | E42: 0 | F42: 0 | G42: 0 | H42: 0 | I42: 0 | J42: 0 | K42: 0
C43: > 66 kV & < = 132 kV | D43: for year wooden pole staked | E43: 0 | F43: 0 | G43: 0 | H43: 0 | I43: 0 | J43: 0 | K43: 0
C44: > 132 kV | D44: for year wooden pole staked | E44: 0 | F44: 0 | G44: 0 | H44: 0 | I44: 0 | J44: 0 | K44: 0
B45: OVERHEAD CONDUCTORS BY: Highest operating voltage; Number of phases (at HV) | C45: ˂ = 1 kV | D45: per km | E45: 98363.06 | F45: 100110.89 | G45: 49691.24 | H45: 51885.58 | I45: 52294.29 | J45: 52614.8 | K45: 52875.4
C46: > 1 kV & < = 11 kV | D46: per km | E46: 2445648.03 | F46: 2489105.08 | G46: 1235497.06 | H46: 1290056.13 | I46: 1300218.07 | J46: 1308186.93 | K46: 1314666.38
C47: ˃ 11 kV & < = 22 kV ; SWER | D47: per km | E47: 2237852.91 | F47: 2277617.92 | G47: 1130522.74 | H47: 1180446.18 | I47: 1189744.71 | J47: 1197036.49 | K47: 1202965.42
C48: ˃ 11 kV & < = 22 kV ; Single-Phase | D48: per km | E48: 0 | F48: 0 | G48: 0 | H48: 0 | I48: 0 | J48: 0 | K48: 0
C49: ˃ 11 kV & < = 22 kV ; Multiple-Phase | D49: per km | E49: 0 | F49: 0 | G49: 0 | H49: 0 | I49: 0 | J49: 0 | K49: 0
C50: > 22 kV & < = 66 kV | D50: per km | E50: 0 | F50: 0 | G50: 0 | H50: 0 | I50: 0 | J50: 0 | K50: 0
C51: > 66 kV & < = 132 kV | D51: per km | E51: 0 | F51: 0 | G51: 0 | H51: 0 | I51: 0 | J51: 0 | K51: 0
C52: > 132 kV | D52: per km | E52: 0 | F52: 0 | G52: 0 | H52: 0 | I52: 0 | J52: 0 | K52: 0
C53: Other | D53: per km | E53: 0 | F53: 0 | G53: 0 | H53: 0 | I53: 0 | J53: 0 | K53: 0
B54: UNDERGROUND CABLES BY: Highest operating voltage | C54: ˂ = 1 kV | D54: per km | E54: 756510.23 | F54: 1020061.1 | G54: 629363.54 | H54: 657155.99 | I54: 662332.5 | J54: 666391.84 | K54: 669692.48
C55: > 1 kV & < = 11 kV | D55: per km | E55: 1247960.05 | F55: 1682720.78 | G55: 3722237.62 | H55: 3886610.18 | I55: 3917225.52 | J55: 3941233.65 | K55: 3960754.59
C56: > 11 kV & < = 22 kV | D56: per km | E56: 0 | F56: 0 | G56: 0 | H56: 0 | I56: 0 | J56: 0 | K56: 0
C57: > 22 kV & < = 33 kV | D57: per km | E57: 0 | F57: 0 | G57: 0 | H57: 0 | I57: 0 | J57: 0 | K57: 0
C58: > 33 kV & < = 66 kV | D58: per km | E58: 0 | F58: 0 | G58: 0 | H58: 0 | I58: 0 | J58: 0 | K58: 0
C59: > 66 kV & < = 132 kV | D59: per km | E59: 0 | F59: 0 | G59: 0 | H59: 0 | I59: 0 | J59: 0 | K59: 0
C60: > 132 kV | D60: per km | E60: 0 | F60: 0 | G60: 0 | H60: 0 | I60: 0 | J60: 0 | K60: 0
C61: Other | D61: per km | E61: 0 | F61: 0 | G61: 0 | H61: 0 | I61: 0 | J61: 0 | K61: 0
B62: SERVICE LINES BY: Connection voltage; Customer type; Connection complexity | C62: ˂ = 11 kV ; Residential ; Simple Type | D62: per number of spans | E62: 8106293.66 | F62: 6521988.52 | G62: 6693430.58 | H62: 6989009.86 | I62: 7044063.21 | J62: 7087235.3 | K62: 7122338.39
C63: ˂ = 11 kV ; Commercial & Industrial ; Simple Type | D63: per number of spans | E63: 0 | F63: 0 | G63: 0 | H63: 0 | I63: 0 | J63: 0 | K63: 0
C64: ˂ = 11 kV ; Residential ; Complex Type | D64: per number of spans | E64: 0 | F64: 0 | G64: 0 | H64: 0 | I64: 0 | J64: 0 | K64: 0
C65: ˂ = 11 kV ; Commercial & Industrial ; Complex Type | D65: per number of spans | E65: 972989.85 | F65: 782827.38 | G65: 803405.39 | H65: 838883.46 | I65: 845491.45 | J65: 850673.35 | K65: 854886.74
C66: ˂ = 11 kV ; Subdivision ; Complex Type | D66: per number of spans | E66: 0 | F66: 0 | G66: 0 | H66: 0 | I66: 0 | J66: 0 | K66: 0
C67: > 11 kV & < = 22 kV ; Commercial & Industrial | D67: per number of spans | E67: 0 | F67: 0 | G67: 0 | H67: 0 | I67: 0 | J67: 0 | K67: 0
C68: > 11 kV & < = 22 kV ; Subdivision | D68: per number of spans | E68: 0 | F68: 0 | G68: 0 | H68: 0 | I68: 0 | J68: 0 | K68: 0
C69: > 22 kV & < = 33 kV ; Commercial & Industrial | D69: per number of spans | E69: 0 | F69: 0 | G69: 0 | H69: 0 | I69: 0 | J69: 0 | K69: 0
C70: > 22 kV & < = 33 kV ; Subdivision | D70: per number of spans | E70: 0 | F70: 0 | G70: 0 | H70: 0 | I70: 0 | J70: 0 | K70: 0
C71: > 33 kV & < = 66 kV ; Commercial & Industrial | D71: per number of spans | E71: 0 | F71: 0 | G71: 0 | H71: 0 | I71: 0 | J71: 0 | K71: 0
C72: > 33 kV & < = 66 kV ; Subdivision | D72: per number of spans | E72: 0 | F72: 0 | G72: 0 | H72: 0 | I72: 0 | J72: 0 | K72: 0
C73: > 66 kV & < = 132 kV ; Commercial & Industrial | D73: per number of spans | E73: 0 | F73: 0 | G73: 0 | H73: 0 | I73: 0 | J73: 0 | K73: 0
C74: > 66 kV & < = 132 kV ; Subdivision | D74: per number of spans | E74: 0 | F74: 0 | G74: 0 | H74: 0 | I74: 0 | J74: 0 | K74: 0
C75: > 132 kV ; Commercial & Industrial | D75: per number of spans | E75: 0 | F75: 0 | G75: 0 | H75: 0 | I75: 0 | J75: 0 | K75: 0
C76: > 132 kV ; Subdivision | D76: per number of spans | E76: 0 | F76: 0 | G76: 0 | H76: 0 | I76: 0 | J76: 0 | K76: 0
C77: Other | D77: per number of spans | E77: 0 | F77: 0 | G77: 0 | H77: 0 | I77: 0 | J77: 0 | K77: 0
B78: TRANSFORMERS BY: Mounting type; Highest operating voltage; Ampere rating; Number of phases (at LV) | C78: Pole Mounted ; < = 22kV ; < = 60 kVA ; Single Phase | E78: 4227847.04 | F78: 4150036.61 | G78: 3433239.34 | H78: 3584849.85 | I78: 3613088.18 | J78: 3635232.3 | K78: 3653237.62
C79: Pole Mounted ; < = 22kV ; > 60 kVA and < = 600 kVA ; Single Phase | E79: 696056.37 | F79: 713439.83 | G79: 566263.18 | H79: 532102.62 | I79: 417028.9 | J79: 359586.76 | K79: 361367.79
C80: Pole Mounted ; < = 22kV ; > 600 kVA ; Single Phase | E80: 0 | F80: 0 | G80: 0 | H80: 0 | I80: 0 | J80: 0 | K80: 0
C81: Pole Mounted ; < = 22kV ; < = 60 kVA ; Multiple Phase | E81: 944016.95 | F81: 926643.01 | G81: 766592.57 | H81: 800445 | I81: 806750.21 | J81: 811694.67 | K81: 815715
C82: Pole Mounted ; < = 22kV ; > 60 kVA and < = 600 kVA ; Multiple Phase | E82: 1892833.15 | F82: 1857996.94 | G82: 1537082.39 | H82: 1604959.35 | I82: 1617601.83 | J82: 1627515.88 | K82: 1635576.97
C83: Pole Mounted ; < = 22kV ; > 600 kVA ; Multiple Phase | E83: 11443.75 | F83: 11233.14 | G83: 9292.94 | H83: 9703.31 | I83: 9779.75 | J83: 9839.69 | K83: 9888.42
C84: Kiosk Mounted ; < = 22kV ; < = 60 kVA ; Single Phase | E84: 2986.86 | F84: 2931.89 | G84: 2425.49 | H84: 2532.6 | I84: 2552.55 | J84: 2568.19 | K84: 2580.91
C85: Kiosk Mounted ; < = 22kV ; > 60 kVA and < = 600 kVA ; Single Phase | E85: 187918.49 | F85: 184459.99 | G85: 152599.93 | H85: 159338.68 | I85: 160593.81 | J85: 161578.07 | K85: 162378.37
C86: Kiosk Mounted ; < = 22kV ; > 600 kVA ; Single Phase | E86: 73079.41 | F86: 71734.44 | G86: 59344.42 | H86: 61965.04 | I86: 62453.15 | J86: 62835.92 | K86: 63147.14
C87: Kiosk Mounted ; < = 22kV ; < = 60 kVA ; Multiple Phase | E87: 49009.63 | F87: 48107.64 | G87: 39798.46 | H87: 41555.94 | I87: 41883.28 | J87: 42139.98 | K87: 42348.7
C88: Kiosk Mounted ; < = 22kV ; > 60 kVA and < = 600 kVA ; Multiple Phase | E88: 868946.22 | F88: 852953.9 | G88: 705631.1 | H88: 736791.49 | I88: 742595.3 | J88: 747146.56 | K88: 750847.18
C89: Kiosk Mounted ; < = 22kV ; > 600 kVA ; Multiple Phase | E89: 289573.41 | F89: 284244.02 | G89: 235149.19 | H89: 245533.29 | I89: 247467.39 | J89: 248984.08 | K89: 250217.3
C90: Ground Outdoor / Indoor Chamber Mounted; ˂ 22 kV ; < = 60 kVA ; Single Phase | E90: 0 | F90: 0 | G90: 0 | H90: 0 | I90: 0 | J90: 0 | K90: 0
C91: Ground Outdoor / Indoor Chamber Mounted; ˂ 22 kV ; > 60 kVA and < = 600 kVA ; Single Phase | E91: 0 | F91: 0 | G91: 0 | H91: 0 | I91: 0 | J91: 0 | K91: 0
C92: Ground Outdoor / Indoor Chamber Mounted; ˂ 22 kV ; > 600 kVA ; Single Phase | E92: 0 | F92: 0 | G92: 0 | H92: 0 | I92: 0 | J92: 0 | K92: 0
C93: Ground Outdoor / Indoor Chamber Mounted; ˂ 22 kV ; < = 60 kVA ; Multiple Phase | E93: 0 | F93: 0 | G93: 0 | H93: 0 | I93: 0 | J93: 0 | K93: 0
C94: Ground Outdoor / Indoor Chamber Mounted; ˂ 22 kV ; > 60 kVA and < = 600 kVA ; Multiple Phase | E94: 0 | F94: 0 | G94: 0 | H94: 0 | I94: 0 | J94: 0 | K94: 0
C95: Ground Outdoor / Indoor Chamber Mounted; ˂ 22 kV ; > 600 kVA ; Multiple Phase | E95: 40621.32 | F95: 88576.06 | G95: 66273.97 | H95: 69200.6 | I95: 69745.71 | J95: 70173.17 | K95: 70520.74
C96: Ground Outdoor / Indoor Chamber Mounted; > = 22 kV & < = 33 kV ; < = 15 MVA | E96: 739308.11 | F96: 1612084.21 | G96: 1206186.28 | H96: 1259451 | I96: 1269371.86 | J96: 1277151.66 | K96: 1283477.4
C97: Ground Outdoor / Indoor Chamber Mounted; > = 22 kV & < = 33 kV ; > 15 MVA and < = 40 MVA | E97: 0 | F97: 0 | G97: 0 | H97: 0 | I97: 0 | J97: 0 | K97: 0
C98: Ground Outdoor / Indoor Chamber Mounted; > = 22 kV & < = 33 kV ; > 40 MVA | E98: 0 | F98: 0 | G98: 0 | H98: 0 | I98: 0 | J98: 0 | K98: 0
C99: Ground Outdoor / Indoor Chamber Mounted; > 33 kV & < = 66 kV ; < = 15 MVA | E99: 1943053.37 | F99: 1718080.22 | G99: 727246.38 | H99: 759361.3 | I99: 765342.89 | J99: 770033.57 | K99: 773847.55
C100: Ground Outdoor / Indoor Chamber Mounted; > 33 kV & < = 66 kV ; > 15 MVA and < = 40 MVA | E100: 3344759.88 | F100: 3276723.55 | G100: 1700369.2 | H100: 1775456.84 | I100: 2580126.17 | J100: 1800409.59 | K100: 1009856.94
C101: Ground Outdoor / Indoor Chamber Mounted; > 33 kV & < = 66 kV ; > 40 MVA | E101: 0 | F101: 0 | G101: 0 | H101: 0 | I101: 0 | J101: 0 | K101: 0
C102: Ground Outdoor / Indoor Chamber Mounted; > 66 kV & < = 132 kV ; < = 100 MVA | E102: 0 | F102: 0 | G102: 0 | H102: 0 | I102: 0 | J102: 0 | K102: 0
C103: Ground Outdoor / Indoor Chamber Mounted; > 66 kV & < = 132 kV ; > 100 MVA | E103: 0 | F103: 0 | G103: 0 | H103: 0 | I103: 0 | J103: 0 | K103: 0
C104: Ground Outdoor / Indoor Chamber Mounted; > 132 kV ; < = 100 MVA | E104: 0 | F104: 0 | G104: 0 | H104: 0 | I104: 0 | J104: 0 | K104: 0
C105: Ground Outdoor / Indoor Chamber Mounted; > 132 kV ; > 100 MVA | E105: 0 | F105: 0 | G105: 0 | H105: 0 | I105: 0 | J105: 0 | K105: 0
C106: Other | E106: 0 | F106: 0 | G106: 0 | H106: 0 | I106: 0 | J106: 0 | K106: 0
B107: SWITCHGEAR BY: Highest operating voltage; Switch function | C107: ˂ = 11 kV ; FUSE | E107: 0 | F107: 0 | G107: 0 | H107: 0 | I107: 0 | J107: 0 | K107: 0
C108: ˂ = 11 kV ; Switch | E108: 205814.71 | F108: 89757.07 | G108: 67157.62 | H108: 140246.56 | I108: 70675.65 | J108: 0 | K108: 0
C109: ˂ = 11 kV ; Circuit Breaker | E109: 11975587.33 | F109: 8897247.14 | G109: 6104322.81 | H109: 6373887.32 | I109: 5545950.33 | J109: 5579940.68 | K109: 6495481.23
C110: > 11 kV & < = 22 kV ; Switch | E110: 0 | F110: 0 | G110: 0 | H110: 0 | I110: 0 | J110: 0 | K110: 0
C111: > 11 kV & < = 22 kV ; Circuit Breaker | E111: 0 | F111: 0 | G111: 0 | H111: 0 | I111: 0 | J111: 0 | K111: 0
C112: > 22 kV & < = 33 kV ; Switch | E112: 143535.18 | F112: 56771.35 | G112: 42477.2 | H112: 44352.97 | I112: 44702.35 | J112: 44976.32 | K112: 45199.08
C113: > 22 kV & < = 33 kV ; Circuit Breaker | E113: 3566457.98 | F113: 2691001.87 | G113: 2619401.74 | H113: 2735073.5 | I113: 4502306.57 | J113: 4529900.58 | K113: 2787250.18
C114: > 33 kV & < = 66 kV ; Switch | E114: 62485.35 | F114: 85157.02 | G114: 63715.8 | H114: 66529.46 | I114: 67053.52 | J114: 67464.48 | K114: 67798.64
C115: > 33 kV & < = 66 kV ; Circuit Breaker | E115: 828715.2 | F115: 1066385.46 | G115: 820645.82 | H115: 935773.91 | I115: 943145.12 | J115: 868928.12 | K115: 873231.92
C116: > 66 kV & < = 132 kV ; Switch | E116: 0 | F116: 0 | G116: 0 | H116: 0 | I116: 0 | J116: 0 | K116: 0
C117: > 66 kV & < = 132 kV ; Circuit Breaker | E117: 0 | F117: 0 | G117: 0 | H117: 0 | I117: 0 | J117: 0 | K117: 0
C118: > 132 kV ; Switch | E118: 0 | F118: 0 | G118: 0 | H118: 0 | I118: 0 | J118: 0 | K118: 0
C119: > 132 kV ; Circuit Breaker | E119: 0 | F119: 0 | G119: 0 | H119: 0 | I119: 0 | J119: 0 | K119: 0
C120: Other | E120: 0 | F120: 0 | G120: 0 | H120: 0 | I120: 0 | J120: 0 | K120: 0
B121: PUBLIC LIGHTING BY: Asset type ; Lighting obligation | C121: Luminaires ; Major Road | E121: 0 | F121: 0 | G121: 0 | H121: 0 | I121: 0 | J121: 0 | K121: 0
C122: Luminaires ; Minor Road | E122: 0 | F122: 0 | G122: 0 | H122: 0 | I122: 0 | J122: 0 | K122: 0
C123: Brackets ; Major Road | E123: 0 | F123: 0 | G123: 0 | H123: 0 | I123: 0 | J123: 0 | K123: 0
C124: Brackets ; Minor Road | E124: 0 | F124: 0 | G124: 0 | H124: 0 | I124: 0 | J124: 0 | K124: 0
C125: Lamps ; Major Road | E125: 0 | F125: 0 | G125: 0 | H125: 0 | I125: 0 | J125: 0 | K125: 0
C126: Lamps ; Minor Road | E126: 0 | F126: 0 | G126: 0 | H126: 0 | I126: 0 | J126: 0 | K126: 0
C127: Poles / Columns ; Major Road | E127: 0 | F127: 0 | G127: 0 | H127: 0 | I127: 0 | J127: 0 | K127: 0
C128: Poles / Columns ; Minor Road | E128: 0 | F128: 0 | G128: 0 | H128: 0 | I128: 0 | J128: 0 | K128: 0
C129: Other | E129: 0 | F129: 0 | G129: 0 | H129: 0 | I129: 0 | J129: 0 | K129: 0
B130: SCADA, NETWORK CONTROL AND PROTECTION SYSTEMS BY: Function | C130: Field Devices | E130: 3992095.36 | F130: 4071952.88 | G130: 3240355.38 | H130: 3427275.26 | I130: 3339424.43 | J130: 3182119.27 | K130: 3180015.07
C131: Local Network Wiring Assets | E131: 0 | F131: 0 | G131: 0 | H131: 0 | I131: 0 | J131: 0 | K131: 0
C132: Communications Network Assets | E132: 4412719.52 | F132: 5363378.89 | G132: 4890754.09 | H132: 5037481.51 | I132: 4248931.56 | J132: 4810955.02 | K132: 4761536.25
C133: Master Station Assets | E133: 0 | F133: 0 | G133: 0 | H133: 0 | I133: 0 | J133: 0 | K133: 0
C134: Communications Site Infrastructure | E134: 236123.31 | F134: 371792.13 | G134: 277025.66 | H134: 289259 | I134: 291537.54 | J134: 293324.33 | K134: 817334.83
C135: Communications Linear Assets | E135: 335844 | F135: 2635953.95 | G135: 1093936.76 | H135: 482097.67 | I135: 485895.22 | J135: 488873.21 | K135: 491294.6
C136: AFLC | E136: 0 | F136: 0 | G136: 0 | H136: 0 | I136: 0 | J136: 0 | K136: 0
C137: Other | E137: 0 | F137: 0 | G137: 0 | H137: 0 | I137: 0 | J137: 0 | K137: 0
B138: OTHER BY: enter DNSP defined asset group here | C138: ˂ = 1 kV; stobie pole | E138: 11773254.35 | F138: 12640943.45 | G138: 6794248.43 | H138: 7094279.79 | I138: 7150162.36 | J138: 7193984.71 | K138: 7229616.54
C139: > 1 kV & < = 11 kV; stobie pole | E139: 10507613.84 | F139: 11282025.2 | G139: 14097205.16 | H139: 14719732.25 | I139: 14835681.52 | J139: 14926607.34 | K139: 15000538.87
C140: ˃ 11 kV & < = 22 kV; stobie pole | E140: 3138769.3 | F140: 3370096.66 | G140: 3623105.01 | H140: 3783099.92 | I140: 3812899.89 | J140: 3836268.62 | K140: 3855269.67
C141: > 22 kV & < = 66 kV; stobie pole | E141: 773689.54 | F141: 830710.48 | G141: 1350834.39 | H141: 1410486.71 | I141: 1421597.3 | J141: 1430310.07 | K141: 1437394.4
C142: > 66 kV & < = 132 kV; stobie pole | E142: 0 | F142: 0 | G142: 0 | H142: 0 | I142: 0 | J142: 0 | K142: 0
C143: > 132 kV; stobie pole | E143: 0 | F143: 0 | G143: 0 | H143: 0 | I143: 0 | J143: 0 | K143: 0
C144: Pole REFURBISHED; STOBIE Pole | E144: 6818552.99 | F144: 7321080.5 | G144: 6631931.41 | H144: 6924794.91 | I144: 6979342.43 | J144: 7022117.85 | K144: 7056898.42
C145: Pole Mounted ;> = 22 kV & < = 33 kV ; < = 60kVA | E145: 88222.64 | F145: 86598.97 | G145: 71641.53 | H145: 74805.19 | I145: 75394.44 | J145: 75856.53 | K145: 76232.24
C146: Pole Mounted ;> = 22 kV & < = 33 kV ; > 60 KVA AND < = 600 KVA | E146: 244581.51 | F146: 240080.16 | G146: 198613.35 | H146: 207384.03 | I146: 209017.63 | J146: 210298.67 | K146: 211340.28
C147: Kiosk Mounted; > = 22 kV & < = 33 kV ; | E147: 3554.85 | F147: 3489.42 | G147: 2886.73 | H147: 3014.2 | I147: 3037.95 | J147: 3056.57 | K147: 3071.71
C148: Recloser ;SWITCHGEAR | E148: 5914867.17 | F148: 5105526.59 | G148: 3321803.34 | H148: 3468492.88 | I148: 3495814.65 | J148: 3517240.01 | K148: 3534660.92
C149: Sectionalizer ;SWITCHGEAR | E149: 101649.87 | F149: 87740.96 | G149: 57086.81 | H149: 59607.74 | I149: 60077.28 | J149: 60445.48 | K149: 60744.87
C150: >= 11 kV & < ≈ 22 kV ; LOAD BREAK SWITCH; GROUND LEVEL (Switching Cubicle);SWITCHGEAR | E150: 6347272.21 | F150: 6631403.18 | G150: 3781409.75 | H150: 3948395.34 | I150: 3979497.36 | J150: 4003887.15 | K150: 4023718.41
C151: > 22 kV & < ≈ 33 kV ; LOAD BREAK SWITCH; GROUND LEVEL (Switching Cubicle);SWITCHGEAR | E151: 0 | F151: 0 | G151: 0 | H151: 0 | I151: 0 | J151: 0 | K151: 0
C152: Non Category Substation asset replacement/refurbishment | E152: 5106319.91 | F152: 6806273.24 | G152: 5353965.72 | H152: 5305535.1 | I152: 5320824.13 | J152: 5346653.06 | K152: 4865204.71
C153: Pipe Buswork Substations | E153: 2243380.36 | F153: 3598697.51 | G153: 2593963.25 | H153: 2708511.65 | I153: 2729846.96 | J153: 2577694.38 | K153: 2215291.39
C154: ˂ = 11 kV ; Circuit Breaker REFURBISHED | E154: 1435557.62 | F154: 1352843.13 | G154: 529214.86 | H154: 214109.72 | I154: 215796.29 | J154: 217118.87 | K154: 218194.26
C155: > 22 kV & < = 33 kV ; Circuit Breaker REFURBISHED | E155: 46308.31 | F155: 116276.2 | G155: 148815.19 | H155: 155386.81 | I155: 156610.81 | J155: 157570.66 | K155: 158351.11
C156: > 33 kV & < = 66 kV ; Circuit Breaker REFURBISHED | E156: 77180.52 | F156: 112196.34 | G156: 83947.03 | H156: 87654.1 | I156: 88344.56 | J156: 88886.01 | K156: 89326.27
C157: Ground Outdoor / Indoor Chamber Mounted; > = 22 kV & < = 33 kV ; < = 15 MVA REFURBISHED | E157: 336490.71 | F157: 428242.2 | G157: 264433.15 | H157: 219135.25 | I157: 167854.67 | J157: 168883.43 | K157: 169719.91
C158: Ground Outdoor / Indoor Chamber Mounted; > 33 kV & < = 66 kV ; < = 15 MVA REFURBISHED | E158: 499023.8 | F158: 428242.2 | G158: 264433.15 | H158: 219135.25 | I158: 167854.67 | J158: 168883.43 | K158: 169719.91
C159: Ground Outdoor / Indoor Chamber Mounted; > 33 kV & < = 66 kV ; > 15 MVA and < = 40 MVA REFURBISHED | E159: 1226182.92 | F159: 1284726.6 | G159: 793299.44 | H159: 657405.74 | I159: 503564 | J159: 506650.28 | K159: 509159.72
C160: Northfield GIS Replacement | E160: 391047.95 | F160: 190733.77 | G160: 1049337.88 | H160: 3681472.15 | I160: 4417228.08 | J160: 1777720.26 | K160: 0
C161: ˂ = 11 kV ; Switch REFURBISHED | E161: 11115.48 | F161: 18729.09 | G161: 14837.71 | H161: 15492.94 | I161: 15614.98 | J161: 15710.68 | K161: 15788.5
C162: > 22 kV & < = 33 kV ; Switch REFURBISHED | E162: 65650.81 | F162: 110618.7 | G162: 87635.24 | H162: 91505.18 | I162: 92225.98 | J162: 92791.22 | K162: 93250.82
C163: > 33 kV & < = 66 kV ; Switch REFURBISHED | E163: 141140.04 | F163: 225753.61 | G163: 177490.39 | H163: 185328.3 | I163: 174640.77 | J163: 163489.3 | K163: 164299.06
C164: OTHER - Non Category Line asset replacement/refurbishment | E164: 2583318.02 | F164: 3257448.18 | G164: 4495217.11 | H164: 4720078.1 | I164: 4777136.3 | J164: 4835302.66 | K164: 4868184.56
B182: ASSET REPLACEMENTS
E183: ASSET REPLACEMENTS (0's)
B184: ASSET GROUP | C184: ASSET CATEGORY | E184: =CRCP_y4 -> 2018-19 | F184: =CRCP_y5 -> 2019-20 | G184: =FRCP_y1 -> 2020-21 | H184: =FRCP_y2 -> 2021-22 | I184: =FRCP_y3 -> 2022-23 | J184: =FRCP_y4 -> 2023-24 | K184: =FRCP_y5 -> 2024-25
B185: POLES BY: HIGHEST OPERATING VOLTAGE ; MATERIAL TYPE | C185: Staking of a wooden pole | E185: 0 | F185: 0 | G185: 0 | H185: 0 | I185: 0 | J185: 0 | K185: 0
C186: ˂ = 1 kV; Wood | E186: 0 | F186: 0 | G186: 0 | H186: 0 | I186: 0 | J186: 0 | K186: 0
C187: > 1 kV & < = 11 kV; Wood | E187: 0 | F187: 0 | G187: 0 | H187: 0 | I187: 0 | J187: 0 | K187: 0
C188: ˃ 11 kV & < = 22 kV; Wood | E188: 0 | F188: 0 | G188: 0 | H188: 0 | I188: 0 | J188: 0 | K188: 0
C189: > 22 kV & < = 66 kV; Wood | E189: 0 | F189: 0 | G189: 0 | H189: 0 | I189: 0 | J189: 0 | K189: 0
C190: > 66 kV & < = 132 kV; Wood | E190: 0 | F190: 0 | G190: 0 | H190: 0 | I190: 0 | J190: 0 | K190: 0
C191: > 132 kV; Wood | E191: 0 | F191: 0 | G191: 0 | H191: 0 | I191: 0 | J191: 0 | K191: 0
C192: ˂ = 1 kV; Concrete | E192: 0 | F192: 0 | G192: 0 | H192: 0 | I192: 0 | J192: 0 | K192: 0
C193: > 1 kV & < = 11 kV; Concrete | E193: 0 | F193: 0 | G193: 0 | H193: 0 | I193: 0 | J193: 0 | K193: 0
C194: ˃ 11 kV & < = 22 kV; Concrete | E194: 0 | F194: 0 | G194: 0 | H194: 0 | I194: 0 | J194: 0 | K194: 0
C195: > 22 kV & < = 66 kV; Concrete | E195: 0 | F195: 0 | G195: 0 | H195: 0 | I195: 0 | J195: 0 | K195: 0
C196: > 66 kV & < = 132 kV; Concrete | E196: 0 | F196: 0 | G196: 0 | H196: 0 | I196: 0 | J196: 0 | K196: 0
C197: > 132 kV; Concrete | E197: 0 | F197: 0 | G197: 0 | H197: 0 | I197: 0 | J197: 0 | K197: 0
C198: ˂ = 1 kV; Steel | E198: 0 | F198: 0 | G198: 0 | H198: 0 | I198: 0 | J198: 0 | K198: 0
C199: > 1 kV & < = 11 kV; Steel | E199: 0 | F199: 0 | G199: 0 | H199: 0 | I199: 0 | J199: 0 | K199: 0
C200: ˃ 11 kV & < = 22 kV; Steel | E200: 0 | F200: 0 | G200: 0 | H200: 0 | I200: 0 | J200: 0 | K200: 0
C201: > 22 kV & < = 66 kV; Steel | E201: 0 | F201: 0 | G201: 0 | H201: 0 | I201: 0 | J201: 0 | K201: 0
C202: > 66 kV & < = 132 kV; Steel | E202: 0 | F202: 0 | G202: 0 | H202: 0 | I202: 0 | J202: 0 | K202: 0
C203: > 132 kV; Steel | E203: 0 | F203: 0 | G203: 0 | H203: 0 | I203: 0 | J203: 0 | K203: 0
C204: Other | E204: 0 | F204: 0 | G204: 0 | H204: 0 | I204: 0 | J204: 0 | K204: 0
B205: POLE TOP STRUCTURES BY: HIGHEST OPERATING VOLTAGE | C205: ˂ = 1 kV | E205: 6181.718145 | F205: 5125.658635 | G205: 5570.538192 | H205: 5570.538192 | I205: 5570.538192 | J205: 5570.538192 | K205: 5570.538192
C206: > 1 kV & < = 11 kV | E206: 6680.007117 | F206: 5538.821952 | G206: 6019.561859 | H206: 6019.561859 | I206: 6019.561859 | J206: 6019.561859 | K206: 6019.561859
C207: ˃ 11 kV & < = 22 kV | E207: 1791.017625 | F207: 1485.04748 | G207: 1613.941601 | H207: 1613.941601 | I207: 1613.941601 | J207: 1613.941601 | K207: 1613.941601
C208: > 22 kV & < = 66 kV | E208: 606.5233036 | F208: 502.9073367 | G208: 546.5569843 | H208: 546.5569843 | I208: 546.5569843 | J208: 546.5569843 | K208: 546.5569843
C209: > 66 kV & < = 132 kV | E209: 1.267123862 | F209: 1.050653591 | G209: 1.141844662 | H209: 1.141844662 | I209: 1.141844662 | J209: 1.141844662 | K209: 1.141844662
C210: > 132 kV | E210: 0 | F210: 0 | G210: 0 | H210: 0 | I210: 0 | J210: 0 | K210: 0
C211: Other | E211: 0 | F211: 0 | G211: 0 | H211: 0 | I211: 0 | J211: 0 | K211: 0
B212: STAKING WOODEN POLES BY: HIGHEST OPERATING VOLTAGE | C212: ˂ = 1 Kv | D212: for year wooden pole staked | E212: 0 | F212: 0 | G212: 0 | H212: 0 | I212: 0 | J212: 0 | K212: 0
C213: > 1 kV & < = 11 kV | D213: for year wooden pole staked | E213: 0 | F213: 0 | G213: 0 | H213: 0 | I213: 0 | J213: 0 | K213: 0
C214: ˃ 11 kV & < = 22 kV | D214: for year wooden pole staked | E214: 0 | F214: 0 | G214: 0 | H214: 0 | I214: 0 | J214: 0 | K214: 0
C215: > 22 kV & < = 66 kV | D215: for year wooden pole staked | E215: 0 | F215: 0 | G215: 0 | H215: 0 | I215: 0 | J215: 0 | K215: 0
C216: > 66 kV & < = 132 kV | D216: for year wooden pole staked | E216: 0 | F216: 0 | G216: 0 | H216: 0 | I216: 0 | J216: 0 | K216: 0
C217: > 132 kV | D217: for year wooden pole staked | E217: 0 | F217: 0 | G217: 0 | H217: 0 | I217: 0 | J217: 0 | K217: 0
B218: OVERHEAD CONDUCTORS BY: Highest operating voltage; Number of phases (at HV) | C218: ˂ = 1 kV | D218: per km | E218: 1.54182432 | F218: 1.439301939 | G218: 0.954824901 | H218: 0.954824901 | I218: 0.954824901 | J218: 0.954824901 | K218: 0.954824901
C219: > 1 kV & < = 11 kV | D219: per km | E219: 98.95385223 | F219: 92.37399457 | G219: 61.28039424 | H219: 61.28039424 | I219: 61.28039424 | J219: 61.28039424 | K219: 61.28039424
... 274 more rows

Sheet 2.3 Augex (a)
B1: =SheetHeader -> REGULATORY REPORTING STATEMENT
B2: =dms_TradingName -> SA Power Networks
B3: =dms_Reg_Year_Span -> 2020-21 to 2024-25
B4: 2.3 AUGEX PROJECT DATA
B6: There are TWO tables on this worksheet - each has been 'grouped' (and sub-grouped) for easy navigation. Both ROWS and COLUMNS have been grouped. See the Instructions sheet on how to group or ungroup tables.
B9: 2.3.1 - AUGEX ASSET DATA - SUBTRANSMISSION SUBSTATIONS, SWITCHING STATIONS AND ZONE SUBSTATIONS
B10: PROJECT DESCRIPTION AND CHANGES | L10: PLANT AND EQUIPMENT EXPENDITURE AND VOLUME | X10: OTHER EXPENDITURE | Z10: TOTAL DIRECT EXPENDITURE ($0's) | AA10: YEARS INCURRED | AB10: ALL RELATED PARTY CONTRACTS | AD10: ALL NON-RELATED PARTY CONTRACTS | AE10: LAND AND EASEMENTS
B11: SUBSTATION ID | C11: SUBSTATION TYPE | D11: PROJECT ID | E11: PROJECT TYPE (drop down) | F11: PROJECT TRIGGER (drop down) | G11: VOLTAGE (KV) | H11: SUBSTATION RATING NORMAL CYCLIC (MVA) | J11: SUBSTATION RATING N-1 EMERGENCY (MVA) | L11: TRANSFORMERS | O11: SWITCHGEAR | R11: CAPACITORS | U11: OTHER PLANT ITEM | V11: INSTALLATION (LABOUR) | X11: CIVIL WORKS | Y11: OTHER DIRECT | AB11: RELATED PARTY MARGINS | AC11: TOTAL | AE11: LAND PURCHASE | AF11: EASEMENTS
H12: PRE | I12: POST | J12: PRE | K12: POST | L12: UNITS ADDED | M12: MVA ADDED | N12: =CONCATENATE("EXPENDITURE ($0's, real ", dms_DollarReal,")") -> EXPENDITURE ($0's, real June 2020) | O12: UNITS ADDED | Q12: =CONCATENATE("EXPENDITURE ($0's, real ", dms_DollarReal,")") -> EXPENDITURE ($0's, real June 2020) | R12: MVAR ADDED | T12: =CONCATENATE("EXPENDITURE ($0's, real ", dms_DollarReal,")") -> EXPENDITURE ($0's, real June 2020) | U12: =CONCATENATE("EXPENDITURE ($0's, real ", dms_DollarReal,")") -> EXPENDITURE ($0's, real June 2020) | V12: VOLUME | W12: =CONCATENATE("EXPENDITURE ($0's, real ", dms_DollarReal,")") -> EXPENDITURE ($0's, real June 2020) | X12: =CONCATENATE("EXPENDITURE ($0's, real ", dms_DollarReal,")") -> EXPENDITURE ($0's, real June 2020) | AB12: =CONCATENATE("EXPENDITURE ($0's, real ", dms_DollarReal,")") -> EXPENDITURE ($0's, real June 2020) | AE12: =CONCATENATE("EXPENDITURE ($0's, real ", dms_DollarReal,")") -> EXPENDITURE ($0's, real June 2020)
B13: Murray Bridge North | C13: Zone substation | D13: Murray Bridge North Sub Upgrade | E13: Capacity upgrade | F13: Demand growth | G13: 33/11 | H13: 26.01382979 | I13: 55.9 | J13: 14.8 | K13: 31.4 | L13: 2 | M13: 29.88617021 | N13: 1161488.849 | O13: 28 | Q13: 795484.3429 | R13: 0 | S13: 0 | T13: 0 | U13: 1824820.455 | V13: 16849.0219 | W13: 4991522.737 | X13: 1732671.983 | Y13: 205612.7823 | Z13: =SUM(N13,Q13,T13,U13,W13,X13,Y13) -> 10711601.15 | AA13: 2025,2026 | AB13: 0 | AC13: 0 | AD13: 10711601.15 | AE13: 0 | AF13: 0
B14: Myponga | C14: Zone substation | D14: Myponga to Square Water Hole new 66kV line | E14: Other | F14: Other | G14: 66/11 | H14: 14.10200297 | I14: 14.10200297 | J14: 7.5 | K14: 7.5 | L14: 0 | M14: 0 | N14: 0 | O14: 3 | Q14: 130667.759 | R14: 0 | S14: 0 | T14: 0 | U14: 490536.8005 | V14: 2767.652126 | W14: 819916.9423 | X14: 284611.969 | Y14: 33774.34355 | Z14: 1759507.814 | AA14: 2019, 2020,2021 | AB14: 0 | AC14: 0 | AD14: 1759507.814 | AE14: 0 | AF14: 0
B15: Square Water Hole | C15: Zone substation | D15: Myponga to Square Water Hole new 66kV line | E15: Other | F15: Other | G15: 66/11 | H15: 7.125 | I15: 7.125 | J15: 0 | K15: 0 | L15: 0 | M15: 0 | N15: 0 | O15: 3 | Q15: 130667.759 | R15: 0 | S15: 0 | T15: 0 | U15: 490536.8005 | V15: 2767.652126 | W15: 819916.9423 | X15: 284611.969 | Y15: 33774.34355 | Z15: 1759507.814 | AA15: 2019, 2020,2021 | AB15: 0 | AC15: 0 | AD15: 1759507.814 | AE15: 0 | AF15: 0
B16: Athol Park | C16: Zone substation | D16: Athol Park to Woodville New 66kV Line | E16: Other | F16: Demand growth | G16: 66/11 | H16: 26.50661626 | I16: 26.50661626 | J16: 14.3 | K16: 14.3 | L16: 0 | M16: 0 | N16: 0 | O16: 8 | Q16: 667841.3231 | R16: 0 | S16: 0 | T16: 0 | U16: 330936.53 | V16: 4449.854088 | W16: 1318269.274 | X16: 457601.4889 | Y16: 54302.67022 | Z16: 2828951.286 | AA16: 2024,2025,2026 | AB16: 0 | AC16: 0 | AD16: 2828951.286 | AE16: 0 | AF16: 0
B17: Port Adelaide North | C17: Zone substation | D17: Athol Park to Woodville New 66kV Line | E17: Other | F17: Demand growth | G17: 66/11 | H17: 47.19207921 | I17: 47.19207921 | J17: 25.3 | K17: 25.3 | L17: 0 | M17: 0 | N17: 0 | O17: 3 | Q17: 74765.74684 | R17: 0 | S17: 0 | T17: 0 | U17: 280676.3545 | V17: 1583.60088 | W17: 469141.7608 | X17: 162849.8612 | Y17: 19325.07329 | Z17: 1006758.797 | AA17: 2024,2025,2026 | AB17: 0 | AC17: 0 | AD17: 1006758.797 | AE17: 0 | AF17: 0
B18: Woodville | C18: Zone substation | D18: Athol Park to Woodville New 66kV Line | E18: Other | F18: Demand growth | G18: 66/11 | H18: 28.2 | I18: 28.2 | J18: 0 | K18: 0 | L18: 0 | M18: 0 | N18: 0 | O18: 9 | Q18: 442953.5524 | R18: 0 | S18: 0 | T18: 0 | U18: 219497.5161 | V18: 2951.417661 | W18: 874357.4821 | X18: 303509.5285 | Y18: 36016.87983 | Z18: 1876334.959 | AA18: 2024,2025,2026 | AB18: 0 | AC18: 0 | AD18: 1876334.959 | AE18: 0 | AF18: 0
Z19: 0
Z20: 0
Z21: 0
Z22: 0
Z23: 0
Z24: 0
Z25: 0
Z26: 0
Z27: 0
Z28: 0
Z29: 0
Z30: 0
Z31: 0
Z32: 0
Z33: 0
Z34: 0
Z35: 0
Z36: 0
Z37: 0
Z38: 0
Z39: 0
Z40: 0
Z41: 0
Z42: 0
Z43: 0
Z44: 0
Z45: =SUM(N45,Q45,T45,U45,W45,X45,Y45) -> 0
Z46: 0
Z47: 0
Z48: 0
Z49: 0
Z50: 0
Z51: 0
Z52: 0
Z53: 0
Z54: 0
Z55: 0
Z56: 0
Z57: 0
Z58: 0
Z59: 0
Z60: 0
Z61: 0
Z62: 0
Z63: 0
Z64: 0
D65: Non material projects - [forecast] | Z65: 31135865
B68: 2.3.2 - AUGEX ASSET DATA - SUBTRANSMISSION LINES
B69: PROJECT DESCRIPTION AND CHANGES | L69: PLANT AND EQUIPMENT EXPENDITURE AND VOLUME | X69: OTHER EXPENDITURE | Z69: TOTAL DIRECT EXPENDITURE ($0's) | AA69: YEARS INCURRED | AB69: ALL RELATED PARTY CONTRACTS | AD69: ALL NON RELATED PARTY CONTRACTS | AE69: LAND AND EASEMENTS
B70: LINE ID | D70: PROJECT ID | E70: PROJECT TYPE | F70: PROJECT TRIGGER | G70: VOLTAGE (KV) | H70: ROUTE LINE LENGTH ADDED | L70: POLES/TOWERS (INCLUDING STRUCTURES, AND CIVIL WORKS) | O70: OVERHEAD LINES | R70: UNDERGROUND CABLES | U70: OTHER PLANT ITEM | V70: INSTALLATION (LABOUR) | X70: CIVIL WORKS | Y70: OTHER DIRECT | AB70: RELATED PARTY MARGINS | AC70: TOTAL | AE70: LAND PURCHASE | AF70: EASEMENTS
H71: KM ADDED | L71: POLES/TOWERS ADDED | M71: POLES/TOWERS UPGRADED | N71: =CONCATENATE("EXPENDITURE ($0's, real ", dms_DollarReal,")") -> EXPENDITURE ($0's, real June 2020) | O71: CIRCUIT KM ADDED | P71: CIRCUIT KM UPGRADED | Q71: =CONCATENATE("EXPENDITURE ($0's, real ", dms_DollarReal,")") -> EXPENDITURE ($0's, real June 2020) | R71: CIRCUIT KM ADDED | S71: CIRCUIT KM UPGRADED | T71: =CONCATENATE("EXPENDITURE ($0's, real ", dms_DollarReal,")") -> EXPENDITURE ($0's, real June 2020) | U71: =CONCATENATE("EXPENDITURE ($0's, real ", dms_DollarReal,")") -> EXPENDITURE ($0's, real June 2020) | V71: VOLUME | W71: =CONCATENATE("EXPENDITURE ($0's, real ", dms_DollarReal,")") -> EXPENDITURE ($0's, real June 2020) | X71: =CONCATENATE("EXPENDITURE ($0's, real ", dms_DollarReal,")") -> EXPENDITURE ($0's, real June 2020) | AB71: =CONCATENATE("EXPENDITURE ($0's, real ", dms_DollarReal,")") -> EXPENDITURE ($0's, real June 2020) | AE71: =CONCATENATE("EXPENDITURE ($0's, real ", dms_DollarReal,")") -> EXPENDITURE ($0's, real June 2020)
B72: Myponga to Square Water Hole new 66kV line | D72: Myponga to Square Water Hole new 66kV line | E72: New line on new route - single circuit | F72: Other | G72: 66 | H72: 19 | L72: 162 | M72: 0 | N72: 6201052.454 | O72: 19 | P72: 0 | Q72: 1097301.939 | R72: 0 | S72: 0 | T72: 0 | U72: 0 | V72: 31194.6481 | W72: 9241414.499 | X72: 0 | Y72: 0 | Z72: =SUM(N72,Q72,T72,U72,W72,X72,Y72) -> 16539768.89 | AA72: 2019,2020,2021 | AB72: 0 | AC72: 0 | AD72: 16539768.89 | AE72: 0 | AF72: 0
B73: Athol Park Tee - Port Adelaide North | D73: Athol Park to Woodville New 66kV Line | E73: Line rebuild over existing route - dual circuit | F73: Demand growth | G73: 66 | H73: 0.552 | L73: 5 | M73: 1 | N73: 470602.1398 | O73: 0.552 | P73: 0 | Q73: 83274.99959 | R73: 0 | S73: 0 | T73: 0 | U73: 0 | V73: 2367.38332 | W73: 701337.3086 | X73: 0 | Y73: 0 | Z73: 1255214.448 | AA73: 2024,2025,2026 | AB73: 0 | AC73: 0 | AD73: 1255214.448 | AE73: 0 | AF73: 0
B74: Athol Park Tee - Athol Park | D74: Athol Park to Woodville New 66kV Line | E74: Reconductor - Single circuit | F74: Demand growth | G74: 66 | H74: 2.4 | L74: 1 | M74: 8 | N74: 705903.2098 | O74: 0 | P74: 2.4 | Q74: 124912.4994 | R74: 0 | S74: 0 | T74: 0 | U74: 0 | V74: 3551.07498 | W74: 1052005.963 | X74: 0 | Y74: 0 | Z74: 1882821.672 | AA74: 2024,2025,2026 | AB74: 0 | AC74: 0 | AD74: 1882821.672 | AE74: 0 | AF74: 0
B75: Athol Park - Woodville | D75: Athol Park to Woodville New 66kV Line | E75: New line on new route - single circuit | F75: Demand growth | G75: 66 | H75: 3.346 | L75: 21 | M75: 25 | N75: 2133457.007 | O75: 3.346 | P75: 0 | Q75: 377524.062 | R75: 0 | S75: 0 | T75: 0 | U75: 0 | V75: 10732.44277 | W75: 3179486.171 | X75: 0 | Y75: 0 | Z75: 5690467.24 | AA75: 2024,2025,2026 | AB75: 0 | AC75: 0 | AD75: 5690467.24 | AE75: 0 | AF75: 0
Z76: 0
Z77: 0
Z78: 0
Z79: 0
Z80: 0
Z81: 0
Z82: 0
Z83: 0
Z84: 0
Z85: 0
Z86: 0
Z87: 0
Z88: 0
Z89: 0
Z90: 0
Z91: 0
Z92: 0
Z93: 0
Z94: 0
Z95: 0
Z96: 0
Z97: 0
Z98: 0
Z99: 0
Z100: 0
Z101: 0
Z102: 0
Z103: 0
Z104: =SUM(N104,Q104,T104,U104,W104,X104,Y104) -> 0
Z105: 0
Z106: 0
Z107: 0
Z108: 0
Z109: 0
Z110: 0
Z111: 0
Z112: 0
Z113: 0
Z114: 0
Z115: 0
Z116: 0
Z117: 0
Z118: 0
Z119: 0
Z120: 0
Z121: 0
Z122: 0
Z123: 0
Z124: 0
Z125: 0
D126: Non material projects - [forecast] | Z126: 3428700

Sheet 2.3 Augex (b)
B1: =SheetHeader -> REGULATORY REPORTING STATEMENT
B2: =dms_TradingName -> SA Power Networks
B3: =dms_Reg_Year_Span -> 2020-21 to 2024-25
B4: 2.3 AUGEX PROJECT DATA
B6: There are FOUR tables on this worksheet. These tables have been 'grouped' (and sub-grouped) for easy navigation. See the Instructions sheet on how to group or ungroup tables.
B8: NOTE: DNSP must provide expenditure information on an 'as incurred' basis.
B9: 2.3.3 - AUGEX DATA - HV/LV FEEDERS AND DISTRIBUTION SUBSTATIONS
B10: PROJECT TYPE | C10: Units | D10: VOLUMES (0's)
D11: =CRCP_y4 -> 2018-19 | E11: =CRCP_y5 -> 2019-20 | F11: =FRCP_y1 -> 2020-21 | G11: =FRCP_y2 -> 2021-22 | H11: =FRCP_y3 -> 2022-23 | I11: =FRCP_y4 -> 2023-24 | J11: =FRCP_y5 -> 2024-25
B12: DESCRIPTOR METRICS - UNITS ADDED
B13: HV Feeder Augmentations - Overhead Lines | C13: Circuit Line Length in KM | D13: 0 | E13: 0 | F13: 0 | G13: 0 | H13: 0 | I13: 0 | J13: 0
B14: HV Feeder Augmentations - Underground Cables | C14: Circuit Line Length in KM | D14: 0 | E14: 0 | F14: 0.6 | G14: 0 | H14: 0 | I14: 0 | J14: 0
B15: LV Feeder Augmentations - Overhead Lines | C15: Circuit Line Length in KM | D15: 0.1354411264 | E15: 0.1197115814 | F15: 0.125279562 | G15: 0.1308475425 | H15: 0.136415523 | I15: 0.1419835036 | J15: 0.1475514841
B16: LV Feeder Augmentations - Underground Cables | C16: Circuit Line Length in KM | D16: 0.1550048447 | E16: 0.1370032543 | F16: 0.1433754987 | G16: 0.1497477431 | H16: 0.1561199875 | I16: 0.1624922318 | J16: 0.1688644762
B17: Distribution Substation Augmentations - Pole Mounted | C17: Number | D17: 96 | E17: 85 | F17: 89 | G17: 93 | H17: 97 | I17: 101 | J17: 105
B18: Distribution Substation Augmentations - Ground Mounted | C18: Number | D18: 1 | E18: 1 | F18: 1 | G18: 1 | H18: 1 | I18: 1 | J18: 1
B19: Distribution Substation Augmentations - Indoor | C19: Number | D19: 0 | E19: 0 | F19: 0 | G19: 0 | H19: 0 | I19: 0 | J19: 0
B20: DESCRIPTOR METRICS - UNITS UPGRADED
B21: HV Feeder Augmentations - Overhead Lines | C21: Circuit Line Length in KM | D21: 0 | E21: 0 | F21: 0 | G21: 0 | H21: 0 | I21: 0 | J21: 0
B22: HV Feeder Augmentations - Underground Cables | C22: Circuit Line Length in KM | D22: 0 | E22: 0 | F22: 0 | G22: 0 | H22: 0 | I22: 0 | J22: 0
B23: LV Feeder Augmentations - Overhead Lines | C23: Circuit Line Length in KM | D23: 4.264890581 | E23: 3.769584686 | F23: 3.944914207 | G23: 4.120243727 | H23: 4.295573247 | I23: 4.470902767 | J23: 4.646232288
B24: LV Feeder Augmentations - Underground Cables | C24: Circuit Line Length in KM | D24: 0 | E24: 0 | F24: 0 | G24: 0 | H24: 0 | I24: 0 | J24: 0
B25: Distribution Substation Augmentations - Pole Mounted | C25: Number | D25: 98 | E25: 87 | F25: 91 | G25: 95 | H25: 99 | I25: 103 | J25: 107
B26: Distribution Substation Augmentations - Ground Mounted | C26: Number | D26: 6 | E26: 5 | F26: 5 | G26: 6 | H26: 6 | I26: 6 | J26: 6
B27: Distribution Substation Augmentations - Indoor | C27: Number | D27: 0 | E27: 0 | F27: 0 | G27: 0 | H27: 0 | I27: 0 | J27: 0
B29: COST METRICS
B30: PROJECT TYPE | D30: =CONCATENATE("TOTAL DIRECT EXPENDITURE ($0's, real ", dms_DollarReal,")") -> TOTAL DIRECT EXPENDITURE ($0's, real June 2020)
D31: =CRCP_y4 -> 2018-19 | E31: =CRCP_y5 -> 2019-20 | F31: =FRCP_y1 -> 2020-21 | G31: =FRCP_y2 -> 2021-22 | H31: =FRCP_y3 -> 2022-23 | I31: =FRCP_y4 -> 2023-24 | J31: =FRCP_y5 -> 2024-25
B32: HV Feeder Augmentations - Overhead Lines | D32: 0 | E32: 0 | F32: 0 | G32: 0 | H32: 0 | I32: 0 | J32: 0
B33: HV Feeder Augmentations - Underground Cables | D33: 0 | E33: 409375 | F33: 409375 | G33: 0 | H33: 4095 | I33: 4095 | J33: 0
B34: HV Feeder Non-Material Projects | D34: 6316500.058 | E34: 6678381.711 | F34: 4722995.86 | G34: 2636575.01 | H34: 2456079.159 | I34: 3062553.308 | J34: 3411882.458
B35: LV Feeder Augmentations - Overhead Lines | D35: 607877.4783 | E35: 537281.2244 | F35: 562271.0488 | G35: 587260.8732 | H35: 612250.6975 | I35: 637240.5219 | J35: 662230.3463
B36: LV Feeder Augmentations - Underground Cables | D36: 75179.05218 | E36: 66448.08312 | F36: 69538.69164 | G36: 72629.30015 | H36: 75719.90867 | I36: 78810.51719 | J36: 81901.1257
B37: LV Feeder Non-Material Projects | D37: 1312186.598 | E37: 1159794.938 | F37: 1213738.888 | G37: 1267682.839 | H37: 1321626.79 | I37: 1375570.74 | J37: 1429514.691
B38: Distribution Substation Augmentations - Pole Mounted | D38: 2239151.799 | E38: 1979106.42 | F38: 2071157.882 | G38: 2163209.343 | H38: 2255260.805 | I38: 2347312.266 | J38: 2439363.727
B39: Distribution Substation Augmentations - Ground Mounted | D39: 169039.0092 | E39: 149407.5518 | F39: 156356.7403 | G39: 163305.9288 | H39: 170255.1172 | I39: 177204.3057 | J39: 184153.4941
B40: Distribution Substation Augmentations - Indoor | D40: 0 | E40: 0 | F40: 0 | G40: 0 | H40: 0 | I40: 0 | J40: 0
B45: 2.3.4 - AUGEX - TOTAL EXPENDITURE
D46: =CONCATENATE("TOTAL DIRECT EXPENDITURE ($0's, real ", dms_DollarReal,")") -> TOTAL DIRECT EXPENDITURE ($0's, real June 2020)
D47: =CRCP_y4 -> 2018-19 | E47: =CRCP_y5 -> 2019-20 | F47: =FRCP_y1 -> 2020-21 | G47: =FRCP_y2 -> 2021-22 | H47: =FRCP_y3 -> 2022-23 | I47: =FRCP_y4 -> 2023-24 | J47: =FRCP_y5 -> 2024-25
B48: Subtransmission Substations, Switching Stations, Zone Substations | D48: 4854775 | E48: 5650075 | F48: 8111305 | G48: 7200985 | H48: 3840740 | I48: 2831235 | J48: 1852070
B49: Subtransmission Lines | D49: 10194205 | E49: 9736550 | F49: 7317475 | G49: 3483165 | H49: 0 | I49: 513620 | J49: 4549205
B50: HV Feeders | D50: 6316500.058 | E50: 7087756.711 | F50: 5132370.86 | G50: 2636575.01 | H50: 2460174.159 | I50: 3066648.308 | J50: 3411882.458
B51: HV Feeders - Land Purchases and Easements | D51: 0 | E51: 0 | F51: 0 | G51: 0 | H51: 0 | I51: 0 | J51: 0
B52: Distribution Substations | D52: 2408190.808 | E52: 2128513.972 | F52: 2227514.622 | G52: 2326515.272 | H52: 2425515.922 | I52: 2524516.572 | J52: 2623517.222
B53: Distribution Substations - Land Purchases and Easements | D53: 0 | E53: 0 | F53: 0 | G53: 0 | H53: 0 | I53: 0 | J53: 0
B54: LV Feeders | D54: 1995243.129 | E54: 1763524.245 | F54: 1845548.629 | G54: 1927573.012 | H54: 2009597.396 | I54: 2091621.779 | J54: 2173646.163
B55: LV Feeders - Land Purchases and Easements | D55: 0 | E55: 0 | F55: 0 | G55: 0 | H55: 0 | I55: 0 | J55: 0
B56: Other Assets | D56: 70435472.31 | E56: 66907837.24 | F56: 56192094.87 | G56: 61447934.52 | H56: 59167196.76 | I56: 59554560.42 | J56: 57104465.42
B60: 2.3.5 - AUGEX - BY DRIVER
D61: =CONCATENATE("TOTAL DIRECT EXPENDITURE ($0's, real ", dms_DollarReal,")") -> TOTAL DIRECT EXPENDITURE ($0's, real June 2020)
D62: =CRCP_y4 -> 2018-19 | E62: =CRCP_y5 -> 2019-20 | F62: =FRCP_y1 -> 2020-21 | G62: =FRCP_y2 -> 2021-22 | H62: =FRCP_y3 -> 2022-23 | I62: =FRCP_y4 -> 2023-24 | J62: =FRCP_y5 -> 2024-25
B63: "Greenfield" driven augex (network expansion capex) | D63: 7668020 | E63: 12151520 | F63: 12489020 | G63: 7718220 | H63: 4004095 | I63: 6232695 | J63: 10435200
B64: Reinforcement driven augex (augmentation of the existing network) | D64: 88536366.3 | E64: 81122737.17 | F64: 68337288.98 | G64: 71304527.81 | H64: 65899129.24 | I64: 64349507.08 | J64: 61279586.26
B68: 2.3.6 - AUGEX - GREENFIELDS DRIVEN
D69: =CONCATENATE("TOTAL DIRECT EXPENDITURE ($0's, real ", dms_DollarReal,")") -> TOTAL DIRECT EXPENDITURE ($0's, real June 2020)
D70: =CRCP_y4 -> 2018-19 | E70: =CRCP_y5 -> 2019-20 | F70: =FRCP_y1 -> 2020-21 | G70: =FRCP_y2 -> 2021-22 | H70: =FRCP_y3 -> 2022-23 | I70: =FRCP_y4 -> 2023-24 | J70: =FRCP_y5 -> 2024-25
B71: Subtransmission Substations, Switching Stations, Zone Substations | D71: 1765000 | E71: 1485000 | F71: 735000 | G71: 0 | H71: 0 | I71: 1551525 | J71: 1551525
B72: Subtransmission Lines | D72: 4653020 | E72: 6761440 | F72: 6863885 | G72: 3483165 | H72: 0 | I72: 513620 | J72: 4549205
B73: HV Feeders | D73: 0 | E73: 655080 | F73: 890135 | G73: 235055 | H73: 4095 | I73: 167550 | J73: 334470
B74: HV Feeders - Land Purchases and Easements | D74: 0 | E74: 0 | F74: 0 | G74: 0 | H74: 0 | I74: 0 | J74: 0
B75: Distribution Substations | D75: 1250000 | E75: 3250000 | F75: 4000000 | G75: 4000000 | H75: 4000000 | I75: 4000000 | J75: 4000000
B76: Distribution Substations - Land Purchases and Easements | D76: 0 | E76: 0 | F76: 0 | G76: 0 | H76: 0 | I76: 0 | J76: 0
B77: LV Feeders | D77: 0 | E77: 0 | F77: 0 | G77: 0 | H77: 0 | I77: 0 | J77: 0
B78: LV Feeders - Land Purchases and Easements | D78: 0 | E78: 0 | F78: 0 | G78: 0 | H78: 0 | I78: 0 | J78: 0
B79: Other Assets | D79: 0 | E79: 0 | F79: 0 | G79: 0 | H79: 0 | I79: 0 | J79: 0

Sheet 2.4 Augex model
B1: =SheetHeader -> REGULATORY REPORTING STATEMENT
B2: =dms_TradingName -> SA Power Networks
B3: =dms_Reg_Year_Span -> 2020-21 to 2024-25
B4: 2.4 AUGEX MODEL
B6: There are SIX tables on this worksheet. These tables have been 'grouped' (and sub-grouped) for easy navigation. See the Instructions sheet on how to group or ungroup tables.
B8: 2.4.1 - AUGEX MODEL INPUTS - ASSET STATUS - SUBTRANSMISSION LINES
B9: Line ID | C9: Primary type of area supplied by line | D9: Line voltage | E9: Originating substation | F9: Terminating substation | G9: =CRCP_y4 -> 2018-19 | L9: =PRCP_y5 -> 2014-15 | Q9: =CONCATENATE("Average per annum growth rate in annual line maximum demand (50% PoE) from ", CRCP_y4, " to ", dms_CRCP_FinalYear_Result) -> Average per annum growth rate in annual line maximum demand (50% PoE) from 2018-19 to 2019-20 | R9: Network Segment ID
G10: =CONCATENATE(IF(dms_RPT="Financial","Route line length as at 30 June ","Route line length as at 31 December ")) -> Route line length as at 30 June | H10: Maximum demand (weather corrected at 50% PoE) | J10: Line rating | L10: =CONCATENATE(IF(dms_RPT="Financial","Route line length as at 30 June ","Route line length as at 31 December ")) -> Route line length as at 30 June | M10: Maximum demand (weather corrected at 50% PoE) | O10: Line rating
J11: Thermal | K11: N-1 emergency | O11: Thermal | P11: N-1 emergency
C12: CBD, urban, long rural, or short rural | D12: kV | E12: name | F12: name | G12: km | H12: MVA | I12: MW | J12: MVA | K12: MVA | L12: km | M12: MVA | N12: MW | O12: MVA | P12: MVA | Q12: %
B1275: 2.4.2 - AUGEX MODEL INPUTS - ASSET STATUS - HIGH VOLTAGE FEEDERS
B1276: High voltage feeder ID | C1276: High voltage feeder type | D1276: Voltage level | E1276: Originating substation | G1276: =CRCP_y4 -> 2018-19 | L1276: =PRCP_y5 -> 2014-15 | Q1276: =CONCATENATE("Average per annum growth rate in annual high voltage feeder maximum demand (50% PoE) from ", CRCP_y4, " to ",dms_CRCP_FinalYear_Result) -> Average per annum growth rate in annual high voltage feeder maximum demand (50% PoE) from 2018-19 to 2019-20 | R1276: Network segment ID
G1277: =CONCATENATE(IF(dms_RPT="Financial","Route line length as at 30 June ","Route line length as at 31 December ")) -> Route line length as at 30 June | H1277: Maximum demand (weather corrected at 50% PoE) | J1277: Rating | L1277: =CONCATENATE(IF(dms_RPT="Financial","Route line length as at 30 June ","Route line length as at 31 December ")) -> Route line length as at 30 June | M1277: Maximum demand (weather corrected at 50% PoE) | O1277: Rating
J1278: Thermal | K1278: Operational | O1278: Thermal | P1278: Operational
C1279: CBD, urban, short rural, or long rural | D1279: kV | E1279: name | G1279: km | H1279: MVA | I1279: MW | J1279: MVA | K1279: MVA | L1279: km | M1279: MVA | N1279: MW | O1279: MVA | P1279: MVA | Q1279: %
B6717: 2.4.3 - AUGEX MODEL INPUTS - ASSET STATUS - SUBTRANSMISSION SUBSTATIONS, SUBTRANSMISSION SWITCHING STATIONS AND ZONE SUBSTATIONS
B6718: Substation ID | C6718: Subtransmission substation, subtransmission switching station, or zone substation | D6718: Primary type of area supplied by substation | E6718: Substation voltage | G6718: =CRCP_y4 -> 2018-19 | O6718: =PRCP_y5 -> 2014-15 | W6718: =CONCATENATE("Average per annum growth rate in annual substation maximum demand (50% PoE) from ", CRCP_y4, " to ", dms_CRCP_FinalYear_Result) -> Average per annum growth rate in annual substation maximum demand (50% PoE) from 2018-19 to 2019-20 | X6718: Network segment ID
G6719: =CONCATENATE(IF(dms_RPT="Financial","Number of transformers as at 30 June ","Number of transformers as at 31 December ")) -> Number of transformers as at 30 June | H6719: Maximum demand (weather corrected at 50% PoE) | J6719: =CONCATENATE(IF(dms_RPT="Financial","Substation rating as at 30 June ","Substation rating as at 31 December ")) -> Substation rating as at 30 June | O6719: =CONCATENATE(IF(dms_RPT="Financial","Number of transformers as at 30 June ","Number of transformers as at 31 December ")) -> Number of transformers as at 30 June | P6719: Maximum demand (weather corrected at 50% PoE) | R6719: =CONCATENATE(IF(dms_RPT="Financial","Substation rating as at 30 June ","Substation rating as at 31 December ")) -> Substation rating as at 30 June
E6720: Primary | F6720: Secondary | J6720: tx name plate total (ONAN) | K6720: tx name plate total (in service) | L6720: tx normal cyclic total | M6720: Substation normal cyclic | N6720: N-1 emergency | R6720: tx name plate (ONAN) | S6720: tx name plate (in service) | T6720: tx normal cyclic total | U6720: Substation normal cyclic | V6720: N-1 emergency
C6721: STS, SSW or ZSS | D6721: CBD, Urban, Short rural, Long rural | E6721: kV | F6721: kV | H6721: MVA | I6721: MW | J6721: MVA | K6721: MVA | L6721: MVA | M6721: MVA | N6721: MVA | P6721: MVA | Q6721: MW | R6721: MVA | S6721: MVA | T6721: MVA | U6721: MVA | V6721: MVA | W6721: %
B7664: 2.4.4 - AUGEX MODEL INPUTS - ASSET STATUS - DISTRIBUTION SUBSTATIONS
B7665: Distribution substation category ID | C7665: Description of distribution substation category | D7665: =CRCP_y4 -> 2018-19 | P7665: =PRCP_y5 -> 2014-15 | AB7665: =CONCATENATE("Average per annum growth rate in annual substation maximum demand (50% PoE) from ", CRCP_y4, " to ", dms_CRCP_FinalYear_Result) -> Average per annum growth rate in annual substation maximum demand (50% PoE) from 2018-19 to 2019-20 | AC7665: Network segment ID
D7666: Aggregate of the normal cyclic ratings of all individual distribution substations in the distribution substation category that were within the following utilisation bands: | O7666: Aggregate of the normal cyclic ratings of all individual distribution substations in the distribution substation category | P7666: Aggregate of the normal cyclic ratings of all individual distribution substations in the distribution substation category that were within the following utilisation bands: | AA7666: Aggregate of the normal cyclic ratings of all individual distribution substations in the distribution substation category
D7667: 0-20 % | E7667: 20-40 % | F7667: 40-60 % | G7667: 60-80 % | H7667: 80-100 % | I7667: 100-120 % | J7667: 120-140 % | K7667: 140-160 % | L7667: 160-180 % | M7667: 180-200 % | N7667: >200% | P7667: 0-20 % | Q7667: 20-40 % | R7667: 40-60 % | S7667: 60-80 % | T7667: 80-100 % | U7667: 100-120 % | V7667: 120-140 % | W7667: 140-160 % | X7667: 160-180 % | Y7667: 180-200 % | Z7667: >200%
D7668: % | E7668: % | F7668: % | G7668: % | H7668: % | I7668: % | J7668: % | K7668: % | L7668: % | M7668: % | N7668: % | O7668: MVA | P7668: % | Q7668: % | R7668: % | S7668: % | T7668: % | U7668: % | V7668: % | W7668: % | X7668: % | Y7668: % | Z7668: % | AA7668: MVA | AB7668: %
E7726: ED_AUG245_00001 | F7726: ED_AUG245_00002 | G7726: ED_AUG245_00003 | H7726: ED_AUG245_00004 | I7726: ED_AUG245_00005 | J7726: ED_AUG245_00006 | K7726: ED_AUG245_00007 | L7726: ED_AUG245_00008
B7727: 2.4.5 - AUGEX MODEL INPUTS - NETWORK SEGMENT DATA
E7728: HISTORICAL | I7728: FORECAST
B7729: Network segment ID | C7729: Network segment title | D7729: AER segment group | E7729: Average unit cost of augmentation for the network segment for the period | F7729: Capacity factor for the period | G7729: Mean value of the utilisation threshold for the period | H7729: Standard deviation of the utilisation threshold for the period | I7729: Average unit cost of augmentation for the network segment for the period | J7729: Capacity factor for the period | K7729: Mean value of the utilisation threshold for the period | L7729: Standard deviation of the utilisation threshold for the period
E7730: =CONCATENATE(PRCP_y5," to ",CRCP_y3) -> 2014-15 to 2017-18 | I7730: =CONCATENATE(CRCP_y4," to ",FRCP_y5) -> 2018-19 to 2024-25
D7731: ID | E7731: =CONCATENATE("$0's, real ", dms_DollarReal, " per MVA") -> $0's, real June 2020 per MVA | G7731: % | H7731: % | I7731: =CONCATENATE("$0's, real ", dms_DollarReal, " per MVA") -> $0's, real June 2020 per MVA | K7731: % | L7731: %
B7732: 1
B7733: 2
B7734: 3
B7735: 4
B7736: 5
B7737: 6
B7738: 7
B7739: 8
B7740: 9
B7741: 10
B7742: 11
B7743: 12
B7744: 13
B7745: 14
B7746: 15
B7747: 16
B7748: 17
B7749: 18
B7750: 19
B7751: 20
B7752: 21
B7753: 22
B7754: 23
B7755: 24
B7756: 25
B7757: 26
B7758: 27
B7759: 28
B7760: 29
B7761: 30
B7762: 31
B7763: 32
B7764: 33
B7765: 34
B7766: 35
B7767: 36
B7768: 37
B7769: 38
B7770: 39
B7771: 40
B7772: 41
B7773: 42
B7774: 43
B7775: 44
B7776: 45
B7777: 46
B7778: 47
B7779: 48
B7780: 49
B7781: 50
B7782: 51
B7783: 52
B7784: 53
B7785: 54
B7786: 55
B7787: 56
B7788: 57
B7789: 58
B7790: 59
B7791: 60
B7792: 61
B7793: 62
B7794: 63
B7795: 64
B7796: 65
B7797: 66
B7798: 67
B7799: 68
B7800: 69
B7801: 70
B7802: 71
B7803: 72
B7804: 73
B7805: 74
B7806: 75
B7807: 76
B7808: 77
B7809: 78
B7810: 79
B7811: 80
B7812: 81
B7813: 82
B7814: 83
B7815: 84
B7816: 85
B7817: 86
B7818: 87
B7819: 88
B7820: 89
B7821: 90
B7822: 91
B7823: 92
B7824: 93
B7825: 94
B7826: 95
B7827: 96
B7828: 97
B7829: 98
B7830: 99
B7831: 100
B7836: 2.4.6 - CAPEX AND NET CAPACITY ADDED BY SEGMENT GROUP
B7837: AER DNSP segment group | C7837: =CONCATENATE("CAPEX ($0's, real ", dms_DollarReal, ")") -> CAPEX ($0's, real June 2020) | K7837: =CONCATENATE("CAPEX ($0's, real ", dms_DollarReal, ")") -> CAPEX ($0's, real June 2020) | S7837: =CONCATENATE("CAPEX ($0's, real ", dms_DollarReal, ")") -> CAPEX ($0's, real June 2020) | AA7837: Net capacity added (MVA) | AG7837: Net capacity added (MVA) | AM7837: Net capacity added (MVA) | AS7837: Net capacity added (MVA)
C7838: In total for all purposes | K7838: For customer-initiated & capacity-related augmentation | S7838: For NSP-initiated & capacity-related augmentation | AA7838: In total for all purposes | AG7838: For customer-initiated & capacity-related augmentation | AM7838: For NSP-initiated & capacity-related augmentation | AS7838: Residual
AA7839: =CONCATENATE("over period ", CRCP_y4, " to ", CRCP_y5) -> over period 2018-19 to 2019-20 | AD7839: =CONCATENATE("over period ", FRCP_y1, " to ", dms_MultiYear_FinalYear_Result) -> over period 2020-21 to 2024-25 | AG7839: =CONCATENATE("over period ", CRCP_y4, " to ", CRCP_y5) -> over period 2018-19 to 2019-20 | AJ7839: =CONCATENATE("over period ", FRCP_y1, " to ", dms_MultiYear_FinalYear_Result) -> over period 2020-21 to 2024-25 | AM7839: =CONCATENATE("over period ", CRCP_y4, " to ", CRCP_y5) -> over period 2018-19 to 2019-20 | AP7839: =CONCATENATE("over period ", FRCP_y1, " to ", dms_MultiYear_FinalYear_Result) -> over period 2020-21 to 2024-25 | AS7839: =CONCATENATE("over period ", CRCP_y4, " to ", CRCP_y5) -> over period 2018-19 to 2019-20 | AV7839: =CONCATENATE("over period ", FRCP_y1, " to ", dms_MultiYear_FinalYear_Result) -> over period 2020-21 to 2024-25
C7840: Historical | D7840: Forecast | K7840: Historical | L7840: Forecast | S7840: Historical | T7840: Forecast | AA7840: Forecast | AD7840: Forecast | AG7840: Forecast | AJ7840: Forecast | AM7840: Forecast | AP7840: Forecast | AS7840: Forecast | AV7840: Forecast
C7841: =CONCATENATE(PRCP_y5, " to ", CRCP_y3) -> 2014-15 to 2017-18 | D7841: =CRCP_y4 -> 2018-19 | E7841: =CRCP_y5 -> 2019-20 | F7841: =FRCP_y1 -> 2020-21 | G7841: =FRCP_y2 -> 2021-22 | H7841: =FRCP_y3 -> 2022-23 | I7841: =FRCP_y4 -> 2023-24 | J7841: =FRCP_y5 -> 2024-25 | K7841: =CONCATENATE(PRCP_y5, " to ", CRCP_y3) -> 2014-15 to 2017-18 | L7841: =CRCP_y4 -> 2018-19 | M7841: =CRCP_y5 -> 2019-20 | N7841: =FRCP_y1 -> 2020-21 | O7841: =FRCP_y2 -> 2021-22 | P7841: =FRCP_y3 -> 2022-23 | Q7841: =FRCP_y4 -> 2023-24 | R7841: =FRCP_y5 -> 2024-25 | S7841: =CONCATENATE(PRCP_y5, " to ", CRCP_y3) -> 2014-15 to 2017-18 | T7841: =CRCP_y4 -> 2018-19 | U7841: =CRCP_y5 -> 2019-20 | V7841: =FRCP_y1 -> 2020-21 | W7841: =FRCP_y2 -> 2021-22 | X7841: =FRCP_y3 -> 2022-23 | Y7841: =FRCP_y4 -> 2023-24 | Z7841: =FRCP_y5 -> 2024-25 | AA7841: type 1 | AB7841: type 2 | AC7841: type 3 | AD7841: type 1 | AE7841: type 2 | AF7841: type 3 | AG7841: type 1 | AH7841: type 2 | AI7841: type 3 | AJ7841: type 1 | AK7841: type 2 | AL7841: type 3 | AM7841: type 1 | AN7841: type 2 | AO7841: type 3 | AP7841: type 1 | AQ7841: type 2 | AR7841: type 3 | AS7841: type 1 | AT7841: type 2 | AU7841: type 3 | AV7841: type 1 | AW7841: type 2 | AX7841: type 3
B7842: Subtransmission lines | AS7842: =AA7842-AG7842-AM7842 -> 0 | AT7842: =AB7842-AH7842-AN7842 -> 0 | AV7842: =AD7842-AJ7842-AP7842 -> 0 | AW7842: =AE7842-AK7842-AQ7842 -> 0
B7843: Subtransmission substations and subtransmission switching stations | AS7843: =AA7843-AG7843-AM7843 -> 0 | AT7843: =AB7843-AH7843-AN7843 -> 0 | AU7843: =AC7843-AI7843-AO7843 -> 0 | AV7843: =AD7843-AJ7843-AP7843 -> 0 | AW7843: =AE7843-AK7843-AQ7843 -> 0 | AX7843: =AF7843-AL7843-AR7843 -> 0
B7844: Zone substations | AS7844: 0 | AT7844: =AB7844-AH7844-AN7844 -> 0 | AU7844: =AC7844-AI7844-AO7844 -> 0 | AV7844: 0 | AW7844: =AE7844-AK7844-AQ7844 -> 0 | AX7844: =AF7844-AL7844-AR7844 -> 0
B7845: High voltage feeders - CBD | AS7845: 0 | AV7845: 0
B7846: High voltage feeders - urban | AS7846: 0 | AV7846: 0
B7847: High voltage feeders - short rural | AS7847: 0 | AV7847: 0
B7848: High voltage feeders - long rural | AS7848: 0 | AV7848: 0
B7849: Distribution substations - CBD | AS7849: 0 | AV7849: 0
B7850: Distribution substations - urban | AS7850: 0 | AV7850: 0
B7851: Distribution substations - short rural | AS7851: 0 | AV7851: 0
B7852: Distribution substations - long rural | AS7852: 0 | AV7852: 0
B7854: Unmodelled augmentation
B7857: Unmodelled augmentation - see comments in guidance paper - this should cover capex allocated to the augmentation category that is not considered to be primarily related to peak demand and capacity needs.

Sheet 2.5 Connections
B1: =SheetHeader -> REGULATORY REPORTING STATEMENT
B2: =dms_TradingName -> SA Power Networks
B3: =dms_Reg_Year_Span -> 2020-21 to 2024-25
B4: 2.5 CONNECTIONS
B6: There are THREE tables on this worksheet - each has been 'grouped' (and sub-grouped) for easy navigation. See the Instructions sheet on how to group or ungroup tables.
B8: 2.5.1 - DESCRIPTOR METRICS
B9: VOLUMES AND EXPENDITURE - ALL
B10: CONNECTION SUBCATEGORY | C10: DESCRIPTOR METRIC | D10: Unit of Measure | E10: =CONCATENATE("VOLUMES and EXPENDITURE (0's, real ", dms_DollarReal, ")") -> VOLUMES and EXPENDITURE (0's, real June 2020)
E11: =CRCP_y4 -> 2018-19 | F11: =CRCP_y5 -> 2019-20 | G11: =FRCP_y1 -> 2020-21 | H11: =FRCP_y2 -> 2021-22 | I11: =FRCP_y3 -> 2022-23 | J11: =FRCP_y4 -> 2023-24 | K11: =FRCP_y5 -> 2024-25
B12: RESIDENTIAL | C12: Underground connections | D12: 0's | E12: 10695.70634 | F12: 10588.6664 | G12: 10588.05398 | H12: 10766.38626 | I12: 10990.16982 | J12: 10668.30667 | K12: 10617.64486
C13: Overhead connections | D13: 0's | E13: 479.2621986 | F13: 474.4658631 | G13: 474.4384213 | H13: 482.4292838 | I13: 492.4567658 | J13: 478.0344513 | K13: 475.7643539
C14: Distribution substations installed | D14: MVA added | E14: 5.357200844 | F14: 5.303587326 | G14: 5.303280582 | H14: 5.392602576 | I14: 5.504689936 | J14: 5.343477065 | K14: 5.318101879
C15: Distribution substations installed | D15: 0's | E15: 96.9150716 | F15: 95.94516995 | G15: 95.93962075 | H15: 97.55551079 | I15: 99.58324036 | J15: 96.66679995 | K15: 96.20774717
C16: Distribution substations installed | D16: total spend $0's | E16: 2008843.291 | F16: 1988739.293 | G16: 1988624.27 | H16: 2022118.233 | I16: 2064148.754 | J16: 2003697.148 | K16: 1994181.96
C17: Augmentation HV | D17: net circuit KM added | E17: 7.495499742 | F17: 7.420486667 | G17: 7.420057487 | H17: 7.545031892 | I17: 7.70185834 | J17: 7.476298187 | K17: 7.440794628
C18: Augmentation HV | D18: total spend $0's | E18: 1003747.038 | F18: 993701.7904 | G18: 993644.3174 | H18: 1010380.051 | I18: 1031381.197 | J18: 1001175.695 | K18: 996421.2963
C19: Augmentation LV | D19: net circuit KM added | E19: 3.572201435 | F19: 3.536451741 | G19: 3.536247203 | H19: 3.595807441 | I19: 3.670547709 | J19: 3.563050367 | K19: 3.546130099
C20: Augmentation LV | D20: total spend $0's | E20: 579642.6562 | F20: 573841.7383 | G20: 573808.5489 | H20: 583473.0808 | I20: 595600.7977 | J20: 578157.7598 | K20: 575412.1954
C21: Mean days to connect residential customer with LV single phase connection | D21: 0's | E21: 16.42 | F21: 16.42 | G21: 16.42 | H21: 16.42 | I21: 16.42 | J21: 16.42 | K21: 16.42
C22: Volume of GSL breaches for residential customers | D22: 0's | E22: 182 | F22: 182 | G22: 182 | H22: 182 | I22: 182 | J22: 182 | K22: 182
C23: Volume of customer complaints relating to connection services | D23: 0's | E23: 94.4 | F23: 94.4 | G23: 94.4 | H23: 94.4 | I23: 94.4 | J23: 94.4 | K23: 94.4
C24: GSL payments | D24: $0's | E24: 50806 | F24: 50806 | G24: 50806 | H24: 50806 | I24: 50806 | J24: 50806 | K24: 50806
B25: COMMERCIAL/INDUSTRIAL | C25: Underground connections | D25: 0's | E25: 1230.260497 | F25: 1217.160622 | G25: 1217.885925 | H25: 1237.589409 | I25: 1264.108891 | J25: 1226.315221 | K25: 1221.287378
C26: Overhead connections | D26: 0's | E26: 315.8741107 | F26: 312.5106674 | G26: 312.6968919 | H26: 317.7558371 | I26: 324.564816 | J26: 314.8611461 | K26: 313.5702279
C27: Distribution substations installed | D27: MVA added | E27: 110.9071851 | F27: 109.7972539 | G27: 109.7909035 | H27: 111.6400877 | I27: 113.9605707 | J27: 110.6230692 | K27: 110.0977407
C28: Distribution substations installed | D28: 0's | E28: 285.6791997 | F28: 282.8201941 | G28: 282.8038366 | H28: 287.5670398 | I28: 293.5442335 | J28: 284.9473626 | K28: 283.5942002
C29: Distribution substations installed | D29: total spend $0's | E29: 12985815.67 | F29: 12855856.89 | G29: 12855113.35 | H29: 13071629.21 | I29: 13343328.15 | J29: 12952549.33 | K29: 12891040.06
C30: Augmentation HV | D30: net circuit KM added | E30: 46.10844662 | F30: 45.64700489 | G30: 45.64436479 | H30: 46.41314285 | I30: 47.37785823 | J30: 45.99032856 | K30: 45.77192899
C31: Augmentation HV | D31: total spend $0's | E31: 8029646.394 | F31: 7949287.713 | G31: 7948827.949 | H31: 8082708.319 | I31: 8250710.583 | J31: 8009076.492 | K31: 7971042.867
C32: Augmentation LV | D32: net circuit KM added | E32: 5.236938051 | F32: 5.184528092 | G32: 5.184228234 | H32: 5.271545056 | I32: 5.381116188 | J32: 5.223522354 | K32: 5.198716811
C33: Augmentation LV | D33: total spend $0's | E33: 1614065.412 | F33: 1597912.252 | G33: 1597819.833 | H33: 1624731.563 | I33: 1658502.246 | J33: 1609930.589 | K33: 1602285.326
B34: SUBDIVISION | C34: Underground connections | D34: 0's | E34: 241.3779527 | F34: 257.5811212 | G34: 267.8843661 | H34: 283.3392333 | I34: 269.8309098 | J34: 258.0979019 | K34: 249.452772
C35: Overhead connections | D35: 0's | E35: 43.15107381 | F35: 46.04771004 | G35: 47.88961844 | H35: 50.65248104 | I35: 48.23760155 | J35: 46.14009479 | K35: 44.59460716
C36: Distribution substations installed | D36: MVA added | E36: 26.42289515 | F36: 28.19660571 | G36: 29.32446994 | H36: 31.01626628 | I36: 29.53755204 | J36: 28.25317609 | K36: 27.30682055
C37: Distribution substations installed | D37: 0's | E37: 96.57769594 | F37: 103.0607432 | G37: 107.183173 | H37: 113.3668176 | I37: 107.9620043 | J37: 103.2675123 | K37: 99.80851066
C38: Distribution substations installed | D38: total spend $0's | E38: 3708290.225 | F38: 3957219.553 | G38: 4115508.335 | H38: 4352941.508 | I38: 4145413.092 | J38: 3965158.857 | K38: 3832343.699
C39: Augmentation HV | D39: net circuit KM added | E39: 9.771230233 | F39: 10.42715132 | G39: 10.84423738 | H39: 11.46986646 | I39: 10.92303549 | J39: 10.44807114 | K39: 10.09810731
C40: Augmentation HV | D40: total spend $0's | E40: 1587137.486 | F40: 1693678.518 | G40: 1761425.658 | H40: 1863046.369 | I40: 1774224.808 | J40: 1697076.517 | K40: 1640232.013
C41: Augmentation LV | D41: net circuit KM added | E41: 14.69324352 | F41: 15.67956849 | G41: 16.30675123 | H41: 17.24752534 | I41: 16.42524192 | J41: 15.71102615 | K41: 15.18477676
C42: Augmentation LV | D42: total spend $0's | E42: 3745962.138 | F42: 3997420.298 | G42: 4157317.11 | H42: 4397162.328 | I42: 4187525.665 | J42: 4005440.256 | K42: 3871275.851
C43: Cost per lot | D43: $0's | E43: 1674.368836 | F43: 1786.765516 | G43: 1858.236136 | H43: 1965.442067 | I43: 1871.738745 | J43: 1790.350274 | K43: 1730.381515
B44: EMBEDDED GENERATION | C44: Underground connections | D44: 0's | E44: 6867.095389 | F44: 6867.095389 | G44: 6867.095389 | H44: 6867.095389 | I44: 6867.095389 | J44: 6867.095389 | K44: 6867.095389
C45: Overhead connections | D45: 0's | E45: 512.904611 | F45: 512.904611 | G45: 512.904611 | H45: 512.904611 | I45: 512.904611 | J45: 512.904611 | K45: 512.904611
C46: Distribution substations installed | D46: MVA added | E46: 0 | F46: 0 | G46: 0 | H46: 0 | I46: 0 | J46: 0 | K46: 0
C47: Distribution substations installed | D47: 0's | E47: 0 | F47: 0 | G47: 0 | H47: 0 | I47: 0 | J47: 0 | K47: 0
C48: Distribution substations installed | D48: total spend $0's | E48: 0 | F48: 0 | G48: 0 | H48: 0 | I48: 0 | J48: 0 | K48: 0
C49: Augmentation HV | D49: net circuit KM added | E49: 0 | F49: 0 | G49: 0 | H49: 0 | I49: 0 | J49: 0 | K49: 0
C50: Augmentation HV | D50: total spend $0's | E50: 0 | F50: 0 | G50: 0 | H50: 0 | I50: 0 | J50: 0 | K50: 0
C51: Augmentation LV | D51: net circuit KM added | E51: 0 | F51: 0 | G51: 0 | H51: 0 | I51: 0 | J51: 0 | K51: 0
C52: Augmentation LV | D52: total spend $0's | E52: 0 | F52: 0 | G52: 0 | H52: 0 | I52: 0 | J52: 0 | K52: 0
B54: VOLUMES AND EXPENDITURE - STANDARD CONTROL SERVICES
B55: CONNECTION SUBCATEGORY | C55: DESCRIPTOR METRIC | D55: Unit of Measure | E55: =CONCATENATE("VOLUMES and EXPENDITURE (0's, real ", dms_DollarReal, ")") -> VOLUMES and EXPENDITURE (0's, real June 2020)
E56: =CRCP_y4 -> 2018-19 | F56: =CRCP_y5 -> 2019-20 | G56: =FRCP_y1 -> 2020-21 | H56: =FRCP_y2 -> 2021-22 | I56: =FRCP_y3 -> 2022-23 | J56: =FRCP_y4 -> 2023-24 | K56: =FRCP_y5 -> 2024-25
B57: RESIDENTIAL | C57: Underground connections | D57: 0's | E57: 10695.70634 | F57: 10588.6664 | G57: 10588.05398 | H57: 10766.38626 | I57: 10990.16982 | J57: 10668.30667 | K57: 10617.64486
C58: Overhead connections | D58: 0's | E58: 479.2621986 | F58: 474.4658631 | G58: 474.4384213 | H58: 482.4292838 | I58: 492.4567658 | J58: 478.0344513 | K58: 475.7643539
C59: Distribution substations installed | D59: MVA added | E59: 5.357200844 | F59: 5.303587326 | G59: 5.303280582 | H59: 5.392602576 | I59: 5.504689936 | J59: 5.343477065 | K59: 5.318101879
C60: Distribution substations installed | D60: 0's | E60: 96.9150716 | F60: 95.94516995 | G60: 95.93962075 | H60: 97.55551079 | I60: 99.58324036 | J60: 96.66679995 | K60: 96.20774717
C61: Distribution substations installed | D61: total spend $0's | E61: 2008843.291 | F61: 1988739.293 | G61: 1988624.27 | H61: 2022118.233 | I61: 2064148.754 | J61: 2003697.148 | K61: 1994181.96
C62: Augmentation HV | D62: net circuit KM added | E62: 7.495499742 | F62: 7.420486667 | G62: 7.420057487 | H62: 7.545031892 | I62: 7.70185834 | J62: 7.476298187 | K62: 7.440794628
C63: Augmentation HV | D63: total spend $0's | E63: 1003747.038 | F63: 993701.7904 | G63: 993644.3174 | H63: 1010380.051 | I63: 1031381.197 | J63: 1001175.695 | K63: 996421.2963
C64: Augmentation LV | D64: net circuit KM added | E64: 3.572201435 | F64: 3.536451741 | G64: 3.536247203 | H64: 3.595807441 | I64: 3.670547709 | J64: 3.563050367 | K64: 3.546130099
C65: Augmentation LV | D65: total spend $0's | E65: 579642.6562 | F65: 573841.7383 | G65: 573808.5489 | H65: 583473.0808 | I65: 595600.7977 | J65: 578157.7598 | K65: 575412.1954
C66: Mean days to connect residential customer with LV single phase connection | D66: 0's | E66: 16.42 | F66: 16.42 | G66: 16.42 | H66: 16.42 | I66: 16.42 | J66: 16.42 | K66: 16.42
C67: Volume of GSL breaches for residential customers | D67: 0's | E67: 182 | F67: 182 | G67: 182 | H67: 182 | I67: 182 | J67: 182 | K67: 182
C68: Volume of customer complaints relating to connection services | D68: 0's | E68: 94.4 | F68: 94.4 | G68: 94.4 | H68: 94.4 | I68: 94.4 | J68: 94.4 | K68: 94.4
C69: GSL payments | D69: $0's | E69: 50806 | F69: 50806 | G69: 50806 | H69: 50806 | I69: 50806 | J69: 50806 | K69: 50806
B70: COMMERCIAL/INDUSTRIAL | C70: Underground connections | D70: 0's | E70: 1230.260497 | F70: 1217.160622 | G70: 1217.885925 | H70: 1237.589409 | I70: 1264.108891 | J70: 1226.315221 | K70: 1221.287378
C71: Overhead connections | D71: 0's | E71: 315.8741107 | F71: 312.5106674 | G71: 312.6968919 | H71: 317.7558371 | I71: 324.564816 | J71: 314.8611461 | K71: 313.5702279
C72: Distribution substations installed | D72: MVA added | E72: 110.9071851 | F72: 109.7972539 | G72: 109.7909035 | H72: 111.6400877 | I72: 113.9605707 | J72: 110.6230692 | K72: 110.0977407
C73: Distribution substations installed | D73: 0's | E73: 285.6791997 | F73: 282.8201941 | G73: 282.8038366 | H73: 287.5670398 | I73: 293.5442335 | J73: 284.9473626 | K73: 283.5942002
C74: Distribution substations installed | D74: total spend $0's | E74: 12985815.67 | F74: 12855856.89 | G74: 12855113.35 | H74: 13071629.21 | I74: 13343328.15 | J74: 12952549.33 | K74: 12891040.06
C75: Augmentation HV | D75: net circuit KM added | E75: 46.10844662 | F75: 45.64700489 | G75: 45.64436479 | H75: 46.41314285 | I75: 47.37785823 | J75: 45.99032856 | K75: 45.77192899
C76: Augmentation HV | D76: total spend $0's | E76: 8029646.394 | F76: 7949287.713 | G76: 7948827.949 | H76: 8082708.319 | I76: 8250710.583 | J76: 8009076.492 | K76: 7971042.867
C77: Augmentation LV | D77: net circuit KM added | E77: 5.236938051 | F77: 5.184528092 | G77: 5.184228234 | H77: 5.271545056 | I77: 5.381116188 | J77: 5.223522354 | K77: 5.198716811
C78: Augmentation LV | D78: total spend $0's | E78: 1614065.412 | F78: 1597912.252 | G78: 1597819.833 | H78: 1624731.563 | I78: 1658502.246 | J78: 1609930.589 | K78: 1602285.326
B79: SUBDIVISION | C79: Underground connections | D79: 0's | E79: 241.3779527 | F79: 257.5811212 | G79: 267.8843661 | H79: 283.3392333 | I79: 269.8309098 | J79: 258.0979019 | K79: 249.452772
C80: Overhead connections | D80: 0's | E80: 43.15107381 | F80: 46.04771004 | G80: 47.88961844 | H80: 50.65248104 | I80: 48.23760155 | J80: 46.14009479 | K80: 44.59460716
C81: Distribution substations installed | D81: MVA added | E81: 26.42289515 | F81: 28.19660571 | G81: 29.32446994 | H81: 31.01626628 | I81: 29.53755204 | J81: 28.25317609 | K81: 27.30682055
C82: Distribution substations installed | D82: 0's | E82: 96.57769594 | F82: 103.0607432 | G82: 107.183173 | H82: 113.3668176 | I82: 107.9620043 | J82: 103.2675123 | K82: 99.80851066
C83: Distribution substations installed | D83: total spend $0's | E83: 3708290.225 | F83: 3957219.553 | G83: 4115508.335 | H83: 4352941.508 | I83: 4145413.092 | J83: 3965158.857 | K83: 3832343.699
C84: Augmentation HV | D84: net circuit KM added | E84: 9.771230233 | F84: 10.42715132 | G84: 10.84423738 | H84: 11.46986646 | I84: 10.92303549 | J84: 10.44807114 | K84: 10.09810731
C85: Augmentation HV | D85: total spend $0's | E85: 1587137.486 | F85: 1693678.518 | G85: 1761425.658 | H85: 1863046.369 | I85: 1774224.808 | J85: 1697076.517 | K85: 1640232.013
C86: Augmentation LV | D86: net circuit KM added | E86: 14.69324352 | F86: 15.67956849 | G86: 16.30675123 | H86: 17.24752534 | I86: 16.42524192 | J86: 15.71102615 | K86: 15.18477676
C87: Augmentation LV | D87: total spend $0's | E87: 3745962.138 | F87: 3997420.298 | G87: 4157317.11 | H87: 4397162.328 | I87: 4187525.665 | J87: 4005440.256 | K87: 3871275.851
C88: Cost per lot | D88: $0's | E88: 1674.368836 | F88: 1786.765516 | G88: 1858.236136 | H88: 1965.442067 | I88: 1871.738745 | J88: 1790.350274 | K88: 1730.381515
B89: EMBEDDED GENERATION | C89: Underground connections | D89: 0's | E89: 6867.095389 | F89: 6867.095389 | G89: 6867.095389 | H89: 6867.095389 | I89: 6867.095389 | J89: 6867.095389 | K89: 6867.095389
C90: Overhead connections | D90: 0's | E90: 512.904611 | F90: 512.904611 | G90: 512.904611 | H90: 512.904611 | I90: 512.904611 | J90: 512.904611 | K90: 512.904611
C91: Distribution substations installed | D91: MVA added | E91: 0 | F91: 0 | G91: 0 | H91: 0 | I91: 0 | J91: 0 | K91: 0
C92: Distribution substations installed | D92: 0's | E92: 0 | F92: 0 | G92: 0 | H92: 0 | I92: 0 | J92: 0 | K92: 0
C93: Distribution substations installed | D93: total spend $0's | E93: 0 | F93: 0 | G93: 0 | H93: 0 | I93: 0 | J93: 0 | K93: 0
C94: Augmentation HV | D94: net circuit KM added | E94: 0 | F94: 0 | G94: 0 | H94: 0 | I94: 0 | J94: 0 | K94: 0
C95: Augmentation HV | D95: total spend $0's | E95: 0 | F95: 0 | G95: 0 | H95: 0 | I95: 0 | J95: 0 | K95: 0
C96: Augmentation LV | D96: net circuit KM added | E96: 0 | F96: 0 | G96: 0 | H96: 0 | I96: 0 | J96: 0 | K96: 0
C97: Augmentation LV | D97: total spend $0's | E97: 0 | F97: 0 | G97: 0 | H97: 0 | I97: 0 | J97: 0 | K97: 0
B101: 2.5.2 - COST METRICS BY CONNECTION CLASSIFICATION
B102: EXPENDITURE - ALL
B103: CONNECTION SUBCATEGORY | C103: CONNECTION CLASSICIATION | E103: =CONCATENATE("EXPENDITURE ($'0s, real ", dms_DollarReal,")") -> EXPENDITURE ($'0s, real June 2020)
E104: =CRCP_y4 -> 2018-19 | F104: =CRCP_y5 -> 2019-20 | G104: =FRCP_y1 -> 2020-21 | H104: =FRCP_y2 -> 2021-22 | I104: =FRCP_y3 -> 2022-23 | J104: =FRCP_y4 -> 2023-24 | K104: =FRCP_y5 -> 2024-25
B105: RESIDENTIAL | C105: Simple connection LV | E105: 10773519.54 | F105: 9537901.64 | G105: 11536284.19 | H105: 11770278.31 | I105: 12014626.53 | J105: 11939231.95 | K105: 11430706.13
C106: Complex connection LV | E106: 8494161.24 | F106: 7519963.57 | G106: 9095547.44 | H106: 9280035.31 | I106: 9472686.67 | J106: 9413243.36 | K106: 9012306.58
C107: Complex connection HV | E107: 0 | F107: 0 | G107: 0 | H107: 0 | I107: 0 | J107: 0 | K107: 0
B108: COMMERCIAL/INDUSTRIAL | C108: Simple connection LV | E108: 1726187.18 | F108: 1528210.3 | G108: 1848401.14 | H108: 1885892.85 | I108: 1925043.54 | J108: 1912963.45 | K108: 1831484.9
C109: Complex connection HV (customer connected at LV, minor HV works) | E109: 25286425.69 | F109: 22386318.63 | G109: 27076703.39 | H109: 27625908.76 | I109: 28199416.15 | J109: 28022458.26 | K109: 26828902.13
C110: Complex connection HV (customer connected at LV, upstream asset works) | E110: 15258676.52 | F110: 13508654.75 | G110: 16338990.07 | H110: 16670398.99 | I110: 17016472.57 | J110: 16909690.25 | K110: 16189458.49
C111: Complex connection HV (customer connected at HV) | E111: 3230843.88 | F111: 2860297.51 | G111: 3459587.46 | H111: 3529759.38 | I111: 3603036.35 | J111: 3580426.46 | K111: 3427925.92
C112: Complex connection sub-transmission | E112: 5188031.05 | F112: 4639444.75 | G112: 5611826.47 | H112: 5630814.35 | I112: 5630672.99 | J112: 5764150.77 | K112: 5544971.25
B113: SUBDIVISION | C113: Complex connection LV | E113: 965347.54 | F113: 921220.44 | G113: 1158871.1 | H113: 1229876.36 | I113: 1171212.05 | J113: 1146841.33 | K113: 1066279.75
C114: Complex connection HV (no upstream asset works) | E114: =2550224.64+26893483.78 -> 29443708.42 | F114: =2433651.06+26301695.63 -> 28735346.69 | G114: =3061469.05+27452246.32 -> 30513715.37 | H114: =3249048.5+27452246.32 -> 30701294.82 | I114: =3094071+27452246.32 -> 30546317.32 | J114: =3029689.19+27452246.32 -> 30481935.51 | K114: =2816864.16+27452246.32 -> 30269110.48
C115: Complex connection HV (with upstream asset works) | E115: 1222121.71 | F115: 1166257.17 | G115: 1467120.86 | H115: 1557012.91 | I115: 1482744.41 | J115: 1451891.28 | K115: 1349901.02
B116: EMBEDDED GENERATION | C116: Simple connection LV | E116: 1165089.56 | F116: 1041892.12 | G116: 1260262.39 | H116: 1264526.55 | I116: 1264494.81 | J116: 1294470.26 | K116: 1245248.55
C117: Complex connection HV (small capacity) | E117: 0 | F117: 0 | G117: 0 | H117: 0 | I117: 0 | J117: 0 | K117: 0
C118: Complex connection HV (large capacity) | E118: 0 | F118: 0 | G118: 0 | H118: 0 | I118: 0 | J118: 0 | K118: 0
B120: EXPENDITURE - STANDARD CONTROL SERVICES
E121: =CONCATENATE("EXPENDITURE ($'0s, real ", dms_DollarReal,")") -> EXPENDITURE ($'0s, real June 2020)
E122: =CRCP_y4 -> 2018-19 | F122: =CRCP_y5 -> 2019-20 | G122: =FRCP_y1 -> 2020-21 | H122: =FRCP_y2 -> 2021-22 | I122: =FRCP_y3 -> 2022-23 | J122: =FRCP_y4 -> 2023-24 | K122: =FRCP_y5 -> 2024-25
B123: RESIDENTIAL | C123: Simple connection LV | E123: 9598767.52 | F123: 8847192.33 | G123: 8742801.86 | H123: 9066542.95 | I123: 9276432.45 | J123: 9239426.63 | K123: 9074720.73
C124: Complex connection LV | E124: 5083928.44 | F124: 4643975.74 | G124: 4883932.83 | H124: 5114191.79 | I124: 5217029.64 | J124: 5177228.62 | K124: 5084680.46
C125: Complex connection HV | E125: 0 | F125: 0 | G125: 0 | H125: 0 | I125: 0 | J125: 0 | K125: 0
B126: COMMERCIAL/INDUSTRIAL | C126: Simple connection LV | E126: 1111831.49 | F126: 1016126.77 | G126: 1065003.08 | H126: 1114642.55 | I126: 1137234.3 | J126: 1128776.4 | K126: 1108601.34
C127: Complex connection HV (customer connected at LV, minor HV works) | E127: 14203115.74 | F127: 12953003.77 | G127: 13771430.76 | H127: 14444192.87 | I127: 14727317.38 | J127: 14605994.26 | K127: 14344775.76
C128: Complex connection HV (customer connected at LV, upstream asset works) | E128: 9859488.69 | F128: 9024447.66 | G128: 9361666.32 | H128: 9782701.54 | I128: 9985754.38 | J128: 9917334.02 | K128: 9740157.03
C129: Complex connection HV (customer connected at HV) | E129: 975196.02 | F129: 867145.35 | G129: 1079945.28 | H129: 1157322.03 | I129: 1172343.74 | J129: 1153298.45 | K129: 1132545.02
C130: Complex connection sub-transmission | E130: 2016989.72 | F130: 1833690.8 | G130: 2592147.79 | H130: 2687786.06 | I130: 2680386.95 | J130: 2733104.4 | K130: 2696958.65
B131: SUBDIVISION | C131: Complex connection LV | E131: 748072.65 | F131: 745765.48 | G131: 771603.46 | H131: 828971.59 | I131: 792262.35 | J131: 778744.8 | K131: 742785.89
C132: Complex connection HV (no upstream asset works) | E132: 1309135.23 | F132: 1305097.67 | G132: 1419204.59 | H132: 1524721.38 | I132: 1457202.35 | J132: 1432339.6 | K132: 1366200.65
C133: Complex connection HV (with upstream asset works) | E133: 1227077.04 | F133: 1223292.55 | G133: 1236074.49 | H133: 1327975.69 | I133: 1269169.13 | J133: 1247514.6 | K133: 1189910.02
B134: EMBEDDED GENERATION | C134: Simple connection LV | E134: 1292269.54 | F134: 1207244.34 | G134: 1164089.64 | H134: 1182422.16 | I134: 1186634.44 | J134: 1219411.56 | K134: 1203413.66
C135: Complex connection HV (small capacity) | E135: 0 | F135: 0 | G135: 0 | H135: 0 | I135: 0 | J135: 0 | K135: 0
C136: Complex connection HV (large capacity) | E136: 0 | F136: 0 | G136: 0 | H136: 0 | I136: 0 | J136: 0 | K136: 0
B138: EXPENDITURE - STANDARD CONTROL SERVICES - CAPITAL CONTRIBUTIONS
E139: =CONCATENATE("EXPENDITURE ($'0s, real ", dms_DollarReal,")") -> EXPENDITURE ($'0s, real June 2020)
E140: =CRCP_y4 -> 2018-19 | F140: =CRCP_y5 -> 2019-20 | G140: =FRCP_y1 -> 2020-21 | H140: =FRCP_y2 -> 2021-22 | I140: =FRCP_y3 -> 2022-23 | J140: =FRCP_y4 -> 2023-24 | K140: =FRCP_y5 -> 2024-25
B141: RESIDENTIAL | C141: Simple connection LV | E141: 1820582.09 | F141: 1521386.68 | G141: 2317479.84 | H141: 2290493.93 | I141: 2338075.71 | J141: 2325357.97 | K141: 2148234.98
C142: Complex connection LV | E142: 3359175.88 | F142: 2808543.9 | G142: 4260965.79 | H142: 4208148.34 | I142: 4296587.81 | J142: 4274442.41 | K142: 3948872.72
C143: Complex connection HV | E143: 0 | F143: 0 | G143: 0 | H143: 0 | I143: 0 | J143: 0 | K143: 0
B144: COMMERCIAL/INDUSTRIAL | C144: Simple connection LV | E144: 621723.91 | F144: 520802.82 | G144: 778106.45 | H144: 766214.32 | I144: 783034.69 | J144: 779859.6 | K144: 720471.2
C145: Complex connection HV (customer connected at LV, minor HV works) | E145: 10721266 | F145: 8962438.21 | G145: 13614432.07 | H145: 13448871.31 | I145: 13730494.68 | J145: 13658499.7 | K145: 12618162.93
C146: Complex connection HV (customer connected at LV, upstream asset works) | E146: 5471407.14 | F146: 4574409.16 | G146: 6941635.31 | H146: 6855887.69 | I146: 6999877.4 | J146: 6963684.41 | K146: 6433282.89
C147: Complex connection HV (customer connected at HV) | E147: 2020040.32 | F147: 1688874.91 | G147: 2562786.97 | H147: 2531116.78 | I147: 2584280.31 | J147: 2570923.21 | K147: 2375104.29
C148: Complex connection sub-transmission | E148: 2894434.3 | F148: 2444567.37 | G148: 3139144.59 | H148: 3043860.14 | I148: 3046119 | J148: 3123787.79 | K148: 2899653.92
B149: SUBDIVISION | C149: Complex connection LV | E149: 249880.25 | F149: 221992.85 | G149: 361992.15 | H149: 379150.39 | I149: 358986.4 | J149: 349348.13 | K149: 313386.11
C150: Complex connection HV (no upstream asset works) | E150: =1176767.11+26893483.78 -> 28070250.89 | F150: =1045436.31+26301695.63 -> 27347131.94 | G150: =1706362.49+27452246.32 -> 29158608.81 | H150: =1787243.19+27452246.32 -> 29239489.51 | I150: =1692193.96+27452246.32 -> 29144440.28 | J150: =1646760.98+27452246.32 -> 29099007.3 | K150: =1477242.83+27452246.32 -> 28929489.15
C151: Complex connection HV (with upstream asset works) | E151: 99479.46 | F151: 88377.25 | G151: 144257.81 | H151: 151095.56 | I151: 143059.99 | J151: 139219.03 | K151: 124887.78
B152: EMBEDDED GENERATION | C152: Simple connection LV | E152: 0 | F152: 0 | G152: 0 | H152: 0 | I152: 0 | J152: 0 | K152: 0
C153: Complex connection HV (small capacity) | E153: 0 | F153: 0 | G153: 0 | H153: 0 | I153: 0 | J153: 0 | K153: 0
C154: Complex connection HV (large capacity) | E154: 0 | F154: 0 | G154: 0 | H154: 0 | I154: 0 | J154: 0 | K154: 0
B158: 2.5.3 - VOLUMES BY CONNECTION CLASSIFICATION
B159: NEW CONNECTIONS - ALL
E160: VOLUMES (0's)
E161: =CRCP_y4 -> 2018-19 | F161: =CRCP_y5 -> 2019-20 | G161: =FRCP_y1 -> 2020-21 | H161: =FRCP_y2 -> 2021-22 | I161: =FRCP_y3 -> 2022-23 | J161: =FRCP_y4 -> 2023-24 | K161: =FRCP_y5 -> 2024-25
B162: RESIDENTIAL | C162: Simple connection LV | E162: 10940.75712 | F162: 10831.26477 | G162: 10830.63832 | H162: 11013.05639 | I162: 11241.96709 | J162: 10912.72969 | K162: 10860.90715
C163: Complex connection LV | E163: 234.211423 | F163: 231.867494 | G163: 231.8540835 | H163: 235.7591511 | I163: 240.6594975 | J163: 233.6114332 | K163: 232.5020557
C164: Complex connection HV | E164: 0 | F164: 0 | G164: 0 | H164: 0 | I164: 0 | J164: 0 | K164: 0
B165: COMMERCIAL/INDUSTRIAL | C165: Simple connection LV | E165: 1129.94163 | F165: 1118.633459 | G165: 1118.56876 | H165: 1137.408569 | I165: 1161.050052 | J165: 1127.047009 | K165: 1121.69487
C166: Complex connection HV (customer connected at LV, minor HV works) | E166: 351.3171346 | F166: 347.8012411 | G166: 347.7811252 | H166: 353.6387266 | I166: 360.9892463 | J166: 350.4171498 | K166: 348.7530835
C167: Complex connection HV (customer connected at LV, upstream asset works) | E167: 51.39435615 | F167: 50.88001437 | G167: 50.87707161 | H167: 51.733983 | I167: 52.80929413 | J167: 51.26269694 | K167: 51.01925986
C168: Complex connection HV (customer connected at HV) | E168: 12.48148649 | F168: 12.35657492 | G168: 12.35586025 | H168: 12.5639673 | I168: 12.82511429 | J168: 12.44951212 | K168: 12.39039168
C169: Complex connection sub-transmission | E169: 1 | F169: 0 | G169: 1 | H169: 0 | I169: 1 | J169: 0 | K169: 1
B170: SUBDIVISION | C170: Complex connection LV | E170: 166.1063755 | F170: 177.2567294 | G170: 184.3469986 | H170: 194.9824024 | I170: 185.6865299 | J170: 177.6123567 | K170: 171.6631339
C171: Complex connection HV (no upstream asset works) | E171: 90.58697419 | F171: 96.66787758 | G171: 100.5345927 | H171: 106.3346653 | I171: 101.265113 | J171: 96.86182074 | K171: 93.61738124
C172: Complex connection HV (with upstream asset works) | E172: 27.83567677 | F172: 29.70422424 | G172: 30.89239321 | H172: 32.67464667 | I172: 31.1168684 | J172: 29.76381933 | K172: 28.76686397
B173: EMBEDDED GENERATION | C173: Simple connection LV | E173: 7380 | F173: 7380 | G173: 7380 | H173: 7380 | I173: 7380 | J173: 7380 | K173: 7380
C174: Complex connection HV (small capacity) | E174: 0 | F174: 0 | G174: 0 | H174: 0 | I174: 0 | J174: 0 | K174: 0
C175: Complex connection HV (large capacity) | E175: 0 | F175: 0 | G175: 0 | H175: 0 | I175: 0 | J175: 0 | K175: 0
B177: NEW CONNECTIONS - STANDARD CONTROL SERVICES
E178: VOLUMES (0's)
E179: =CRCP_y4 -> 2018-19 | F179: =CRCP_y5 -> 2019-20 | G179: =FRCP_y1 -> 2020-21 | H179: =FRCP_y2 -> 2021-22 | I179: =FRCP_y3 -> 2022-23 | J179: =FRCP_y4 -> 2023-24 | K179: =FRCP_y5 -> 2024-25
B180: RESIDENTIAL | C180: Simple connection LV | E180: 10940.75712 | F180: 10831.26477 | G180: 10830.63832 | H180: 11013.05639 | I180: 11241.96709 | J180: 10912.72969 | K180: 10860.90715
C181: Complex connection LV | E181: 234.211423 | F181: 231.867494 | G181: 231.8540835 | H181: 235.7591511 | I181: 240.6594975 | J181: 233.6114332 | K181: 232.5020557
C182: Complex connection HV | E182: 0 | F182: 0 | G182: 0 | H182: 0 | I182: 0 | J182: 0 | K182: 0
B183: COMMERCIAL/INDUSTRIAL | C183: Simple connection LV | E183: 1129.94163 | F183: 1118.633459 | G183: 1118.56876 | H183: 1137.408569 | I183: 1161.050052 | J183: 1127.047009 | K183: 1121.69487
C184: Complex connection HV (customer connected at LV, minor HV works) | E184: 351.3171346 | F184: 347.8012411 | G184: 347.7811252 | H184: 353.6387266 | I184: 360.9892463 | J184: 350.4171498 | K184: 348.7530835
C185: Complex connection HV (customer connected at LV, upstream asset works) | E185: 51.39435615 | F185: 50.88001437 | G185: 50.87707161 | H185: 51.733983 | I185: 52.80929413 | J185: 51.26269694 | K185: 51.01925986
C186: Complex connection HV (customer connected at HV) | E186: 12.48148649 | F186: 12.35657492 | G186: 12.35586025 | H186: 12.5639673 | I186: 12.82511429 | J186: 12.44951212 | K186: 12.39039168
C187: Complex connection sub-transmission | E187: 1 | F187: 0 | G187: 1 | H187: 0 | I187: 1 | J187: 0 | K187: 1
B188: SUBDIVISION | C188: Complex connection LV | E188: 166.1063755 | F188: 177.2567294 | G188: 184.3469986 | H188: 194.9824024 | I188: 185.6865299 | J188: 177.6123567 | K188: 171.6631339
C189: Complex connection HV (no upstream asset works) | E189: 90.58697419 | F189: 96.66787758 | G189: 100.5345927 | H189: 106.3346653 | I189: 101.265113 | J189: 96.86182074 | K189: 93.61738124
C190: Complex connection HV (with upstream asset works) | E190: 27.83567677 | F190: 29.70422424 | G190: 30.89239321 | H190: 32.67464667 | I190: 31.1168684 | J190: 29.76381933 | K190: 28.76686397
B191: EMBEDDED GENERATION | C191: Simple connection LV | E191: 7380 | F191: 7380 | G191: 7380 | H191: 7380 | I191: 7380 | J191: 7380 | K191: 7380
C192: Complex connection HV (small capacity) | E192: 0 | F192: 0 | G192: 0 | H192: 0 | I192: 0 | J192: 0 | K192: 0
C193: Complex connection HV (large capacity) | E193: 0 | F193: 0 | G193: 0 | H193: 0 | I193: 0 | J193: 0 | K193: 0
B195: EXISTING CONNECTIONS
E196: VOLUMES (0's)
E197: =CRCP_y4 -> 2018-19 | F197: =CRCP_y5 -> 2019-20 | G197: =FRCP_y1 -> 2020-21 | H197: =FRCP_y2 -> 2021-22 | I197: =FRCP_y3 -> 2022-23 | J197: =FRCP_y4 -> 2023-24 | K197: =FRCP_y5 -> 2024-25
B198: RESIDENTIAL | C198: Simple connection LV
C199: Complex connection LV
C200: Complex connection HV
B201: COMMERCIAL/INDUSTRIAL | C201: Simple connection LV
C202: Complex connection HV (customer connected at LV, minor HV works)
C203: Complex connection HV (customer connected at LV, upstream asset works)
C204: Complex connection HV (customer connected at HV)
C205: Complex connection sub-transmission
B206: SUBDIVISION | C206: Complex connection LV
C207: Complex connection HV (no upstream asset works)
C208: Complex connection HV (with upstream asset works)
B209: EMBEDDED GENERATION | C209: Simple connection LV
C210: Complex connection HV (small capacity)
C211: Complex connection HV (large capacity)

Sheet 2.6 Non-network
B1: =SheetHeader -> REGULATORY REPORTING STATEMENT
B2: =dms_TradingName -> SA Power Networks
B3: =dms_Reg_Year_Span -> 2020-21 to 2024-25
B4: 2.6 NON NETWORK EXPENDITURE
B6: There are THREE tables on this worksheet - each has been 'grouped' (and sub-grouped) for easy navigation. See the Instructions sheet on how to group or ungroup tables.
B8: 2.6.1 - NON-NETWORK EXPENDITURE
E9: =CONCATENATE("EXPENDITURE ($'0s, real ", dms_DollarReal,")") -> EXPENDITURE ($'0s, real June 2020)
B10: SERVICE SUBCATEGORY | C10: ASSET CATEGORY | E10: =CRCP_y4 -> 2018-19 | F10: =CRCP_y5 -> 2019-20 | G10: =FRCP_y1 -> 2020-21 | H10: =FRCP_y2 -> 2021-22 | I10: =FRCP_y3 -> 2022-23 | J10: =FRCP_y4 -> 2023-24 | K10: =FRCP_y5 -> 2024-25
B11: OPEX
B12: IT & COMMUNICATIONS | C12: Total IT and communications | E12: 23581220 | F12: 23076665 | G12: 27528350.95 | H12: 28084180.02 | I12: 28857692.53 | J12: 29206680.32 | K12: 29547009.16
B13: MOTOR VEHICLES | C13: Car | E13: 679364.5275 | F13: 687849.3302 | G13: 696939.4665 | H13: 706285.3341 | I13: 715222.4907 | J13: 723611.5604 | K13: 731418.0921
C14: Light commercial vehicle | E14: 2223958.549 | F14: 2251734.285 | G14: 2281491.632 | H14: 2312086.139 | I14: 2341342.694 | J14: 2368805.039 | K14: 2394360.396
C15: Elevated work platform (LCV) | E15: 0 | F15: 0 | G15: 0 | H15: 0 | I15: 0 | J15: 0 | K15: 0
C16: Elevated work platform (HCV) | E16: 6214801.952 | F16: 6292420.619 | G16: 6375576.854 | H16: 6461072.511 | I16: 6542829.295 | J16: 6619572.199 | K16: 6690986.066
C17: Heavy commercial vehicle | E17: 1885805.323 | F17: 1909357.754 | G17: 1934590.492 | H17: 1960533.099 | I17: 1985341.191 | J17: 2008627.882 | K17: 2030297.543
B18: BUILDINGS AND PROPERTY | C18: Total buildings and property expenditure | E18: 4621046 | F18: 4681278 | G18: 4744086.903 | H18: 4809519.346 | I18: 4873075.989 | J18: 4933641.074 | K18: 4990812.078
B19: OTHER | C19: Other expenditure | E19: 3191644.825 | F19: 3231506.307 | G19: 3274211.636 | H19: 3318118.389 | I19: 3360105.023 | J19: 3399516.752 | K19: 3436191.726
B20: OTHER - DNSP nominated | C20: TEC Vehicles | E20: 269735.0255 | F20: 273103.8333 | G20: 276712.9827 | H20: 280423.6679 | I20: 283972.0783 | J20: 287302.8762 | K20: 290402.383
C21: Cranes | E21: 1587169.914 | F21: 1606992.591 | G21: 1628229.483 | H21: 1650063.828 | I21: 1670943.32 | J21: 1690542.34 | K21: 1708780.402
C22: Trailers | E22: 535978.3355 | F22: 542672.3418 | G22: 549843.9204 | H22: 557217.2559 | I22: 564268.1426 | J22: 570886.6213 | K22: 577045.5119
C23: Other Commercial Vehicles | E23: 798761.5496 | F23: 808737.5403 | G23: 819425.2506 | H23: 830413.6368 | I23: 840921.4816 | J23: 850784.9143 | K23: 859963.4291
B31: CAPEX
B32: IT & COMMUNICATIONS | C32: Total IT and communications | E32: 68587359 | F32: 73536953 | G32: 72472364 | H32: 72902553 | I32: 48456474 | J32: 45487637 | K32: 45237620
B33: MOTOR VEHICLES | C33: Car | E33: 1025821 | F33: - | G33: 981915 | H33: 787623 | I33: 811613 | J33: 1275946 | K33: -
C34: Light commercial vehicle | E34: 6807329 | F34: 7567966 | G34: 5656683 | H34: 7152473 | I34: 11384818 | J34: 8403642 | K34: 4695337
C35: Elevated work platform (LCV) | E35: - | F35: - | G35: - | H35: - | I35: - | J35: - | K35: -
C36: Elevated work platform (HCV) | E36: 10136483 | F36: 6477666 | G36: 5277792 | H36: 4198885 | I36: 6025949 | J36: 13364431 | K36: 10264096
C37: Heavy commercial vehicle | E37: 128764 | F37: 2045916 | G37: 997924 | H37: 1825371 | I37: 3074123 | J37: 2804881 | K37: 1535442
B38: BUILDINGS AND PROPERTY | C38: Total buildings and property expenditure | E38: 11224153 | F38: 15424027 | G38: 13791882 | H38: 17896651 | I38: 11117224 | J38: 9451895 | K38: 9239217
B39: OTHER | C39: Other expenditure | E39: 8343543 | F39: 9425106 | G39: 14504851.2 | H39: 15442256.92 | I39: 10602292 | J39: 11423879.87 | K39: 16298900.85
B40: OTHER - DNSP nominated | C40: TEC Vehicles | E40: 1734023 | F40: 2616720 | G40: 1857100 | H40: 2426732 | I40: 2268069 | J40: 1913919 | K40: 2536817
C41: Cranes | E41: 1047281 | F41: 1924059 | G41: 2401422 | H41: 6109404 | I41: 1823350 | J41: 956959 | K41: 2881735
C42: Trailers | E42: 351955 | F42: - | G42: - | H42: 74505 | I42: 244596 | J42: 181492 | K42: 445056
C43: Other Commercial Vehicles | E43: 60090 | F43: - | G43: - | H43: - | I43: - | J43: - | K43: -
C44: Non-Network Telecommunications | E44: - | F44: - | G44: 4863466 | H44: 2347528 | I44: 2585383 | J44: 4970317 | K44: 6514479
C45: Non-Network Other Plant and Tools | E45: 5150193 | F45: 4884326 | G45: 5382864 | H45: 4484089 | I45: 3680894 | J45: 3401193 | K45: 3920814
C46: Other Strategic Non-Network | E46: - | F46: - | G46: 0 | H46: 0 | I46: 0 | J46: 0 | K46: 0
B54: 2.6.2 - ANNUAL DESCRIPTOR METRICS
B55: IT & COMMUNICATIONS
E56: VOLUMES (0's)
E57: =CRCP_y4 -> 2018-19 | F57: =CRCP_y5 -> 2019-20 | G57: =FRCP_y1 -> 2020-21 | H57: =FRCP_y2 -> 2021-22 | I57: =FRCP_y3 -> 2022-23 | J57: =FRCP_y4 -> 2023-24 | K57: =FRCP_y5 -> 2024-25
B58: Employee numbers | E58: 1734 | F58: 1734 | G58: 1734 | H58: 1734 | I58: 1734 | J58: 1734 | K58: 1734
B59: User numbers | E59: 2462.659512 | F59: 2462.659512 | G59: 2436.074486 | H59: 2427.212811 | I59: 2444.936161 | J59: 2462.659512 | K59: 2480.382862
B60: Number of devices | E60: 5702.835723 | F60: 5513.908147 | G60: 5324.98057 | H60: 5324.98057 | I60: 5324.98057 | J60: 5324.98057 | K60: 5324.98057
B62: MOTOR VEHICLES
E63: VOLUMES (0's or %)
B64: ASSET CATEGORY | C64: DESCRIPTOR METRIC | D64: Units | E64: =CRCP_y4 -> 2018-19 | F64: =CRCP_y5 -> 2019-20 | G64: =FRCP_y1 -> 2020-21 | H64: =FRCP_y2 -> 2021-22 | I64: =FRCP_y3 -> 2022-23 | J64: =FRCP_y4 -> 2023-24 | K64: =FRCP_y5 -> 2024-25
B65: CAR | C65: Average kilometres travelled | D65: 0's | E65: 33320 | F65: 33320 | G65: 33320 | H65: 33320 | I65: 33320 | J65: 33320 | K65: 33320
C66: Number purchased | D66: 0's | E66: 29 | F66: 0 | G66: 24 | H66: 32 | I66: 20 | J66: 44 | K66: 0
C67: Number leased | D67: 0's | E67: 0 | F67: 0 | G67: 0 | H67: 0 | I67: 0 | J67: 0 | K67: 0
C68: Number in fleet | D68: 0's | E68: 86 | F68: 86 | G68: 86 | H68: 86 | I68: 86 | J68: 86 | K68: 86
C69: Proportion of total fleet expenditure allocated as regulatory expenditure | D69: % | E69: 0.8863 | F69: 0.8863 | G69: 0.8863 | H69: 0.8863 | I69: 0.8863 | J69: 0.8863 | K69: 0.8863
B70: LIGHT COMMERCIAL VEHICLE | C70: Average kilometres travelled | D70: 0's | E70: 21424.04234 | F70: 21424.04234 | G70: 21424.04234 | H70: 21424.04234 | I70: 21424.04234 | J70: 21424.04234 | K70: 21424.04234
C71: Number purchased | D71: 0's | E71: 119 | F71: 82 | G71: 80 | H71: 87 | I71: 126 | J71: 98 | K71: 58
C72: Number leased | D72: 0's | E72: 25 | F72: 25 | G72: 25 | H72: 25 | I72: 25 | J72: 25 | K72: 25
C73: Number in fleet | D73: 0's | E73: 496 | F73: 496 | G73: 496 | H73: 496 | I73: 496 | J73: 496 | K73: 496
C74: Proportion of total fleet expenditure allocated as regulatory expenditure | D74: % | E74: 0.9392 | F74: 0.9392 | G74: 0.9392 | H74: 0.9392 | I74: 0.9392 | J74: 0.9392 | K74: 0.9392
B75: ELEVATED WORK PLATFORM (LCV) | C75: Average kilometres travelled | D75: 0's | E75: 0 | F75: 0 | G75: 0 | H75: 0 | I75: 0 | J75: 0 | K75: 0
C76: Number purchased | D76: 0's | E76: 0 | F76: 0 | G76: 0 | H76: 0 | I76: 0 | J76: 0 | K76: 0
C77: Number leased | D77: 0's | E77: 0 | F77: 0 | G77: 0 | H77: 0 | I77: 0 | J77: 0 | K77: 0
C78: Number in fleet | D78: 0's | E78: 0 | F78: 0 | G78: 0 | H78: 0 | I78: 0 | J78: 0 | K78: 0
C79: Proportion of total fleet expenditure allocated as regulatory expenditure | D79: % | E79: 0 | F79: 0 | G79: 0 | H79: 0 | I79: 0 | J79: 0 | K79: 0
B80: ELEVATED WORK PLATFORM (HCV) | C80: Average kilometres travelled | D80: 0's | E80: 16610.66897 | F80: 16610.66897 | G80: 16610.66897 | H80: 16610.66897 | I80: 16610.66897 | J80: 16610.66897 | K80: 16610.66897
C81: Number purchased | D81: 0's | E81: 25 | F81: 13 | G81: 11 | H81: 9 | I81: 12 | J81: 28 | K81: 16
C82: Number leased | D82: 0's | E82: 3 | F82: 3 | G82: 3 | H82: 3 | I82: 3 | J82: 3 | K82: 3
C83: Number in fleet | D83: 0's | E83: 158 | F83: 158 | G83: 158 | H83: 158 | I83: 158 | J83: 158 | K83: 158
C84: Proportion of total fleet expenditure allocated as regulatory expenditure | D84: % | E84: 0.8686 | F84: 0.8686 | G84: 0.8686 | H84: 0.8686 | I84: 0.8686 | J84: 0.8686 | K84: 0.8686
B85: HEAVY COMMERCIAL VEHICLE | C85: Average kilometres travelled | D85: 0's | E85: 3867.759036 | F85: 3867.759036 | G85: 3867.759036 | H85: 3867.759036 | I85: 3867.759036 | J85: 3867.759036 | K85: 3867.759036
C86: Number purchased | D86: 0's | E86: 0 | F86: 6 | G86: 4 | H86: 7 | I86: 11 | J86: 9 | K86: 5
C87: Number leased | D87: 0's | E87: 0 | F87: 0 | G87: 0 | H87: 0 | I87: 0 | J87: 0 | K87: 0
C88: Number in fleet | D88: 0's | E88: 83 | F88: 83 | G88: 83 | H88: 83 | I88: 83 | J88: 83 | K88: 83
C89: Proportion of total fleet expenditure allocated as regulatory expenditure | D89: % | E89: 0.9251 | F89: 0.9251 | G89: 0.9251 | H89: 0.9251 | I89: 0.9251 | J89: 0.9251 | K89: 0.9251
B93: 2.6.4 - INFORMATION & COMMUNICATIONS TECHNOLOGY - CAPEX BY PURPOSE
E94: =CONCATENATE("EXPENDITURE ($'0s, real ", dms_DollarReal,")") -> EXPENDITURE ($'0s, real June 2020)
E95: =CRCP_y4 -> 2018-19 | F95: =CRCP_y5 -> 2019-20 | G95: =FRCP_y1 -> 2020-21 | H95: =FRCP_y2 -> 2021-22 | I95: =FRCP_y3 -> 2022-23 | J95: =FRCP_y4 -> 2023-24 | K95: =FRCP_y5 -> 2024-25
B96: ICT CAPABILITY GROWTH
B97: Capability Growth | E97: 431842.5012 | F97: - | G97: 0 | H97: 2618903.697 | I97: 1355945.803 | J97: 2109756.148 | K97: 1866794.623
B103: ICT ASSET EXTENSIONS
B104: Asset Extension | E104: 11762824.69 | F104: 14354732.38 | G104: 17836520.07 | H104: 18043480.33 | I104: 3295703.759 | J104: 15285678.39 | K104: 17081769.22
B110: ICT ASSET REMEDIATION
B111: Asset Remediation | E111: 2623610.761 | F111: 2977067.438 | G111: 842035.3111 | H111: 814343.7214 | I111: 526641.8898 | J111: 532681.685 | K111: 537207.6639
B117: ICT ASSET REPLACEMENT
B118: Asset Replacement | E118: 53769080.86 | F118: 56205152.96 | G118: 53793809.06 | H118: 51425825.27 | I118: 43278182.81 | J118: 27559521.24 | K118: 25751848.27

Sheet 2.10 Overheads
B1: =SheetHeader -> REGULATORY REPORTING STATEMENT
B2: =dms_TradingName -> SA Power Networks
B3: =dms_Reg_Year_Span -> 2020-21 to 2024-25
B4: 2.10 OVERHEADS
B6: There are TWO tables on this worksheet. Each table has been 'grouped' (and sub-grouped) for easy navigation. See the Instructions sheet on how to group or ungroup data.
B8: 2.10.1 - NETWORK OVERHEADS EXPENDITURE
D9: =CONCATENATE("EXPENDITURE ($0's, real ", dms_DollarReal,")") -> EXPENDITURE ($0's, real June 2020)
D10: =CRCP_y4 -> 2018-19 | E10: =CRCP_y5 -> 2019-20 | F10: =FRCP_y1 -> 2020-21 | G10: =FRCP_y2 -> 2021-22 | H10: =FRCP_y3 -> 2022-23 | I10: =FRCP_y4 -> 2023-24 | J10: =FRCP_y5 -> 2024-25
B11: OPEX
B12: Standard Control Services | C12: Total | D12: 96385185.09 | E12: 97987310.31 | F12: 96086622.67 | G12: 97822334.36 | H12: 99687398.52 | I12: 101117418.7 | J12: 102548354.2
B13: Alternative Control Services | C13: Total | D13: 6203562.219 | E13: 6127794.214 | F13: 6056505.556 | G13: 6047590.45 | H13: 6050248.15 | I13: 6054487.412 | J13: 6016311.545
B14: CAPEX
B15: Standard Control Services | C15: Total | D15: 14391040.05 | E15: 14153119.16 | F15: 12505684.28 | G15: 12744409.75 | H15: 12424946.78 | I15: 12415356.6 | J15: 12332388.02
B16: Alternative Control Services | C16: Total | D16: 1225735.653 | E16: 1543148.136 | F16: 929079.2063 | G16: 541549.8287 | H16: 576121.7582 | I16: 138668.7171 | J16: 131922.1599
B17: OTHER DISTRIBUTION SERVICES
B18: Negotiated Services | C18: Total | D18: 0 | E18: 0 | F18: 0 | G18: 0 | H18: 0 | I18: 0 | J18: 0
B19: Unregulated Distribution Services | C19: Total | D19: 0 | E19: 0 | F19: 0 | G19: 0 | H19: 0 | I19: 0 | J19: 0
B23: 2.10.2 - CORPORATE OVERHEADS EXPENDITURE
D24: =CONCATENATE("EXPENDITURE ($0's, real ", dms_DollarReal,")") -> EXPENDITURE ($0's, real June 2020)
D25: =CRCP_y4 -> 2018-19 | E25: =CRCP_y5 -> 2019-20 | F25: =FRCP_y1 -> 2020-21 | G25: =FRCP_y2 -> 2021-22 | H25: =FRCP_y3 -> 2022-23 | I25: =FRCP_y4 -> 2023-24 | J25: =FRCP_y5 -> 2024-25
B26: OPEX
B27: Standard Control Services | C27: Total | D27: 49304845.99 | E27: 50109044.76 | F27: 50756557.61 | G27: 51449272.62 | H27: 52122582 | I27: 52764696.52 | J27: 53371406.17
B28: Alternative Control Services | C28: Total | D28: 9651583.9 | E28: 9696397.461 | F28: 10339077.67 | G28: 10502691.99 | H28: 10690886.97 | I28: 10821969.95 | J28: 10947153.46
B29: CAPEX
B30: Standard Control Services | C30: Total | D30: -10552454.99 | E30: -10648557.63 | F30: -7498424.151 | G30: -7578441.363 | H30: -7670285.9 | I30: -7753980.21 | J30: -7828688.833
B31: Alternative Control Services | C31: Total | D31: 0 | E31: 0 | F31: 0 | G31: 0 | H31: 0 | I31: 0 | J31: 0
B32: OTHER DISTRIBUTION SERVICES
B33: Negotiated Services | C33: Total | D33: 0 | E33: 0 | F33: 0 | G33: 0 | H33: 0 | I33: 0 | J33: 0
B34: Unregulated Distribution Services | C34: Total | D34: 418981.699 | E34: 420927.0856 | F34: 448826.2624 | G34: 455928.8691 | H34: 464098.539 | I34: 469788.9387 | J34: 475223.2382

Sheet 2.11 Labour
B1: =SheetHeader -> REGULATORY REPORTING STATEMENT
B2: =dms_TradingName -> SA Power Networks
B3: =dms_Reg_Year_Span -> 2020-21 to 2024-25
B4: 2.11 LABOUR
B6: Table numbering on this worksheet starts at 2.11.3.
B8: 2.11.3 - LABOUR / NON-LABOUR EXPENDITURE SPLIT - STANDARD CONTROL SERVICES
C9: EXPENDITURE
C10: =CONCATENATE("($0's, real ", dms_DollarReal,")") -> ($0's, real June 2020)
C11: =CRCP_y4 -> 2018-19 | D11: =CRCP_y5 -> 2019-20 | E11: =FRCP_y1 -> 2020-21 | F11: =FRCP_y2 -> 2021-22 | G11: =FRCP_y3 -> 2022-23 | H11: =FRCP_y4 -> 2023-24 | I11: =FRCP_y5 -> 2024-25
B12: OPEX
B13: In-house labour expenditure | C13: 100231893.8 | D13: 100833285.1 | E13: 109115653.1 | F13: 108890593.1 | G13: 118032733.1 | H13: 121001199 | I13: 125384321.8
B14: Labour expenditure outsourced to related parties | C14: 0 | D14: 0 | E14: 0 | F14: 0 | G14: 0 | H14: 0 | I14: 0
B15: Labour expenditure outsourced to unrelated parties | C15: 12027660.36 | D15: 13004993.66 | E15: 12657663.44 | F15: 14562628.89 | G15: 7517422.056 | H15: 6224647.372 | I15: 3463566.127
B16: Controllable non-labour expenditure | C16: 155072004.4 | D16: 157093267.9 | E16: 167252608.8 | F16: 169403415.4 | G16: 172088148.6 | H16: 174233559.8 | I16: 176310282.5
B17: Uncontrollable non-labour expenditure | C17: 8860724.934 | D17: 8860724.934 | E17: 8860724.934 | F17: 8860724.934 | G17: 8860724.934 | H17: 8860724.934 | I17: 8860724.934
B18: Total | C18: =SUM(C13:C17) -> 276192283.4 | D18: =SUM(D13:D17) -> 279792271.6 | E18: 297886650.3 | F18: 301717362.3 | G18: 306499028.7 | H18: 310320131.2 | I18: 314018895.4
B19: CAPEX
B20: In-house labour expenditure | C20: 134334531 | D20: 135140538.1 | E20: 128698766 | F20: 131539784.6 | G20: 125378981.3 | H20: 125039361.8 | I20: 123141248.7
B21: Labour expenditure outsourced to related parties | C21: 0 | D21: 0 | E21: 0 | F21: 0 | G21: 0 | H21: 0 | I21: 0
B22: Labour expenditure outsourced to unrelated parties | C22: 15497675.56 | D22: 14153055.82 | E22: 6101143.701 | F22: 6235826.135 | G22: 5943764.699 | H22: 5927664.567 | I22: 5837681.879
B23: Controllable non-labour expenditure | C23: 279437796.1 | D23: 278433281 | E23: 269385771 | F23: 279595077.5 | G23: 250931250.3 | H23: 249533467.3 | I23: 240564715
B24: Uncontrollable non-labour expenditure | C24: 0 | D24: 0 | E24: 0 | F24: 0 | G24: 0 | H24: 0 | I24: 0
B25: Total | C25: =SUM(C20:C24) -> 429270002.6 | D25: =SUM(D20:D24) -> 427726875 | E25: =SUM(E20:E24) -> 404185680.7 | F25: =SUM(F20:F24) -> 417370688.3 | G25: =SUM(G20:G24) -> 382253996.3 | H25: =SUM(H20:H24) -> 380500493.7 | I25: =SUM(I20:I24) -> 369543645.6

Sheet 2.14 Forecast price changes
B1: =SheetHeader -> REGULATORY REPORTING STATEMENT
B2: =dms_TradingName -> SA Power Networks
B3: =dms_Reg_Year_Span -> 2020-21 to 2024-25
B4: 2.14 FORECAST PRICE CHANGES
B6: There is ONE table on this worksheet. It has been grouped for easy navigation. See the Instructions sheet on how to group or ungroup data.
B8: Instructions
B9: =CONCATENATE(dms_TradingName, " must provide all forecast price changes used to forecast opex and capex, including forecast changes in CPI. Forecast price changes must be expressed in real terms, except for CPI. "&"If the same escalators are not used for capex and opex, report capex and opex escalators separately. Add additional rows as required. If price changes for a given year were not used to forecast either opex or capex enter '0' for that year.") -> SA Power Networks must provide all forecast price changes used to forecast opex and capex, including forecast changes in CPI. Forecast price changes must be expressed in real terms, except for CPI. If the same escalators are not used for capex and opex, report capex and opex escalators separately. Add additional rows as required. If price changes for a given year were not used to forecast either opex or capex enter '0' for that year.
B11: 2.14.2 - FORECAST CAPEX AND OPEX PRICE CHANGES
C12: Price changes (% YoY real) Current regulatory period | E12: Price changes (%YoY real) Forthcoming regulatory period
C13: Forecast
C14: =CRCP_y4 -> 2018-19 | D14: =CRCP_y5 -> 2019-20 | E14: =FRCP_y1 -> 2020-21 | F14: =FRCP_y2 -> 2021-22 | G14: =FRCP_y3 -> 2022-23 | H14: =FRCP_y4 -> 2023-24 | I14: =FRCP_y5 -> 2024-25
B15: OPEX
B16: CPI | C16: 0.02 | D16: 0.0225 | E16: 0.025 | F16: 0.025 | G16: 0.025 | H16: 0.025 | I16: 0.025
B17: Labour EGWWS (real) | E17: 0.008716771213 | F17: 0.007374730008 | G17: 0.005936653488 | H17: 0.005876070337 | I17: 0.005802597619
B19: CAPEX
B20: Labour EGWWS (real) | C20: 0.0074 | D20: 0.0077 | E20: 0.0078 | F20: 0.0107 | G20: 0.0121 | H20: 0.0109 | I20: 0.0096
B21: Contracted construction and labour services (real) | C21: 0.0015 | D21: 0.0021 | E21: 0.0069 | F21: 0.0138 | G21: 0.0165 | H21: 0.0129 | I21: 0.0089

Sheet 2.16 Opex Summary
B1: =SheetHeader -> REGULATORY REPORTING STATEMENT
B2: =dms_TradingName -> SA Power Networks
B3: =dms_Reg_Year_Span -> 2020-21 to 2024-25
B4: 2.16 OPEX SUMMARY
B6: There are FOUR tables on this worksheet. Each table has been 'grouped' (and 'sub-grouped') for easy navigation. See the Instructions sheet on how to group or ungroup data.
B8: Instructions | J8: IMPORTANT!
B9: =CONCATENATE("Complete the tables below in accordance with the regulatory information notice. ",dms_TradingName,"'s total forecast opex must reconcile to Table 2.16.1 (and if ",dms_TradingName," owns any dual function assets Table 2.16.3). If ",dms_TradingName," did not forecast its total opex using a Base Year approach, total forecast opex must reconcile to Table 2.16.2 (and if ",dms_TradingName," owns any dual function assets Table 2.16.4).") -> Complete the tables below in accordance with the regulatory information notice. SA Power Networks's total forecast opex must reconcile to Table 2.16.1 (and if SA Power Networks owns any dual function assets Table 2.16.3). If SA Power Networks did not forecast its total opex using a Base Year approach, total forecast opex must reconcile to Table 2.16.2 (and if SA Power Networks owns any dual function assets Table 2.16.4). | J9: =CONCATENATE("Has ",dms_TradingName," used a base-step-trend model to derive its opex forecast? ") -> Has SA Power Networks used a base-step-trend model to derive its opex forecast? | L9: Yes
B10: =CONCATENATE("If ",dms_TradingName," does not own any dual function assets,Table 2.16.3 and 2.16.4 may be left blank.") -> If SA Power Networks does not own any dual function assets,Table 2.16.3 and 2.16.4 may be left blank. | J10: Yes / No
B11: The total step changes in Table 2.16.1 and Table 2.16.3 must "&"reconcile (in each year) to the total step changes for each year in Table 2.17.1 and Table 2.17.3 of worksheet '2.17 Step Changes', respectively.") | J11: Please nominate the base year. | L11: 2018-19
B14: 2.16.1 - STANDARD CONTROL SERVICES - OPEX BY DRIVER
C15: EXPENDITURE
C16: =CONCATENATE("Forecast ($0's, real ", dms_DollarReal,")") -> Forecast ($0's, real June 2020)
C17: =CRCP_y1 -> 2015-16 | D17: =CRCP_y2 -> 2016-17 | E17: =CRCP_y3 -> 2017-18 | F17: =CRCP_y4 -> 2018-19 | G17: =CRCP_y5 -> 2019-20 | H17: =FRCP_y1 -> 2020-21 | I17: =FRCP_y2 -> 2021-22 | J17: =FRCP_y3 -> 2022-23 | K17: =FRCP_y4 -> 2023-24 | L17: =FRCP_y5 -> 2024-25
B18: Base year total opex, excluding category specific | F18: 276192283 | G18: 276192283 | H18: 279792271.6 | I18: 279792271.6 | J18: 279792271.6 | K18: 279792271.6 | L18: 279792271.6
B19: Increment from base year to final year | G19: 3599989
B20: Price growth | H20: 1309774 | I20: 3131805 | J20: 5234275 | K20: 7166079 | L20: 8907189
B21: Output growth | H21: 2429262 | I21: 4509998 | J21: 6207063 | K21: 7897410 | L21: 9577186
B22: Productivity growth | H22: 0 | I22: 0 | J22: 0 | K22: 0 | L22: 0
B23: Step changes | H23: 14345675 | I23: 14272908 | J23: 15264333 | K23: 15473311 | L23: 15762041
B24: Category specific | F24: 0 | G24: 0 | H24: - | I24: - | J24: - | K24: - | L24: -
B25: Total opex | C25: =SUM(C18:C24) -> 0 | D25: =SUM(D18:D24) -> 0 | E25: =SUM(E18:E24) -> 0 | F25: 276192283 | G25: 279792272 | H25: 297876982.6 | I25: 301706982.6 | J25: 306497942.6 | K25: 310329071.6 | L25: 314038687.6
B28: 2.16.2 - STANDARD CONTROL SERVICES - OPEX BY CATEGORY
C29: EXPENDITURE
C30: =CONCATENATE("Forecast ($0's, real ", dms_DollarReal,")") -> Forecast ($0's, real June 2020)
C31: =CRCP_y1 -> 2015-16 | D31: =CRCP_y2 -> 2016-17 | E31: =CRCP_y3 -> 2017-18 | F31: =CRCP_y4 -> 2018-19 | G31: =CRCP_y5 -> 2019-20 | H31: =FRCP_y1 -> 2020-21 | I31: =FRCP_y2 -> 2021-22 | J31: =FRCP_y3 -> 2022-23 | K31: =FRCP_y4 -> 2023-24 | L31: =FRCP_y5 -> 2024-25
B32: Vegetation management
B33: Maintenance
B34: Emergency response
B35: Non-network
B36: Metering
B37: Network overheads
B38: Corporate overheads
B39: Total opex | C39: =SUM(C32:C38) -> 0 | D39: =SUM(D32:D38) -> 0 | E39: 0 | F39: 0 | G39: 0 | H39: =SUM(H32:H38) -> 0 | I39: 0 | J39: 0 | K39: 0 | L39: 0
B42: 2.16.3 - DUAL FUNCTION ASSETS - OPEX BY DRIVER
C43: EXPENDITURE
C44: =CONCATENATE("Forecast ($0's, real ", dms_DollarReal,")") -> Forecast ($0's, real June 2020)
C45: =CRCP_y1 -> 2015-16 | D45: =CRCP_y2 -> 2016-17 | E45: =CRCP_y3 -> 2017-18 | F45: =CRCP_y4 -> 2018-19 | G45: =CRCP_y5 -> 2019-20 | H45: =FRCP_y1 -> 2020-21 | I45: =FRCP_y2 -> 2021-22 | J45: =FRCP_y3 -> 2022-23 | K45: =FRCP_y4 -> 2023-24 | L45: =FRCP_y5 -> 2024-25
B46: Base year total opex, excluding category specific
B47: Increment from base year to final year
B48: Price growth
B49: Output growth
B50: Productivity growth
B51: Step changes
B52: Category specific
B53: Total opex | C53: =SUM(C46:C52) -> 0 | D53: =SUM(D46:D52) -> 0 | E53: 0 | F53: 0 | G53: 0 | H53: =SUM(H46:H52) -> 0 | I53: 0 | J53: 0 | K53: 0 | L53: 0
B56: 2.16.4 - DUAL FUNCTION ASSETS - OPEX BY CATEGORY
C57: EXPENDITURE
C58: =CONCATENATE("Forecast ($0's, real ", dms_DollarReal,")") -> Forecast ($0's, real June 2020)
C59: =CRCP_y1 -> 2015-16 | D59: =CRCP_y2 -> 2016-17 | E59: =CRCP_y3 -> 2017-18 | F59: =CRCP_y4 -> 2018-19 | G59: =CRCP_y5 -> 2019-20 | H59: =FRCP_y1 -> 2020-21 | I59: =FRCP_y2 -> 2021-22 | J59: =FRCP_y3 -> 2022-23 | K59: =FRCP_y4 -> 2023-24 | L59: =FRCP_y5 -> 2024-25
B60: Vegetation management
B61: Maintenance
B62: Emergency response
B63: Non-network
B64: Metering
B65: Network overheads
B66: Corporate overheads
B67: Total opex | C67: =SUM(C60:C66) -> 0 | D67: =SUM(D60:D66) -> 0 | E67: 0 | F67: 0 | G67: 0 | H67: =SUM(H60:H66) -> 0 | I67: 0 | J67: 0 | K67: 0 | L67: 0

Sheet 2.17 Step Changes
B1: =SheetHeader -> REGULATORY REPORTING STATEMENT
B2: =dms_TradingName -> SA Power Networks
B3: =dms_Reg_Year_Span -> 2020-21 to 2024-25
B4: 2.17 STEP CHANGES
B6: There are FIVE tables on this worksheet. Each table has been 'grouped' (and 'sub-grouped') for easy navigation. See the Instructions sheet on how to group or ungroup data.
B8: Instructions
B9: =CONCATENATE("Complete the Tables below in accordance with the regulatory information notice. If ",dms_TradingName," does not own any dual function assets,Table 2.17.3 and 2.17.4 may be left blank."&" The total step changes in Table 2.17.1 and Table 2.17.3 must reconcile (in each year) to the total step changes for each year in Table 2.16.1 and Table 2.16.3 of worksheet '2.16 Opex Summary', respectively.") -> Complete the Tables below in accordance with the regulatory information notice. If SA Power Networks does not own any dual function assets,Table 2.17.3 and 2.17.4 may be left blank. The total step changes in Table 2.17.1 and Table 2.17.3 must reconcile (in each year) to the total step changes for each year in Table 2.16.1 and Table 2.16.3 of worksheet '2.16 Opex Summary', respectively.
B10: The total category specific forecast in Table 2.17.5 must reconcile (in each year) to the total category specific forecasts for each year in Table 2.16.1 and Table 2.16.3 of worksheet '2.16 Opex Summary'.
B12: 2.17.1 - STEP CHANGES FOR STANDARD CONTROL SERVICES - FORECAST OPEX
E13: EXPENDITURE
E14: =CONCATENATE("Forecast ($0's, real ", dms_DollarReal, ")") -> Forecast ($0's, real June 2020)
B15: Step change | C15: Description | E15: =CRCP_y4 -> 2018-19 | F15: =CRCP_y5 -> 2019-20 | G15: =FRCP_y1 -> 2020-21 | H15: =FRCP_y2 -> 2021-22 | I15: =FRCP_y3 -> 2022-23 | J15: =FRCP_y4 -> 2023-24 | K15: =FRCP_y5 -> 2024-25
B16: LV Management - Future Networks | C16: capex/opex trade-off and positive npv | G16: 0 | H16: 404658 | I16: 936116 | J16: 1094892 | K16: 1325337
B17: Cloud Transition - Cloud Hosting | C17: capex/opex trade-off | G17: 954852 | H17: 1187882 | I17: 1647849 | J17: 1698050 | K17: 1756336
B18: Cloud Transition - Work Scheduling | C18: capex/opex trade-off | G18: 754988 | H18: 754988 | I18: 754988 | J18: 754988 | K18: 754988
B19: Critical Infrastructure Compliance | C19: change in regualtory obligations | G19: 2414416 | H19: 2414416 | I19: 2414416 | J19: 2414416 | K19: 2414416
B20: Cable/Conductor Repair | C20: capex/opex trade-off | G20: 14199116 | H20: 13488661 | I20: 13488661 | J20: 13488661 | K20: 13488661
B21: GSL reliability duration payments | C21: change in regualtory obligations | G21: -3977697 | H21: -3977697 | I21: -3977697 | J21: -3977696 | K21: -3977697
B26: Total | E26: =SUM(E16:E25) -> 0 | F26: 0 | G26: 14345675 | H26: 14272908 | I26: 15264333 | J26: 15473311 | K26: 15762041
B27: Check | G27: =IF(G$26-'2.16 Opex Summary'!H$23=0,"OK","Error") -> OK | H27: =IF(H$26-'2.16 Opex Summary'!I$23=0,"OK","Error") -> OK | I27: =IF(I$26-'2.16 Opex Summary'!J$23=0,"OK","Error") -> OK | J27: =IF(J$26-'2.16 Opex Summary'!K$23=0,"OK","Error") -> OK | K27: =IF(K$26-'2.16 Opex Summary'!L$23=0,"OK","Error") -> OK
B29: 2.17.2 - STEP CHANGES FOR STANDARD CONTROL SERVICES - FORECAST CAPEX
E30: EXPENDITURE
E31: =CONCATENATE("Forecast ($0's, real ", dms_DollarReal, ")") -> Forecast ($0's, real June 2020)
B32: Step change | C32: Description | E32: =CRCP_y4 -> 2018-19 | F32: =CRCP_y5 -> 2019-20 | G32: =FRCP_y1 -> 2020-21 | H32: =FRCP_y2 -> 2021-22 | I32: =FRCP_y3 -> 2022-23 | J32: =FRCP_y4 -> 2023-24 | K32: =FRCP_y5 -> 2024-25
B43: Total | E43: =SUM(E33:E42) -> 0 | F43: 0 | G43: 0 | H43: 0 | I43: 0 | J43: 0 | K43: 0
B45: 2.17.3 - STEP CHANGES FOR DUAL FUNCTION ASSETS - FORECAST OPEX
E46: EXPENDITURE
E47: =CONCATENATE("Forecast ($0's, real ", dms_DollarReal, ")") -> Forecast ($0's, real June 2020)
B48: Step change | C48: Description | E48: =CRCP_y4 -> 2018-19 | F48: =CRCP_y5 -> 2019-20 | G48: =FRCP_y1 -> 2020-21 | H48: =FRCP_y2 -> 2021-22 | I48: =FRCP_y3 -> 2022-23 | J48: =FRCP_y4 -> 2023-24 | K48: =FRCP_y5 -> 2024-25
B59: Total | E59: =SUM(E49:E58) -> 0 | F59: 0 | G59: 0 | H59: 0 | I59: 0 | J59: 0 | K59: 0
B60: Check | G60: =IF(G$26-'2.16 Opex Summary'!H$51=0,"OK","Error") -> Error | H60: =IF(H$26-'2.16 Opex Summary'!I$51=0,"OK","Error") -> Error | I60: =IF(I$26-'2.16 Opex Summary'!J$51=0,"OK","Error") -> Error | J60: =IF(J$26-'2.16 Opex Summary'!K$51=0,"OK","Error") -> Error | K60: =IF(K$26-'2.16 Opex Summary'!L$51=0,"OK","Error") -> Error
B62: 2.17.4 - STEP CHANGES FOR DUAL FUNCTION ASSETS - FORECAST CAPEX
E63: EXPENDITURE
E64: =CONCATENATE("Forecast ($0's, real ", dms_DollarReal, ")") -> Forecast ($0's, real June 2020)
B65: Step change | C65: Description | E65: =CRCP_y4 -> 2018-19 | F65: =CRCP_y5 -> 2019-20 | G65: =FRCP_y1 -> 2020-21 | H65: =FRCP_y2 -> 2021-22 | I65: =FRCP_y3 -> 2022-23 | J65: =FRCP_y4 -> 2023-24 | K65: =FRCP_y5 -> 2024-25
B76: Total | E76: =SUM(E66:E75) -> 0 | F76: 0 | G76: 0 | H76: 0 | I76: 0 | J76: 0 | K76: 0
B79: 2.17.5 - FORECAST CATEGORY SPECIFIC OPEX
D80: EXPENDITURE
D81: =CONCATENATE("Forecast ($0's, real ", dms_DollarReal, ")") -> Forecast ($0's, real June 2020)
B82: Category | C82: Description | D82: =CRCP_y3 -> 2017-18 | E82: =CRCP_y4 -> 2018-19 | F82: =CRCP_y5 -> 2019-20 | G82: =FRCP_y1 -> 2020-21 | H82: =FRCP_y2 -> 2021-22 | I82: =FRCP_y3 -> 2022-23 | J82: =FRCP_y4 -> 2023-24 | K82: =FRCP_y5 -> 2024-25
B93: Total | D93: =SUM(D90:D92) -> 0 | E93: 0 | F93: 0 | G93: 0 | H93: 0 | I93: 0 | J93: 0 | K93: 0

Sheet 3.1 Revenue
B1: =SheetHeader -> REGULATORY REPORTING STATEMENT
B2: =dms_TradingName -> SA Power Networks
B3: =dms_Reg_Year_Span -> 2020-21 to 2024-25
B4: 3.1 REVENUE
B6: There are THREE tables on this worksheet. Each table has been 'grouped' (and 'sub-grouped') for easy navigation. See the Instructions sheet on how to group or ungroup data.
B8: 3.1.1 - REVENUE GROUPING BY CHARGEABLE QUANTITY
C9: Standard control services | K9: Alternative control services
C10: REVENUE | K10: REVENUE
C11: =CONCATENATE("Forecast ($0's, real ", dms_DollarReal,")") -> Forecast ($0's, real June 2020) | K11: =CONCATENATE("Forecast ($0's, real ", dms_DollarReal,")") -> Forecast ($0's, real June 2020)
C12: =CRCP_y4 -> 2018-19 | D12: =CRCP_y5 -> 2019-20 | E12: =FRCP_y1 -> 2020-21 | F12: =FRCP_y2 -> 2021-22 | G12: =FRCP_y3 -> 2022-23 | H12: =FRCP_y4 -> 2023-24 | I12: =FRCP_y5 -> 2024-25 | K12: =CRCP_y4 -> 2018-19 | L12: =CRCP_y5 -> 2019-20 | M12: =FRCP_y1 -> 2020-21 | N12: =FRCP_y2 -> 2021-22 | O12: =FRCP_y3 -> 2022-23 | P12: =FRCP_y4 -> 2023-24 | Q12: =FRCP_y5 -> 2024-25
A13: DREV0101 | B13: Revenue from Fixed Customer Charges | C13: 140426604 | D13: 154854079 | E13: 152545550 | F13: 160308246 | G13: 167382741 | H13: 174161404 | I13: 180622959 | K13: 0 | L13: 0 | M13: 0 | N13: 0 | O13: 0 | P13: 0 | Q13: 0
A14: DREV0102 | B14: Revenue from Energy Delivery charges where time of use is not a determinant | C14: 463017039 | D14: 411921667 | E14: 246359023 | F14: 221047908 | G14: 198238214 | H14: 176247412 | I14: 155734716 | K14: 0 | L14: 0 | M14: 0 | N14: 0 | O14: 0 | P14: 0 | Q14: 0
A15: DREV0103 | B15: Revenue from On–Peak Energy Delivery charges | C15: 37457394 | D15: 86093315 | E15: 153189726 | F15: 165544895 | G15: 176638273 | H15: 187118315 | I15: 197126308 | K15: 0 | L15: 0 | M15: 0 | N15: 0 | O15: 0 | P15: 0 | Q15: 0
A16: DREV0104 | B16: Revenue from Shoulder period Energy Delivery Charges | C16: - | D16: 8590716 | E16: 36180576 | F16: 41300822 | G16: 45813350 | H16: 50001380 | I16: 53588190 | K16: 0 | L16: 0 | M16: 0 | N16: 0 | O16: 0 | P16: 0 | Q16: 0
A17: DREV0105 | B17: Revenue from Off–Peak Energy Delivery charges | C17: 18293802 | D17: 31012942 | E17: 68366031 | F17: 70372130 | G17: 71814978 | H17: 72982342 | I17: 73749645 | K17: 0 | L17: 0 | M17: 0 | N17: 0 | O17: 0 | P17: 0 | Q17: 0
A18: DREV0106 | B18: Revenue from controlled load customer charges | C18: 21852870 | D18: 22414653 | E18: 21332232 | F18: 19902539 | G18: 18613656 | H18: 17414702 | I18: 16148643 | K18: 0 | L18: 0 | M18: 0 | N18: 0 | O18: 0 | P18: 0 | Q18: 0
A19: DREV0107 | B19: Revenue from unmetered supplies | C19: 5388984 | D19: 5801750 | E19: 6475557 | F19: 6403511 | G19: 6336529 | H19: 6238642 | I19: 6131577 | K19: 0 | L19: 0 | M19: 0 | N19: 0 | O19: 0 | P19: 0 | Q19: 0
A20: DREV0108 | B20: Revenue from Contracted Maximum Demand charges | C20: 114970433 | D20: 113173019 | E20: 8738786 | F20: 8741344 | G20: 8743896 | H20: 8746464 | I20: 8749025 | K20: 0 | L20: 0 | M20: 0 | N20: 0 | O20: 0 | P20: 0 | Q20: 0
A21: DREV0109 | B21: Revenue from Measured Maximum Demand charges | C21: 20923511 | D21: 24503019 | E21: 89745515 | F21: 89311603 | G21: 89351360 | H21: 90022337 | I21: 91081934 | K21: 0 | L21: 0 | M21: 0 | N21: 0 | O21: 0 | P21: 0 | Q21: 0
A22: DREV0110 | B22: Revenue from metering charges | C22: 0 | D22: 0 | E22: 0 | F22: 0 | G22: 0 | H22: 0 | I22: 0 | K22: 25980000 | L22: 25630000 | M22: 17155953.21 | N22: 17141056.7 | O22: 17113422.62 | P22: 17046696.87 | Q22: 16936668.6
A23: DREV0111 | B23: Revenue from connection charges | C23: 0 | D23: 0 | E23: 0 | F23: 0 | G23: 0 | H23: 0 | I23: 0 | K23: 0 | L23: 0 | M23: 0 | N23: 0 | O23: 0 | P23: 0 | Q23: 0
A24: DREV0112 | B24: Revenue from public lighting charges | C24: 0 | D24: 0 | E24: 0 | F24: 0 | G24: 0 | H24: 0 | I24: 0 | K24: 22170000 | L24: 24300000 | M24: 16109627.32 | N24: 15835662.76 | O24: 15697420.23 | P24: 15607052.25 | Q24: 15690355.08
A25: DREV0113 | B25: Revenue from other Sources | C25: 0 | D25: 0 | E25: 0 | F25: 0 | G25: 0 | H25: 0 | I25: 0 | K25: 47860000 | L25: 48890000 | M25: 41482565.81 | N25: 41093642.63 | O25: 40743006.11 | P25: 40426860.29 | Q25: 40141645.53
A26: DREV01 | B26: Total revenue by chargeable quantity | C26: =SUM(C13:C25) -> 822330637 | D26: =SUM(D13:D25) -> 858365160 | E26: 782932996 | F26: 782932998 | G26: 782932997 | H26: 782932998 | I26: 782932997 | K26: =SUM(K13:K25) -> 96010000 | L26: =SUM(L13:L25) -> 98820000 | M26: 74748146.34 | N26: 74070362.09 | O26: 73553848.96 | P26: 73080609.41 | Q26: 72768669.21
B29: 3.1.2 - REVENUE GROUPING BY CUSTOMER TYPE OR CLASS
C30: Standard control services | K30: Alternative control services
C31: REVENUE | K31: REVENUE
C32: =CONCATENATE("Forecast ($0's, real ", dms_DollarReal,")") -> Forecast ($0's, real June 2020) | K32: =CONCATENATE("Forecast ($0's, real ", dms_DollarReal,")") -> Forecast ($0's, real June 2020)
C33: =CRCP_y4 -> 2018-19 | D33: =CRCP_y5 -> 2019-20 | E33: =FRCP_y1 -> 2020-21 | F33: =FRCP_y2 -> 2021-22 | G33: =FRCP_y3 -> 2022-23 | H33: =FRCP_y4 -> 2023-24 | I33: =FRCP_y5 -> 2024-25 | K33: =CRCP_y4 -> 2018-19 | L33: =CRCP_y5 -> 2019-20 | M33: =FRCP_y1 -> 2020-21 | N33: =FRCP_y2 -> 2021-22 | O33: =FRCP_y3 -> 2022-23 | P33: =FRCP_y4 -> 2023-24 | Q33: =FRCP_y5 -> 2024-25
A34: DREV0201 | B34: Revenue from residential Customers | C34: 430232942 | D34: 455858532 | E34: 422799444.6 | F34: 422799410 | G34: 422799059.1 | H34: 422799424.1 | I34: 422799454.5 | K34: 22643548.02 | L34: 22338496.37 | M34: 14952719.42 | N34: 14939735.97 | O34: 14915650.77 | P34: 14857494.2 | Q34: 14761596.18
A35: DREV0202 | B35: Revenue from Non residential customers not on demand tariffs | C35: 118156520 | D35: 115065029 | E35: 117742655.2 | F35: 118649474.8 | G35: 119713184.7 | H35: 120540425.4 | I35: 120827681 | K35: 3336451.98 | L35: 3291503.63 | M35: 2203233.8 | N35: 2201320.73 | O35: 2197771.85 | P35: 2189202.67 | Q35: 2175072.42
A36: DREV0203 | B36: Revenue from Non-residential low voltage demand tariff customers | C36: 218083498 | D36: 233108101 | E36: 194472818.9 | F36: 193638086.2 | G36: 192641098.3 | H36: 191912003.4 | I36: 191731790.3 | K36: 0 | L36: 0 | M36: 0 | N36: 0 | O36: 0 | P36: 0 | Q36: 0
A37: DREV0204 | B37: Revenue from Non-residential high voltage demand tariff customers | C37: 50468693 | D37: 48531748 | E37: 41442522.2 | F37: 41442515.74 | G37: 41443125.86 | H37: 41442502.75 | I37: 41442494.32 | K37: 0 | L37: 0 | M37: 0 | N37: 0 | O37: 0 | P37: 0 | Q37: 0
A38: DREV0205 | B38: Revenue from unmetered supplies | C38: 5388984 | D38: 5801750 | E38: 6475556.52 | F38: 6403510.8 | G38: 6336529.5 | H38: 6238641.79 | I38: 6131577.39 | K38: 0 | L38: 0 | M38: 0 | N38: 0 | O38: 0 | P38: 0 | Q38: 0
A39: DREV0206 | B39: Revenue from Other Customers | C39: 0 | D39: 0 | E39: 0 | F39: 0 | G39: 0 | H39: 0 | I39: 0 | K39: 70030000 | L39: 73190000 | M39: 57592193.13 | N39: 56929305.39 | O39: 56440426.33 | P39: 56033912.54 | Q39: 55832000.61
A40: DREV02 | B40: Total revenue by customer class | C40: =SUM(C34:C39) -> 822330637 | D40: =SUM(D34:D39) -> 858365160 | E40: 782932997.5 | F40: 782932997.5 | G40: 782932997.5 | H40: 782932997.5 | I40: 782932997.5 | K40: =SUM(K34:K39) -> 96010000 | L40: =SUM(L34:L39) -> 98820000 | M40: 74748146.35 | N40: 74070362.09 | O40: 73553848.95 | P40: 73080609.41 | Q40: 72768669.21
B43: 3.1.3 - REVENUE (penalties) ALLOWED (deducted) THROUGH INCENTIVE SCHEMES
C44: Standard control services | K44: Alternative control services
C45: REVENUE | K45: REVENUE
C46: =CONCATENATE("Forecast ($0's, real ", dms_DollarReal,")") -> Forecast ($0's, real June 2020) | K46: =CONCATENATE("Forecast ($0's, real ", dms_DollarReal,")") -> Forecast ($0's, real June 2020)
C47: =CRCP_y4 -> 2018-19 | D47: =CRCP_y5 -> 2019-20 | E47: =FRCP_y1 -> 2020-21 | F47: =FRCP_y2 -> 2021-22 | G47: =FRCP_y3 -> 2022-23 | H47: =FRCP_y4 -> 2023-24 | I47: =FRCP_y5 -> 2024-25 | K47: =CRCP_y4 -> 2018-19 | L47: =CRCP_y5 -> 2019-20 | M47: =FRCP_y1 -> 2020-21 | N47: =FRCP_y2 -> 2021-22 | O47: =FRCP_y3 -> 2022-23 | P47: =FRCP_y4 -> 2023-24 | Q47: =FRCP_y5 -> 2024-25
A48: DREV0301 | B48: EBSS | C48: 5454908 | D48: - | E48: 8969273 | F48: -24003441 | G48: -5125480 | H48: -9941230 | I48: - | K48: 0 | L48: 0 | M48: 0 | N48: 0 | O48: 0 | P48: 0 | Q48: 0
A49: DREV0302 | B49: STPIS | C49: 23436625 | D49: 35467000 | E49: - | F49: - | G49: - | H49: - | I49: - | K49: 0 | L49: 0 | M49: 0 | N49: 0 | O49: 0 | P49: 0 | Q49: 0
A50: DREV0303 | B50: F-Factor | C50: - | D50: - | E50: - | F50: - | G50: - | H50: - | I50: - | K50: 0 | L50: 0 | M50: 0 | N50: 0 | O50: 0 | P50: 0 | Q50: 0
A51: DREV0304 | B51: S-Factor True up | C51: - | D51: - | E51: - | F51: - | G51: - | H51: - | I51: - | K51: 0 | L51: 0 | M51: 0 | N51: 0 | O51: 0 | P51: 0 | Q51: 0
A52: DREV0305 | B52: Other | C52: -152389 | D52: -132657 | E52: 13413304 | F52: 13433134 | G52: 13492586 | H52: 13526424 | I52: 13562892 | K52: 0 | L52: 0 | M52: 0 | N52: 0 | O52: 0 | P52: 0 | Q52: 0
A53: DREV03 | B53: Total revenue of incentive schemes | C53: =SUM(C48:C52) -> 28739144 | D53: =SUM(D48:D52) -> 35334343 | E53: 22382577 | F53: -10570307 | G53: 8367106 | H53: 3585194 | I53: 13562892 | K53: =SUM(K48:K52) -> 0 | L53: =SUM(L48:L52) -> 0 | M53: 0 | N53: 0 | O53: 0 | P53: 0 | Q53: 0

Sheet 3.2 Operating expenditure
B1: =SheetHeader -> REGULATORY REPORTING STATEMENT
B2: =dms_TradingName -> SA Power Networks
B3: =dms_Reg_Year_Span -> 2020-21 to 2024-25
B4: 3.2 OPERATING EXPENDITURE
B6: There are THREE tables on this worksheet. Both ROWS and COLUMNS have been grouped for ease of navigation. see the Instructions sheet on how to group or ungroup tables.
B8: Instructions
B9: =CONCATENATE("Forecasts for opex in table 3.2.1 are to be for the opex categories that ",dms_TradingName," has reported in its response to its annual reporting RIN.") -> Forecasts for opex in table 3.2.1 are to be for the opex categories that SA Power Networks has reported in its response to its annual reporting RIN.
B11: 3.2.1 - OPEX CATEGORIES
B12: CURRENT OPEX CATEGORIES AND COST ALLOCATIONS
C13: Standard control services | K13: Alternative control services
C14: EXPENDITURE | K14: EXPENDITURE
C15: =CONCATENATE("Forecast ($0's, real ",dms_DollarReal,")") -> Forecast ($0's, real June 2020) | K15: =CONCATENATE("Forecast ($0's, real ",dms_DollarReal,")") -> Forecast ($0's, real June 2020)
C16: =CRCP_y4 -> 2018-19 | D16: =CRCP_y5 -> 2019-20 | E16: =FRCP_y1 -> 2020-21 | F16: =FRCP_y2 -> 2021-22 | G16: =FRCP_y3 -> 2022-23 | H16: =FRCP_y4 -> 2023-24 | I16: =FRCP_y5 -> 2024-25 | K16: =CRCP_y4 -> 2018-19 | L16: =CRCP_y5 -> 2019-20 | M16: =FRCP_y1 -> 2020-21 | N16: =FRCP_y2 -> 2021-22 | O16: =FRCP_y3 -> 2022-23 | P16: =FRCP_y4 -> 2023-24 | Q16: =FRCP_y5 -> 2024-25
A17: DOPEX0101 | B17: Distribution licence fee | C17: 2465997.836 | D17: 2507913.344 | E17: 2541475.224 | F17: 2576523.14 | G17: 2610655.809 | H17: 2643192.376 | I17: 2673918.035 | K17: 0 | L17: 0 | M17: 0 | N17: 0 | O17: 0 | P17: 0 | Q17: 0
A18: DOPEX0102 | B18: Network operating costs | C18: 38231746.6 | D18: 38882977.73 | E18: 39403324.98 | F18: 40351369.83 | G18: 41412024.76 | H18: 42075251.3 | I18: 42782070.98 | K18: 0 | L18: 0 | M18: 0 | N18: 0 | O18: 0 | P18: 0 | Q18: 0
A19: DOPEX0103 | B19: Inspections | C19: 12790556.11 | D19: 13007112.66 | E19: 13181178.94 | F19: 13362952.44 | G19: 13539979.09 | H19: 13708727.65 | I19: 13868084.08 | K19: 0 | L19: 0 | M19: 0 | N19: 0 | O19: 0 | P19: 0 | Q19: 0
A20: DOPEX0104 | B20: Maintenance & repair | C20: 16404862.42 | D20: 16696833.02 | E20: 31119392.54 | F20: 30642274.95 | G20: 30869518.64 | H20: 31086136.02 | I20: 31290697 | K20: 2277797.223 | L20: 2170332.411 | M20: 2088505.687 | N20: 2006678.964 | O20: 1924852.241 | P20: 1843025.517 | Q20: 1761198.794
A21: DOPEX0105 | B21: Substation property maintenance | C21: 8336479.156 | D21: 8431658.751 | E21: 8544494.515 | F21: 8662326.364 | G21: 8777081.134 | H21: 8886469.773 | I21: 8989770.102 | K21: 0 | L21: 0 | M21: 0 | N21: 0 | O21: 0 | P21: 0 | Q21: 0
A22: DOPEX0106 | B22: Vegetation management | C22: 40917714.83 | D22: 41394509.34 | E22: 41948466.89 | F22: 42526952.3 | G22: 43090331.06 | H22: 43627365.25 | I22: 44134509.4 | K22: 0 | L22: 0 | M22: 0 | N22: 0 | O22: 0 | P22: 0 | Q22: 0
A23: DOPEX0107 | B23: Emergency response | C23: 38017952.05 | D23: 38763982.97 | E23: 39282737.79 | F23: 39824461.78 | G23: 40352039.1 | H23: 40854946 | I23: 41329862.3 | K23: 0 | L23: 0 | M23: 0 | N23: 0 | O23: 0 | P23: 0 | Q23: 0
A24: DOPEX0108 | B24: Guaranteed service level payments | C24: 9578781.982 | D24: 9705719.734 | E24: 5857908.782 | F24: 5993545.545 | G24: 6125640.27 | H24: 6251558.016 | I24: 6370467.482 | K24: 0 | L24: 0 | M24: 0 | N24: 0 | O24: 0 | P24: 0 | Q24: 0
A25: DOPEX0109 | B25: Network insurance | C25: 2015642.196 | D25: 2058864.683 | E25: 2086417.217 | F25: 2115189.709 | G25: 2143210.832 | H25: 2169921.638 | I25: 2195145.785 | K25: 0 | L25: 0 | M25: 0 | N25: 0 | O25: 0 | P25: 0 | Q25: 0
A26: DOPEX0110 | B26: Call centre | C26: 3812749.145 | D26: 3851245.821 | E26: 3902784.703 | F26: 3956605.597 | G26: 4009021.005 | H26: 4058985.377 | I26: 4106168.852 | K26: 0 | L26: 0 | M26: 0 | N26: 0 | O26: 0 | P26: 0 | Q26: 0
A27: DOPEX0111 | B27: Customer billing (previously full retail contestability) | C27: 16206106.8 | D27: 16446432.56 | E27: 16666525.17 | F27: 16896362.93 | G27: 17120198.67 | H27: 17333567.47 | I27: 17535060.66 | K27: 2408364.15 | L27: 2408364.15 | M27: 2408364.15 | N27: 2408364.15 | O27: 2408364.15 | P27: 2408364.15 | Q27: 2408364.15
A28: DOPEX0112 | B28: Meter reading | C28: 0 | D28: 0 | E28: 0 | F28: 0 | G28: 0 | H28: 0 | I28: 0 | K28: 3442227.63 | L28: 3264022.168 | M28: 3085816.705 | N28: 2907611.242 | O28: 2729405.779 | P28: 2551200.316 | Q28: 2372994.853
A29: DOPEX0113 | B29: Other customer services | C29: 9906582.164 | D29: 10178033.2 | E29: 10314239.63 | F29: 10456476.94 | G29: 10594999.85 | H29: 10727045.18 | I29: 10851741.19 | K29: 881720.4675 | L29: 905880.5594 | M29: 918003.4082 | N29: 930663.0265 | O29: 942992.0496 | P29: 954744.5463 | Q29: 965842.9271
A30: DOPEX0114 | B30: Corporate costs and other operating | C30: 77507112.13 | D30: 77866987.75 | E30: 83028035.67 | F30: 84341941.58 | G30: 85853242.72 | H30: 86905905.53 | I30: 87911192.53 | K30: 9651583.9 | L30: 9696397.461 | M30: 10339077.67 | N30: 10502691.99 | O30: 10690886.97 | P30: 10821969.95 | Q30: 10947153.46
A31: DOPEX0115 | B31: Public lighting | C31: 0 | D31: 0 | E31: 0 | F31: 0 | G31: 0 | H31: 0 | I31: 0 | K31: 9478886.247 | L31: 8209409.313 | M31: 7173627.9 | N31: 7243198.76 | O31: 7495325.813 | P31: 7753078.413 | Q31: 7205578.444
A32: DOPEX0116 | B32: Fee-based and quoted services | C32: 0 | D32: 0 | E32: 0 | F32: 0 | G32: 0 | H32: 0 | I32: 0 | K32: 42270436.26 | L32: 41794325.41 | M32: 41365162.27 | N32: 40977339.46 | O32: 40627695.49 | P32: 40312445.24 | Q32: 40028037.19
A33: DOPEX0117
A34: DOPEX0118
A35: DOPEX0119
A36: DOPEX0120
A37: DOPEX0121
A38: DOPEX0122
A39: DOPEX0123
A40: DOPEX0124
A41: DOPEX0125
A42: DOPEX0126
A43: DOPEX0127
A44: DOPEX0128
A45: DOPEX0129
A46: DOPEX0130
A47: DOPEX0131
A48: DOPEX0132
A49: DOPEX0133
A50: DOPEX0134
A51: DOPEX0135
A52: DOPEX0136
A53: DOPEX0137
A54: DOPEX0138
A55: DOPEX0139
A56: DOPEX0140
A57: DOPEX0141
A58: DOPEX0142
A59: DOPEX0143
A60: DOPEX0144
A61: DOPEX0145
A62: DOPEX0146
A63: DOPEX0147
A64: DOPEX0148
A65: DOPEX0149
A66: DOPEX01 | B66: Total opex | C66: =SUM(C17:C65) -> 276192283.4 | D66: =SUM(D17:D65) -> 279792271.6 | E66: 297876982.1 | F66: 301706983.1 | G66: 306497942.9 | H66: 310329071.6 | I66: 314038688.4 | K66: =SUM(K17:K65) -> 70411015.88 | L66: =SUM(L17:L65) -> 68448731.47 | M66: 67378557.79 | N66: 66976547.59 | O66: 66819522.49 | P66: 66644828.13 | Q66: 65689169.81
B69: 3.2.2 - OPEX CONSISTENCY
B70: OPEX CONSISTENCY - CURRENT COST ALLOCATION APPROACH
C71: Standard control services | K71: Alternative control services
C72: EXPENDITURE | K72: EXPENDITURE
C73: =CONCATENATE("Forecast ($0's, real ",dms_DollarReal,")") -> Forecast ($0's, real June 2020) | K73: =CONCATENATE("Forecast ($0's, real ",dms_DollarReal,")") -> Forecast ($0's, real June 2020)
C74: =CRCP_y4 -> 2018-19 | D74: =CRCP_y5 -> 2019-20 | E74: =FRCP_y1 -> 2020-21 | F74: =FRCP_y2 -> 2021-22 | G74: =FRCP_y3 -> 2022-23 | H74: =FRCP_y4 -> 2023-24 | I74: =FRCP_y5 -> 2024-25 | K74: =CRCP_y4 -> 2018-19 | L74: =CRCP_y5 -> 2019-20 | M74: =FRCP_y1 -> 2020-21 | N74: =FRCP_y2 -> 2021-22 | O74: =FRCP_y3 -> 2022-23 | P74: =FRCP_y4 -> 2023-24 | Q74: =FRCP_y5 -> 2024-25
A75: DOPEX0201 | B75: Opex for network services | C75: 273835024.6 | D75: 277370421.3 | E75: 295422721.7 | F75: 299218877.6 | G75: 303976876 | H75: 307776584.7 | I75: 311456530.2 | K75: 50820147.93 | L75: 50583058.49 | M75: 50869618.12 | N75: 50605393.77 | O75: 50365722.63 | P75: 50109966.49 | Q75: 50034724.22
A76: DOPEX0202 | B76: Opex for metering | C76: 0 | D76: 0 | E76: 0 | F76: 0 | G76: 0 | H76: 0 | I76: 0 | K76: 8128389.003 | L76: 7842718.728 | M76: 7582686.542 | N76: 7322654.356 | O76: 7062622.17 | P76: 6802589.984 | Q76: 6542557.798
A77: DOPEX0203 | B77: Opex for connection services | C77: 2357258.777 | D77: 2421850.21 | E77: 2454260.359 | F77: 2488105.548 | G77: 2521066.9 | H77: 2552486.921 | I77: 2582158.179 | K77: 215719.0085 | L77: 221629.9421 | M77: 224595.8808 | N77: 227693.144 | O77: 230709.5247 | P77: 233584.8543 | Q77: 236300.1499
A78: DOPEX0204 | B78: Opex for public lighting | C78: 0 | D78: 0 | E78: 0 | F78: 0 | G78: 0 | H78: 0 | I78: 0 | K78: 11246759.94 | L78: 9801324.318 | M78: 8701657.251 | N78: 8820806.318 | O78: 9160468.169 | P78: 9498686.808 | Q78: 8875587.65
A79: DOPEX0205 | B79: Opex for amounts payable for easement levy or similar direct charges on DNSP | C79: 0 | D79: 0 | E79: 0 | F79: 0 | G79: 0 | H79: 0 | I79: 0 | K79: 0 | L79: 0 | M79: 0 | N79: 0 | O79: 0 | P79: 0 | Q79: 0
A80: DOPEX0207 | B80: Opex for transmission connection point planning | C80: 0 | D80: 0 | E80: 0 | F80: 0 | G80: 0 | H80: 0 | I80: 0 | K80: 0 | L80: 0 | M80: 0 | N80: 0 | O80: 0 | P80: 0 | Q80: 0
B83: 3.2.4 - OPEX FOR HIGH VOLTAGE CUSTOMERS
C84: End user costs (not standard control services)
C85: EXPENDITURE
C86: =CONCATENATE("Forecast ($0's, real ",dms_DollarReal,")") -> Forecast ($0's, real June 2020)
C87: =CRCP_y4 -> 2018-19 | D87: =CRCP_y5 -> 2019-20 | E87: =FRCP_y1 -> 2020-21 | F87: =FRCP_y2 -> 2021-22 | G87: =FRCP_y3 -> 2022-23 | H87: =FRCP_y4 -> 2023-24 | I87: =FRCP_y5 -> 2024-25
A88: DOPEX0401 | B88: Opex for high voltage customers | C88: 1374699.355 | D88: 1398635.504 | E88: 1761902.282 | F88: 1774027.783 | G88: 1805959.329 | H88: 1827957.4 | I88: 1850684.652

Sheet 3.3 Assets (RAB)
B1: =SheetHeader -> REGULATORY REPORTING STATEMENT
B2: =dms_TradingName -> SA Power Networks
B3: =dms_Reg_Year_Span -> 2020-21 to 2024-25
B4: 3.3 ASSETS
B6: There are FOUR tables on this worksheet. Both ROWS and COLUMNS in each have been grouped (and sub-grouped) for ease of navigation. see the Instructions sheet on how to group or ungroup tables.
B8: 3.3.1 - REGULATORY ASSET BASE VALUES
C9: Network services | K9: Standard control services | S9: Alternative control services
C10: =CONCATENATE("Forecast ($0's, real ", dms_DollarReal,")") -> Forecast ($0's, real June 2020) | K10: =CONCATENATE("Forecast ($0's, real ", dms_DollarReal,")") -> Forecast ($0's, real June 2020) | S10: =CONCATENATE("Forecast ($0's, real ", dms_DollarReal,")") -> Forecast ($0's, real June 2020)
C11: =CRCP_y4 -> 2018-19 | D11: =CRCP_y5 -> 2019-20 | E11: =FRCP_y1 -> 2020-21 | F11: =FRCP_y2 -> 2021-22 | G11: =FRCP_y3 -> 2022-23 | H11: =FRCP_y4 -> 2023-24 | I11: =FRCP_y5 -> 2024-25 | K11: =CRCP_y4 -> 2018-19 | L11: =CRCP_y5 -> 2019-20 | M11: =FRCP_y1 -> 2020-21 | N11: =FRCP_y2 -> 2021-22 | O11: =FRCP_y3 -> 2022-23 | P11: =FRCP_y4 -> 2023-24 | Q11: =FRCP_y5 -> 2024-25 | S11: =CRCP_y4 -> 2018-19 | T11: =CRCP_y5 -> 2019-20 | U11: =FRCP_y1 -> 2020-21 | V11: =FRCP_y2 -> 2021-22 | W11: =FRCP_y3 -> 2022-23 | X11: =FRCP_y4 -> 2023-24 | Y11: =FRCP_y5 -> 2024-25
B12: For total asset base:
A13: DRAB0101 | B13: Opening value | C13: 4066683442 | D13: 4144150320 | E13: 4193853478 | F13: 4234792015 | G13: 4276418071 | H13: 4269312663 | I13: 4254943092 | K13: 4274919522 | L13: 4361575785 | M13: 4417679391 | N13: 4461692154 | O13: 4506727613 | P13: 4502806363 | Q13: 4491345265 | S13: 96571481.58 | T13: 87002399.95 | U13: 77690387.57 | V13: 69942282.88 | W13: 61686390.26 | X13: 53586917.66 | Y13: 45439772.59
A14: DRAB0102 | B14: Inflation addition | C14: 0 | D14: 0 | E14: 0 | F14: 0 | G14: 0 | H14: 0 | I14: 0 | K14: 0 | L14: 0 | M14: 0 | N14: 0 | O14: 0 | P14: 0 | Q14: 0 | S14: 0 | T14: 0 | U14: 0 | V14: 0 | W14: 0 | X14: 0 | Y14: 0
A15: DRAB0103 | B15: Straight line depreciation | C15: -293588697.6 | D15: -302210584.4 | E15: -302091061.8 | F15: -313340805.6 | G15: -325592143.4 | H15: -330794547 | I15: -326506388.1 | K15: -309797678.3 | L15: -318972360.6 | M15: -318512183.5 | N15: -330193399.6 | O15: -342893287.4 | P15: -348549063.6 | Q15: -343344111.9 | S15: -12395893.13 | T15: -12604736.14 | U15: -9216054.039 | V15: -9321279.371 | W15: -9376928.42 | X15: -9440151.366 | Y15: -9503929.685
A16: DRAB0105 | B16: Actual additions (recognised in RAB) | C16: 373498162.8 | D16: 354308436.5 | E16: 346631098.8 | F16: 359608861.4 | G16: 323225235 | H16: 321413976.3 | I16: 313196874.7 | K16: 398896528.8 | L16: 377470661.1 | M16: 366126446.6 | N16: 379870858.4 | O16: 343710537.1 | P16: 342076965.8 | Q16: 333912087.4 | S16: 2826811.496 | T16: 3292723.754 | U16: 1467949.351 | V16: 1065386.751 | W16: 1277455.825 | X16: 1293006.293 | Y16: 1306919.869
A17: DRAB0106 | B17: Disposals | C17: -2442587.572 | D17: -2394693.698 | E17: -3601500 | F17: -4642000 | G17: -4738500 | H17: -4989000 | I17: -3427500 | K17: -2442587.572 | L17: -2394693.698 | M17: -3601500 | N17: -4642000 | O17: -4738500 | P17: -4989000 | Q17: -3427500 | S17: 0 | T17: 0 | U17: 0 | V17: 0 | W17: 0 | X17: 0 | Y17: 0
A18: DRAB0107 | B18: Closing value | C18: =SUM(C13+C14+C15+C16+C17) -> 4144150320 | D18: 4193853478 | E18: 4234792015 | F18: 4276418071 | G18: 4269312663 | H18: 4254943092 | I18: 4238206079 | K18: =SUM(K13+K14+K15+K16+K17) -> 4361575785 | L18: 4417679391 | M18: 4461692154 | N18: 4506727613 | O18: 4502806363 | P18: 4491345265 | Q18: 4478485741 | S18: =SUM(S13+S14+S15+S16+S17) -> 87002399.95 | T18: 77690387.57 | U18: 69942282.88 | V18: 61686390.26 | W18: 53586917.66 | X18: 45439772.59 | Y18: 37242762.77
B21: 3.3.2 - ASSET VALUE ROLL FORWARD
C22: Network services | K22: Standard control services | S22: Alternative control services
C23: =CONCATENATE("Forecast ($0's, real ", dms_DollarReal,")") -> Forecast ($0's, real June 2020) | K23: =CONCATENATE("Forecast ($0's, real ", dms_DollarReal,")") -> Forecast ($0's, real June 2020) | S23: =CONCATENATE("Forecast ($0's, real ", dms_DollarReal,")") -> Forecast ($0's, real June 2020)
C24: =CRCP_y4 -> 2018-19 | D24: =CRCP_y5 -> 2019-20 | E24: =FRCP_y1 -> 2020-21 | F24: =FRCP_y2 -> 2021-22 | G24: =FRCP_y3 -> 2022-23 | H24: =FRCP_y4 -> 2023-24 | I24: =FRCP_y5 -> 2024-25 | K24: =CRCP_y4 -> 2018-19 | L24: =CRCP_y5 -> 2019-20 | M24: =FRCP_y1 -> 2020-21 | N24: =FRCP_y2 -> 2021-22 | O24: =FRCP_y3 -> 2022-23 | P24: =FRCP_y4 -> 2023-24 | Q24: =FRCP_y5 -> 2024-25 | S24: =CRCP_y4 -> 2018-19 | T24: =CRCP_y5 -> 2019-20 | U24: =FRCP_y1 -> 2020-21 | V24: =FRCP_y2 -> 2021-22 | W24: =FRCP_y3 -> 2022-23 | X24: =FRCP_y4 -> 2023-24 | Y24: =FRCP_y5 -> 2024-25
B25: For overhead network assets less than 33kV:
A26: DRAB0201 | B26: Opening value | C26: 463863048.6 | D26: 484333162.9 | E26: 498590689.8 | F26: 505438782.3 | G26: 513033508.9 | H26: 520126483.9 | I26: 526605347.1 | K26: 546408395.7 | L26: 570521207.3 | M26: 587315889.4 | N26: 595382613.5 | O26: 604328836.7 | P26: 612684020.7 | Q26: 620315810.4 | S26: 0 | T26: 0 | U26: 0 | V26: 0 | W26: 0 | X26: 0 | Y26: 0
A27: DRAB0202 | B27: Inflation addition | C27: 0 | D27: 0 | E27: 0 | F27: 0 | G27: 0 | H27: 0 | I27: 0 | K27: 0 | L27: 0 | M27: 0 | N27: 0 | O27: 0 | P27: 0 | Q27: 0 | S27: 0 | T27: 0 | U27: 0 | V27: 0 | W27: 0 | X27: 0 | Y27: 0
A28: DRAB0203 | B28: Straight line depreciation | C28: -36106841.87 | D28: -37338239.52 | E28: -36579403.39 | F28: -37540543.72 | G28: -38539725.8 | H28: -39549650.92 | I28: -37507419.08 | K28: -42532125.81 | L28: -43982653.1 | M28: -43088780.59 | N28: -44220957.74 | O28: -45397946.25 | P28: -46587589.54 | Q28: -44181938.51 | S28: 0 | T28: 0 | U28: 0 | V28: 0 | W28: 0 | X28: 0 | Y28: 0
A29: DRAB0205 | B29: Actual additions (recognised in RAB) | C29: 56576956.12 | D29: 51595766.5 | E29: 43427495.84 | F29: 45135270.28 | G29: 45632700.9 | H29: 46028514.09 | I29: 46144845.39 | K29: 66644937.38 | L29: 60777335.22 | M29: 51155504.64 | N29: 53167180.92 | O29: 53753130.3 | P29: 54219379.23 | Q29: 54356411.92 | S29: 0 | T29: 0 | U29: 0 | V29: 0 | W29: 0 | X29: 0 | Y29: 0
A30: DRAB0206 | B30: Disposals | C30: 0 | D30: 0 | E30: 0 | F30: 0 | G30: 0 | H30: 0 | I30: 0 | K30: 0 | L30: 0 | M30: 0 | N30: 0 | O30: 0 | P30: 0 | Q30: 0 | S30: 0 | T30: 0 | U30: 0 | V30: 0 | W30: 0 | X30: 0 | Y30: 0
A31: DRAB0207 | B31: Closing value | C31: =SUM(C26+C27+C28+C29+C30) -> 484333162.9 | D31: 498590689.8 | E31: 505438782.3 | F31: 513033508.9 | G31: 520126483.9 | H31: 526605347.1 | I31: 535242773.4 | K31: =SUM(K26+K27+K28+K29+K30) -> 570521207.3 | L31: 587315889.4 | M31: 595382613.5 | N31: 604328836.7 | O31: 612684020.7 | P31: 620315810.4 | Q31: 630490283.8 | S31: =SUM(S26+S27+S28+S29+S30) -> 0 | T31: 0 | U31: 0 | V31: 0 | W31: 0 | X31: 0 | Y31: 0
B32: For underground network assets less than 33kV:
A33: DRAB0301 | B33: Opening value | C33: 942455603.8 | D33: 984045840.2 | E33: 1013013628 | F33: 1026927267 | G33: 1042357883 | H33: 1056769063 | I33: 1069932520 | K33: 1068146336 | L33: 1115283260 | M33: 1148114341 | N33: 1163883575 | O33: 1181372097 | P33: 1197705227 | Q33: 1212624230 | S33: 0 | T33: 0 | U33: 0 | V33: 0 | W33: 0 | X33: 0 | Y33: 0
A34: DRAB0302 | B34: Inflation addition | C34: 0 | D34: 0 | E34: 0 | F34: 0 | G34: 0 | H34: 0 | I34: 0 | K34: 0 | L34: 0 | M34: 0 | N34: 0 | O34: 0 | P34: 0 | Q34: 0 | S34: 0 | T34: 0 | U34: 0 | V34: 0 | W34: 0 | X34: 0 | Y34: 0
A35: DRAB0303 | B35: Straight line depreciation | C35: -73360220.34 | D35: -75862117.43 | E35: -74320349.1 | F35: -76273149.82 | G35: -78303242 | H35: -80355161.39 | I35: -76205848.69 | K35: -83143917.06 | L35: -85979480.03 | M35: -84232093.53 | N35: -86445329.8 | O35: -88746165.53 | P35: -91071739.46 | Q35: -86369053.05 | S35: 0 | T35: 0 | U35: 0 | V35: 0 | W35: 0 | X35: 0 | Y35: 0
A36: DRAB0305 | B36: Actual additions (recognised in RAB) | C36: 114950456.8 | D36: 104829904.9 | E36: 88233988.32 | F36: 91703765.87 | G36: 92714422.52 | H36: 93518617.55 | I36: 93754974.14 | K36: 130280841.6 | L36: 118810560.8 | M36: 100001327.3 | N36: 103933852.3 | O36: 105079295.3 | P36: 105990741.9 | Q36: 106258620.2 | S36: 0 | T36: 0 | U36: 0 | V36: 0 | W36: 0 | X36: 0 | Y36: 0
A37: DRAB0306 | B37: Disposals | C37: 0 | D37: 0 | E37: 0 | F37: 0 | G37: 0 | H37: 0 | I37: 0 | K37: 0 | L37: 0 | M37: 0 | N37: 0 | O37: 0 | P37: 0 | Q37: 0 | S37: 0 | T37: 0 | U37: 0 | V37: 0 | W37: 0 | X37: 0 | Y37: 0
A38: DRAB0307 | B38: Closing value | C38: =SUM(C33+C34+C35+C36+C37) -> 984045840.2 | D38: 1013013628 | E38: 1026927267 | F38: 1042357883 | G38: 1056769063 | H38: 1069932520 | I38: 1087481645 | K38: =SUM(K33+K34+K35+K36+K37) -> 1115283260 | L38: 1148114341 | M38: 1163883575 | N38: 1181372097 | O38: 1197705227 | P38: 1212624230 | Q38: 1232513797 | S38: =SUM(S33+S34+S35+S36+S37) -> 0 | T38: 0 | U38: 0 | V38: 0 | W38: 0 | X38: 0 | Y38: 0
B39: For distribution substations and transformers:
A40: DRAB0401 | B40: Opening value | C40: 1208922910 | D40: 1201655809 | E40: 1192421811 | F40: 1172279788 | G40: 1152614763 | H40: 1130358308 | I40: 1104101523 | K40: 1208922910 | L40: 1201655809 | M40: 1192421811 | N40: 1172279788 | O40: 1152614763 | P40: 1130358308 | Q40: 1104101523 | S40: 0 | T40: 0 | U40: 0 | V40: 0 | W40: 0 | X40: 0 | Y40: 0
A41: DRAB0402 | B41: Inflation addition | C41: 0 | D41: 0 | E41: 0 | F41: 0 | G41: 0 | H41: 0 | I41: 0 | K41: 0 | L41: 0 | M41: 0 | N41: 0 | O41: 0 | P41: 0 | Q41: 0 | S41: 0 | T41: 0 | U41: 0 | V41: 0 | W41: 0 | X41: 0 | Y41: 0
A42: DRAB0403 | B42: Straight line depreciation | C42: -56660474.24 | D42: -57512153.45 | E42: -63200143.63 | F42: -64346966.7 | G42: -65524628.67 | H42: -66668417.06 | I42: -67741421.44 | K42: -56660474.24 | L42: -57512153.45 | M42: -63200143.63 | N42: -64346966.7 | O42: -65524628.67 | P42: -66668417.06 | Q42: -67741421.44 | S42: 0 | T42: 0 | U42: 0 | V42: 0 | W42: 0 | X42: 0 | Y42: 0
A43: DRAB0405 | B43: Actual additions (recognised in RAB) | C43: 49393373.23 | D43: 48278156.14 | E43: 43058120.09 | F43: 44681942.09 | G43: 43268173.4 | H43: 40411631.67 | I43: 36379794.03 | K43: 49393373.23 | L43: 48278156.14 | M43: 43058120.09 | N43: 44681942.09 | O43: 43268173.4 | P43: 40411631.67 | Q43: 36379794.03 | S43: 0 | T43: 0 | U43: 0 | V43: 0 | W43: 0 | X43: 0 | Y43: 0
A44: DRAB0406 | B44: Disposals | C44: 0 | D44: 0 | E44: 0 | F44: 0 | G44: 0 | H44: 0 | I44: 0 | K44: 0 | L44: 0 | M44: 0 | N44: 0 | O44: 0 | P44: 0 | Q44: 0 | S44: 0 | T44: 0 | U44: 0 | V44: 0 | W44: 0 | X44: 0 | Y44: 0
A45: DRAB0407 | B45: Closing value | C45: =SUM(C40+C41+C42+C43+C44) -> 1201655809 | D45: 1192421811 | E45: 1172279788 | F45: 1152614763 | G45: 1130358308 | H45: 1104101523 | I45: 1072739895 | K45: =SUM(K40+K41+K42+K43+K44) -> 1201655809 | L45: 1192421811 | M45: 1172279788 | N45: 1152614763 | O45: 1130358308 | P45: 1104101523 | Q45: 1072739895 | S45: =SUM(S40+S41+S42+S43+S44) -> 0 | T45: 0 | U45: 0 | V45: 0 | W45: 0 | X45: 0 | Y45: 0
B46: For overhead network assets 33kV and above:
A47: DRAB0501 | B47: Opening value | C47: 160868194.8 | D47: 159995703 | E47: 159039787.5 | F47: 170079724.9 | G47: 177633330.2 | H47: 182080561.9 | I47: 186836300.3 | K47: 160868194.8 | L47: 159995703 | M47: 159039787.5 | N47: 170079724.9 | O47: 177633330.2 | P47: 182080561.9 | Q47: 186836300.3 | S47: 0 | T47: 0 | U47: 0 | V47: 0 | W47: 0 | X47: 0 | Y47: 0
A48: DRAB0502 | B48: Inflation addition | C48: 0 | D48: 0 | E48: 0 | F48: 0 | G48: 0 | H48: 0 | I48: 0 | K48: 0 | L48: 0 | M48: 0 | N48: 0 | O48: 0 | P48: 0 | Q48: 0 | S48: 0 | T48: 0 | U48: 0 | V48: 0 | W48: 0 | X48: 0 | Y48: 0
A49: DRAB0503 | B49: Straight line depreciation | C49: -3596017.447 | D49: -3610188.731 | E49: -3353203.112 | F49: -3614896.577 | G49: -3817960.247 | H49: -3968236.465 | I49: -4126854.19 | K49: -3596017.447 | L49: -3610188.731 | M49: -3353203.112 | N49: -3614896.577 | O49: -3817960.247 | P49: -3968236.465 | Q49: -4126854.19 | S49: 0 | T49: 0 | U49: 0 | V49: 0 | W49: 0 | X49: 0 | Y49: 0
A50: DRAB0505 | B50: Actual additions (recognised in RAB) | C50: 2723525.585 | D50: 2654273.223 | E50: 14393140.52 | F50: 11168501.86 | G50: 8265191.978 | H50: 8723974.878 | I50: 12155576.93 | K50: 2723525.585 | L50: 2654273.223 | M50: 14393140.52 | N50: 11168501.86 | O50: 8265191.978 | P50: 8723974.878 | Q50: 12155576.93 | S50: 0 | T50: 0 | U50: 0 | V50: 0 | W50: 0 | X50: 0 | Y50: 0
A51: DRAB0506 | B51: Disposals | C51: 0 | D51: 0 | E51: 0 | F51: 0 | G51: 0 | H51: 0 | I51: 0 | K51: 0 | L51: 0 | M51: 0 | N51: 0 | O51: 0 | P51: 0 | Q51: 0 | S51: 0 | T51: 0 | U51: 0 | V51: 0 | W51: 0 | X51: 0 | Y51: 0
A52: DRAB0507 | B52: Closing value | C52: =SUM(C47+C48+C49+C50+C51) -> 159995703 | D52: 159039787.5 | E52: 170079724.9 | F52: 177633330.2 | G52: 182080561.9 | H52: 186836300.3 | I52: 194865023 | K52: =SUM(K47+K48+K49+K50+K51) -> 159995703 | L52: 159039787.5 | M52: 170079724.9 | N52: 177633330.2 | O52: 182080561.9 | P52: 186836300.3 | Q52: 194865023 | S52: =SUM(S47+S48+S49+S50+S51) -> 0 | T52: 0 | U52: 0 | V52: 0 | W52: 0 | X52: 0 | Y52: 0
B53: For underground network assets 33kV and above:
A54: DRAB0601 | B54: Opening value | C54: 23176644.73 | D54: 23050942.85 | E54: 22913221.94 | F54: 24503770.7 | G54: 25592035.7 | H54: 26232758.43 | I54: 26917928.42 | K54: 23176644.73 | L54: 23050942.85 | M54: 22913221.94 | N54: 24503770.7 | O54: 25592035.7 | P54: 26232758.43 | Q54: 26917928.42 | S54: 0 | T54: 0 | U54: 0 | V54: 0 | W54: 0 | X54: 0 | Y54: 0
A55: DRAB0602 | B55: Inflation addition | C55: 0 | D55: 0 | E55: 0 | F55: 0 | G55: 0 | H55: 0 | I55: 0 | K55: 0 | L55: 0 | M55: 0 | N55: 0 | O55: 0 | P55: 0 | Q55: 0 | S55: 0 | T55: 0 | U55: 0 | V55: 0 | W55: 0 | X55: 0 | Y55: 0
A56: DRAB0603 | B56: Straight line depreciation | C56: -518086.368 | D56: -520128.0569 | E56: -483103.5576 | F56: -520806.3269 | G56: -550062.1693 | H56: -571712.8039 | I56: -594565.2183 | K56: -518086.368 | L56: -520128.0569 | M56: -483103.5576 | N56: -520806.3269 | O56: -550062.1693 | P56: -571712.8039 | Q56: -594565.2183 | S56: 0 | T56: 0 | U56: 0 | V56: 0 | W56: 0 | X56: 0 | Y56: 0
A57: DRAB0605 | B57: Actual additions (recognised in RAB) | C57: 392384.4919 | D57: 382407.1474 | E57: 2073652.313 | F57: 1609071.327 | G57: 1190784.905 | H57: 1256882.795 | I57: 1751281.465 | K57: 392384.4919 | L57: 382407.1474 | M57: 2073652.313 | N57: 1609071.327 | O57: 1190784.905 | P57: 1256882.795 | Q57: 1751281.465 | S57: 0 | T57: 0 | U57: 0 | V57: 0 | W57: 0 | X57: 0 | Y57: 0
A58: DRAB0606 | B58: Disposals | C58: 0 | D58: 0 | E58: 0 | F58: 0 | G58: 0 | H58: 0 | I58: 0 | K58: 0 | L58: 0 | M58: 0 | N58: 0 | O58: 0 | P58: 0 | Q58: 0 | S58: 0 | T58: 0 | U58: 0 | V58: 0 | W58: 0 | X58: 0 | Y58: 0
A59: DRAB0607 | B59: Closing value | C59: =SUM(C54+C55+C56+C57+C58) -> 23050942.85 | D59: 22913221.94 | E59: 24503770.7 | F59: 25592035.7 | G59: 26232758.43 | H59: 26917928.42 | I59: 28074644.67 | K59: =SUM(K54+K55+K56+K57+K58) -> 23050942.85 | L59: 22913221.94 | M59: 24503770.7 | N59: 25592035.7 | O59: 26232758.43 | P59: 26917928.42 | Q59: 28074644.67 | S59: =SUM(S54+S55+S56+S57+S58) -> 0 | T59: 0 | U59: 0 | V59: 0 | W59: 0 | X59: 0 | Y59: 0
B60: Zone substations and transformers
A61: DRAB0701 | B61: Opening value | C61: 516706887.1 | D61: 513600848.5 | E61: 509654137 | F61: 501045215.6 | G61: 492640168.8 | H61: 483127516.1 | I61: 471905078.6 | K61: 516706887.1 | L61: 513600848.5 | M61: 509654137 | N61: 501045215.6 | O61: 492640168.8 | P61: 483127516.1 | Q61: 471905078.6 | S61: 0 | T61: 0 | U61: 0 | V61: 0 | W61: 0 | X61: 0 | Y61: 0
A62: DRAB0702 | B62: Inflation addition | C62: 0 | D62: 0 | E62: 0 | F62: 0 | G62: 0 | H62: 0 | I62: 0 | K62: 0 | L62: 0 | M62: 0 | N62: 0 | O62: 0 | P62: 0 | Q62: 0 | S62: 0 | T62: 0 | U62: 0 | V62: 0 | W62: 0 | X62: 0 | Y62: 0
A63: DRAB0703 | B63: Straight line depreciation | C63: -24217307.01 | D63: -24581324.03 | E63: -27012433.31 | F63: -27502598.05 | G63: -28005943.67 | H63: -28494811.34 | I63: -28953425.16 | K63: -24217307.01 | L63: -24581324.03 | M63: -27012433.31 | N63: -27502598.05 | O63: -28005943.67 | P63: -28494811.34 | Q63: -28953425.16 | S63: 0 | T63: 0 | U63: 0 | V63: 0 | W63: 0 | X63: 0 | Y63: 0
A64: DRAB0705 | B64: Actual additions (recognised in RAB) | C64: 21111268.48 | D64: 20634612.49 | E64: 18403511.93 | F64: 19097551.23 | G64: 18493291.02 | H64: 17272373.81 | I64: 15549122.26 | K64: 21111268.48 | L64: 20634612.49 | M64: 18403511.93 | N64: 19097551.23 | O64: 18493291.02 | P64: 17272373.81 | Q64: 15549122.26 | S64: 0 | T64: 0 | U64: 0 | V64: 0 | W64: 0 | X64: 0 | Y64: 0
A65: DRAB0706 | B65: Disposals | C65: 0 | D65: 0 | E65: 0 | F65: 0 | G65: 0 | H65: 0 | I65: 0 | K65: 0 | L65: 0 | M65: 0 | N65: 0 | O65: 0 | P65: 0 | Q65: 0 | S65: 0 | T65: 0 | U65: 0 | V65: 0 | W65: 0 | X65: 0 | Y65: 0
A66: DRAB0707 | B66: Closing value | C66: =SUM(C61+C62+C63+C64+C65) -> 513600848.5 | D66: 509654137 | E66: 501045215.6 | F66: 492640168.8 | G66: 483127516.1 | H66: 471905078.6 | I66: 458500775.7 | K66: =SUM(K61+K62+K63+K64+K65) -> 513600848.5 | L66: 509654137 | M66: 501045215.6 | N66: 492640168.8 | O66: 483127516.1 | P66: 471905078.6 | Q66: 458500775.7 | S66: =SUM(S61+S62+S63+S64+S65) -> 0 | T66: 0 | U66: 0 | V66: 0 | W66: 0 | X66: 0 | Y66: 0
B67: For easements:
A68: DRAB0801 | B68: Opening value | C68: 8454227.51 | D68: 9618086.427 | E68: 10752967.86 | F68: 10752967.86 | G68: 10752967.86 | H68: 10752967.86 | I68: 10752967.86 | K68: 8454227.51 | L68: 9618086.427 | M68: 10752967.86 | N68: 10752967.86 | O68: 10752967.86 | P68: 10752967.86 | Q68: 10752967.86 | S68: 0 | T68: 0 | U68: 0 | V68: 0 | W68: 0 | X68: 0 | Y68: 0
A69: DRAB0802 | B69: Inflation addition | C69: 0 | D69: 0 | E69: 0 | F69: 0 | G69: 0 | H69: 0 | I69: 0 | K69: 0 | L69: 0 | M69: 0 | N69: 0 | O69: 0 | P69: 0 | Q69: 0 | S69: 0 | T69: 0 | U69: 0 | V69: 0 | W69: 0 | X69: 0 | Y69: 0
A70: DRAB0803 | B70: Actual additions (recognised in RAB) | C70: 1163858.917 | D70: 1134881.437 | E70: 0 | F70: 0 | G70: 0 | H70: 0 | I70: 0 | K70: 1163858.917 | L70: 1134881.437 | M70: 0 | N70: 0 | O70: 0 | P70: 0 | Q70: 0 | S70: 0 | T70: 0 | U70: 0 | V70: 0 | W70: 0 | X70: 0 | Y70: 0
A71: DRAB0804 | B71: Disposals | C71: 0 | D71: 0 | E71: 0 | F71: 0 | G71: 0 | H71: 0 | I71: 0 | K71: 0 | L71: 0 | M71: 0 | N71: 0 | O71: 0 | P71: 0 | Q71: 0 | S71: 0 | T71: 0 | U71: 0 | V71: 0 | W71: 0 | X71: 0 | Y71: 0
A72: DRAB0805 | B72: Closing value | C72: =SUM(C68+C69+C70+C71) -> 9618086.427 | D72: =SUM(D68+D69+D70+D71) -> 10752967.86 | E72: =SUM(E68+E69+E70+E71) -> 10752967.86 | F72: 10752967.86 | G72: 10752967.86 | H72: 10752967.86 | I72: 10752967.86 | K72: =SUM(K68+K69+K70+K71) -> 9618086.427 | L72: =SUM(L68+L69+L70+L71) -> 10752967.86 | M72: =SUM(M68+M69+M70+M71) -> 10752967.86 | N72: 10752967.86 | O72: 10752967.86 | P72: 10752967.86 | Q72: 10752967.86 | S72: =SUM(S68+S69+S70+S71) -> 0 | T72: =SUM(T68+T69+T70+T71) -> 0 | U72: =SUM(U68+U69+U70+U71) -> 0 | V72: 0 | W72: 0 | X72: 0 | Y72: 0
B73: For meters:
A74: DRAB0901 | B74: Opening value | C74: 0 | D74: 0 | E74: 0 | F74: 0 | G74: 0 | H74: 0 | I74: 0 | K74: 0 | L74: 0 | M74: 0 | N74: 0 | O74: 0 | P74: 0 | Q74: 0 | S74: 54999352.9 | T74: 45372114.95 | U74: 35521031.15 | V74: 28416824.97 | W74: 21312618.79 | X74: 14208412.61 | Y74: 7104206.429
A75: DRAB0902 | B75: Inflation addition | C75: 0 | D75: 0 | E75: 0 | F75: 0 | G75: 0 | H75: 0 | I75: 0 | K75: 0 | L75: 0 | M75: 0 | N75: 0 | O75: 0 | P75: 0 | Q75: 0 | S75: 0 | T75: 0 | U75: 0 | V75: 0 | W75: 0 | X75: 0 | Y75: 0
A76: DRAB0903 | B76: Straight line depreciation | C76: 0 | D76: 0 | E76: 0 | F76: 0 | G76: 0 | H76: 0 | I76: 0 | K76: 0 | L76: 0 | M76: 0 | N76: 0 | O76: 0 | P76: 0 | Q76: 0 | S76: -9627237.947 | T76: -9851083.806 | U76: -7104206.18 | V76: -7104206.18 | W76: -7104206.18 | X76: -7104206.18 | Y76: -7104206.18
A77: DRAB0905 | B77: Actual additions (recognised in RAB) | C77: 0 | D77: 0 | E77: 0 | F77: 0 | G77: 0 | H77: 0 | I77: 0 | K77: 0 | L77: 0 | M77: 0 | N77: 0 | O77: 0 | P77: 0 | Q77: 0 | S77: 0 | T77: 0 | U77: 0 | V77: 0 | W77: 0 | X77: 0 | Y77: 0
A78: DRAB0906 | B78: Disposals | C78: 0 | D78: 0 | E78: 0 | F78: 0 | G78: 0 | H78: 0 | I78: 0 | K78: 0 | L78: 0 | M78: 0 | N78: 0 | O78: 0 | P78: 0 | Q78: 0 | S78: 0 | T78: 0 | U78: 0 | V78: 0 | W78: 0 | X78: 0 | Y78: 0
A79: DRAB0907 | B79: Closing value | C79: =SUM(C74+C75+C76+C77+C78) -> 0 | D79: 0 | E79: 0 | F79: 0 | G79: 0 | H79: 0 | I79: 0 | K79: =SUM(K74+K75+K76+K77+K78) -> 0 | L79: 0 | M79: 0 | N79: 0 | O79: 0 | P79: 0 | Q79: 0 | S79: =SUM(S74+S75+S76+S77+S78) -> 45372114.95 | T79: 35521031.15 | U79: 28416824.97 | V79: 21312618.79 | W79: 14208412.61 | X79: 7104206.429 | Y79: 0.2492320929
B80: For “other” asset items with long lives:
A81: DRAB1001 | B81: Opening value | C81: 524508157.7 | D81: 548115661.6 | E81: 567804687 | F81: 586089759.8 | G81: 605962515.6 | H81: 616255605.9 | I81: 631771042.7 | K81: 524508157.7 | L81: 548115661.6 | M81: 567804687 | N81: 586089759.8 | O81: 605962515.6 | P81: 616255605.9 | Q81: 631771042.7 | S81: 42239687.13 | T81: 42234328.53 | U81: 42549593.05 | V81: 41461375.93 | W81: 40143902.46 | X81: 39004274.52 | Y81: 37838399.6
A82: DRAB1002 | B82: Inflation addition | C82: 0 | D82: 0 | E82: 0 | F82: 0 | G82: 0 | H82: 0 | I82: 0 | K82: 0 | L82: 0 | M82: 0 | N82: 0 | O82: 0 | P82: 0 | Q82: 0 | S82: 0 | T82: 0 | U82: 0 | V82: 0 | W82: 0 | X82: 0 | Y82: 0
A83: DRAB1003 | B83: Straight line depreciation | C83: -25432945.77 | D83: -28345896.74 | E83: -31019822.23 | F83: -32846440.01 | G83: -33797128.45 | H83: -34748017.31 | I83: -37103917.91 | K83: -25432945.77 | L83: -28345896.74 | M83: -31019822.23 | N83: -32846440.01 | O83: -33797128.45 | P83: -34748017.31 | Q83: -37103917.91 | S83: -2312242.744 | T83: -2442211.861 | U83: -2234783.879 | V83: -2275732.692 | W83: -2309956.236 | X83: -2351753.675 | Y83: -2394106.488
A84: DRAB1005 | B84: Actual additions (recognised in RAB) | C84: 49813097.26 | D84: 48792419.8 | E84: 50078895.01 | F84: 53833195.85 | G84: 44926218.72 | H84: 51665454.1 | I84: 51693212.59 | K84: 49813097.26 | L84: 48792419.8 | M84: 50078895.01 | N84: 53833195.85 | O84: 44926218.72 | P84: 51665454.1 | Q84: 51693212.59 | S84: 2306884.149 | T84: 2757476.378 | U84: 1146566.757 | V84: 958259.2197 | W84: 1170328.294 | X84: 1185878.762 | Y84: 1199792.338
A85: DRAB1006 | B85: Disposals | C85: -772647.5951 | D85: -757497.6423 | E85: -774000 | F85: -1114000 | G85: -836000 | H85: -1402000 | I85: -910000 | K85: -772647.5951 | L85: -757497.6423 | M85: -774000 | N85: -1114000 | O85: -836000 | P85: -1402000 | Q85: -910000 | S85: 0 | T85: 0 | U85: 0 | V85: 0 | W85: 0 | X85: 0 | Y85: 0
A86: DRAB1007 | B86: Closing value | C86: =SUM(C81+C82+C83+C84+C85) -> 548115661.6 | D86: 567804687 | E86: 586089759.8 | F86: 605962515.6 | G86: 616255605.9 | H86: 631771042.7 | I86: 645450337.3 | K86: =SUM(K81+K82+K83+K84+K85) -> 548115661.6 | L86: 567804687 | M86: 586089759.8 | N86: 605962515.6 | O86: 616255605.9 | P86: 631771042.7 | Q86: 645450337.3 | S86: =SUM(S81+S82+S83+S84+S85) -> 42234328.53 | T86: 42549593.05 | U86: 41461375.93 | V86: 40143902.46 | W86: 39004274.52 | X86: 37838399.6 | Y86: 36644085.45
B87: For “other” asset items with short lives:
A88: DRAB1101 | B88: Opening value | C88: 217727768.5 | D88: 219734265.8 | E88: 219662548.2 | F88: 237674739.4 | G88: 255830897.9 | H88: 243609397.1 | I88: 226120384.8 | K88: 217727768.5 | L88: 219734265.8 | M88: 219662548.2 | N88: 237674739.4 | O88: 255830897.9 | P88: 243609397.1 | Q88: 226120384.8 | S88: -667558.45 | T88: -604043.5385 | U88: -380236.6327 | V88: 64081.98001 | W88: 229869.0119 | X88: 374230.5376 | Y88: 497166.5571
A89: DRAB1102 | B89: Inflation addition | C89: 0 | D89: 0 | E89: 0 | F89: 0 | G89: 0 | H89: 0 | I89: 0 | K89: 0 | L89: 0 | M89: 0 | N89: 0 | O89: 0 | P89: 0 | Q89: 0 | S89: 0 | T89: 0 | U89: 0 | V89: 0 | W89: 0 | X89: 0 | Y89: 0
A90: DRAB1103 | B90: Straight line depreciation | C90: -73696804.57 | D90: -74440536.43 | E90: -66122603.52 | F90: -70695404.37 | G90: -77053452.41 | H90: -76438539.67 | I90: -74272936.44 | K90: -73696804.57 | L90: -74440536.43 | M90: -66122603.52 | N90: -70695404.37 | O90: -77053452.41 | P90: -76438539.67 | Q90: -74272936.44 | S90: -456412.4357 | T90: -311440.4706 | U90: 122936.0195 | V90: 58659.50083 | W90: 37233.99461 | X90: 15808.4884 | Y90: -5617.017818
A91: DRAB1105 | B91: Actual additions (recognised in RAB) | C91: 77373241.86 | D91: 76006014.86 | E91: 86962294.74 | F91: 92379562.9 | G91: 68734451.54 | H91: 62536527.41 | I91: 55768067.94 | K91: 77373241.86 | L91: 76006014.86 | M91: 86962294.74 | N91: 92379562.9 | O91: 68734451.54 | P91: 62536527.41 | Q91: 55768067.94 | S91: 519927.3472 | T91: 535247.3765 | U91: 321382.5932 | V91: 107127.5311 | W91: 107127.5311 | X91: 107127.5311 | Y91: 107127.5311
A92: DRAB1106 | B92: Disposals | C92: -1669939.977 | D92: -1637196.056 | E92: -2827500 | F92: -3528000 | G92: -3902500 | H92: -3587000 | I92: -2517500 | K92: -1669939.977 | L92: -1637196.056 | M92: -2827500 | N92: -3528000 | O92: -3902500 | P92: -3587000 | Q92: -2517500 | S92: 0 | T92: 0 | U92: 0 | V92: 0 | W92: 0 | X92: 0 | Y92: 0
A93: DRAB1107 | B93: Closing value | C93: =SUM(C88+C89+C90+C91+C92) -> 219734265.8 | D93: 219662548.2 | E93: 237674739.4 | F93: 255830897.9 | G93: 243609397.1 | H93: 226120384.8 | I93: 205098016.3 | K93: =SUM(K88+K89+K90+K91+K92) -> 219734265.8 | L93: 219662548.2 | M93: 237674739.4 | N93: 255830897.9 | O93: 243609397.1 | P93: 226120384.8 | Q93: 205098016.3 | S93: =SUM(S88+S89+S90+S91+S92) -> -604043.5385 | T93: -380236.6327 | U93: 64081.98001 | V93: 229869.0119 | W93: 374230.5376 | X93: 497166.5571 | Y93: 598677.0703
B97: 3.3.3 - TOTAL DISAGGREGATED RAB ASSET VALUES
C98: Network services | K98: Standard control services | S98: Alternative control services
C99: =CONCATENATE("Forecast ($0's, real ", dms_DollarReal,")") -> Forecast ($0's, real June 2020) | K99: =CONCATENATE("Forecast ($0's, real ", dms_DollarReal,")") -> Forecast ($0's, real June 2020) | S99: =CONCATENATE("Forecast ($0's, real ", dms_DollarReal,")") -> Forecast ($0's, real June 2020)
C100: =CRCP_y4 -> 2018-19 | D100: =CRCP_y5 -> 2019-20 | E100: =FRCP_y1 -> 2020-21 | F100: =FRCP_y2 -> 2021-22 | G100: =FRCP_y3 -> 2022-23 | H100: =FRCP_y4 -> 2023-24 | I100: =FRCP_y5 -> 2024-25 | K100: =CRCP_y4 -> 2018-19 | L100: =CRCP_y5 -> 2019-20 | M100: =FRCP_y1 -> 2020-21 | N100: =FRCP_y2 -> 2021-22 | O100: =FRCP_y3 -> 2022-23 | P100: =FRCP_y4 -> 2023-24 | Q100: =FRCP_y5 -> 2024-25 | S100: =CRCP_y4 -> 2018-19 | T100: =CRCP_y5 -> 2019-20 | U100: =FRCP_y1 -> 2020-21 | V100: =FRCP_y2 -> 2021-22 | W100: =FRCP_y3 -> 2022-23 | X100: =FRCP_y4 -> 2023-24 | Y100: =FRCP_y5 -> 2024-25
A101: DRAB1201 | B101: Overhead network assets less than 33kV (wires and poles) | C101: 474098105.7 | D101: 491461926.3 | E101: 502014736.1 | F101: 509236145.6 | G101: 516579996.4 | H101: 523365915.5 | I101: 530924060.3 | K101: 558464801.5 | L101: 578918548.4 | M101: 591349251.5 | N101: 599855725.1 | O101: 608506428.7 | P101: 616499915.6 | Q101: 625403047.1 | S101: 0 | T101: 0 | U101: 0 | V101: 0 | W101: 0 | X101: 0 | Y101: 0
A102: DRAB1202 | B102: Underground network assets less than 33kV (cables) | C102: 963250722 | D102: 998529734 | E102: 1019970447 | F102: 1034642575 | G102: 1049563473 | H102: 1063350792 | I102: 1078707082 | K102: 1091714798 | L102: 1131698801 | M102: 1155998958 | N102: 1172627836 | O102: 1189538662 | P102: 1205164728 | Q102: 1222569013 | S102: 0 | T102: 0 | U102: 0 | V102: 0 | W102: 0 | X102: 0 | Y102: 0
A103: DRAB1203 | B103: Distribution substations including transformers | C103: 1205289359 | D103: 1197038810 | E103: 1182350800 | F103: 1162447276 | G103: 1141486536 | H103: 1117229915 | I103: 1088420709 | K103: 1205289359 | L103: 1197038810 | M103: 1182350800 | N103: 1162447276 | O103: 1141486536 | P103: 1117229915 | Q103: 1088420709 | S103: 0 | T103: 0 | U103: 0 | V103: 0 | W103: 0 | X103: 0 | Y103: 0
A104: DRAB1204 | B104: Overhead network assets 33kV and above (wires and towers / poles etc) | C104: 160431948.9 | D104: 159517745.2 | E104: 164559756.2 | F104: 173856527.5 | G104: 179856946 | H104: 184458431.1 | I104: 190850661.7 | K104: 160431948.9 | L104: 159517745.2 | M104: 164559756.2 | N104: 173856527.5 | O104: 179856946 | P104: 184458431.1 | Q104: 190850661.7 | S104: 0 | T104: 0 | U104: 0 | V104: 0 | W104: 0 | X104: 0 | Y104: 0
A105: DRAB1205 | B105: Underground network assets 33kV and above(cables, ducts etc) | C105: 23113793.79 | D105: 22982082.4 | E105: 23708496.32 | F105: 25047903.2 | G105: 25912397.06 | H105: 26575343.43 | I105: 27496286.55 | K105: 23113793.79 | L105: 22982082.4 | M105: 23708496.32 | N105: 25047903.2 | O105: 25912397.06 | P105: 26575343.43 | Q105: 27496286.55 | S105: 0 | T105: 0 | U105: 0 | V105: 0 | W105: 0 | X105: 0 | Y105: 0
A106: DRAB1206 | B106: Zone substations and transformers | C106: 515153867.8 | D106: 511627492.8 | E106: 505349676.3 | F106: 496842692.2 | G106: 487883842.5 | H106: 477516297.4 | I106: 465202927.2 | K106: 515153867.8 | L106: 511627492.8 | M106: 505349676.3 | N106: 496842692.2 | O106: 487883842.5 | P106: 477516297.4 | Q106: 465202927.2 | S106: 0 | T106: 0 | U106: 0 | V106: 0 | W106: 0 | X106: 0 | Y106: 0
A107: DRAB1207 | B107: Easements | C107: 9036156.968 | D107: 10185527.15 | E107: 10752967.86 | F107: 10752967.86 | G107: 10752967.86 | H107: 10752967.86 | I107: 10752967.86 | K107: 9036156.968 | L107: 10185527.15 | M107: 10752967.86 | N107: 10752967.86 | O107: 10752967.86 | P107: 10752967.86 | Q107: 10752967.86 | S107: 0 | T107: 0 | U107: 0 | V107: 0 | W107: 0 | X107: 0 | Y107: 0
A108: DRAB1208 | B108: Meters | C108: 0 | D108: 0 | E108: 0 | F108: 0 | G108: 0 | H108: 0 | I108: 0 | K108: 0 | L108: 0 | M108: 0 | N108: 0 | O108: 0 | P108: 0 | Q108: 0 | S108: 50185733.93 | T108: 40446573.05 | U108: 31968928.06 | V108: 24864721.88 | W108: 17760515.7 | X108: 10656309.52 | Y108: 3552103.339
A109: DRAB1209 | B109: “Other” assets with long lives | C109: 536311909.6 | D109: 557960174.3 | E109: 576947223.4 | F109: 596026137.7 | G109: 611109060.7 | H109: 624013324.3 | I109: 638610690 | K109: 536311909.6 | L109: 557960174.3 | M109: 576947223.4 | N109: 596026137.7 | O109: 611109060.7 | P109: 624013324.3 | Q109: 638610690 | S109: 42237007.83 | T109: 42391960.79 | U109: 42005484.49 | V109: 40802639.19 | W109: 39574088.49 | X109: 38421337.06 | Y109: 37241242.53
A110: DRAB1210 | B110: “Other” assets with short lives | C110: 218731017.1 | D110: 219698407 | E110: 228668643.8 | F110: 246752818.7 | G110: 249720147.5 | H110: 234864890.9 | I110: 215609200.5 | K110: 218731017.1 | L110: 219698407 | M110: 228668643.8 | N110: 246752818.7 | O110: 249720147.5 | P110: 234864890.9 | Q110: 215609200.5 | S110: -635800.9943 | T110: -492140.0856 | U110: -158077.3263 | V110: 146975.496 | W110: 302049.7748 | X110: 435698.5473 | Y110: 547921.8137
A111: DRAB13 | B111: Value of Capital Contributions or Contributed Assets (included in the above) | C111: 0 | D111: 0 | E111: 0 | F111: 0 | G111: 0 | H111: 0 | I111: 0 | K111: -62882584.35 | L111: -57645741.19 | M111: -70633354.78 | N111: -70253435.63 | O111: -70784816.43 | P111: -70638266.36 | Q111: -67753001.9 | S111: -1207435.616 | T111: -1207435.616 | U111: -1157711.89 | V111: -1157711.89 | W111: -1157711.89 | X111: -1157711.89 | Y111: -1157711.89
B114: 3.3.4 - ASSET LIVES
C115: Network services | K115: Standard control services | S115: Alternative control services
C116: Forecast ( years ) | K116: Forecast ( years ) | S116: Forecast ( years )
C117: =CRCP_y4 -> 2018-19 | D117: =CRCP_y5 -> 2019-20 | E117: =FRCP_y1 -> 2020-21 | F117: =FRCP_y2 -> 2021-22 | G117: =FRCP_y3 -> 2022-23 | H117: =FRCP_y4 -> 2023-24 | I117: =FRCP_y5 -> 2024-25 | K117: =CRCP_y4 -> 2018-19 | L117: =CRCP_y5 -> 2019-20 | M117: =FRCP_y1 -> 2020-21 | N117: =FRCP_y2 -> 2021-22 | O117: =FRCP_y3 -> 2022-23 | P117: =FRCP_y4 -> 2023-24 | Q117: =FRCP_y5 -> 2024-25 | S117: =CRCP_y4 -> 2018-19 | T117: =CRCP_y5 -> 2019-20 | U117: =FRCP_y1 -> 2020-21 | V117: =FRCP_y2 -> 2021-22 | W117: =FRCP_y3 -> 2022-23 | X117: =FRCP_y4 -> 2023-24 | Y117: =FRCP_y5 -> 2024-25
B118: Estimated service life of new assets
A119: DRAB1401 | B119: Overhead network assets less than 33kV (wires and poles) | C119: 55 | D119: 55 | E119: 54.72718674 | F119: 54.47100295 | G119: 54.23759744 | H119: 54.02411762 | I119: 53.82786492 | K119: 55 | L119: 55 | M119: 54.72718674 | N119: 54.47100295 | O119: 54.23759744 | P119: 54.02411762 | Q119: 53.82786492 | S119: 0 | T119: 0 | U119: 0 | V119: 0 | W119: 0 | X119: 0 | Y119: 0
A120: DRAB1402 | B120: Underground network assets less than 33kV (cables) | C120: 55 | D120: 55 | E120: 54.72718674 | F120: 54.47100295 | G120: 54.23759744 | H120: 54.02411762 | I120: 53.82786492 | K120: 55 | L120: 55 | M120: 54.72718674 | N120: 54.47100295 | O120: 54.23759744 | P120: 54.02411762 | Q120: 53.82786492 | S120: 0 | T120: 0 | U120: 0 | V120: 0 | W120: 0 | X120: 0 | Y120: 0
A121: DRAB1403 | B121: Distribution substations including transformers | C121: 45 | D121: 45 | E121: 44.85993997 | F121: 44.73387386 | G121: 44.61730272 | H121: 44.49638798 | I121: 44.38302758 | K121: 45 | L121: 45 | M121: 44.85993997 | N121: 44.73387386 | O121: 44.61730272 | P121: 44.49638798 | Q121: 44.38302758 | S121: 0 | T121: 0 | U121: 0 | V121: 0 | W121: 0 | X121: 0 | Y121: 0
A122: DRAB1404 | B122: Overhead network assets 33kV and above (wires and towers / poles etc) | C122: 55 | D122: 55 | E122: 55 | F122: 55 | G122: 55 | H122: 55 | I122: 55 | K122: 55 | L122: 55 | M122: 55 | N122: 55 | O122: 55 | P122: 55 | Q122: 55 | S122: 0 | T122: 0 | U122: 0 | V122: 0 | W122: 0 | X122: 0 | Y122: 0
A123: DRAB1405 | B123: Underground network assets 33kV and above(cables, ducts etc) | C123: 55 | D123: 55 | E123: 55 | F123: 55 | G123: 55 | H123: 55 | I123: 55 | K123: 55 | L123: 55 | M123: 55 | N123: 55 | O123: 55 | P123: 55 | Q123: 55 | S123: 0 | T123: 0 | U123: 0 | V123: 0 | W123: 0 | X123: 0 | Y123: 0
A124: DRAB1406 | B124: Zone substations and transformers | C124: 45 | D124: 45 | E124: 44.85993997 | F124: 44.73387386 | G124: 44.61730272 | H124: 44.49638798 | I124: 44.38302758 | K124: 45 | L124: 45 | M124: 44.85993997 | N124: 44.73387386 | O124: 44.61730272 | P124: 44.49638798 | Q124: 44.38302758 | S124: 0 | T124: 0 | U124: 0 | V124: 0 | W124: 0 | X124: 0 | Y124: 0
A125: DRAB1407 | B125: Meters | C125: 0 | D125: 0 | E125: 0 | F125: 0 | G125: 0 | H125: 0 | I125: 0 | K125: 0 | L125: 0 | M125: 0 | N125: 0 | O125: 0 | P125: 0 | Q125: 0 | S125: 15 | T125: 15 | U125: 15 | V125: 15 | W125: 15 | X125: 15 | Y125: 15
A126: DRAB1408 | B126: “Other” assets with long lives | C126: 17.47284121 | D126: 18.35715017 | E126: 18.70619413 | F126: 19.20985283 | G126: 19.31929582 | H126: 19.21948202 | I126: 19.14135878 | K126: 17.47284121 | L126: 18.35715017 | M126: 18.70619413 | N126: 19.20985283 | O126: 19.31929582 | P126: 19.21948202 | Q126: 19.14135878 | S126: 27.91013038 | T126: 27.91556601 | U126: 27.93067992 | V126: 27.94630369 | W126: 27.96315652 | X126: 27.98101064 | Y126: 27.99999998
A127: DRAB1409 | B127: “Other” assets with short lives | C127: 5 | D127: 5 | E127: 5 | F127: 5 | G127: 5 | H127: 5 | I127: 5 | K127: 5 | L127: 5 | M127: 5 | N127: 5 | O127: 5 | P127: 5 | Q127: 5 | S127: 7 | T127: 7 | U127: 7 | V127: 7 | W127: 7 | X127: 7 | Y127: 7
B128: Estimated residual service life
A129: DRAB1501 | B129: Overhead network assets less than 33kV (wires and poles) | C129: 12.97150506 | D129: 13.63036692 | E129: 13.46381091 | F129: 13.31181004 | G129: 13.15122819 | H129: 14.04003155 | I129: 14.27031735 | K129: 12.97150506 | L129: 13.63036692 | M129: 13.46381091 | N129: 13.31181004 | O129: 13.15122819 | P129: 14.04003155 | Q129: 14.27031735 | S129: 0 | T129: 0 | U129: 0 | V129: 0 | W129: 0 | X129: 0 | Y129: 0
A130: DRAB1502 | B130: Underground network assets less than 33kV (cables) | C130: 12.97150506 | D130: 13.63036692 | E130: 13.46381091 | F130: 13.31181004 | G130: 13.15122819 | H130: 14.04003155 | I130: 14.27031735 | K130: 12.97150506 | L130: 13.63036692 | M130: 13.46381091 | N130: 13.31181004 | O130: 13.15122819 | P130: 14.04003155 | Q130: 14.27031735 | S130: 0 | T130: 0 | U130: 0 | V130: 0 | W130: 0 | X130: 0 | Y130: 0
A131: DRAB1503 | B131: Distribution substations including transformers | C131: 20.89394566 | D131: 18.86739085 | E131: 18.21810488 | F131: 17.59055773 | G131: 16.95492945 | H131: 16.2987652 | I131: 15.83580433 | K131: 20.89394566 | L131: 18.86739085 | M131: 18.21810488 | N131: 17.59055773 | O131: 16.95492945 | P131: 16.2987652 | Q131: 15.83580433 | S131: 0 | T131: 0 | U131: 0 | V131: 0 | W131: 0 | X131: 0 | Y131: 0
A132: DRAB1504 | B132: Overhead network assets 33kV and above (wires and towers / poles etc) | C132: 44.3178224 | D132: 47.42921384 | E132: 47.04967937 | F132: 46.52571496 | G132: 45.88450399 | H132: 45.27329819 | I132: 47.21878072 | K132: 44.3178224 | L132: 47.42921384 | M132: 47.04967937 | N132: 46.52571496 | O132: 45.88450399 | P132: 45.27329819 | Q132: 47.21878072 | S132: 0 | T132: 0 | U132: 0 | V132: 0 | W132: 0 | X132: 0 | Y132: 0
A133: DRAB1505 | B133: Underground network assets 33kV and above (cables, ducts etc) | C133: 44.3178224 | D133: 47.42921384 | E133: 47.04967937 | F133: 46.52571496 | G133: 45.88450399 | H133: 45.27329819 | I133: 47.21878072 | K133: 44.3178224 | L133: 47.42921384 | M133: 47.04967937 | N133: 46.52571496 | O133: 45.88450399 | P133: 45.27329819 | Q133: 47.21878072 | S133: 0 | T133: 0 | U133: 0 | V133: 0 | W133: 0 | X133: 0 | Y133: 0
A134: DRAB1506 | B134: Zone substations and transformers | C134: 20.89394566 | D134: 18.86739085 | E134: 18.21810488 | F134: 17.59055773 | G134: 16.95492945 | H134: 16.2987652 | I134: 15.83580433 | K134: 20.89394566 | L134: 18.86739085 | M134: 18.21810488 | N134: 17.59055773 | O134: 16.95492945 | P134: 16.2987652 | Q134: 15.83580433 | S134: 0 | T134: 0 | U134: 0 | V134: 0 | W134: 0 | X134: 0 | Y134: 0
A135: DRAB1507 | B135: Meters | C135: 0 | D135: 0 | E135: 0 | F135: 0 | G135: 0 | H135: 0 | I135: 0 | K135: 0 | L135: 0 | M135: 0 | N135: 0 | O135: 0 | P135: 0 | Q135: 0 | S135: 4.605799305 | T135: 5.000000035 | U135: 4.000000035 | V135: 3.000000035 | W135: 2.000000035 | X135: 1.000000035 | Y135: 0
A136: DRAB1508 | B136: “Other” assets with long lives | C136: 11.3677866 | D136: 10.7056349 | E136: 10.66696921 | F136: 10.9549165 | G136: 10.95135319 | H136: 10.67416244 | I136: 11.04283765 | K136: 11.3677866 | L136: 10.7056349 | M136: 10.66696921 | N136: 10.9549165 | O136: 10.95135319 | P136: 10.67416244 | Q136: 11.04283765 | S136: 18.26255866 | T136: 17.42076674 | U136: 18.74029144 | V136: 17.94680273 | W136: 17.19501117 | X136: 16.22412104 | Y136: 15.47251735
A137: DRAB1509 | B137: “Other” assets with short lives | C137: 2.951809274 | D137: 3.322049292 | E137: 3.361954592 | F137: 3.320174372 | G137: 3.186997006 | H137: 3.044451931 | I137: 2.761409823 | K137: 2.951809274 | L137: 3.322049292 | M137: 3.361954592 | N137: 3.320174372 | O137: 3.186997006 | P137: 3.044451931 | Q137: 2.761409823 | S137: 7 | T137: 6.543989329 | U137: 5.382200178 | V137: 4.437923055 | W137: 3.888901473 | X137: 2.753056569 | Y137: 2.083038978

Sheet 3.4 Operational data
B1: =SheetHeader -> REGULATORY REPORTING STATEMENT
B2: =dms_TradingName -> SA Power Networks
B3: =dms_Reg_Year_Span -> 2020-21 to 2024-25
B4: 3.4 OPERATIONAL DATA
B6: There are TWO tables on this worksheet. Each table has been grouped for ease of navigation. See the Instructions sheet on how to group or ungroup tables.
B9: 3.4.1 - ENERGY DELIVERY
D10: Standard control services
D11: Forecast
C12: Units | D12: =CRCP_y4 -> 2018-19 | E12: =CRCP_y5 -> 2019-20 | F12: =FRCP_y1 -> 2020-21 | G12: =FRCP_y2 -> 2021-22 | H12: =FRCP_y3 -> 2022-23 | I12: =FRCP_y4 -> 2023-24 | J12: =FRCP_y5 -> 2024-25
A13: DOPED01 | B13: Total energy delivered | C13: GWh | D13: 10168 | E13: 9693 | F13: 9639 | G13: 9664 | H13: 9687 | I13: 9737 | J13: 9819
B14: 3.4.1.1 - Energy grouping - delivery by chargeable quantity
A15: DOPED0201 | B15: Energy Delivery where time of use is not a determinant | C15: GWh | D15: 8891.05 | E15: 8398.823 | F15: 3661.921 | G15: 3433.073 | H15: 3227.216 | I15: 3022.315 | J15: 2840.676
A16: DOPED0202 | B16: Energy Delivery at On-peak times | C16: GWh | D16: 322.505 | E16: 361.694 | F16: 2694.657 | G16: 2825.649 | H16: 2947.703 | I16: 3083.063 | J16: 3229.89
A17: DOPED0203 | B17: Energy Delivery at Shoulder times | C17: GWh | D17: - | E17: - | F17: 433.169 | G17: 505.412 | H17: 571.722 | I17: 638.198 | J17: 702.533
A18: DOPED0204 | B18: Energy Delivery at Off-peak times | C18: GWh | D18: 312.505 | E18: 340.696 | F18: 2273.528 | G18: 2339.912 | H18: 2396.724 | I18: 2465.503 | J18: 2534.277
A19: DOPED0205 | B19: Controlled load energy deliveries | C19: GWh | D19: 520 | E19: 477.026 | F19: 461.026 | G19: 445.026 | H19: 429.026 | I19: 413.026 | J19: 397.026
A20: DOPED0206 | B20: Energy Delivery to unmetered supplies | C20: GWh | D20: 122 | E20: 115 | F20: 115 | G20: 115 | H20: 115 | I20: 115 | J20: 115
B21: 3.4.1.2 - Energy - received from TNSP and other DNSPs by time of receipt
A22: DOPED0301 | B22: Energy into DNSP network at On-peak times | C22: GWh | D22: 4449.187 | E22: 4217.451 | F22: 4217.38 | G22: 4224.565 | H22: 4231.007 | I22: 4249.399 | J22: 4282.493
A23: DOPED0302 | B23: Energy into DNSP network at Shoulder times | C23: GWh
A24: DOPED0303 | B24: Energy into DNSP network at Off-peak times | C24: GWh | D24: 5329.246 | E24: 5051.672 | F24: 5051.587 | G24: 5060.194 | H24: 5067.91 | I24: 5089.94 | J24: 5129.579
A25: DOPED0304 | B25: Energy received from TNSP and other DNSPs not included in the above categories | C25: GWh
B26: 3.4.1.3 - Energy - received into DNSP system from embedded generation by time of receipt
A27: DOPED0401 | B27: Energy into DNSP network at On-peak times from non-residential embedded generation | C27: GWh | D27: 133.285 | E27: 133.285 | F27: 133.285 | G27: 133.285 | H27: 133.285 | I27: 133.285 | J27: 133.285
A28: DOPED0402 | B28: Energy into DNSP network at Shoulder times from non-residential embedded generation | C28: GWh
A29: DOPED0403 | B29: Energy into DNSP network at Off-peak times from non-residential embedded generation | C29: GWh | D29: 171.715 | E29: 171.715 | F29: 171.715 | G29: 171.715 | H29: 171.715 | I29: 171.715 | J29: 171.715
A30: DOPED0404 | B30: Energy received from embedded generation not included in above categories from non-residential embedded generation | C30: GWh | D30: 107.145 | E30: 129.952 | F30: 132.368 | G30: 134.924 | H30: 137.494 | I30: 140.038 | J30: 142.671
A31: DOPED0405 | B31: Energy into DNSP network at On-peak times from residential embedded generation | C31: GWh
A32: DOPED0406 | B32: Energy into DNSP network at Shoulder times from residential embedded generation | C32: GWh
A33: DOPED0407 | B33: Energy into DNSP network at Off-peak times from residential embedded generation | C33: GWh
A34: DOPED0408 | B34: Energy received from embedded generation not included in above categories from residential embedded generation | C34: GWh | D34: 657.6 | E34: 656.97 | F34: 605.856 | G34: 611.43 | H34: 617.153 | I34: 623.021 | J34: 629.051
B35: 3.4.1.4 - Energy grouping - customer type or class
A36: DOPED0501 | B36: Residential customers energy deliveries | C36: GWh | D36: 3755.05 | E36: 3478.453 | F36: 3438.989 | G36: 3459.509 | H36: 3472.845 | I36: 3482.114 | J36: 3517.755
A37: DOPED0502 | B37: Non residential customers not on demand tariffs energy deliveries | C37: GWh | D37: 1214.01 | E37: 1163.432 | F37: 1313.528 | G37: 1323.726 | H37: 1335.426 | I37: 1351.459 | J37: 1364.257
A38: DOPED0503 | B38: Non-residential low voltage demand tariff customers energy deliveries | C38: GWh | D38: 3240 | E38: 3216.454 | F38: 3054.134 | G38: 3047.525 | H38: 3044.255 | I38: 3062.373 | J38: 3088.974
A39: DOPED0504 | B39: Non-residential high voltage demand tariff customers energy deliveries | C39: GWh | D39: 1959 | E39: 1834.9 | F39: 1832.65 | G39: 1833.312 | H39: 1834.865 | I39: 1841.158 | J39: 1848.418
A40: DOPED0505 | B40: Other Customer Class Energy Deliveries | C40: GWh
B44: 3.4.3 - SYSTEM DEMAND
D45: Standard control services
D46: Forecast
C47: Units | D47: =CRCP_y4 -> 2018-19 | E47: =CRCP_y5 -> 2019-20 | F47: =FRCP_y1 -> 2020-21 | G47: =FRCP_y2 -> 2021-22 | H47: =FRCP_y3 -> 2022-23 | I47: =FRCP_y4 -> 2023-24 | J47: =FRCP_y5 -> 2024-25
B48: 3.4.3.1 - Annual system maximum demand characteristics at the zone substation level – MW measure
A49: DOPSD0102 | B49: Non–coincident Summated Weather Adjusted System Annual Maximum Demand 10% POE | C49: MW | D49: 3062.726141 | E49: 3068.505253 | F49: 3072.535754 | G49: 3080.239561 | H49: 3087.934329 | I49: 3095.730091 | J49: 3103.609069
A50: DOPSD0103 | B50: Non–coincident Summated Weather Adjusted System Annual Maximum Demand 50% POE | C50: MW | D50: 2783.831871 | E50: 2790.659781 | F50: 2796.882255 | G50: 2803.282817 | H50: 2809.96278 | I50: 2816.919747 | J50: 2823.951521
A51: DOPSD0105 | B51: Coincident Weather Adjusted System Annual Maximum Demand 10% POE | C51: MW | D51: 2780.768486 | E51: 2786.236399 | F51: 2791.637155 | G51: 2799.100958 | H51: 2806.566538 | I51: 2814.141221 | J51: 2821.759617
A52: DOPSD0106 | B52: Coincident Weather Adjusted System Annual Maximum Demand 50% POE | C52: MW | D52: 2522.687034 | E52: 2529.073628 | F52: 2536.418238 | G52: 2542.139718 | H52: 2548.120243 | I52: 2554.357486 | J52: 2560.701287
B53: 3.4.3.2 - Annual system maximum demand characteristics at the transmission connection point – MW measure
A54: DOPSD0108 | B54: Non–coincident Summated Weather Adjusted System Annual Maximum Demand 10% POE | C54: MW | D54: 3035.551161 | E54: 3049.034364 | F54: 3063.312065 | G54: 3071.54829 | H54: 3079.693855 | I54: 3087.858252 | J54: 3096.172209
A55: DOPSD0109 | B55: Non–coincident Summated Weather Adjusted System Annual Maximum Demand 50% POE | C55: MW | D55: 2760.39165 | E55: 2773.315845 | F55: 2787.376374 | G55: 2795.579711 | H55: 2803.882233 | I55: 2812.283912 | J55: 2820.784732
A56: DOPSD0111 | B56: Coincident Weather Adjusted System Annual Maximum Demand 10% POE | C56: MW | D56: 2885.599601 | E56: 2898.609252 | F56: 2912.587282 | G56: 2920.675668 | H56: 2928.695116 | I56: 2936.761269 | J56: 2944.920633
A57: DOPSD0112 | B57: Coincident Weather Adjusted System Annual Maximum Demand 50% POE | C57: MW | D57: 2619.866006 | E57: 2632.291799 | F57: 2646.073043 | G57: 2653.996081 | H57: 2662.014666 | I57: 2670.128771 | J57: 2678.33838
B58: 3.4.3.3 - Annual system maximum demand characteristics at the zone substation level – MVA measure
A59: DOPSD0202 | B59: Non–coincident Summated Weather Adjusted System Annual Maximum Demand 10% POE | C59: MVA | D59: 3161.205051 | E59: 3167.182686 | F59: 3171.175516 | G59: 3179.075765 | H59: 3186.955105 | I59: 3194.942031 | J59: 3203.01168
A60: DOPSD0203 | B60: Non–coincident Summated Weather Adjusted System Annual Maximum Demand 50% POE | C60: MVA | D60: 2874.15689 | E60: 2881.1636 | F60: 2887.347584 | G60: 2894.004524 | H60: 2900.94929 | I60: 2908.179437 | J60: 2915.479028
A61: DOPSD0205 | B61: Coincident Weather Adjusted System Annual Maximum Demand 10% POE | C61: MVA | D61: 2864.828296 | E61: 2870.466141 | F61: 2875.985981 | G61: 2883.647737 | H61: 2891.300639 | I61: 2899.069316 | J61: 2906.88017
A62: DOPSD0206 | B62: Coincident Weather Adjusted System Annual Maximum Demand 50% POE | C62: MVA | D62: 2599.47274 | E62: 2606.022104 | F62: 2613.525962 | G62: 2619.467754 | H62: 2625.67616 | I62: 2632.148801 | J62: 2638.725497
B63: 3.4.3.4 - Annual system maximum demand characteristics at the transmission connection point – MVA measure
A64: DOPSD0208 | B64: Non–coincident Summated Weather Adjusted System Annual Maximum Demand 10% POE | C64: MVA | D64: 3082.42202 | E64: 3096.134145 | F64: 3110.598411 | G64: 3118.950541 | H64: 3127.195104 | I64: 3135.456076 | J64: 3143.879502
A65: DOPSD0209 | B65: Non–coincident Summated Weather Adjusted System Annual Maximum Demand 50% POE | C65: MVA | D65: 2803.026303 | E65: 2816.181372 | F65: 2830.410025 | G65: 2838.769417 | H65: 2847.229516 | I65: 2855.790296 | J65: 2864.451747
A66: DOPSD0211 | B66: Coincident Weather Adjusted System Annual Maximum Demand 10% POE | C66: MVA | D66: 2929.288531 | E66: 2942.511057 | F66: 2956.665453 | G66: 2964.864906 | H66: 2972.979425 | I66: 2981.139099 | J66: 2989.403095
A67: DOPSD0212 | B67: Coincident Weather Adjusted System Annual Maximum Demand 50% POE | C67: MVA | D67: 2659.617502 | E67: 2672.259118 | F67: 2686.199555 | G67: 2694.26896 | H67: 2702.435343 | I67: 2710.698681 | J67: 2719.058961
B68: 3.4.3.5 - Power factor conversion between MVA and MW
A69: DOPSD0301 | B69: Average overall network power factor conversion between MVA and MW | C69: Factor | D69: 0.984794146 | E69: 0.9847875517 | F69: 0.9847983121 | G69: 0.9848018585 | H69: 0.9848102699 | I69: 0.9848194893 | J69: 0.9848253432
A70: DOPSD0302 | B70: Average power factor conversion for low voltage distribution lines | C70: Factor | D70: 0.9588699589 | E70: 0.958887691 | F70: 0.9588698694 | G70: 0.9589148033 | H70: 0.9589628632 | I70: 0.9590102991 | J70: 0.9590587353
A71: DOPSD0303 | B71: Average power factor conversion for 3.3 kV lines | C71: Factor | D71: 0.8887433637 | E71: 0.8887433637 | F71: 0.8887433637 | G71: 0.8887433637 | H71: 0.8887433637 | I71: 0.8887433637 | J71: 0.8887433637
A72: DOPSD0304 | B72: Average power factor conversion for 6.6 kV lines | C72: Factor | D72: 0.8725302924 | E72: 0.8725302924 | F72: 0.8725302924 | G72: 0.8725302924 | H72: 0.8725302924 | I72: 0.8725302924 | J72: 0.8725302924
A73: DOPSD0305 | B73: Average power factor conversion for 7.6 kV lines | C73: Factor | D73: 0.959169256 | E73: 0.9602793773 | F73: 0.9599749171 | G73: 0.9599545326 | H73: 0.9599340796 | I73: 0.9599171186 | J73: 0.959899541
A74: DOPSD0306 | B74: Average power factor conversion for 11 kV lines | C74: Factor | D74: 0.9696778563 | E74: 0.9696371158 | F74: 0.9695975604 | G74: 0.9696140032 | H74: 0.9696334936 | I74: 0.969652319 | J74: 0.9696721905
A75: DOPSD0307 | B75: Average power factor conversion for SWER lines | C75: Factor | D75: 0.9632659975 | E75: 0.9631906783 | F75: 0.9630728881 | G75: 0.9630068818 | H75: 0.9629463569 | I75: 0.9628875087 | J75: 0.9628313952
A76: DOPSD0308 | B76: Average power factor conversion for 22 kV lines | C76: Factor | D76: 0 | E76: 0 | F76: 0 | G76: 0 | H76: 0 | I76: 0 | J76: 0
A77: DOPSD0309 | B77: Average power factor conversion for 33 kV lines | C77: Factor | D77: 0.9668372538 | E77: 0.9667964916 | F77: 0.9670908992 | G77: 0.9670308408 | H77: 0.9669758128 | I77: 0.9669226027 | J77: 0.9668704539
A78: DOPSD0310 | B78: Average power factor conversion for 44 kV lines | C78: Factor | D78: 0 | E78: 0 | F78: 0 | G78: 0 | H78: 0 | I78: 0 | J78: 0
A79: DOPSD0311 | B79: Average power factor conversion for 66 kV lines | C79: Factor | D79: 0.9881405825 | E79: 0.9881457813 | F79: 0.9881514031 | G79: 0.9881572177 | H79: 0.9881651345 | I79: 0.9881729065 | J79: 0.9881776288
A80: DOPSD0312 | B80: Average power factor conversion for 110 kV lines | C80: Factor | D80: 0 | E80: 0 | F80: 0 | G80: 0 | H80: 0 | I80: 0 | J80: 0
A81: DOPSD0313 | B81: Average power factor conversion for 132 kV lines | C81: Factor | D81: 0 | E81: 0 | F81: 0 | G81: 0 | H81: 0 | I81: 0 | J81: 0
A82: DOPSD0314 | B82: Average power factor conversion for 220 kV lines | C82: Factor | D82: 0 | E82: 0 | F82: 0 | G82: 0 | H82: 0 | I82: 0 | J82: 0
B83: 3.4.3.6 - Demand supplied (for customers charged on this basis) – MW measure
A84: DOPSD0401 | B84: Summated Chargeable Contracted Maximum Demand | C84: MW | D84: 0 | E84: 0 | F84: 0 | G84: 0 | H84: 0 | I84: 0 | J84: 0
A85: DOPSD0402 | B85: Summated Chargeable Measured Maximum Demand | C85: MW | D85: 0 | E85: 0 | F85: 10 | G85: 14 | H85: 19 | I85: 24 | J85: 29
B86: 3.4.3.7 - Demand supplied (for customers charged on this basis) – MVA measure
A87: DOPSD0403 | B87: Summated Chargeable Contracted Maximum Demand | C87: MVA | D87: 1819 | E87: 1795 | F87: 401 | G87: 401 | H87: 401 | I87: 401 | J87: 401
A88: DOPSD0404 | B88: Summated Chargeable Measured Maximum Demand | C88: MVA | D88: 197 | E88: 204 | F88: 1437 | G88: 1447 | H88: 1451 | I88: 1462 | J88: 1473

Sheet 3.5 Physical assets
B1: =SheetHeader -> REGULATORY REPORTING STATEMENT
B2: =dms_TradingName -> SA Power Networks
B3: =dms_Reg_Year_Span -> 2020-21 to 2024-25
B4: 3.5 PHYSICAL ASSETS DATA
B6: There are THREE tables on this worksheet. Each table has been grouped (and sub-grouped) for ease of navigation. See the Instructions sheet on how to group or ungroup tables.
B10: 3.5.1 - NETWORK CAPACITIES VARIABLES
D11: VOLUMES
C12: Units | D12: =CRCP_y4 -> 2018-19 | E12: =CRCP_y5 -> 2019-20 | F12: =FRCP_y1 -> 2020-21 | G12: =FRCP_y2 -> 2021-22 | H12: =FRCP_y3 -> 2022-23 | I12: =FRCP_y4 -> 2023-24 | J12: =FRCP_y5 -> 2024-25
B13: Circuit length
B14: 3.5.1.1 - Overhead network length of circuit at each voltage
A15: DPA0101 | B15: Overhead low voltage distribution | C15: km | D15: 18815.2669 | E15: 18819.53477 | F15: 18823.8036 | G15: 18828.07341 | H15: 18832.34418 | I15: 18836.61592 | J15: 18840.88863
A16: DPA0102 | B16: Overhead 2.2 kV | C16: km | D16: 0 | E16: 0 | F16: 0 | G16: 0 | H16: 0 | I16: 0 | J16: 0
A17: DPA0103 | B17: Overhead 7.6 kV | C17: km | D17: 267.0605636 | E17: 267.121141 | F17: 267.1817321 | G17: 267.2423369 | H17: 267.3029555 | I17: 267.3635878 | J17: 267.4242339
A18: DPA0104 | B18: Overhead 11 kV | C18: km | D18: 17614.9947 | E18: 17618.99031 | F18: 17622.98683 | G18: 17626.98425 | H18: 17630.98258 | I18: 17634.98182 | J18: 17638.98196
A19: DPA0105 | B19: Overhead SWER | C19: km | D19: 29137.60779 | E19: 29144.21707 | F19: 29150.82785 | G19: 29157.44013 | H19: 29164.05392 | I19: 29170.6692 | J19: 29177.28598
A20: DPA0106 | B20: Overhead 22 kV | C20: km | D20: 0 | E20: 0 | F20: 0 | G20: 0 | H20: 0 | I20: 0 | J20: 0
A21: DPA0107 | B21: Overhead 33 kV | C21: km | D21: 3986.904144 | E21: 3987.808494 | F21: 3988.713049 | G21: 3989.617808 | H21: 3990.522773 | I21: 3991.427944 | J21: 3992.333319
A22: DPA0108 | B22: Overhead 44 kV | C22: km | D22: 0 | E22: 0 | F22: 0 | G22: 0 | H22: 0 | I22: 0 | J22: 0
A23: DPA0109 | B23: Overhead 66 kV | C23: km | D23: 1441.326862 | E23: 1441.653798 | F23: 1441.980809 | G23: 1442.307893 | H23: 1442.635052 | I23: 1442.962285 | J23: 1443.289592
A24: DPA0110 | B24: Overhead 132 kV | C24: km | D24: 0 | E24: 0 | F24: 0 | G24: 0 | H24: 0 | I24: 0 | J24: 0
A25: DPA0111 | B25: Overhead 6.6kv | C25: km | D25: 0 | E25: 0 | F25: 0 | G25: 0 | H25: 0 | I25: 0 | J25: 0
A26: DPA0112 | B26: Overhead 110kV | C26: km | D26: 0 | E26: 0 | F26: 0 | G26: 0 | H26: 0 | I26: 0 | J26: 0
A27: DPA0113 | B27: Overhead 220kV | C27: km | D27: 0 | E27: 0 | F27: 0 | G27: 0 | H27: 0 | I27: 0 | J27: 0
A28: DPA0114 | B28: Other | C28: km | D28: 0 | E28: 0 | F28: 0 | G28: 0 | H28: 0 | I28: 0 | J28: 0
A29: DPA01 | B29: Total overhead circuit km | D29: =SUM(D15:D28) -> 71263.16096 | E29: =SUM(E15:E28) -> 71279.32558 | F29: 71295.49387 | G29: 71311.66583 | H29: 71327.84146 | I29: 71344.02075 | J29: 71360.20372
B30: 3.5.1.2 - Underground network circuit length at each voltage
A31: DPA0201 | B31: Underground low voltage distribution | C31: km | D31: 13963.11453 | E31: 14200.18698 | F31: 14441.28457 | G31: 14686.47562 | H31: 14935.82965 | I31: 15189.41733 | J31: 15447.31054
A32: DPA0202 | B32: Underground 5 kV | C32: km | D32: 0 | E32: 0 | F32: 0 | G32: 0 | H32: 0 | I32: 0 | J32: 0
A33: DPA0203 | B33: Underground 6.6 Kv | C33: km | D33: 0 | E33: 0 | F33: 0 | G33: 0 | H33: 0 | I33: 0 | J33: 0
A34: DPA0204 | B34: Underground 7.6 kV | C34: km | D34: 109.8336758 | E34: 111.6984846 | F34: 113.5949551 | G34: 115.5236247 | H34: 117.4850402 | I34: 119.4797576 | J34: 121.5083422
A35: DPA0205 | B35: Underground 11 kV | C35: km | D35: 4044.523414 | E35: 4113.193272 | F35: 4183.02904 | G35: 4254.050514 | H35: 4326.277824 | I35: 4399.731444 | J35: 4474.432194
A36: DPA0206 | B36: Underground SWER | C36: km | D36: 62.03568726 | E36: 63.08895891 | F36: 64.16011352 | G36: 65.2494547 | H36: 66.35729123 | I36: 67.48393715 | J36: 68.62971181
A37: DPA0207 | B37: Underground 22 kV | C37: km | D37: 0 | E37: 0 | F37: 0 | G37: 0 | H37: 0 | I37: 0 | J37: 0
A38: DPA0208 | B38: Underground 33 kV | C38: km | D38: 136.2751163 | E38: 138.5888606 | F38: 140.9418887 | G38: 143.3348677 | H38: 145.7684758 | I38: 148.2434029 | J38: 150.7603505
A39: DPA0209 | B39: Underground 66 kV | C39: km | D39: 54.9168379 | E39: 55.84924231 | F39: 56.79747754 | G39: 57.76181235 | H39: 58.74252011 | I39: 59.73987879 | J39: 60.75417111
A40: DPA0210 | B40: Underground 110 kV | C40: km | D40: 0 | E40: 0 | F40: 0 | G40: 0 | H40: 0 | I40: 0 | J40: 0
A41: DPA0211 | B41: Underground 132 kV | C41: km | D41: 0 | E41: 0 | F41: 0 | G41: 0 | H41: 0 | I41: 0 | J41: 0
A42: DPA0212 | B42: Other | C42: km | D42: 0 | E42: 0 | F42: 0 | G42: 0 | H42: 0 | I42: 0 | J42: 0
A43: DPA02 | B43: Total underground circuit km | D43: =SUM(D31:D42) -> 18370.69926 | E43: =SUM(E31:E42) -> 18682.6058 | F43: 18999.80804 | G43: 19322.3959 | H43: 19650.4608 | I43: 19984.09575 | J43: 20323.39531
B45: Circuit Capacity MVA
B46: 3.5.1.3 - Estimated overhead network weighted average MVA capacity by voltage class
A47: DPA0301 | B47: Overhead low voltage distribution | C47: MVA | D47: 0.1666937341 | E47: 0.1666937341 | F47: 0.1666937341 | G47: 0.1666937341 | H47: 0.1666937341 | I47: 0.1666937341 | J47: 0.1666937341
A48: DPA0302 | B48: Overhead 6.6 kV | C48: MVA | D48: 0 | E48: 0 | F48: 0 | G48: 0 | H48: 0 | I48: 0 | J48: 0
A49: DPA0303 | B49: Overhead 7.6 kV | C49: MVA | D49: 2.586283103 | E49: 1.804301454 | F49: 1.804301454 | G49: 1.804301454 | H49: 1.804301454 | I49: 1.804301454 | J49: 1.804301454
A50: DPA0304 | B50: Overhead 11 kV | C50: MVA | D50: 3.963259765 | E50: 3.977094047 | F50: 3.977094047 | G50: 3.977424457 | H50: 3.977424457 | I50: 3.977682175 | J50: 3.978436247
A51: DPA0305 | B51: Overhead SWER | C51: MVA | D51: 0.2 | E51: 0.2 | F51: 0.2 | G51: 0.2 | H51: 0.2 | I51: 0.2 | J51: 0.2
A52: DPA0306 | B52: Overhead 22 kV | C52: MVA | D52: 0 | E52: 0 | F52: 0 | G52: 0 | H52: 0 | I52: 0 | J52: 0
A53: DPA0307 | B53: Overhead 33 kV | C53: MVA | D53: 10.10330612 | E53: 10.10330612 | F53: 10.22645657 | G53: 10.22645657 | H53: 10.22645657 | I53: 10.22645657 | J53: 10.22645657
A54: DPA0308 | B54: Overhead 44 kV | C54: MVA | D54: 0 | E54: 0 | F54: 0 | G54: 0 | H54: 0 | I54: 0 | J54: 0
A55: DPA0309 | B55: Overhead 66 kV | C55: MVA | D55: 59.3201844 | E55: 59.3201844 | F55: 59.3201844 | G55: 59.08550933 | H55: 59.69568048 | I55: 59.69568048 | J55: 59.69568048
A56: DPA0310 | B56: Overhead 110 kV | C56: MVA | D56: 0 | E56: 0 | F56: 0 | G56: 0 | H56: 0 | I56: 0 | J56: 0
A57: DPA0311 | B57: Overhead 132 kV | C57: MVA | D57: 0 | E57: 0 | F57: 0 | G57: 0 | H57: 0 | I57: 0 | J57: 0
A58: DPA0312 | B58: Overhead 220 kV | C58: MVA | D58: 0 | E58: 0 | F58: 0 | G58: 0 | H58: 0 | I58: 0 | J58: 0
A59: DPA0313 | B59: Other | C59: MVA | D59: 0 | E59: 0 | F59: 0 | G59: 0 | H59: 0 | I59: 0 | J59: 0
B60: 3.5.1.4 - Estimated underground network weighted average MVA capacity by voltage class
A61: DPA0401 | B61: Underground low voltage distribution | C61: MVA | D61: 0 | E61: 0 | F61: 0 | G61: 0 | H61: 0 | I61: 0 | J61: 0
A62: DPA0402 | B62: Underground 5 kV | C62: MVA | D62: 0 | E62: 0 | F62: 0 | G62: 0 | H62: 0 | I62: 0 | J62: 0
A63: DPA0403 | B63: Underground 6.6 kV | C63: MVA | D63: 0 | E63: 0 | F63: 0 | G63: 0 | H63: 0 | I63: 0 | J63: 0
A64: DPA0404 | B64: Underground 7.6 kV | C64: MVA | D64: 3.119295815 | E64: 2.171078343 | F64: 2.171078343 | G64: 2.171078343 | H64: 2.171078343 | I64: 2.171078343 | J64: 2.171078343
A65: DPA0405 | B65: Underground 11 kV | C65: MVA | D65: 4.777618223 | E65: 4.781816818 | F65: 4.782618602 | G65: 4.782757021 | H65: 4.782757021 | I65: 4.78422613 | J65: 4.784893607
A66: DPA0406 | B66: Underground SWER | C66: MVA | D66: 0.2 | E66: 0.2 | F66: 0.2 | G66: 0.2 | H66: 0.2 | I66: 0.2 | J66: 0.2
A67: DPA0407 | B67: Underground 12.7 kV | C67: MVA | D67: 0 | E67: 0 | F67: 0 | G67: 0 | H67: 0 | I67: 0 | J67: 0
A68: DPA0408 | B68: Underground 22 kV | C68: MVA | D68: 0 | E68: 0 | F68: 0 | G68: 0 | H68: 0 | I68: 0 | J68: 0
A69: DPA0409 | B69: Underground 33 kV | C69: MVA | D69: 14.0040483 | E69: 14.0040483 | F69: 14.0040483 | G69: 14.0040483 | H69: 14.0040483 | I69: 14.0040483 | J69: 14.0040483
A70: DPA0410 | B70: Underground 66 kV | C70: MVA | D70: 126.3177542 | E70: 126.3177542 | F70: 126.3177542 | G70: 126.3177542 | H70: 126.3177542 | I70: 126.3177542 | J70: 126.3177542
A71: DPA0411 | B71: Underground 110 kV | C71: MVA | D71: 0 | E71: 0 | F71: 0 | G71: 0 | H71: 0 | I71: 0 | J71: 0
A72: DPA0412 | B72: Underground 132 kV | C72: MVA | D72: 0 | E72: 0 | F72: 0 | G72: 0 | H72: 0 | I72: 0 | J72: 0
A73: DPA0413 | B73: Other | C73: MVA | D73: 0 | E73: 0 | F73: 0 | G73: 0 | H73: 0 | I73: 0 | J73: 0
B77: 3.5.2 - TRANSFORMER CAPACITIES VARIABLES
D78: VOLUMES
C79: Units | D79: =CRCP_y4 -> 2018-19 | E79: =CRCP_y5 -> 2019-20 | F79: =FRCP_y1 -> 2020-21 | G79: =FRCP_y2 -> 2021-22 | H79: =FRCP_y3 -> 2022-23 | I79: =FRCP_y4 -> 2023-24 | J79: =FRCP_y5 -> 2024-25
B80: Distribution transformer total installed capacity
A81: DPA0501 | B81: Distribution transformer capacity owned by utility | C81: MVA | D81: 9347 | E81: 9482 | F81: 9607 | G81: 9727 | H81: 9842 | I81: 9952 | J81: 10057
A82: DPA0502 | B82: Distribution transformer capacity owned by High Voltage Customers | C82: MVA | D82: 755 | E82: 751 | F82: 625 | G82: 625 | H82: 625 | I82: 627 | J82: 629
A83: DPA0503 | B83: Cold spare capacity included in DPA0501 | C83: MVA | D83: 140 | E83: 140 | F83: 140 | G83: 140 | H83: 140 | I83: 140 | J83: 140
B84: Zone substation transformer capacity
A85: DPA0601 | B85: Total installed capacity for first step transformation where there are two steps to reach distribution voltage | C85: MVA | D85: 322.5 | E85: 325.5 | F85: 320.5 | G85: 320.5 | H85: 320.5 | I85: 320.5 | J85: 320.5
A86: DPA0602 | B86: Total installed capacity for second step transformation where there are two steps to reach distribution voltage | C86: MVA | D86: 115.515 | E86: 117.015 | F86: 119.015 | G86: 120.015 | H86: 118.015 | I86: 118.015 | J86: 118.015
A87: DPA0603 | B87: Total zone substation transformer capacity where there is only a single step transformation to reach distribution voltage | C87: MVA | D87: 4819.66 | E87: 4878.91 | F87: 4886.41 | G87: 4898.01 | H87: 4909.01 | I87: 4927.445 | J87: 4933.945
A88: DPA0604 | B88: Total zone substation transformer capacity | C88: MVA | D88: 5741.875 | E88: 5835.625 | F88: 5840.125 | G88: 5852.725 | H88: 5861.725 | I88: 5880.16 | J88: 5886.66
A89: DPA0605 | B89: Cold spare capacity of zone substation transformers included in DPA0604 | C89: MVA | D89: 484.2 | E89: 514.2 | F89: 514.2 | G89: 514.2 | H89: 514.2 | I89: 514.2 | J89: 514.2
B93: 3.5.3 - PUBLIC LIGHTING
D94: VOLUMES
C95: Units | D95: =CRCP_y4 -> 2018-19 | E95: =CRCP_y5 -> 2019-20 | F95: =FRCP_y1 -> 2020-21 | G95: =FRCP_y2 -> 2021-22 | H95: =FRCP_y3 -> 2022-23 | I95: =FRCP_y4 -> 2023-24 | J95: =FRCP_y5 -> 2024-25
A96: DPA0701 | B96: Public lighting luminaires | C96: 0's | D96: 231727 | E96: 232927 | F96: 234127 | G96: 235327 | H96: 236527 | I96: 237727 | J96: 238927
A97: DPA0702 | B97: Public lighting poles | C97: 0's | D97: 112523 | E97: 113623 | F97: 114723 | G97: 115823 | H97: 116923 | I97: 118023 | J97: 119123

Sheet 3.6 Quality of service
B1: =SheetHeader -> REGULATORY REPORTING STATEMENT
B2: =dms_TradingName -> SA Power Networks
B3: =dms_Reg_Year_Span -> 2020-21 to 2024-25
B4: 3.6 QUALITY OF SERVICE DATA
B7: 3.6.2 - ENERGY NOT SUPPLIED
D8: Forecast
C9: Units | D9: =CRCP_y4 -> 2018-19 | E9: =CRCP_y5 -> 2019-20 | F9: =FRCP_y1 -> 2020-21 | G9: =FRCP_y2 -> 2021-22 | H9: =FRCP_y3 -> 2022-23 | I9: =FRCP_y4 -> 2023-24 | J9: =FRCP_y5 -> 2024-25
A10: DQS0201 | B10: Energy Not Supplied (planned) | C10: GWh | D10: 1.3 | E10: 1.3 | F10: 1.3 | G10: 1.3 | H10: 1.3 | I10: 1.3 | J10: 1.3
A11: DQS0202 | B11: Energy Not Supplied (unplanned) | C11: GWh | D11: 4.7 | E11: 4.7 | F11: 4.7 | G11: 4.7 | H11: 4.7 | I11: 4.7 | J11: 4.7
A12: DQS02 | B12: Total | D12: =SUM(D10:D11) -> 6 | E12: =SUM(E10:E11) -> 6 | F12: 6 | G12: 6 | H12: 6 | I12: 6 | J12: 6
B14: 3.6.3 - SYSTEM LOSSES
D15: Forecast
C16: Units | D16: =CRCP_y4 -> 2018-19 | E16: =CRCP_y5 -> 2019-20 | F16: =FRCP_y1 -> 2020-21 | G16: =FRCP_y2 -> 2021-22 | H16: =FRCP_y3 -> 2022-23 | I16: =FRCP_y4 -> 2023-24 | J16: =FRCP_y5 -> 2024-25
A17: DQS03 | B17: System losses | C17: % | D17: 0.063 | E17: 0.064 | F17: 0.065 | G17: 0.065 | H17: 0.065 | I17: 0.064 | J17: 0.064
B19: 3.6.4 - CAPACITY UTILISATION
D20: Forecast
C21: Units | D21: =CRCP_y4 -> 2018-19 | E21: =CRCP_y5 -> 2019-20 | F21: =FRCP_y1 -> 2020-21 | G21: =FRCP_y2 -> 2021-22 | H21: =FRCP_y3 -> 2022-23 | I21: =FRCP_y4 -> 2023-24 | J21: =FRCP_y5 -> 2024-25
A22: DQS04 | B22: Overall utilisation | C22: % | D22: 0.5505527464 | E22: 0.5427323871 | F22: 0.5429978838 | G22: 0.5431787355 | H22: 0.5436889491 | I22: 0.5433427034 | J22: 0.5441135857

Sheet 3.7 Operating Environment
B1: =SheetHeader -> REGULATORY REPORTING STATEMENT
B2: =dms_TradingName -> SA Power Networks
B3: =dms_Reg_Year_Span -> 2020-21 to 2024-25
B4: 3.7 OPERATING ENVIRONMENT FACTORS
B6: There are THREE tables on this worksheet. Each table has been grouped (and sub-grouped) for ease of navigation. See the Instructions sheet on how to group or ungroup tables.
A8: DOEF01 | B8: 3.7.1 - DENSITY FACTORS
D9: Forecast
C10: Units | D10: =CRCP_y4 -> 2018-19 | E10: =CRCP_y5 -> 2019-20 | F10: =FRCP_y1 -> 2020-21 | G10: =FRCP_y2 -> 2021-22 | H10: =FRCP_y3 -> 2022-23 | I10: =FRCP_y4 -> 2023-24 | J10: =FRCP_y5 -> 2024-25
A11: DOEF0101 | B11: Customer density | C11: Customer / km | D11: 0.11 | E11: 0.111 | F11: 0.112 | G11: 0.113 | H11: 0.113 | I11: 0.114 | J11: 0.115
A12: DOEF0102 | B12: Energy density | C12: MWh/customer | D12: 11.2 | E12: 10.6 | F12: 10.4 | G12: 10.3 | H12: 10.2 | I12: 10.2 | J12: 10.2
A13: DOEF0103 | B13: Demand density | C13: kVA / customer | D13: 3.2 | E13: 3.1 | F13: 3.1 | G13: 3.1 | H13: 3.1 | I13: 3.1 | J13: 3
A15: DOEF02 | B15: 3.7.2 - TERRAIN FACTORS
D16: Forecast
C17: Units | D17: =CRCP_y4 -> 2018-19 | E17: =CRCP_y5 -> 2019-20 | F17: =FRCP_y1 -> 2020-21 | G17: =FRCP_y2 -> 2021-22 | H17: =FRCP_y3 -> 2022-23 | I17: =FRCP_y4 -> 2023-24 | J17: =FRCP_y5 -> 2024-25
A18: DOEF0201 | B18: Rural proportion | C18: % | D18: 0.798 | E18: 0.798 | F18: 0.798 | G18: 0.798 | H18: 0.798 | I18: 0.798 | J18: 0.798
A19: DOEF0202 | B19: Urban and CBD vegetation maintenance spans | C19: 0's | D19: 14673 | E19: 14677 | F19: 14680 | G19: 14683 | H19: 14687 | I19: 14690 | J19: 14693
A20: DOEF0203 | B20: Rural vegetation maintenance spans | C20: 0's | D20: 63347 | E20: 63362 | F20: 63376 | G20: 63390 | H20: 63405 | I20: 63419 | J20: 63434
A21: DOEF0204 | B21: Total vegetation maintenance spans | C21: 0's | D21: 78021 | E21: 78038 | F21: 78056 | G21: 78074 | H21: 78092 | I21: 78109 | J21: 78127
A22: DOEF0205 | B22: Total number of spans | C22: 0's | D22: 648141 | E22: 648288 | F22: 648435 | G22: 648582 | H22: 648729 | I22: 648876 | J22: 649024
A23: DOEF0206 | B23: Average urban and CBD vegetation maintenance span cycle | C23: Years | D23: 3 | E23: 3 | F23: 3 | G23: 3 | H23: 3 | I23: 3 | J23: 3
A24: DOEF0207 | B24: Average rural vegetation maintenance span cycle | C24: Years | D24: 1 | E24: 1 | F24: 1 | G24: 1 | H24: 1 | I24: 1 | J24: 1
A25: DOEF0208 | B25: Average number of trees per urban and CBD vegetation maintenance span | C25: Trees | D25: 3 | E25: 3 | F25: 3 | G25: 3 | H25: 3 | I25: 3 | J25: 3
A26: DOEF0209 | B26: Average number of trees per rural vegetation maintenance span | C26: Trees | D26: 9 | E26: 9 | F26: 9 | G26: 9 | H26: 9 | I26: 9 | J26: 9
A27: DOEF0210 | B27: Average number of defects per urban and CBD vegetation maintenance span | C27: Defects | D27: 2 | E27: 2 | F27: 2 | G27: 2 | H27: 2 | I27: 2 | J27: 2
A28: DOEF0211 | B28: Average number of defects per rural vegetation maintenance span | C28: Defects | D28: 1 | E28: 1 | F28: 1 | G28: 1 | H28: 1 | I28: 1 | J28: 1
A29: DOEF0212 | B29: Tropical proportion | C29: Spans | D29: - | E29: - | F29: 0 | G29: 0 | H29: 0 | I29: 0 | J29: 0
A30: DOEF0213 | B30: Standard vehicle access | C30: km | D30: 5766 | E30: 5768 | F30: 5769 | G30: 5770 | H30: 5772 | I30: 5773 | J30: 5774
